Workbook

Sheet Sample Report (hidden)
A2: Date
A3: Hen
A4: Program
A5: Start at 999999
A6: Sequence component 1 | B6: Time 1 | C6: Seqeunce Component 2 | D6: Time 2 | E6: Seqeunce Component 3 | F6: Time 3 | G6: Correct 0 = No 1=Yes | J6: Seqeunce | K6: Time
A7: 12 | B7: 7 | C7: 12 | D7: 42 | E7: 13 | F7: 18 | G7: if 77 new line, if 31 or 41 = yes new line on 77, | J7: =string of Seqeunce compponent 1, 2 & 3 | K7: =time 3
A8: This continues until ther is a 1 on its own to indicate start of summary data
J9: 10-19 =1
A10: Summary Data | J10: 20-29 =2
A11: Correct | B11: Incorrect | C11: Rft | D11: total | E11: Av Correct | F11: Av Incorrect | G11: Percent correct | H11: Time | J11: in this example the seqeunce would be 111
A12: 40 | B12: 33 | C12: 40 | D12: 73 | E12: 23.95 | F12: 15 | G12: 54 | H12: 806

Sheet Summary
A2: Day | B2: Date | C2: Average Response Rate | D2: Target % | E2: RF for non correct sequence | F2: U Value | K2: Block 1 | L2: Block 2 | M2: Block 3 | N2: Block 4 | O2: Block 5 | P2: Block 6
A3: 1 | B3: ='!L818B0B.axt'!B2:C2 -> <date> | C3: =('!L818B0B.axt'!F32/60)/'!L818B0B.axt'!Q3 -> 2.486419753 | D3: ='!L818B0B.axt'!N20/'!L818B0B.axt'!Q3 -> 0 | E3: =SUM('!L818B0B.axt'!L20:Q20)/'!L818B0B.axt'!Q3 -> 4.481481481 | F3: ='!L818B0B.axt'!Q16 -> 0.4362732562 | J3: Average Response Rate | K3: =AVERAGE(C3:C7) -> 3.414604606 | L3: =AVERAGE(C8:C12) -> 4.390511431 | M3: =AVERAGE(C13:C17) -> 6.399933165 | N3: =AVERAGE(C18:C22) -> 6.641535548 | O3: =AVERAGE(C23:C27) -> 6.312494313 | P3: =AVERAGE(C28:C32) -> 3.689957469
A4: 2 | B4: ='!L81994B.axt'!B2:C2 -> <date> | C4: =('!L81994B.axt'!F43/60)/'!L81994B.axt'!Q3 -> 3.845945946 | D4: ='!L81994B.axt'!N20/'!L81994B.axt'!Q3 -> 0 | E4: =SUM('!L81994B.axt'!L20:Q20)/'!L81994B.axt'!Q3 -> 3.594594595 | F4: ='!L81994B.axt'!Q16 -> 0.4313371274 | J4: Target % | K4: =AVERAGE(D3:D7) -> 0.001960784314 | L4: =AVERAGE(D8:D12) -> 0.01025921869 | M4: =AVERAGE(D13:D17) -> 0.02714724889 | N4: =AVERAGE(D18:D22) -> 0.01678321678 | O4: =AVERAGE(D23:D27) -> 0.0291439206 | P4: =AVERAGE(D28:D32) -> 0.008695652174
A5: 3 | B5: ='!L820A2B.axt'!B2:C2 -> <date> | C5: =('!L820A2B.axt'!F48/60)/'!L820A2B.axt'!Q3 -> 4.61031746 | D5: ='!L820A2B.axt'!N20/'!L820A2B.axt'!Q3 -> 0 | E5: =SUM('!L820A2B.axt'!L20:Q20)/'!L820A2B.axt'!Q3 -> 3.238095238 | F5: ='!L820A2B.axt'!Q16 -> 0.3319401785 | J5: CCRF | K5: =AVERAGE(E3:E7) -> 4.606755831 | L5: =AVERAGE(E8:E12) -> 2.117048167 | M5: =AVERAGE(E13:E17) -> 3.791995525 | N5: =AVERAGE(E18:E22) -> 3.22488345 | O5: =AVERAGE(E23:E27) -> 5.925062035 | P5: =AVERAGE(E28:E32) -> 5.102642346
A6: 4 | B6: ='!L822A5B.axt'!B2:C2 -> <date> | C6: =('!L822A5B.axt'!F31/60)/'!L822A5B.axt'!Q3 -> 2.747333333 | D6: ='!L822A5B.axt'!N20/'!L822A5B.axt'!Q3 -> 0 | E6: =SUM('!L822A5B.axt'!L20:Q20)/'!L822A5B.axt'!Q3 -> 9.2 | F6: ='!L822A5B.axt'!Q16 -> 0.3884933938 | J6: U Value | K6: =AVERAGE(F3:F7) -> 0.3827689882 | L6: =AVERAGE(F8:F12) -> 0.3341115043 | M6: =AVERAGE(F13:F17) -> 0.3869780788 | N6: =AVERAGE(F18:F22) -> 0.4767115693 | O6: =AVERAGE(F23:F27) -> 0.4366590707 | P6: =AVERAGE(F28:F32) -> 0.3386039901
A7: 5 | B7: ='!L82393B.axt'!B2:C2 -> <date> | C7: =('!L82393B.axt'!F108/60)/'!L82393B.axt'!Q3 -> 3.383006536 | D7: ='!L82393B.axt'!N20/'!L82393B.axt'!Q3 -> 0.009803921569 | E7: =SUM('!L82393B.axt'!L20:Q20)/'!L82393B.axt'!Q3 -> 2.519607843 | F7: ='!L82393B.axt'!Q16 -> 0.3258009852
A8: 6 | B8: ='!L824A1B.axt'!B2:C2 -> <date> | C8: =('!L824A1B.axt'!F107/60)/'!L824A1B.axt'!Q3 -> 3.320627063 | D8: ='!L824A1B.axt'!N20/'!L824A1B.axt'!Q3 -> 0 | E8: =SUM('!L824A1B.axt'!L20:Q20)/'!L824A1B.axt'!Q3 -> 1.435643564 | F8: ='!L824A1B.axt'!Q16 -> 0.3326469451
A9: 7 | B9: ='!L825A3B.axt'!B2:C2 -> <date> | C9: =('!L825A3B.axt'!F56/60)/'!L825A3B.axt'!Q3 -> 7.060333333 | D9: ='!L825A3B.axt'!N20/'!L825A3B.axt'!Q3 -> 0 | E9: =SUM('!L825A3B.axt'!L20:Q20)/'!L825A3B.axt'!Q3 -> 2.78 | F9: ='!L825A3B.axt'!Q16 -> 0.3716382691 | G9: =K3 -> 3.414604606 | H9: =L3 -> 4.390511431 | I9: 6.399933165 | J9: 6.641535548 | K9: 6.312494313 | L9: 3.689957469 | M9: =K4 -> 0.001960784314 | N9: =L4 -> 0.01025921869 | O9: 0.02714724889 | P9: 0.01678321678 | Q9: 0.0291439206 | R9: 0.008695652174 | S9: =K6 -> 0.3827689882 | T9: =L6 -> 0.3341115043 | U9: 0.3869780788 | V9: 0.4767115693 | W9: 0.4366590707 | X9: 0.3386039901
A10: 8 | B10: ='!L826A1B.axt'!B2:C2 -> <date> | C10: =('!L826A1B.axt'!F72/60)/'!L826A1B.axt'!Q3 -> 2.845959596 | D10: ='!L826A1B.axt'!N20/'!L826A1B.axt'!Q3 -> 0.01515151515 | E10: =SUM('!L826A1B.axt'!L20:Q20)/'!L826A1B.axt'!Q3 -> 2.045454545 | F10: ='!L826A1B.axt'!Q16 -> 0.328621508
A11: 9 | B11: ='!L82784B.axt'!B2:C2 -> <date> | C11: =('!L82784B.axt'!F58/60)/'!L82784B.axt'!Q3 -> 4.893910256 | D11: ='!L82784B.axt'!N20/'!L82784B.axt'!Q3 -> 0 | E11: =SUM('!L82784B.axt'!L20:Q20)/'!L82784B.axt'!Q3 -> 2.480769231 | F11: ='!L82784B.axt'!Q16 -> 0.3481517356
A12: 10 | B12: ='!L82890B.axt'!B2:C2 -> <date> | C12: =('!L82890B.axt'!F89/60)/'!L82890B.axt'!Q3 -> 3.831726908 | D12: ='!L82890B.axt'!N20/'!L82890B.axt'!Q3 -> 0.03614457831 | E12: =SUM('!L82890B.axt'!L20:Q20)/'!L82890B.axt'!Q3 -> 1.843373494 | F12: ='!L82890B.axt'!Q16 -> 0.2894990637
A13: 11 | B13: ='!L829A4B.axt'!B2:C2 -> <date> | C13: =('!L829A4B.axt'!F60/60)/'!L829A4B.axt'!Q3 -> 7.196604938 | D13: ='!L829A4B.axt'!N20/'!L829A4B.axt'!Q3 -> 0.05555555556 | E13: =SUM('!L829A4B.axt'!L20:Q20)/'!L829A4B.axt'!Q3 -> 2.648148148 | F13: ='!L829A4B.axt'!Q16 -> 0.3202176616
A14: 12 | B14: ='!L830A5B.axt'!B2:C2 -> <date> | C14: =('!L830A5B.axt'!F62/60)/'!L830A5B.axt'!Q3 -> 6.896428571 | D14: ='!L830A5B.axt'!N20/'!L830A5B.axt'!Q3 -> 0.03571428571 | E14: =SUM('!L830A5B.axt'!L20:Q20)/'!L830A5B.axt'!Q3 -> 2.357142857 | F14: ='!L830A5B.axt'!Q16 -> 0.3414486041
A15: 13 | B15: ='!L831A2B.axt'!B2:C2 -> <date> | C15: =('!L831A2B.axt'!F52/60)/'!L831A2B.axt'!Q3 -> 5.936231884 | D15: ='!L831A2B.axt'!N20/'!L831A2B.axt'!Q3 -> 0.02173913043 | E15: =SUM('!L831A2B.axt'!L20:Q20)/'!L831A2B.axt'!Q3 -> 2.782608696 | F15: ='!L831A2B.axt'!Q16 -> 0.3908295116
A16: 14 | B16: ='!L901A4B.axt'!B2:C2 -> <date> | C16: =('!L901A4B.axt'!F50/60)/'!L901A4B.axt'!Q3 -> 9.029924242 | D16: ='!L901A4B.axt'!N20/'!L901A4B.axt'!Q3 -> 0.02272727273 | E16: =SUM('!L901A4B.axt'!L20:Q20)/'!L901A4B.axt'!Q3 -> 2.886363636 | F16: ='!L901A4B.axt'!Q16 -> 0.4076936868
A17: 15 | B17: ='!L90294B.axt'!B2:C2 -> <date> | C17: =('!L90294B.axt'!F20/60)/'!L90294B.axt'!Q3 -> 2.94047619 | D17: ='!L90294B.axt'!N20/'!L90294B.axt'!Q3 -> 0 | E17: =SUM('!L90294B.axt'!L20:Q20)/'!L90294B.axt'!Q3 -> 8.285714286 | F17: ='!L90294B.axt'!Q16 -> 0.4747009299
A18: 16 | B18: ='!L903A4B.axt'!B2:C2 -> <date> | C18: =('!L903A4B.axt'!F32/60)/'!L903A4B.axt'!Q3 -> 13.06025641 | D18: ='!L903A4B.axt'!N20/'!L903A4B.axt'!Q3 -> 0.03846153846 | E18: =SUM('!L903A4B.axt'!L20:Q20)/'!L903A4B.axt'!Q3 -> 4.653846154 | F18: ='!L903A4B.axt'!Q16 -> 0.3844673107
A19: 17 | B19: ='!L905A4B.axt'!B2:C2 -> <date> | C19: =('!L905A4B.axt'!F11/60)/'!L905A4B.axt'!Q3 -> 7.325 | D19: ='!L905A4B.axt'!N20/'!L905A4B.axt'!Q3 -> 0 | E19: =SUM('!L905A4B.axt'!L20:Q20)/'!L905A4B.axt'!Q3 -> 0.3333333333 | F19: ='!L905A4B.axt'!Q16 -> 0.5904362833
A20: 18 | B20: ='!L906A4B.axt'!B2:C2 -> <date> | C20: =('!L906A4B.axt'!F14/60)/'!L906A4B.axt'!Q3 -> 5.402083333 | D20: ='!L906A4B.axt'!N20/'!L906A4B.axt'!Q3 -> 0 | E20: =SUM('!L906A4B.axt'!L20:Q20)/'!L906A4B.axt'!Q3 -> 0.375 | F20: ='!L906A4B.axt'!Q16 -> 0.4329316469
A21: 19 | B21: ='!L907A4B.axt'!B2:C2 -> <date> | C21: =('!L907A4B.axt'!F19/60)/'!L907A4B.axt'!Q3 -> 3.375641026 | D21: ='!L907A4B.axt'!N20/'!L907A4B.axt'!Q3 -> 0 | E21: =SUM('!L907A4B.axt'!L20:Q20)/'!L907A4B.axt'!Q3 -> 0.3076923077 | F21: ='!L907A4B.axt'!Q16 -> 0.5507885108
A22: 20 | B22: ='!L908A3B.axt'!B2:C2 -> <date> | C22: =('!L908A3B.axt'!F28/60)/'!L908A3B.axt'!Q3 -> 4.04469697 | D22: ='!L908A3B.axt'!N20/'!L908A3B.axt'!Q3 -> 0.04545454545 | E22: =SUM('!L908A3B.axt'!L20:Q20)/'!L908A3B.axt'!Q3 -> 10.45454545 | F22: ='!L908A3B.axt'!Q16 -> 0.4249340947
A23: 21 | B23: ='!L90995B.axt'!B2:C2 -> <date> | C23: =('!L90995B.axt'!F22/60)/'!L90995B.axt'!Q3 -> 3.955208333 | D23: ='!L90995B.axt'!N20/'!L90995B.axt'!Q3 -> 0.0625 | E23: =SUM('!L90995B.axt'!L20:Q20)/'!L90995B.axt'!Q3 -> 14.25 | F23: ='!L90995B.axt'!Q16 -> 0.5373493676
A24: 22 | B24: ='!L91092B.axt'!B2:C2 -> <date> | C24: =('!L91092B.axt'!F85/60)/'!L91092B.axt'!Q3 -> 4.939583333 | D24: ='!L91092B.axt'!N20/'!L91092B.axt'!Q3 -> 0.0125 | E24: =SUM('!L91092B.axt'!L20:Q20)/'!L91092B.axt'!Q3 -> 1.75 | F24: ='!L91092B.axt'!Q16 -> 0.3631726072
A25: 23 | B25: ='!L91191B.axt'!B2:C2 -> <date> | C25: =('!L91191B.axt'!F37/60)/'!L91191B.axt'!Q3 -> 11.70483871 | D25: ='!L91191B.axt'!N20/'!L91191B.axt'!Q3 -> 0 | E25: =SUM('!L91191B.axt'!L20:Q20)/'!L91191B.axt'!Q3 -> 4.258064516 | F25: ='!L91191B.axt'!Q16 -> 0.4290237298
A26: 24 | B26: ='!L912A5B.axt'!B2:C2 -> <date> | C26: =('!L912A5B.axt'!F37/60)/'!L912A5B.axt'!Q3 -> 3.569892473 | D26: ='!L912A5B.axt'!N20/'!L912A5B.axt'!Q3 -> 0.03225806452 | E26: =SUM('!L912A5B.axt'!L20:Q20)/'!L912A5B.axt'!Q3 -> 4.290322581 | F26: ='!L912A5B.axt'!Q16 -> 0.4370356065
A27: 25 | B27: ='!L91392B.axt'!B2:C2 -> <date> | C27: =('!L91392B.axt'!F32/60)/'!L91392B.axt'!Q3 -> 7.392948718 | D27: ='!L91392B.axt'!N20/'!L91392B.axt'!Q3 -> 0.03846153846 | E27: =SUM('!L91392B.axt'!L20:Q20)/'!L91392B.axt'!Q3 -> 5.076923077 | F27: ='!L91392B.axt'!Q16 -> 0.4167140426
A28: 26 | B28: ='!L914A1B.axt'!B2:C2 -> <date> | C28: =('!L914A1B.axt'!F44/60)/'!L914A1B.axt'!Q3 -> 3.089473684 | D28: ='!L914A1B.axt'!N20/'!L914A1B.axt'!Q3 -> 0 | E28: =SUM('!L914A1B.axt'!L20:Q20)/'!L914A1B.axt'!Q3 -> 3.552631579 | F28: ='!L914A1B.axt'!Q16 -> 0.4252399183
A29: 27 | B29: ='!L915A3B.axt'!B2:C2 -> <date> | C29: =('!L915A3B.axt'!F35/60)/'!L915A3B.axt'!Q3 -> 4.718965517 | D29: ='!L915A3B.axt'!N20/'!L915A3B.axt'!Q3 -> 0 | E29: =SUM('!L915A3B.axt'!L20:Q20)/'!L915A3B.axt'!Q3 -> 7.965517241 | F29: ='!L915A3B.axt'!Q16 -> 0.4211524961
A30: 28 | B30: ='!L916A1B.axt'!B2:C2 -> <date> | C30: =('!L916A1B.axt'!F51/60)/'!L916A1B.axt'!Q3 -> 2.870652174 | D30: ='!L916A1B.axt'!N20/'!L916A1B.axt'!Q3 -> 0.04347826087 | E30: =SUM('!L916A1B.axt'!L20:Q20)/'!L916A1B.axt'!Q3 -> 2.782608696 | F30: ='!L916A1B.axt'!Q16 -> 0.4305821562
A31: 29 | B31: ='!L917A4B.axt'!B2:C2 -> <date> | C31: =('!L917A4B.axt'!F27/60)/'!L917A4B.axt'!Q3 -> 4.730952381 | D31: ='!L917A4B.axt'!N20/'!L917A4B.axt'!Q3 -> 0 | E31: =SUM('!L917A4B.axt'!L20:Q20)/'!L917A4B.axt'!Q3 -> 10.9047619 | F31: ='!L917A4B.axt'!Q16 -> 0.3103164412
A32: 30 | B32: ='!L918A5B.axt'!B2:C2 -> <date> | C32: =('!L918A5B.axt'!F19/60)/'!L918A5B.axt'!Q3 -> 3.03974359 | D32: ='!L918A5B.axt'!N20/'!L918A5B.axt'!Q3 -> 0 | E32: =SUM('!L918A5B.axt'!L20:Q20)/'!L918A5B.axt'!Q3 -> 0.3076923077 | F32: ='!L918A5B.axt'!Q16 -> 0.1057289386

Sheet Start
F1: Use Folder 51 | H1: Auto Clean Up | J1: Correct sequence
F2: FALSE | H2: TRUE | J2: 211
A4: Working with Folder | G4: Process All/Or Pick A number: ALL or an integer
A5: F:\Possum Chapter\Raw Data\baxter\Phase 1 VAR RLL\ | G5: ALL
A6: Filenames:
A7: !L818B0B.axt | G7: Paint Cells
A8: !L81994B.axt | G8: FALSE
A9: !L820A2B.axt
A10: !L822A5B.axt
A11: !L82393B.axt
A12: !L824A1B.axt
A13: !L825A3B.axt
A14: !L826A1B.axt
A15: !L82784B.axt
A16: !L82890B.axt
A17: !L829A4B.axt
A18: !L830A5B.axt
A19: !L831A2B.axt
A20: !L901A4B.axt
A21: !L90294B.axt
A22: !L903A4B.axt
A23: !L905A4B.axt
A24: !L906A4B.axt
A25: !L907A4B.axt
A26: !L908A3B.axt
A27: !L90995B.axt
A28: !L91092B.axt
A29: !L91191B.axt
A30: !L912A5B.axt
A31: !L91392B.axt
A32: !L914A1B.axt
A33: !L915A3B.axt
A34: !L916A1B.axt
A35: !L917A4B.axt
A36: !L918A5B.axt

Sheet !L818B0B.axt
A1: Report for:!L818B0B.axt
A2: Date: | B2: <date>
A3: Hen: | B3: <hen> | F3: Correct Sequence | G3: =Start!J2 -> 211 | P3: Total Sequences in Data | Q3: =4994-COUNTBLANK(L7:L5000) -> 27 | V3: Total Sequences in Block Data | W3: =COUNTA(L7:L11) -> 5 | AA3: Total Sequences in Block Data | AB3: =COUNTA(L12:L15) -> 4 | AF3: Total Sequences in Block Data | AG3: =COUNTA(L16:L20) -> 5 | AK3: Total Sequences in Block Data | AL3: =COUNTA(L21:L24) -> 4 | AP3: Total Sequences in Block Data | AQ3: =COUNTA(L25:L29) -> 5 | AU3: Total Sequences in Block Data | AV3: =COUNTA(L30:L33) -> 4
P4: Total Sequences in Summary | Q4: =SUM(O7:O14) -> 26 | V4: Total Sequences in Block Summary | W4: =SUM(U7:U14) -> 5 | AA4: Total Sequences in Block Summary | AB4: =SUM(Z7:Z14) -> 4 | AF4: Total Sequences in Block Summary | AG4: =SUM(AE7:AE14) -> 5 | AK4: Total Sequences in Block Summary | AL4: =SUM(AJ7:AJ14) -> 4 | AP4: Total Sequences in Block Summary | AQ4: =SUM(AO7:AO14) -> 5 | AU4: Total Sequences in Block Summary | AV4: =SUM(AT7:AT14) -> 3
T5: Block 1 | Y5: Block 2 | AD5: Block 3 | AI5: Block 4 | AN5: Block 5 | AS5: Block 6
A6: Sequence Component 1 | B6: Time 1 | C6: Sequence Component 2 | D6: Time 2 | E6: Sequence Component 3 | F6: Time 3 | G6: Sequence Component 4 | H6: Time 4 | I6: Sequence Component 5 | J6: Time 5 | K6: Correct? 0=No 1=Yes | L6: Sequence | N6: Frequency | P6: Relative Frequency | Q6: Variability | T6: Frequency | V6: Relative Frequency | W6: Variability | Y6: Frequency | AA6: Relative Frequency | AB6: Variability | AD6: Frequency | AF6: Relative Frequency | AG6: Variability | AI6: Frequency | AK6: Relative Frequency | AL6: Variability | AN6: Frequency | AP6: Relative Frequency | AQ6: Variability | AS6: Frequency | AU6: Relative Frequency | AV6: Variability
A7: 21 | B7: 59 | C7: 22 | D7: 68 | E7: 13 | F7: 99 | K7: 0 | L7: 221 | N7: 111 | O7: =COUNTIF($L$7:$L$500,N7) -> 1 | P7: =O7/$Q$4 -> 0.03846153846 | Q7: =IF(P7=0,0,(P7*((LOG(P7))/LOG(2)))) -> -0.180786143 | T7: =N7 -> 111 | U7: =COUNTIF(L7:L11,T7) -> 0 | V7: =U7/(W4-U11) -> 0 | W7: =IF(V7=0,0,(V7*((LOG(V7))/LOG(2)))) -> 0 | Y7: =N7 -> 111 | Z7: =COUNTIF(L12:L15,Y7) -> 0 | AA7: =Z7/(AB4-Z11) -> 0 | AB7: =IF(AA7=0,0,(AA7*((LOG(AA7))/LOG(2)))) -> 0 | AD7: =N7 -> 111 | AE7: =COUNTIF(L16:L20,AD7) -> 0 | AF7: =AE7/(AG4-AE11) -> 0 | AG7: =IF(AF7=0,0,(AF7*((LOG(AF7))/LOG(2)))) -> 0 | AI7: =N7 -> 111 | AJ7: =COUNTIF(L21:L24,AI7) -> 1 | AK7: =AJ7/(AL4-AJ11) -> 0.25 | AL7: =IF(AK7=0,0,(AK7*((LOG(AK7))/LOG(2)))) -> -0.5 | AN7: =N7 -> 111 | AO7: =COUNTIF(L25:L29,AN7) -> 0 | AP7: =AO7/(AQ4-AO11) -> 0 | AQ7: =IF(AP7=0,0,(AP7*((LOG(AP7))/LOG(2)))) -> 0 | AS7: =N7 -> 111 | AT7: =COUNTIF(L30:L33,AS7) -> 0 | AU7: =AT7/(AV4-AT11) -> 0 | AV7: =IF(AU7=0,0,(AU7*((LOG(AU7))/LOG(2)))) -> 0
A8: 12 | B8: 286 | C8: 13 | D8: 339 | E8: 24 | F8: 356 | K8: 0 | L8: 112 | N8: 112 | O8: =COUNTIF($L$7:$L$500,N8) -> 5 | P8: =O8/$Q$4 -> 0.1923076923 | Q8: =IF(P8=0,0,(P8*((LOG(P8))/LOG(2)))) -> -0.4574060814 | T8: =N8 -> 112 | U8: =COUNTIF(L7:L11,T8) -> 1 | V8: =U8/(W4-U11) -> 0.2 | W8: =IF(V8=0,0,(V8*((LOG(V8))/LOG(2)))) -> -0.464385619 | Y8: =N8 -> 112 | Z8: =COUNTIF(L12:L15,Y8) -> 1 | AA8: =Z8/(AB4-Z11) -> 0.25 | AB8: =IF(AA8=0,0,(AA8*((LOG(AA8))/LOG(2)))) -> -0.5 | AD8: =N8 -> 112 | AE8: =COUNTIF(L16:L20,AD8) -> 3 | AF8: =AE8/(AG4-AE11) -> 0.6 | AG8: =IF(AF8=0,0,(AF8*((LOG(AF8))/LOG(2)))) -> -0.4421793565 | AI8: =N8 -> 112 | AJ8: =COUNTIF(L21:L24,AI8) -> 0 | AK8: =AJ8/(AL4-AJ11) -> 0 | AL8: =IF(AK8=0,0,(AK8*((LOG(AK8))/LOG(2)))) -> 0 | AN8: =N8 -> 112 | AO8: =COUNTIF(L25:L29,AN8) -> 0 | AP8: =AO8/(AQ4-AO11) -> 0 | AQ8: =IF(AP8=0,0,(AP8*((LOG(AP8))/LOG(2)))) -> 0 | AS8: =N8 -> 112 | AT8: =COUNTIF(L30:L33,AS8) -> 0 | AU8: =AT8/(AV4-AT11) -> 0 | AV8: =IF(AU8=0,0,(AU8*((LOG(AU8))/LOG(2)))) -> 0
A9: 21 | B9: 476 | C9: 22 | D9: 486 | E9: 13 | F9: 506 | K9: 0 | L9: 221 | N9: 121 | O9: =COUNTIF($L$7:$L$500,N9) -> 0 | P9: =O9/$Q$4 -> 0 | Q9: =IF(P9=0,0,(P9*((LOG(P9))/LOG(2)))) -> 0 | T9: =N9 -> 121 | U9: =COUNTIF(L7:L11,T9) -> 0 | V9: =U9/(W4-U11) -> 0 | W9: =IF(V9=0,0,(V9*((LOG(V9))/LOG(2)))) -> 0 | Y9: =N9 -> 121 | Z9: =COUNTIF(L12:L15,Y9) -> 0 | AA9: =Z9/(AB4-Z11) -> 0 | AB9: =IF(AA9=0,0,(AA9*((LOG(AA9))/LOG(2)))) -> 0 | AD9: =N9 -> 121 | AE9: =COUNTIF(L16:L20,AD9) -> 0 | AF9: =AE9/(AG4-AE11) -> 0 | AG9: =IF(AF9=0,0,(AF9*((LOG(AF9))/LOG(2)))) -> 0 | AI9: =N9 -> 121 | AJ9: =COUNTIF(L21:L24,AI9) -> 0 | AK9: =AJ9/(AL4-AJ11) -> 0 | AL9: =IF(AK9=0,0,(AK9*((LOG(AK9))/LOG(2)))) -> 0 | AN9: =N9 -> 121 | AO9: =COUNTIF(L25:L29,AN9) -> 0 | AP9: =AO9/(AQ4-AO11) -> 0 | AQ9: =IF(AP9=0,0,(AP9*((LOG(AP9))/LOG(2)))) -> 0 | AS9: =N9 -> 121 | AT9: =COUNTIF(L30:L33,AS9) -> 0 | AU9: =AT9/(AV4-AT11) -> 0 | AV9: =IF(AU9=0,0,(AU9*((LOG(AU9))/LOG(2)))) -> 0
A10: 21 | B10: 622 | C10: 22 | D10: 630 | E10: 24 | F10: 643 | K10: 0 | L10: 222 | N10: 122 | O10: =COUNTIF($L$7:$L$500,N10) -> 8 | P10: =O10/$Q$4 -> 0.3076923077 | Q10: =IF(P10=0,0,(P10*((LOG(P10))/LOG(2)))) -> -0.523212221 | T10: =N10 -> 122 | U10: =COUNTIF(L7:L11,T10) -> 0 | V10: =U10/(W4-U11) -> 0 | W10: =IF(V10=0,0,(V10*((LOG(V10))/LOG(2)))) -> 0 | Y10: =N10 -> 122 | Z10: =COUNTIF(L12:L15,Y10) -> 2 | AA10: =Z10/(AB4-Z11) -> 0.5 | AB10: =IF(AA10=0,0,(AA10*((LOG(AA10))/LOG(2)))) -> -0.5 | AD10: =N10 -> 122 | AE10: =COUNTIF(L16:L20,AD10) -> 0 | AF10: =AE10/(AG4-AE11) -> 0 | AG10: =IF(AF10=0,0,(AF10*((LOG(AF10))/LOG(2)))) -> 0 | AI10: =N10 -> 122 | AJ10: =COUNTIF(L21:L24,AI10) -> 1 | AK10: =AJ10/(AL4-AJ11) -> 0.25 | AL10: =IF(AK10=0,0,(AK10*((LOG(AK10))/LOG(2)))) -> -0.5 | AN10: =N10 -> 122 | AO10: =COUNTIF(L25:L29,AN10) -> 5 | AP10: =AO10/(AQ4-AO11) -> 1 | AQ10: =IF(AP10=0,0,(AP10*((LOG(AP10))/LOG(2)))) -> 0 | AS10: =N10 -> 122 | AT10: =COUNTIF(L30:L33,AS10) -> 0 | AU10: =AT10/(AV4-AT11) -> 0 | AV10: =IF(AU10=0,0,(AU10*((LOG(AU10))/LOG(2)))) -> 0
A11: 21 | B11: 776 | C11: 22 | D11: 783 | E11: 24 | F11: 815 | K11: 0 | L11: 222 | N11: 211 | O11: =COUNTIF($L$7:$L$500,N11) -> 0 | P11: =O11/$Q$4 -> 0 | Q11: =IF(P11=0,0,(P11*((LOG(P11))/LOG(2)))) -> 0 | T11: =N11 -> 211 | U11: =COUNTIF(L7:L11,T11) -> 0 | Y11: =N11 -> 211 | Z11: =COUNTIF(L12:L15,Y11) -> 0 | AD11: =N11 -> 211 | AE11: =COUNTIF(L16:L20,AD11) -> 0 | AI11: =N11 -> 211 | AJ11: =COUNTIF(L21:L24,AI11) -> 0 | AN11: =N11 -> 211 | AO11: =COUNTIF(L25:L29,AN11) -> 0 | AS11: =N11 -> 211 | AT11: =COUNTIF(L30:L33,AS11) -> 0
A12: 21 | B12: 941 | C12: 22 | D12: 963 | E12: 13 | F12: 1050 | K12: 0 | L12: 221 | N12: 212 | O12: =COUNTIF($L$7:$L$500,N12) -> 0 | P12: =O12/$Q$4 -> 0 | Q12: =IF(P12=0,0,(P12*((LOG(P12))/LOG(2)))) -> 0 | T12: =N12 -> 212 | U12: =COUNTIF(L7:L11,T12) -> 0 | V12: =U12/(W4-U11) -> 0 | W12: =IF(V12=0,0,(V12*((LOG(V12))/LOG(2)))) -> 0 | Y12: =N12 -> 212 | Z12: =COUNTIF(L12:L15,Y12) -> 0 | AA12: =Z12/(AB4-Z11) -> 0 | AB12: =IF(AA12=0,0,(AA12*((LOG(AA12))/LOG(2)))) -> 0 | AD12: =N12 -> 212 | AE12: =COUNTIF(L16:L20,AD12) -> 0 | AF12: =AE12/(AG4-AE11) -> 0 | AG12: =IF(AF12=0,0,(AF12*((LOG(AF12))/LOG(2)))) -> 0 | AI12: =N12 -> 212 | AJ12: =COUNTIF(L21:L24,AI12) -> 0 | AK12: =AJ12/(AL4-AJ11) -> 0 | AL12: =IF(AK12=0,0,(AK12*((LOG(AK12))/LOG(2)))) -> 0 | AN12: =N12 -> 212 | AO12: =COUNTIF(L25:L29,AN12) -> 0 | AP12: =AO12/(AQ4-AO11) -> 0 | AQ12: =IF(AP12=0,0,(AP12*((LOG(AP12))/LOG(2)))) -> 0 | AS12: =N12 -> 212 | AT12: =COUNTIF(L30:L33,AS12) -> 0 | AU12: =AT12/(AV4-AT11) -> 0 | AV12: =IF(AU12=0,0,(AU12*((LOG(AU12))/LOG(2)))) -> 0
A13: 12 | B13: 1143 | C13: 13 | D13: 1145 | E13: 24 | F13: 1158 | K13: 0 | L13: 112 | N13: 221 | O13: =COUNTIF($L$7:$L$500,N13) -> 3 | P13: =O13/$Q$4 -> 0.1153846154 | Q13: =IF(P13=0,0,(P13*((LOG(P13))/LOG(2)))) -> -0.3594781405 | T13: =N13 -> 221 | U13: =COUNTIF(L7:L11,T13) -> 2 | V13: =U13/(W4-U11) -> 0.4 | W13: =IF(V13=0,0,(V13*((LOG(V13))/LOG(2)))) -> -0.528771238 | Y13: =N13 -> 221 | Z13: =COUNTIF(L12:L15,Y13) -> 1 | AA13: =Z13/(AB4-Z11) -> 0.25 | AB13: =IF(AA13=0,0,(AA13*((LOG(AA13))/LOG(2)))) -> -0.5 | AD13: =N13 -> 221 | AE13: =COUNTIF(L16:L20,AD13) -> 0 | AF13: =AE13/(AG4-AE11) -> 0 | AG13: =IF(AF13=0,0,(AF13*((LOG(AF13))/LOG(2)))) -> 0 | AI13: =N13 -> 221 | AJ13: =COUNTIF(L21:L24,AI13) -> 0 | AK13: =AJ13/(AL4-AJ11) -> 0 | AL13: =IF(AK13=0,0,(AK13*((LOG(AK13))/LOG(2)))) -> 0 | AN13: =N13 -> 221 | AO13: =COUNTIF(L25:L29,AN13) -> 0 | AP13: =AO13/(AQ4-AO11) -> 0 | AQ13: =IF(AP13=0,0,(AP13*((LOG(AP13))/LOG(2)))) -> 0 | AS13: =N13 -> 221 | AT13: =COUNTIF(L30:L33,AS13) -> 0 | AU13: =AT13/(AV4-AT11) -> 0 | AV13: =IF(AU13=0,0,(AU13*((LOG(AU13))/LOG(2)))) -> 0
A14: 12 | B14: 1292 | C14: 24 | D14: 1304 | E14: 24 | F14: 1311 | K14: 0 | L14: 122 | N14: 222 | O14: =COUNTIF($L$7:$L$500,N14) -> 9 | P14: =O14/$Q$4 -> 0.3461538462 | Q14: =IF(P14=0,0,(P14*((LOG(P14))/LOG(2)))) -> -0.5297935558 | T14: =N14 -> 222 | U14: =COUNTIF(L7:L11,T14) -> 2 | V14: =U14/(W4-U11) -> 0.4 | W14: =IF(V14=0,0,(V14*((LOG(V14))/LOG(2)))) -> -0.528771238 | Y14: =N14 -> 222 | Z14: =COUNTIF(L12:L15,Y14) -> 0 | AA14: =Z14/(AB4-Z11) -> 0 | AB14: =IF(AA14=0,0,(AA14*((LOG(AA14))/LOG(2)))) -> 0 | AD14: =N14 -> 222 | AE14: =COUNTIF(L16:L20,AD14) -> 2 | AF14: =AE14/(AG4-AE11) -> 0.4 | AG14: =IF(AF14=0,0,(AF14*((LOG(AF14))/LOG(2)))) -> -0.528771238 | AI14: =N14 -> 222 | AJ14: =COUNTIF(L21:L24,AI14) -> 2 | AK14: =AJ14/(AL4-AJ11) -> 0.5 | AL14: =IF(AK14=0,0,(AK14*((LOG(AK14))/LOG(2)))) -> -0.5 | AN14: =N14 -> 222 | AO14: =COUNTIF(L25:L29,AN14) -> 0 | AP14: =AO14/(AQ4-AO11) -> 0 | AQ14: =IF(AP14=0,0,(AP14*((LOG(AP14))/LOG(2)))) -> 0 | AS14: =N14 -> 222 | AT14: =COUNTIF(L30:L33,AS14) -> 3 | AU14: =AT14/(AV4-AT11) -> 1 | AV14: =IF(AU14=0,0,(AU14*((LOG(AU14))/LOG(2)))) -> 0
A15: 12 | B15: 1403 | C15: 24 | D15: 1425 | E15: 24 | F15: 1432 | K15: 0 | L15: 122 | P15: =SUM(P7:P14) -> 1 | Q15: =-SUM(Q7:Q14) -> 2.050676142 | V15: =SUM(V7:V14) -> 1 | W15: =-SUM(W7:W14) -> 1.521928095 | AA15: =SUM(AA7:AA14) -> 1 | AB15: =-SUM(AB7:AB14) -> 1.5 | AF15: =SUM(AF7:AF14) -> 1 | AG15: =-SUM(AG7:AG14) -> 0.9709505945 | AK15: =SUM(AK7:AK14) -> 1 | AL15: =-SUM(AL7:AL14) -> 1.5 | AP15: =SUM(AP7:AP14) -> 1 | AQ15: =-SUM(AQ7:AQ14) -> 0 | AU15: =SUM(AU7:AU14) -> 1 | AV15: =-SUM(AV7:AV14) -> 0
A16: 21 | B16: 1541 | C16: 22 | D16: 1546 | E16: 24 | F16: 1554 | K16: 0 | L16: 222 | P16: U= | Q16: =Q15/(LOG(Q4)/LOG(2)) -> 0.4362732562 | V16: U1= | W16: =W15/(LOG(W4)/LOG(2)) -> 0.6554587535 | AA16: U2= | AB16: =AB15/(LOG(AB4)/LOG(2)) -> 0.75 | AF16: U3= | AG16: =AG15/(LOG(AG4)/LOG(2)) -> 0.4181656601 | AK16: U4= | AL16: =AL15/(LOG(AL4)/LOG(2)) -> 0.75 | AP16: U5= | AQ16: =AQ15/(LOG(AQ4)/LOG(2)) -> 0 | AU16: U6= | AV16: =AV15/(LOG(AV4)/LOG(2)) -> 0
A17: 21 | B17: 1662 | C17: 22 | D17: 1669 | E17: 24 | F17: 1676 | K17: 0 | L17: 222
A18: 12 | B18: 1770 | C18: 13 | D18: 1786 | E18: 24 | F18: 1789 | K18: 0 | L18: 112
A19: 12 | B19: 1882 | C19: 13 | D19: 1884 | E19: 24 | F19: 1900 | K19: 0 | L19: 112 | N19: Total Target Seq
A20: 12 | B20: 1994 | C20: 13 | D20: 2000 | E20: 24 | F20: 2018 | K20: 0 | L20: 112 | N20: =COUNTIF(L7:L33,G3) -> 0 | P20: 5 | Q20: 4 | R20: 5 | S20: 4 | T20: 5 | U20: 4
A21: 21 | B21: 2131 | C21: 22 | D21: 2144 | E21: 24 | F21: 2154 | K21: 0 | L21: 222 | P21: % of reinforcement given in 6 equal intervals based on number of trials
A22: 12 | B22: 2249 | C22: 13 | D22: 2251 | E22: 13 | F22: 2257 | K22: 0 | L22: 111 | P22: %_1 | Q22: %_2 | R22: %_3 | S22: %_4 | T22: %_5 | U22: %_6
A23: 21 | B23: 2374 | C23: 22 | D23: 2382 | E23: 24 | F23: 2466 | K23: 0 | L23: 222 | O23: target sequence | P23: =$G$3 -> 211 | Q23: =$G$3 -> 211 | R23: =$G$3 -> 211 | S23: =$G$3 -> 211 | T23: =$G$3 -> 211 | U23: =$G$3 -> 211
A24: 12 | B24: 2563 | C24: 24 | D24: 2580 | E24: 24 | F24: 2585 | K24: 0 | L24: 122 | O24: total reinforcement | P24: =U11 -> 0 | Q24: =Z11 -> 0 | R24: =AE11 -> 0 | S24: =AJ11 -> 0 | T24: =AO11 -> 0 | U24: =AT11 -> 0
A25: 12 | B25: 2681 | C25: 24 | D25: 2697 | E25: 24 | F25: 2704 | K25: 0 | L25: 122 | O25: % target
A26: 12 | B26: 2802 | C26: 24 | D26: 2821 | E26: 24 | F26: 2828 | K26: 0 | L26: 122 | O26: CCRF
A27: 12 | B27: 2925 | C27: 24 | D27: 2937 | E27: 24 | F27: 2944 | K27: 0 | L27: 122 | O27: % CCRf
A28: 12 | B28: 3060 | C28: 24 | D28: 3082 | E28: 24 | F28: 3090 | K28: 0 | L28: 122 | O28: average response rate | P28: =F11/P20 -> 163 | Q28: =(F15-F11)/Q20 -> 154.25 | R28: =(F20-F15)/R20 -> 117.2 | S28: =(F24-F20)/S20 -> 141.75 | T28: =(F29-F24)/T20 -> 124.8 | U28: =(F33-F29)/U20 -> -802.25
A29: 12 | B29: 3184 | C29: 24 | D29: 3202 | E29: 24 | F29: 3209 | K29: 0 | L29: 122
A30: 21 | B30: 3340 | C30: 22 | D30: 3356 | E30: 24 | F30: 3366 | K30: 0 | L30: 222
A31: 21 | B31: 3476 | C31: 22 | D31: 3484 | E31: 24 | F31: 3492 | K31: 0 | L31: 222
A32: 21 | B32: 4011 | C32: 22 | D32: 4020 | E32: 24 | F32: 4028 | K32: 0 | L32: 222
A33: 21 | B33: 4323 | C33: 22 | D33: 4335 | L33: 22

Sheet !L81994B.axt
A1: Report for:!L81994B.axt
A2: Date: | B2: <date>
A3: Hen: | B3: <hen> | F3: Correct Sequence | G3: =Start!J2 -> 211 | P3: Total Sequences in Data | Q3: =4994-COUNTBLANK(L7:L5000) -> 37 | V3: Total Sequences in Block Data | W3: =COUNTA(L7:L12) -> 6 | AA3: Total Sequences in Block Data | AB3: =COUNTA(L13:L18) -> 6 | AF3: Total Sequences in Block Data | AG3: =COUNTA(L19:L25) -> 7 | AK3: Total Sequences in Block Data | AL3: =COUNTA(L26:L31) -> 6 | AP3: Total Sequences in Block Data | AQ3: =COUNTA(L32:L37) -> 6 | AU3: Total Sequences in Block Data | AV3: =COUNTA(L38:L43) -> 6
P4: Total Sequences in Summary | Q4: =SUM(O7:O14) -> 37 | V4: Total Sequences in Block Summary | W4: =SUM(U7:U14) -> 6 | AA4: Total Sequences in Block Summary | AB4: =SUM(Z7:Z14) -> 6 | AF4: Total Sequences in Block Summary | AG4: =SUM(AE7:AE14) -> 7 | AK4: Total Sequences in Block Summary | AL4: =SUM(AJ7:AJ14) -> 6 | AP4: Total Sequences in Block Summary | AQ4: =SUM(AO7:AO14) -> 6 | AU4: Total Sequences in Block Summary | AV4: =SUM(AT7:AT14) -> 6
T5: Block 1 | Y5: Block 2 | AD5: Block 3 | AI5: Block 4 | AN5: Block 5 | AS5: Block 6
A6: Sequence Component 1 | B6: Time 1 | C6: Sequence Component 2 | D6: Time 2 | E6: Sequence Component 3 | F6: Time 3 | G6: Sequence Component 4 | H6: Time 4 | I6: Sequence Component 5 | J6: Time 5 | K6: Correct? 0=No 1=Yes | L6: Sequence | N6: Frequency | P6: Relative Frequency | Q6: Variability | T6: Frequency | V6: Relative Frequency | W6: Variability | Y6: Frequency | AA6: Relative Frequency | AB6: Variability | AD6: Frequency | AF6: Relative Frequency | AG6: Variability | AI6: Frequency | AK6: Relative Frequency | AL6: Variability | AN6: Frequency | AP6: Relative Frequency | AQ6: Variability | AS6: Frequency | AU6: Relative Frequency | AV6: Variability
A7: 21 | B7: 111 | C7: 22 | D7: 152 | E7: 24 | F7: 160 | K7: 0 | L7: 222 | N7: 111 | O7: =COUNTIF($L$7:$L$500,N7) -> 1 | P7: =O7/$Q$4 -> 0.02702702703 | Q7: =IF(P7=0,0,(P7*((LOG(P7))/LOG(2)))) -> -0.1407960369 | T7: =N7 -> 111 | U7: =COUNTIF(L7:L12,T7) -> 0 | V7: =U7/(W4-U11) -> 0 | W7: =IF(V7=0,0,(V7*((LOG(V7))/LOG(2)))) -> 0 | Y7: =N7 -> 111 | Z7: =COUNTIF(L13:L18,Y7) -> 0 | AA7: =Z7/(AB4-Z11) -> 0 | AB7: =IF(AA7=0,0,(AA7*((LOG(AA7))/LOG(2)))) -> 0 | AD7: =N7 -> 111 | AE7: =COUNTIF(L19:L25,AD7) -> 0 | AF7: =AE7/(AG4-AE11) -> 0 | AG7: =IF(AF7=0,0,(AF7*((LOG(AF7))/LOG(2)))) -> 0 | AI7: =N7 -> 111 | AJ7: =COUNTIF(L26:L31,AI7) -> 0 | AK7: =AJ7/(AL4-AJ11) -> 0 | AL7: =IF(AK7=0,0,(AK7*((LOG(AK7))/LOG(2)))) -> 0 | AN7: =N7 -> 111 | AO7: =COUNTIF(L32:L37,AN7) -> 1 | AP7: =AO7/(AQ4-AO11) -> 0.1666666667 | AQ7: =IF(AP7=0,0,(AP7*((LOG(AP7))/LOG(2)))) -> -0.4308270835 | AS7: =N7 -> 111 | AT7: =COUNTIF(L38:L43,AS7) -> 0 | AU7: =AT7/(AV4-AT11) -> 0 | AV7: =IF(AU7=0,0,(AU7*((LOG(AU7))/LOG(2)))) -> 0
A8: 21 | B8: 288 | C8: 22 | D8: 358 | E8: 13 | F8: 372 | K8: 0 | L8: 221 | N8: 112 | O8: =COUNTIF($L$7:$L$500,N8) -> 5 | P8: =O8/$Q$4 -> 0.1351351351 | Q8: =IF(P8=0,0,(P8*((LOG(P8))/LOG(2)))) -> -0.3902061177 | T8: =N8 -> 112 | U8: =COUNTIF(L7:L12,T8) -> 0 | V8: =U8/(W4-U11) -> 0 | W8: =IF(V8=0,0,(V8*((LOG(V8))/LOG(2)))) -> 0 | Y8: =N8 -> 112 | Z8: =COUNTIF(L13:L18,Y8) -> 1 | AA8: =Z8/(AB4-Z11) -> 0.1666666667 | AB8: =IF(AA8=0,0,(AA8*((LOG(AA8))/LOG(2)))) -> -0.4308270835 | AD8: =N8 -> 112 | AE8: =COUNTIF(L19:L25,AD8) -> 1 | AF8: =AE8/(AG4-AE11) -> 0.1428571429 | AG8: =IF(AF8=0,0,(AF8*((LOG(AF8))/LOG(2)))) -> -0.4010507032 | AI8: =N8 -> 112 | AJ8: =COUNTIF(L26:L31,AI8) -> 1 | AK8: =AJ8/(AL4-AJ11) -> 0.1666666667 | AL8: =IF(AK8=0,0,(AK8*((LOG(AK8))/LOG(2)))) -> -0.4308270835 | AN8: =N8 -> 112 | AO8: =COUNTIF(L32:L37,AN8) -> 1 | AP8: =AO8/(AQ4-AO11) -> 0.1666666667 | AQ8: =IF(AP8=0,0,(AP8*((LOG(AP8))/LOG(2)))) -> -0.4308270835 | AS8: =N8 -> 112 | AT8: =COUNTIF(L38:L43,AS8) -> 1 | AU8: =AT8/(AV4-AT11) -> 0.1666666667 | AV8: =IF(AU8=0,0,(AU8*((LOG(AU8))/LOG(2)))) -> -0.4308270835
A9: 21 | B9: 483 | C9: 22 | D9: 490 | E9: 24 | F9: 498 | K9: 0 | L9: 222 | N9: 121 | O9: =COUNTIF($L$7:$L$500,N9) -> 1 | P9: =O9/$Q$4 -> 0.02702702703 | Q9: =IF(P9=0,0,(P9*((LOG(P9))/LOG(2)))) -> -0.1407960369 | T9: =N9 -> 121 | U9: =COUNTIF(L7:L12,T9) -> 0 | V9: =U9/(W4-U11) -> 0 | W9: =IF(V9=0,0,(V9*((LOG(V9))/LOG(2)))) -> 0 | Y9: =N9 -> 121 | Z9: =COUNTIF(L13:L18,Y9) -> 0 | AA9: =Z9/(AB4-Z11) -> 0 | AB9: =IF(AA9=0,0,(AA9*((LOG(AA9))/LOG(2)))) -> 0 | AD9: =N9 -> 121 | AE9: =COUNTIF(L19:L25,AD9) -> 1 | AF9: =AE9/(AG4-AE11) -> 0.1428571429 | AG9: =IF(AF9=0,0,(AF9*((LOG(AF9))/LOG(2)))) -> -0.4010507032 | AI9: =N9 -> 121 | AJ9: =COUNTIF(L26:L31,AI9) -> 0 | AK9: =AJ9/(AL4-AJ11) -> 0 | AL9: =IF(AK9=0,0,(AK9*((LOG(AK9))/LOG(2)))) -> 0 | AN9: =N9 -> 121 | AO9: =COUNTIF(L32:L37,AN9) -> 0 | AP9: =AO9/(AQ4-AO11) -> 0 | AQ9: =IF(AP9=0,0,(AP9*((LOG(AP9))/LOG(2)))) -> 0 | AS9: =N9 -> 121 | AT9: =COUNTIF(L38:L43,AS9) -> 0 | AU9: =AT9/(AV4-AT11) -> 0 | AV9: =IF(AU9=0,0,(AU9*((LOG(AU9))/LOG(2)))) -> 0
A10: 21 | B10: 614 | C10: 22 | D10: 633 | E10: 24 | F10: 714 | K10: 0 | L10: 222 | N10: 122 | O10: =COUNTIF($L$7:$L$500,N10) -> 16 | P10: =O10/$Q$4 -> 0.4324324324 | Q10: =IF(P10=0,0,(P10*((LOG(P10))/LOG(2)))) -> -0.5230068608 | T10: =N10 -> 122 | U10: =COUNTIF(L7:L12,T10) -> 0 | V10: =U10/(W4-U11) -> 0 | W10: =IF(V10=0,0,(V10*((LOG(V10))/LOG(2)))) -> 0 | Y10: =N10 -> 122 | Z10: =COUNTIF(L13:L18,Y10) -> 1 | AA10: =Z10/(AB4-Z11) -> 0.1666666667 | AB10: =IF(AA10=0,0,(AA10*((LOG(AA10))/LOG(2)))) -> -0.4308270835 | AD10: =N10 -> 122 | AE10: =COUNTIF(L19:L25,AD10) -> 4 | AF10: =AE10/(AG4-AE11) -> 0.5714285714 | AG10: =IF(AF10=0,0,(AF10*((LOG(AF10))/LOG(2)))) -> -0.4613456697 | AI10: =N10 -> 122 | AJ10: =COUNTIF(L26:L31,AI10) -> 5 | AK10: =AJ10/(AL4-AJ11) -> 0.8333333333 | AL10: =IF(AK10=0,0,(AK10*((LOG(AK10))/LOG(2)))) -> -0.2191953382 | AN10: =N10 -> 122 | AO10: =COUNTIF(L32:L37,AN10) -> 3 | AP10: =AO10/(AQ4-AO11) -> 0.5 | AQ10: =IF(AP10=0,0,(AP10*((LOG(AP10))/LOG(2)))) -> -0.5 | AS10: =N10 -> 122 | AT10: =COUNTIF(L38:L43,AS10) -> 3 | AU10: =AT10/(AV4-AT11) -> 0.5 | AV10: =IF(AU10=0,0,(AU10*((LOG(AU10))/LOG(2)))) -> -0.5
A11: 21 | B11: 837 | C11: 22 | D11: 845 | E11: 24 | F11: 853 | K11: 0 | L11: 222 | N11: 211 | O11: =COUNTIF($L$7:$L$500,N11) -> 0 | P11: =O11/$Q$4 -> 0 | Q11: =IF(P11=0,0,(P11*((LOG(P11))/LOG(2)))) -> 0 | T11: =N11 -> 211 | U11: =COUNTIF(L7:L12,T11) -> 0 | Y11: =N11 -> 211 | Z11: =COUNTIF(L13:L18,Y11) -> 0 | AD11: =N11 -> 211 | AE11: =COUNTIF(L19:L25,AD11) -> 0 | AI11: =N11 -> 211 | AJ11: =COUNTIF(L26:L31,AI11) -> 0 | AN11: =N11 -> 211 | AO11: =COUNTIF(L32:L37,AN11) -> 0 | AS11: =N11 -> 211 | AT11: =COUNTIF(L38:L43,AS11) -> 0
A12: 21 | B12: 1227 | C12: 22 | D12: 1238 | E12: 24 | F12: 1278 | K12: 0 | L12: 222 | N12: 212 | O12: =COUNTIF($L$7:$L$500,N12) -> 2 | P12: =O12/$Q$4 -> 0.05405405405 | Q12: =IF(P12=0,0,(P12*((LOG(P12))/LOG(2)))) -> -0.2275380198 | T12: =N12 -> 212 | U12: =COUNTIF(L7:L12,T12) -> 0 | V12: =U12/(W4-U11) -> 0 | W12: =IF(V12=0,0,(V12*((LOG(V12))/LOG(2)))) -> 0 | Y12: =N12 -> 212 | Z12: =COUNTIF(L13:L18,Y12) -> 1 | AA12: =Z12/(AB4-Z11) -> 0.1666666667 | AB12: =IF(AA12=0,0,(AA12*((LOG(AA12))/LOG(2)))) -> -0.4308270835 | AD12: =N12 -> 212 | AE12: =COUNTIF(L19:L25,AD12) -> 0 | AF12: =AE12/(AG4-AE11) -> 0 | AG12: =IF(AF12=0,0,(AF12*((LOG(AF12))/LOG(2)))) -> 0 | AI12: =N12 -> 212 | AJ12: =COUNTIF(L26:L31,AI12) -> 0 | AK12: =AJ12/(AL4-AJ11) -> 0 | AL12: =IF(AK12=0,0,(AK12*((LOG(AK12))/LOG(2)))) -> 0 | AN12: =N12 -> 212 | AO12: =COUNTIF(L32:L37,AN12) -> 1 | AP12: =AO12/(AQ4-AO11) -> 0.1666666667 | AQ12: =IF(AP12=0,0,(AP12*((LOG(AP12))/LOG(2)))) -> -0.4308270835 | AS12: =N12 -> 212 | AT12: =COUNTIF(L38:L43,AS12) -> 0 | AU12: =AT12/(AV4-AT11) -> 0 | AV12: =IF(AU12=0,0,(AU12*((LOG(AU12))/LOG(2)))) -> 0
A13: 21 | B13: 2266 | C13: 11 | D13: 2289 | E13: 22 | F13: 2303 | K13: 0 | L13: 212 | N13: 221 | O13: =COUNTIF($L$7:$L$500,N13) -> 4 | P13: =O13/$Q$4 -> 0.1081081081 | Q13: =IF(P13=0,0,(P13*((LOG(P13))/LOG(2)))) -> -0.3469679314 | T13: =N13 -> 221 | U13: =COUNTIF(L7:L12,T13) -> 1 | V13: =U13/(W4-U11) -> 0.1666666667 | W13: =IF(V13=0,0,(V13*((LOG(V13))/LOG(2)))) -> -0.4308270835 | Y13: =N13 -> 221 | Z13: =COUNTIF(L13:L18,Y13) -> 1 | AA13: =Z13/(AB4-Z11) -> 0.1666666667 | AB13: =IF(AA13=0,0,(AA13*((LOG(AA13))/LOG(2)))) -> -0.4308270835 | AD13: =N13 -> 221 | AE13: =COUNTIF(L19:L25,AD13) -> 0 | AF13: =AE13/(AG4-AE11) -> 0 | AG13: =IF(AF13=0,0,(AF13*((LOG(AF13))/LOG(2)))) -> 0 | AI13: =N13 -> 221 | AJ13: =COUNTIF(L26:L31,AI13) -> 0 | AK13: =AJ13/(AL4-AJ11) -> 0 | AL13: =IF(AK13=0,0,(AK13*((LOG(AK13))/LOG(2)))) -> 0 | AN13: =N13 -> 221 | AO13: =COUNTIF(L32:L37,AN13) -> 0 | AP13: =AO13/(AQ4-AO11) -> 0 | AQ13: =IF(AP13=0,0,(AP13*((LOG(AP13))/LOG(2)))) -> 0 | AS13: =N13 -> 221 | AT13: =COUNTIF(L38:L43,AS13) -> 2 | AU13: =AT13/(AV4-AT11) -> 0.3333333333 | AV13: =IF(AU13=0,0,(AU13*((LOG(AU13))/LOG(2)))) -> -0.5283208336
A14: 21 | B14: 2754 | C14: 22 | D14: 2856 | E14: 13 | F14: 2884 | K14: 0 | L14: 221 | N14: 222 | O14: =COUNTIF($L$7:$L$500,N14) -> 8 | P14: =O14/$Q$4 -> 0.2162162162 | Q14: =IF(P14=0,0,(P14*((LOG(P14))/LOG(2)))) -> -0.4777196466 | T14: =N14 -> 222 | U14: =COUNTIF(L7:L12,T14) -> 5 | V14: =U14/(W4-U11) -> 0.8333333333 | W14: =IF(V14=0,0,(V14*((LOG(V14))/LOG(2)))) -> -0.2191953382 | Y14: =N14 -> 222 | Z14: =COUNTIF(L13:L18,Y14) -> 2 | AA14: =Z14/(AB4-Z11) -> 0.3333333333 | AB14: =IF(AA14=0,0,(AA14*((LOG(AA14))/LOG(2)))) -> -0.5283208336 | AD14: =N14 -> 222 | AE14: =COUNTIF(L19:L25,AD14) -> 1 | AF14: =AE14/(AG4-AE11) -> 0.1428571429 | AG14: =IF(AF14=0,0,(AF14*((LOG(AF14))/LOG(2)))) -> -0.4010507032 | AI14: =N14 -> 222 | AJ14: =COUNTIF(L26:L31,AI14) -> 0 | AK14: =AJ14/(AL4-AJ11) -> 0 | AL14: =IF(AK14=0,0,(AK14*((LOG(AK14))/LOG(2)))) -> 0 | AN14: =N14 -> 222 | AO14: =COUNTIF(L32:L37,AN14) -> 0 | AP14: =AO14/(AQ4-AO11) -> 0 | AQ14: =IF(AP14=0,0,(AP14*((LOG(AP14))/LOG(2)))) -> 0 | AS14: =N14 -> 222 | AT14: =COUNTIF(L38:L43,AS14) -> 0 | AU14: =AT14/(AV4-AT11) -> 0 | AV14: =IF(AU14=0,0,(AU14*((LOG(AU14))/LOG(2)))) -> 0
A15: 12 | B15: 3774 | C15: 24 | D15: 3792 | E15: 24 | F15: 3799 | K15: 0 | L15: 122 | P15: =SUM(P7:P14) -> 1 | Q15: =-SUM(Q7:Q14) -> 2.24703065 | V15: =SUM(V7:V14) -> 1 | W15: =-SUM(W7:W14) -> 0.6500224216 | AA15: =SUM(AA7:AA14) -> 1 | AB15: =-SUM(AB7:AB14) -> 2.251629167 | AF15: =SUM(AF7:AF14) -> 1 | AG15: =-SUM(AG7:AG14) -> 1.664497779 | AK15: =SUM(AK7:AK14) -> 1 | AL15: =-SUM(AL7:AL14) -> 0.6500224216 | AP15: =SUM(AP7:AP14) -> 1 | AQ15: =-SUM(AQ7:AQ14) -> 1.79248125 | AU15: =SUM(AU7:AU14) -> 1 | AV15: =-SUM(AV7:AV14) -> 1.459147917
A16: 21 | B16: 4402 | C16: 22 | D16: 4411 | E16: 24 | F16: 4450 | K16: 0 | L16: 222 | P16: U= | Q16: =Q15/(LOG(Q4)/LOG(2)) -> 0.4313371274 | V16: U1= | W16: =W15/(LOG(W4)/LOG(2)) -> 0.2514629986 | AA16: U2= | AB16: =AB15/(LOG(AB4)/LOG(2)) -> 0.8710490643 | AF16: U3= | AG16: =AG15/(LOG(AG4)/LOG(2)) -> 0.5929060719 | AK16: U4= | AL16: =AL15/(LOG(AL4)/LOG(2)) -> 0.2514629986 | AP16: U5= | AQ16: =AQ15/(LOG(AQ4)/LOG(2)) -> 0.6934264036 | AU16: U6= | AV16: =AV15/(LOG(AV4)/LOG(2)) -> 0.5644754679
A17: 12 | B17: 4585 | C17: 13 | D17: 4588 | E17: 24 | F17: 4598 | K17: 0 | L17: 112
A18: 21 | B18: 4961 | C18: 22 | D18: 5084 | E18: 24 | F18: 5094 | K18: 0 | L18: 222
A19: 12 | B19: 5199 | C19: 24 | D19: 5213 | E19: 24 | F19: 5221 | K19: 0 | L19: 122 | N19: Total Target Seq
A20: 12 | B20: 5337 | C20: 24 | D20: 5357 | E20: 13 | F20: 5413 | K20: 0 | L20: 121 | N20: =COUNTIF(L7:L43,G3) -> 0 | P20: 6 | Q20: 6 | R20: 7 | S20: 6 | T20: 6 | U20: 6
A21: 12 | B21: 5510 | C21: 24 | D21: 5523 | E21: 24 | F21: 5530 | K21: 0 | L21: 122 | P21: % of reinforcement given in 6 equal intervals based on number of trials
A22: 12 | B22: 5626 | C22: 24 | D22: 5643 | E22: 24 | F22: 5650 | K22: 0 | L22: 122 | P22: %_1 | Q22: %_2 | R22: %_3 | S22: %_4 | T22: %_5 | U22: %_6
A23: 21 | B23: 5802 | C23: 22 | D23: 5812 | E23: 24 | F23: 5834 | K23: 0 | L23: 222 | O23: target sequence | P23: =$G$3 -> 211 | Q23: =$G$3 -> 211 | R23: =$G$3 -> 211 | S23: =$G$3 -> 211 | T23: =$G$3 -> 211 | U23: =$G$3 -> 211
A24: 12 | B24: 5928 | C24: 13 | D24: 5931 | E24: 24 | F24: 5950 | K24: 0 | L24: 112 | O24: total reinforcement | P24: =U11 -> 0 | Q24: =Z11 -> 0 | R24: =AE11 -> 0 | S24: =AJ11 -> 0 | T24: =AO11 -> 0 | U24: =AT11 -> 0
A25: 12 | B25: 6043 | C25: 24 | D25: 6064 | E25: 24 | F25: 6072 | K25: 0 | L25: 122 | O25: % target
A26: 12 | B26: 6163 | C26: 24 | D26: 6188 | E26: 24 | F26: 6196 | K26: 0 | L26: 122 | O26: CCRF
A27: 12 | B27: 6289 | C27: 13 | D27: 6292 | E27: 24 | F27: 6310 | K27: 0 | L27: 112 | O27: % CCRf
A28: 12 | B28: 6418 | C28: 24 | D28: 6433 | E28: 24 | F28: 6441 | K28: 0 | L28: 122 | O28: average response rate | P28: =F12/P20 -> 213 | Q28: =(F18-F12)/Q20 -> 636 | R28: =(F25-F18)/R20 -> 139.7142857 | S28: =(F31-F25)/S20 -> 135 | T28: =(F37-F31)/T20 -> 132.6666667 | U28: =(F43-F37)/U20 -> 143.3333333
A29: 12 | B29: 6535 | C29: 24 | D29: 6549 | E29: 24 | F29: 6556 | K29: 0 | L29: 122
A30: 12 | B30: 6658 | C30: 24 | D30: 6668 | E30: 24 | F30: 6675 | K30: 0 | L30: 122
A31: 12 | B31: 6862 | C31: 24 | D31: 6875 | E31: 24 | F31: 6882 | K31: 0 | L31: 122
A32: 12 | B32: 6979 | C32: 13 | D32: 6982 | E32: 24 | F32: 6998 | K32: 0 | L32: 112
A33: 12 | B33: 7090 | C33: 24 | D33: 7108 | E33: 24 | F33: 7115 | K33: 0 | L33: 122
A34: 12 | B34: 7218 | C34: 24 | D34: 7227 | E34: 24 | F34: 7235 | K34: 0 | L34: 122
A35: 12 | B35: 7329 | C35: 24 | D35: 7351 | E35: 24 | F35: 7358 | K35: 0 | L35: 122
A36: 12 | B36: 7453 | C36: 13 | D36: 7460 | E36: 13 | F36: 7463 | K36: 0 | L36: 111
A37: 21 | B37: 7628 | C37: 11 | D37: 7665 | E37: 22 | F37: 7678 | K37: 0 | L37: 212
A38: 21 | B38: 7791 | C38: 22 | D38: 7800 | E38: 13 | F38: 7840 | K38: 0 | L38: 221
A39: 12 | B39: 7936 | C39: 24 | D39: 7954 | E39: 24 | F39: 7961 | K39: 0 | L39: 122
A40: 12 | B40: 8061 | C40: 13 | D40: 8070 | E40: 24 | F40: 8084 | K40: 0 | L40: 112
A41: 12 | B41: 8185 | C41: 24 | D41: 8198 | E41: 24 | F41: 8206 | K41: 0 | L41: 122
A42: 21 | B42: 8328 | C42: 22 | D42: 8337 | E42: 13 | F42: 8397 | K42: 0 | L42: 221
A43: 12 | B43: 8518 | C43: 24 | D43: 8531 | E43: 24 | F43: 8538 | K43: 0 | L43: 122

Sheet !L820A2B.axt
A1: Report for:!L820A2B.axt
A2: Date: | B2: <date>
A3: Hen: | B3: <hen> | F3: Correct Sequence | G3: =Start!J2 -> 211 | P3: Total Sequences in Data | Q3: =4994-COUNTBLANK(L7:L5000) -> 42 | V3: Total Sequences in Block Data | W3: =COUNTA(L7:L13) -> 7 | AA3: Total Sequences in Block Data | AB3: =COUNTA(L14:L20) -> 7 | AF3: Total Sequences in Block Data | AG3: =COUNTA(L21:L27) -> 7 | AK3: Total Sequences in Block Data | AL3: =COUNTA(L28:L34) -> 7 | AP3: Total Sequences in Block Data | AQ3: =COUNTA(L35:L41) -> 7 | AU3: Total Sequences in Block Data | AV3: =COUNTA(L42:L48) -> 7
P4: Total Sequences in Summary | Q4: =SUM(O7:O14) -> 42 | V4: Total Sequences in Block Summary | W4: =SUM(U7:U14) -> 7 | AA4: Total Sequences in Block Summary | AB4: =SUM(Z7:Z14) -> 7 | AF4: Total Sequences in Block Summary | AG4: =SUM(AE7:AE14) -> 7 | AK4: Total Sequences in Block Summary | AL4: =SUM(AJ7:AJ14) -> 7 | AP4: Total Sequences in Block Summary | AQ4: =SUM(AO7:AO14) -> 7 | AU4: Total Sequences in Block Summary | AV4: =SUM(AT7:AT14) -> 7
T5: Block 1 | Y5: Block 2 | AD5: Block 3 | AI5: Block 4 | AN5: Block 5 | AS5: Block 6
A6: Sequence Component 1 | B6: Time 1 | C6: Sequence Component 2 | D6: Time 2 | E6: Sequence Component 3 | F6: Time 3 | G6: Sequence Component 4 | H6: Time 4 | I6: Sequence Component 5 | J6: Time 5 | K6: Correct? 0=No 1=Yes | L6: Sequence | N6: Frequency | P6: Relative Frequency | Q6: Variability | T6: Frequency | V6: Relative Frequency | W6: Variability | Y6: Frequency | AA6: Relative Frequency | AB6: Variability | AD6: Frequency | AF6: Relative Frequency | AG6: Variability | AI6: Frequency | AK6: Relative Frequency | AL6: Variability | AN6: Frequency | AP6: Relative Frequency | AQ6: Variability | AS6: Frequency | AU6: Relative Frequency | AV6: Variability
A7: 12 | B7: 15 | C7: 24 | D7: 30 | E7: 13 | F7: 66 | K7: 0 | L7: 121 | N7: 111 | O7: =COUNTIF($L$7:$L$500,N7) -> 0 | P7: =O7/$Q$4 -> 0 | Q7: =IF(P7=0,0,(P7*((LOG(P7))/LOG(2)))) -> 0 | T7: =N7 -> 111 | U7: =COUNTIF(L7:L13,T7) -> 0 | V7: =U7/(W4-U11) -> 0 | W7: =IF(V7=0,0,(V7*((LOG(V7))/LOG(2)))) -> 0 | Y7: =N7 -> 111 | Z7: =COUNTIF(L14:L20,Y7) -> 0 | AA7: =Z7/(AB4-Z11) -> 0 | AB7: =IF(AA7=0,0,(AA7*((LOG(AA7))/LOG(2)))) -> 0 | AD7: =N7 -> 111 | AE7: =COUNTIF(L21:L27,AD7) -> 0 | AF7: =AE7/(AG4-AE11) -> 0 | AG7: =IF(AF7=0,0,(AF7*((LOG(AF7))/LOG(2)))) -> 0 | AI7: =N7 -> 111 | AJ7: =COUNTIF(L28:L34,AI7) -> 0 | AK7: =AJ7/(AL4-AJ11) -> 0 | AL7: =IF(AK7=0,0,(AK7*((LOG(AK7))/LOG(2)))) -> 0 | AN7: =N7 -> 111 | AO7: =COUNTIF(L35:L41,AN7) -> 0 | AP7: =AO7/(AQ4-AO11) -> 0 | AQ7: =IF(AP7=0,0,(AP7*((LOG(AP7))/LOG(2)))) -> 0 | AS7: =N7 -> 111 | AT7: =COUNTIF(L42:L48,AS7) -> 0 | AU7: =AT7/(AV4-AT11) -> 0 | AV7: =IF(AU7=0,0,(AU7*((LOG(AU7))/LOG(2)))) -> 0
A8: 21 | B8: 192 | C8: 11 | D8: 235 | E8: 22 | F8: 250 | K8: 0 | L8: 212 | N8: 112 | O8: =COUNTIF($L$7:$L$500,N8) -> 2 | P8: =O8/$Q$4 -> 0.04761904762 | Q8: =IF(P8=0,0,(P8*((LOG(P8))/LOG(2)))) -> -0.2091579725 | T8: =N8 -> 112 | U8: =COUNTIF(L7:L13,T8) -> 0 | V8: =U8/(W4-U11) -> 0 | W8: =IF(V8=0,0,(V8*((LOG(V8))/LOG(2)))) -> 0 | Y8: =N8 -> 112 | Z8: =COUNTIF(L14:L20,Y8) -> 1 | AA8: =Z8/(AB4-Z11) -> 0.1428571429 | AB8: =IF(AA8=0,0,(AA8*((LOG(AA8))/LOG(2)))) -> -0.4010507032 | AD8: =N8 -> 112 | AE8: =COUNTIF(L21:L27,AD8) -> 1 | AF8: =AE8/(AG4-AE11) -> 0.1428571429 | AG8: =IF(AF8=0,0,(AF8*((LOG(AF8))/LOG(2)))) -> -0.4010507032 | AI8: =N8 -> 112 | AJ8: =COUNTIF(L28:L34,AI8) -> 0 | AK8: =AJ8/(AL4-AJ11) -> 0 | AL8: =IF(AK8=0,0,(AK8*((LOG(AK8))/LOG(2)))) -> 0 | AN8: =N8 -> 112 | AO8: =COUNTIF(L35:L41,AN8) -> 0 | AP8: =AO8/(AQ4-AO11) -> 0 | AQ8: =IF(AP8=0,0,(AP8*((LOG(AP8))/LOG(2)))) -> 0 | AS8: =N8 -> 112 | AT8: =COUNTIF(L42:L48,AS8) -> 0 | AU8: =AT8/(AV4-AT11) -> 0 | AV8: =IF(AU8=0,0,(AU8*((LOG(AU8))/LOG(2)))) -> 0
A9: 12 | B9: 345 | C9: 24 | D9: 376 | E9: 24 | F9: 387 | K9: 0 | L9: 122 | N9: 121 | O9: =COUNTIF($L$7:$L$500,N9) -> 1 | P9: =O9/$Q$4 -> 0.02380952381 | Q9: =IF(P9=0,0,(P9*((LOG(P9))/LOG(2)))) -> -0.1283885101 | T9: =N9 -> 121 | U9: =COUNTIF(L7:L13,T9) -> 1 | V9: =U9/(W4-U11) -> 0.1428571429 | W9: =IF(V9=0,0,(V9*((LOG(V9))/LOG(2)))) -> -0.4010507032 | Y9: =N9 -> 121 | Z9: =COUNTIF(L14:L20,Y9) -> 0 | AA9: =Z9/(AB4-Z11) -> 0 | AB9: =IF(AA9=0,0,(AA9*((LOG(AA9))/LOG(2)))) -> 0 | AD9: =N9 -> 121 | AE9: =COUNTIF(L21:L27,AD9) -> 0 | AF9: =AE9/(AG4-AE11) -> 0 | AG9: =IF(AF9=0,0,(AF9*((LOG(AF9))/LOG(2)))) -> 0 | AI9: =N9 -> 121 | AJ9: =COUNTIF(L28:L34,AI9) -> 0 | AK9: =AJ9/(AL4-AJ11) -> 0 | AL9: =IF(AK9=0,0,(AK9*((LOG(AK9))/LOG(2)))) -> 0 | AN9: =N9 -> 121 | AO9: =COUNTIF(L35:L41,AN9) -> 0 | AP9: =AO9/(AQ4-AO11) -> 0 | AQ9: =IF(AP9=0,0,(AP9*((LOG(AP9))/LOG(2)))) -> 0 | AS9: =N9 -> 121 | AT9: =COUNTIF(L42:L48,AS9) -> 0 | AU9: =AT9/(AV4-AT11) -> 0 | AV9: =IF(AU9=0,0,(AU9*((LOG(AU9))/LOG(2)))) -> 0
A10: 12 | B10: 483 | C10: 24 | D10: 502 | E10: 24 | F10: 510 | K10: 0 | L10: 122 | N10: 122 | O10: =COUNTIF($L$7:$L$500,N10) -> 17 | P10: =O10/$Q$4 -> 0.4047619048 | Q10: =IF(P10=0,0,(P10*((LOG(P10))/LOG(2)))) -> -0.5281554259 | T10: =N10 -> 122 | U10: =COUNTIF(L7:L13,T10) -> 3 | V10: =U10/(W4-U11) -> 0.4285714286 | W10: =IF(V10=0,0,(V10*((LOG(V10))/LOG(2)))) -> -0.5238824663 | Y10: =N10 -> 122 | Z10: =COUNTIF(L14:L20,Y10) -> 3 | AA10: =Z10/(AB4-Z11) -> 0.4285714286 | AB10: =IF(AA10=0,0,(AA10*((LOG(AA10))/LOG(2)))) -> -0.5238824663 | AD10: =N10 -> 122 | AE10: =COUNTIF(L21:L27,AD10) -> 2 | AF10: =AE10/(AG4-AE11) -> 0.2857142857 | AG10: =IF(AF10=0,0,(AF10*((LOG(AF10))/LOG(2)))) -> -0.5163871206 | AI10: =N10 -> 122 | AJ10: =COUNTIF(L28:L34,AI10) -> 3 | AK10: =AJ10/(AL4-AJ11) -> 0.4285714286 | AL10: =IF(AK10=0,0,(AK10*((LOG(AK10))/LOG(2)))) -> -0.5238824663 | AN10: =N10 -> 122 | AO10: =COUNTIF(L35:L41,AN10) -> 3 | AP10: =AO10/(AQ4-AO11) -> 0.4285714286 | AQ10: =IF(AP10=0,0,(AP10*((LOG(AP10))/LOG(2)))) -> -0.5238824663 | AS10: =N10 -> 122 | AT10: =COUNTIF(L42:L48,AS10) -> 3 | AU10: =AT10/(AV4-AT11) -> 0.4285714286 | AV10: =IF(AU10=0,0,(AU10*((LOG(AU10))/LOG(2)))) -> -0.5238824663
A11: 21 | B11: 636 | C11: 22 | D11: 643 | E11: 24 | F11: 652 | K11: 0 | L11: 222 | N11: 211 | O11: =COUNTIF($L$7:$L$500,N11) -> 0 | P11: =O11/$Q$4 -> 0 | Q11: =IF(P11=0,0,(P11*((LOG(P11))/LOG(2)))) -> 0 | T11: =N11 -> 211 | U11: =COUNTIF(L7:L13,T11) -> 0 | Y11: =N11 -> 211 | Z11: =COUNTIF(L14:L20,Y11) -> 0 | AD11: =N11 -> 211 | AE11: =COUNTIF(L21:L27,AD11) -> 0 | AI11: =N11 -> 211 | AJ11: =COUNTIF(L28:L34,AI11) -> 0 | AN11: =N11 -> 211 | AO11: =COUNTIF(L35:L41,AN11) -> 0 | AS11: =N11 -> 211 | AT11: =COUNTIF(L42:L48,AS11) -> 0
A12: 21 | B12: 1269 | C12: 22 | D12: 1285 | E12: 24 | F12: 1296 | K12: 0 | L12: 222 | N12: 212 | O12: =COUNTIF($L$7:$L$500,N12) -> 1 | P12: =O12/$Q$4 -> 0.02380952381 | Q12: =IF(P12=0,0,(P12*((LOG(P12))/LOG(2)))) -> -0.1283885101 | T12: =N12 -> 212 | U12: =COUNTIF(L7:L13,T12) -> 1 | V12: =U12/(W4-U11) -> 0.1428571429 | W12: =IF(V12=0,0,(V12*((LOG(V12))/LOG(2)))) -> -0.4010507032 | Y12: =N12 -> 212 | Z12: =COUNTIF(L14:L20,Y12) -> 0 | AA12: =Z12/(AB4-Z11) -> 0 | AB12: =IF(AA12=0,0,(AA12*((LOG(AA12))/LOG(2)))) -> 0 | AD12: =N12 -> 212 | AE12: =COUNTIF(L21:L27,AD12) -> 0 | AF12: =AE12/(AG4-AE11) -> 0 | AG12: =IF(AF12=0,0,(AF12*((LOG(AF12))/LOG(2)))) -> 0 | AI12: =N12 -> 212 | AJ12: =COUNTIF(L28:L34,AI12) -> 0 | AK12: =AJ12/(AL4-AJ11) -> 0 | AL12: =IF(AK12=0,0,(AK12*((LOG(AK12))/LOG(2)))) -> 0 | AN12: =N12 -> 212 | AO12: =COUNTIF(L35:L41,AN12) -> 0 | AP12: =AO12/(AQ4-AO11) -> 0 | AQ12: =IF(AP12=0,0,(AP12*((LOG(AP12))/LOG(2)))) -> 0 | AS12: =N12 -> 212 | AT12: =COUNTIF(L42:L48,AS12) -> 0 | AU12: =AT12/(AV4-AT11) -> 0 | AV12: =IF(AU12=0,0,(AU12*((LOG(AU12))/LOG(2)))) -> 0
A13: 12 | B13: 1394 | C13: 24 | D13: 1410 | E13: 24 | F13: 1418 | K13: 0 | L13: 122 | N13: 221 | O13: =COUNTIF($L$7:$L$500,N13) -> 3 | P13: =O13/$Q$4 -> 0.07142857143 | Q13: =IF(P13=0,0,(P13*((LOG(P13))/LOG(2)))) -> -0.271953923 | T13: =N13 -> 221 | U13: =COUNTIF(L7:L13,T13) -> 0 | V13: =U13/(W4-U11) -> 0 | W13: =IF(V13=0,0,(V13*((LOG(V13))/LOG(2)))) -> 0 | Y13: =N13 -> 221 | Z13: =COUNTIF(L14:L20,Y13) -> 1 | AA13: =Z13/(AB4-Z11) -> 0.1428571429 | AB13: =IF(AA13=0,0,(AA13*((LOG(AA13))/LOG(2)))) -> -0.4010507032 | AD13: =N13 -> 221 | AE13: =COUNTIF(L21:L27,AD13) -> 0 | AF13: =AE13/(AG4-AE11) -> 0 | AG13: =IF(AF13=0,0,(AF13*((LOG(AF13))/LOG(2)))) -> 0 | AI13: =N13 -> 221 | AJ13: =COUNTIF(L28:L34,AI13) -> 0 | AK13: =AJ13/(AL4-AJ11) -> 0 | AL13: =IF(AK13=0,0,(AK13*((LOG(AK13))/LOG(2)))) -> 0 | AN13: =N13 -> 221 | AO13: =COUNTIF(L35:L41,AN13) -> 1 | AP13: =AO13/(AQ4-AO11) -> 0.1428571429 | AQ13: =IF(AP13=0,0,(AP13*((LOG(AP13))/LOG(2)))) -> -0.4010507032 | AS13: =N13 -> 221 | AT13: =COUNTIF(L42:L48,AS13) -> 1 | AU13: =AT13/(AV4-AT11) -> 0.1428571429 | AV13: =IF(AU13=0,0,(AU13*((LOG(AU13))/LOG(2)))) -> -0.4010507032
A14: 12 | B14: 1515 | C14: 24 | D14: 1528 | E14: 24 | F14: 1534 | K14: 0 | L14: 122 | N14: 222 | O14: =COUNTIF($L$7:$L$500,N14) -> 18 | P14: =O14/$Q$4 -> 0.4285714286 | Q14: =IF(P14=0,0,(P14*((LOG(P14))/LOG(2)))) -> -0.5238824663 | T14: =N14 -> 222 | U14: =COUNTIF(L7:L13,T14) -> 2 | V14: =U14/(W4-U11) -> 0.2857142857 | W14: =IF(V14=0,0,(V14*((LOG(V14))/LOG(2)))) -> -0.5163871206 | Y14: =N14 -> 222 | Z14: =COUNTIF(L14:L20,Y14) -> 2 | AA14: =Z14/(AB4-Z11) -> 0.2857142857 | AB14: =IF(AA14=0,0,(AA14*((LOG(AA14))/LOG(2)))) -> -0.5163871206 | AD14: =N14 -> 222 | AE14: =COUNTIF(L21:L27,AD14) -> 4 | AF14: =AE14/(AG4-AE11) -> 0.5714285714 | AG14: =IF(AF14=0,0,(AF14*((LOG(AF14))/LOG(2)))) -> -0.4613456697 | AI14: =N14 -> 222 | AJ14: =COUNTIF(L28:L34,AI14) -> 4 | AK14: =AJ14/(AL4-AJ11) -> 0.5714285714 | AL14: =IF(AK14=0,0,(AK14*((LOG(AK14))/LOG(2)))) -> -0.4613456697 | AN14: =N14 -> 222 | AO14: =COUNTIF(L35:L41,AN14) -> 3 | AP14: =AO14/(AQ4-AO11) -> 0.4285714286 | AQ14: =IF(AP14=0,0,(AP14*((LOG(AP14))/LOG(2)))) -> -0.5238824663 | AS14: =N14 -> 222 | AT14: =COUNTIF(L42:L48,AS14) -> 3 | AU14: =AT14/(AV4-AT11) -> 0.4285714286 | AV14: =IF(AU14=0,0,(AU14*((LOG(AU14))/LOG(2)))) -> -0.5238824663
A15: 12 | B15: 1628 | C15: 13 | D15: 1636 | E15: 24 | F15: 1653 | K15: 0 | L15: 112 | P15: =SUM(P7:P14) -> 1 | Q15: =-SUM(Q7:Q14) -> 1.789926808 | V15: =SUM(V7:V14) -> 1 | W15: =-SUM(W7:W14) -> 1.842370993 | AA15: =SUM(AA7:AA14) -> 1 | AB15: =-SUM(AB7:AB14) -> 1.842370993 | AF15: =SUM(AF7:AF14) -> 1 | AG15: =-SUM(AG7:AG14) -> 1.378783493 | AK15: =SUM(AK7:AK14) -> 1 | AL15: =-SUM(AL7:AL14) -> 0.985228136 | AP15: =SUM(AP7:AP14) -> 1 | AQ15: =-SUM(AQ7:AQ14) -> 1.448815636 | AU15: =SUM(AU7:AU14) -> 1 | AV15: =-SUM(AV7:AV14) -> 1.448815636
A16: 21 | B16: 2104 | C16: 22 | D16: 2112 | E16: 24 | F16: 2238 | K16: 0 | L16: 222 | P16: U= | Q16: =Q15/(LOG(Q4)/LOG(2)) -> 0.3319401785 | V16: U1= | W16: =W15/(LOG(W4)/LOG(2)) -> 0.6562657891 | AA16: U2= | AB16: =AB15/(LOG(AB4)/LOG(2)) -> 0.6562657891 | AF16: U3= | AG16: =AG15/(LOG(AG4)/LOG(2)) -> 0.4911325898 | AK16: U4= | AL16: =AL15/(LOG(AL4)/LOG(2)) -> 0.350945343 | AP16: U5= | AQ16: =AQ15/(LOG(AQ4)/LOG(2)) -> 0.5160785422 | AU16: U6= | AV16: =AV15/(LOG(AV4)/LOG(2)) -> 0.5160785422
A17: 21 | B17: 2392 | C17: 22 | D17: 2401 | E17: 13 | F17: 2447 | K17: 0 | L17: 221
A18: 21 | B18: 2875 | C18: 22 | D18: 2883 | E18: 24 | F18: 2898 | K18: 0 | L18: 222
A19: 12 | B19: 2994 | C19: 24 | D19: 3007 | E19: 24 | F19: 3015 | K19: 0 | L19: 122 | N19: Total Target Seq
A20: 12 | B20: 3110 | C20: 24 | D20: 3129 | E20: 24 | F20: 3139 | K20: 0 | L20: 122 | N20: =COUNTIF(L7:L48,G3) -> 0 | P20: 7 | Q20: 7 | R20: 7 | S20: 7 | T20: 7 | U20: 7
A21: 21 | B21: 3241 | C21: 22 | D21: 3246 | E21: 24 | F21: 3257 | K21: 0 | L21: 222 | P21: % of reinforcement given in 6 equal intervals based on number of trials
A22: 12 | B22: 3351 | C22: 13 | D22: 3357 | E22: 24 | F22: 3376 | K22: 0 | L22: 112 | P22: %_1 | Q22: %_2 | R22: %_3 | S22: %_4 | T22: %_5 | U22: %_6
A23: 12 | B23: 3476 | C23: 24 | D23: 3483 | E23: 24 | F23: 3490 | K23: 0 | L23: 122 | O23: target sequence | P23: =$G$3 -> 211 | Q23: =$G$3 -> 211 | R23: =$G$3 -> 211 | S23: =$G$3 -> 211 | T23: =$G$3 -> 211 | U23: =$G$3 -> 211
A24: 21 | B24: 3598 | C24: 22 | D24: 3605 | E24: 24 | F24: 3616 | K24: 0 | L24: 222 | O24: total reinforcement | P24: =U11 -> 0 | Q24: =Z11 -> 0 | R24: =AE11 -> 0 | S24: =AJ11 -> 0 | T24: =AO11 -> 0 | U24: =AT11 -> 0
A25: 21 | B25: 3721 | C25: 22 | D25: 3726 | E25: 24 | F25: 3762 | K25: 0 | L25: 222 | O25: % target
A26: 12 | B26: 3860 | C26: 24 | D26: 3870 | E26: 24 | F26: 3924 | K26: 0 | L26: 122 | O26: CCRF
A27: 21 | B27: 4038 | C27: 22 | D27: 4046 | E27: 24 | F27: 4056 | K27: 0 | L27: 222 | O27: % CCRf
A28: 12 | B28: 4154 | C28: 24 | D28: 4179 | E28: 24 | F28: 4188 | K28: 0 | L28: 122 | O28: average response rate | P28: =F13/P20 -> 202.5714286 | Q28: =(F20-F13)/Q20 -> 245.8571429 | R28: =(F27-F20)/R20 -> 131 | S28: =(F34-F27)/S20 -> 150 | T28: =(F41-F34)/T20 -> 150.1428571 | U28: =(F48-F41)/U20 -> 780.1428571
A29: 21 | B29: 4293 | C29: 22 | D29: 4301 | E29: 24 | F29: 4310 | K29: 0 | L29: 222
A30: 12 | B30: 4419 | C30: 24 | D30: 4430 | E30: 24 | F30: 4475 | K30: 0 | L30: 122
A31: 21 | B31: 4678 | C31: 22 | D31: 4686 | E31: 24 | F31: 4698 | K31: 0 | L31: 222
A32: 21 | B32: 4834 | C32: 22 | D32: 4842 | E32: 24 | F32: 4852 | K32: 0 | L32: 222
A33: 21 | B33: 4963 | C33: 22 | D33: 4970 | E33: 24 | F33: 4981 | K33: 0 | L33: 222
A34: 12 | B34: 5079 | C34: 24 | D34: 5088 | E34: 24 | F34: 5106 | K34: 0 | L34: 122
A35: 12 | B35: 5200 | C35: 24 | D35: 5218 | E35: 24 | F35: 5226 | K35: 0 | L35: 122
A36: 21 | B36: 5356 | C36: 22 | D36: 5366 | E36: 24 | F36: 5419 | K36: 0 | L36: 222
A37: 12 | B37: 5512 | C37: 24 | D37: 5538 | E37: 24 | F37: 5545 | K37: 0 | L37: 122
A38: 21 | B38: 5652 | C38: 22 | D38: 5668 | E38: 24 | F38: 5681 | K38: 0 | L38: 222
A39: 21 | B39: 5849 | C39: 22 | D39: 5859 | E39: 13 | F39: 5892 | K39: 0 | L39: 221
A40: 21 | B40: 6019 | C40: 22 | D40: 6026 | E40: 24 | F40: 6034 | K40: 0 | L40: 222
A41: 12 | B41: 6130 | C41: 24 | D41: 6150 | E41: 24 | F41: 6157 | K41: 0 | L41: 122
A42: 21 | B42: 6465 | C42: 22 | D42: 6474 | E42: 13 | F42: 6613 | K42: 0 | L42: 221
A43: 21 | B43: 7275 | C43: 22 | D43: 7283 | E43: 24 | F43: 7293 | K43: 0 | L43: 222
A44: 21 | B44: 7411 | C44: 22 | D44: 7416 | E44: 24 | F44: 7425 | K44: 0 | L44: 222
A45: 12 | B45: 7879 | C45: 24 | D45: 7893 | E45: 24 | F45: 7902 | K45: 0 | L45: 122
A46: 12 | B46: 8000 | C46: 24 | D46: 8020 | E46: 24 | F46: 8028 | K46: 0 | L46: 122
A47: 12 | B47: 8176 | C47: 24 | D47: 8184 | E47: 24 | F47: 8191 | K47: 0 | L47: 122
A48: 21 | B48: 8297 | C48: 22 | D48: 8307 | E48: 24 | F48: 11618 | K48: 0 | L48: 222

Sheet !L822A5B.axt
A1: Report for:!L822A5B.axt
A2: Date: | B2: <date>
A3: Hen: | B3: <hen> | F3: Correct Sequence | G3: =Start!J2 -> 211 | P3: Total Sequences in Data | Q3: =4994-COUNTBLANK(L7:L5000) -> 25 | V3: Total Sequences in Block Data | W3: =COUNTA(L7:L10) -> 4 | AA3: Total Sequences in Block Data | AB3: =COUNTA(L11:L14) -> 4 | AF3: Total Sequences in Block Data | AG3: =COUNTA(L15:L19) -> 5 | AK3: Total Sequences in Block Data | AL3: =COUNTA(L20:L23) -> 4 | AP3: Total Sequences in Block Data | AQ3: =COUNTA(L24:L27) -> 4 | AU3: Total Sequences in Block Data | AV3: =COUNTA(L28:L31) -> 4
P4: Total Sequences in Summary | Q4: =SUM(O7:O14) -> 25 | V4: Total Sequences in Block Summary | W4: =SUM(U7:U14) -> 4 | AA4: Total Sequences in Block Summary | AB4: =SUM(Z7:Z14) -> 4 | AF4: Total Sequences in Block Summary | AG4: =SUM(AE7:AE14) -> 5 | AK4: Total Sequences in Block Summary | AL4: =SUM(AJ7:AJ14) -> 4 | AP4: Total Sequences in Block Summary | AQ4: =SUM(AO7:AO14) -> 4 | AU4: Total Sequences in Block Summary | AV4: =SUM(AT7:AT14) -> 4
T5: Block 1 | Y5: Block 2 | AD5: Block 3 | AI5: Block 4 | AN5: Block 5 | AS5: Block 6
A6: Sequence Component 1 | B6: Time 1 | C6: Sequence Component 2 | D6: Time 2 | E6: Sequence Component 3 | F6: Time 3 | G6: Sequence Component 4 | H6: Time 4 | I6: Sequence Component 5 | J6: Time 5 | K6: Correct? 0=No 1=Yes | L6: Sequence | N6: Frequency | P6: Relative Frequency | Q6: Variability | T6: Frequency | V6: Relative Frequency | W6: Variability | Y6: Frequency | AA6: Relative Frequency | AB6: Variability | AD6: Frequency | AF6: Relative Frequency | AG6: Variability | AI6: Frequency | AK6: Relative Frequency | AL6: Variability | AN6: Frequency | AP6: Relative Frequency | AQ6: Variability | AS6: Frequency | AU6: Relative Frequency | AV6: Variability
A7: 21 | B7: 26 | C7: 22 | D7: 34 | E7: 24 | F7: 45 | K7: 0 | L7: 222 | N7: 111 | O7: =COUNTIF($L$7:$L$500,N7) -> 0 | P7: =O7/$Q$4 -> 0 | Q7: =IF(P7=0,0,(P7*((LOG(P7))/LOG(2)))) -> 0 | T7: =N7 -> 111 | U7: =COUNTIF(L7:L10,T7) -> 0 | V7: =U7/(W4-U11) -> 0 | W7: =IF(V7=0,0,(V7*((LOG(V7))/LOG(2)))) -> 0 | Y7: =N7 -> 111 | Z7: =COUNTIF(L11:L14,Y7) -> 0 | AA7: =Z7/(AB4-Z11) -> 0 | AB7: =IF(AA7=0,0,(AA7*((LOG(AA7))/LOG(2)))) -> 0 | AD7: =N7 -> 111 | AE7: =COUNTIF(L15:L19,AD7) -> 0 | AF7: =AE7/(AG4-AE11) -> 0 | AG7: =IF(AF7=0,0,(AF7*((LOG(AF7))/LOG(2)))) -> 0 | AI7: =N7 -> 111 | AJ7: =COUNTIF(L20:L23,AI7) -> 0 | AK7: =AJ7/(AL4-AJ11) -> 0 | AL7: =IF(AK7=0,0,(AK7*((LOG(AK7))/LOG(2)))) -> 0 | AN7: =N7 -> 111 | AO7: =COUNTIF(L24:L27,AN7) -> 0 | AP7: =AO7/(AQ4-AO11) -> 0 | AQ7: =IF(AP7=0,0,(AP7*((LOG(AP7))/LOG(2)))) -> 0 | AS7: =N7 -> 111 | AT7: =COUNTIF(L28:L31,AS7) -> 0 | AU7: =AT7/(AV4-AT11) -> 0 | AV7: =IF(AU7=0,0,(AU7*((LOG(AU7))/LOG(2)))) -> 0
A8: 21 | B8: 190 | C8: 22 | D8: 197 | E8: 24 | F8: 206 | K8: 0 | L8: 222 | N8: 112 | O8: =COUNTIF($L$7:$L$500,N8) -> 0 | P8: =O8/$Q$4 -> 0 | Q8: =IF(P8=0,0,(P8*((LOG(P8))/LOG(2)))) -> 0 | T8: =N8 -> 112 | U8: =COUNTIF(L7:L10,T8) -> 0 | V8: =U8/(W4-U11) -> 0 | W8: =IF(V8=0,0,(V8*((LOG(V8))/LOG(2)))) -> 0 | Y8: =N8 -> 112 | Z8: =COUNTIF(L11:L14,Y8) -> 0 | AA8: =Z8/(AB4-Z11) -> 0 | AB8: =IF(AA8=0,0,(AA8*((LOG(AA8))/LOG(2)))) -> 0 | AD8: =N8 -> 112 | AE8: =COUNTIF(L15:L19,AD8) -> 0 | AF8: =AE8/(AG4-AE11) -> 0 | AG8: =IF(AF8=0,0,(AF8*((LOG(AF8))/LOG(2)))) -> 0 | AI8: =N8 -> 112 | AJ8: =COUNTIF(L20:L23,AI8) -> 0 | AK8: =AJ8/(AL4-AJ11) -> 0 | AL8: =IF(AK8=0,0,(AK8*((LOG(AK8))/LOG(2)))) -> 0 | AN8: =N8 -> 112 | AO8: =COUNTIF(L24:L27,AN8) -> 0 | AP8: =AO8/(AQ4-AO11) -> 0 | AQ8: =IF(AP8=0,0,(AP8*((LOG(AP8))/LOG(2)))) -> 0 | AS8: =N8 -> 112 | AT8: =COUNTIF(L28:L31,AS8) -> 0 | AU8: =AT8/(AV4-AT11) -> 0 | AV8: =IF(AU8=0,0,(AU8*((LOG(AU8))/LOG(2)))) -> 0
A9: 21 | B9: 319 | C9: 22 | D9: 325 | E9: 13 | F9: 357 | K9: 0 | L9: 221 | N9: 121 | O9: =COUNTIF($L$7:$L$500,N9) -> 0 | P9: =O9/$Q$4 -> 0 | Q9: =IF(P9=0,0,(P9*((LOG(P9))/LOG(2)))) -> 0 | T9: =N9 -> 121 | U9: =COUNTIF(L7:L10,T9) -> 0 | V9: =U9/(W4-U11) -> 0 | W9: =IF(V9=0,0,(V9*((LOG(V9))/LOG(2)))) -> 0 | Y9: =N9 -> 121 | Z9: =COUNTIF(L11:L14,Y9) -> 0 | AA9: =Z9/(AB4-Z11) -> 0 | AB9: =IF(AA9=0,0,(AA9*((LOG(AA9))/LOG(2)))) -> 0 | AD9: =N9 -> 121 | AE9: =COUNTIF(L15:L19,AD9) -> 0 | AF9: =AE9/(AG4-AE11) -> 0 | AG9: =IF(AF9=0,0,(AF9*((LOG(AF9))/LOG(2)))) -> 0 | AI9: =N9 -> 121 | AJ9: =COUNTIF(L20:L23,AI9) -> 0 | AK9: =AJ9/(AL4-AJ11) -> 0 | AL9: =IF(AK9=0,0,(AK9*((LOG(AK9))/LOG(2)))) -> 0 | AN9: =N9 -> 121 | AO9: =COUNTIF(L24:L27,AN9) -> 0 | AP9: =AO9/(AQ4-AO11) -> 0 | AQ9: =IF(AP9=0,0,(AP9*((LOG(AP9))/LOG(2)))) -> 0 | AS9: =N9 -> 121 | AT9: =COUNTIF(L28:L31,AS9) -> 0 | AU9: =AT9/(AV4-AT11) -> 0 | AV9: =IF(AU9=0,0,(AU9*((LOG(AU9))/LOG(2)))) -> 0
A10: 12 | B10: 521 | C10: 24 | D10: 533 | E10: 24 | F10: 542 | K10: 0 | L10: 122 | N10: 122 | O10: =COUNTIF($L$7:$L$500,N10) -> 12 | P10: =O10/$Q$4 -> 0.48 | Q10: =IF(P10=0,0,(P10*((LOG(P10))/LOG(2)))) -> -0.5082689707 | T10: =N10 -> 122 | U10: =COUNTIF(L7:L10,T10) -> 1 | V10: =U10/(W4-U11) -> 0.25 | W10: =IF(V10=0,0,(V10*((LOG(V10))/LOG(2)))) -> -0.5 | Y10: =N10 -> 122 | Z10: =COUNTIF(L11:L14,Y10) -> 2 | AA10: =Z10/(AB4-Z11) -> 0.5 | AB10: =IF(AA10=0,0,(AA10*((LOG(AA10))/LOG(2)))) -> -0.5 | AD10: =N10 -> 122 | AE10: =COUNTIF(L15:L19,AD10) -> 3 | AF10: =AE10/(AG4-AE11) -> 0.6 | AG10: =IF(AF10=0,0,(AF10*((LOG(AF10))/LOG(2)))) -> -0.4421793565 | AI10: =N10 -> 122 | AJ10: =COUNTIF(L20:L23,AI10) -> 2 | AK10: =AJ10/(AL4-AJ11) -> 0.5 | AL10: =IF(AK10=0,0,(AK10*((LOG(AK10))/LOG(2)))) -> -0.5 | AN10: =N10 -> 122 | AO10: =COUNTIF(L24:L27,AN10) -> 2 | AP10: =AO10/(AQ4-AO11) -> 0.5 | AQ10: =IF(AP10=0,0,(AP10*((LOG(AP10))/LOG(2)))) -> -0.5 | AS10: =N10 -> 122 | AT10: =COUNTIF(L28:L31,AS10) -> 2 | AU10: =AT10/(AV4-AT11) -> 0.5 | AV10: =IF(AU10=0,0,(AU10*((LOG(AU10))/LOG(2)))) -> -0.5
A11: 21 | B11: 653 | C11: 11 | D11: 683 | E11: 22 | F11: 703 | K11: 0 | L11: 212 | N11: 211 | O11: =COUNTIF($L$7:$L$500,N11) -> 0 | P11: =O11/$Q$4 -> 0 | Q11: =IF(P11=0,0,(P11*((LOG(P11))/LOG(2)))) -> 0 | T11: =N11 -> 211 | U11: =COUNTIF(L7:L10,T11) -> 0 | Y11: =N11 -> 211 | Z11: =COUNTIF(L11:L14,Y11) -> 0 | AD11: =N11 -> 211 | AE11: =COUNTIF(L15:L19,AD11) -> 0 | AI11: =N11 -> 211 | AJ11: =COUNTIF(L20:L23,AI11) -> 0 | AN11: =N11 -> 211 | AO11: =COUNTIF(L24:L27,AN11) -> 0 | AS11: =N11 -> 211 | AT11: =COUNTIF(L28:L31,AS11) -> 0
A12: 12 | B12: 800 | C12: 24 | D12: 812 | E12: 24 | F12: 820 | K12: 0 | L12: 122 | N12: 212 | O12: =COUNTIF($L$7:$L$500,N12) -> 3 | P12: =O12/$Q$4 -> 0.12 | Q12: =IF(P12=0,0,(P12*((LOG(P12))/LOG(2)))) -> -0.3670672427 | T12: =N12 -> 212 | U12: =COUNTIF(L7:L10,T12) -> 0 | V12: =U12/(W4-U11) -> 0 | W12: =IF(V12=0,0,(V12*((LOG(V12))/LOG(2)))) -> 0 | Y12: =N12 -> 212 | Z12: =COUNTIF(L11:L14,Y12) -> 1 | AA12: =Z12/(AB4-Z11) -> 0.25 | AB12: =IF(AA12=0,0,(AA12*((LOG(AA12))/LOG(2)))) -> -0.5 | AD12: =N12 -> 212 | AE12: =COUNTIF(L15:L19,AD12) -> 1 | AF12: =AE12/(AG4-AE11) -> 0.2 | AG12: =IF(AF12=0,0,(AF12*((LOG(AF12))/LOG(2)))) -> -0.464385619 | AI12: =N12 -> 212 | AJ12: =COUNTIF(L20:L23,AI12) -> 0 | AK12: =AJ12/(AL4-AJ11) -> 0 | AL12: =IF(AK12=0,0,(AK12*((LOG(AK12))/LOG(2)))) -> 0 | AN12: =N12 -> 212 | AO12: =COUNTIF(L24:L27,AN12) -> 0 | AP12: =AO12/(AQ4-AO11) -> 0 | AQ12: =IF(AP12=0,0,(AP12*((LOG(AP12))/LOG(2)))) -> 0 | AS12: =N12 -> 212 | AT12: =COUNTIF(L28:L31,AS12) -> 1 | AU12: =AT12/(AV4-AT11) -> 0.25 | AV12: =IF(AU12=0,0,(AU12*((LOG(AU12))/LOG(2)))) -> -0.5
A13: 12 | B13: 919 | C13: 24 | D13: 934 | E13: 24 | F13: 942 | K13: 0 | L13: 122 | N13: 221 | O13: =COUNTIF($L$7:$L$500,N13) -> 5 | P13: =O13/$Q$4 -> 0.2 | Q13: =IF(P13=0,0,(P13*((LOG(P13))/LOG(2)))) -> -0.464385619 | T13: =N13 -> 221 | U13: =COUNTIF(L7:L10,T13) -> 1 | V13: =U13/(W4-U11) -> 0.25 | W13: =IF(V13=0,0,(V13*((LOG(V13))/LOG(2)))) -> -0.5 | Y13: =N13 -> 221 | Z13: =COUNTIF(L11:L14,Y13) -> 1 | AA13: =Z13/(AB4-Z11) -> 0.25 | AB13: =IF(AA13=0,0,(AA13*((LOG(AA13))/LOG(2)))) -> -0.5 | AD13: =N13 -> 221 | AE13: =COUNTIF(L15:L19,AD13) -> 1 | AF13: =AE13/(AG4-AE11) -> 0.2 | AG13: =IF(AF13=0,0,(AF13*((LOG(AF13))/LOG(2)))) -> -0.464385619 | AI13: =N13 -> 221 | AJ13: =COUNTIF(L20:L23,AI13) -> 1 | AK13: =AJ13/(AL4-AJ11) -> 0.25 | AL13: =IF(AK13=0,0,(AK13*((LOG(AK13))/LOG(2)))) -> -0.5 | AN13: =N13 -> 221 | AO13: =COUNTIF(L24:L27,AN13) -> 0 | AP13: =AO13/(AQ4-AO11) -> 0 | AQ13: =IF(AP13=0,0,(AP13*((LOG(AP13))/LOG(2)))) -> 0 | AS13: =N13 -> 221 | AT13: =COUNTIF(L28:L31,AS13) -> 1 | AU13: =AT13/(AV4-AT11) -> 0.25 | AV13: =IF(AU13=0,0,(AU13*((LOG(AU13))/LOG(2)))) -> -0.5
A14: 21 | B14: 1055 | C14: 22 | D14: 1063 | E14: 13 | F14: 1105 | K14: 0 | L14: 221 | N14: 222 | O14: =COUNTIF($L$7:$L$500,N14) -> 5 | P14: =O14/$Q$4 -> 0.2 | Q14: =IF(P14=0,0,(P14*((LOG(P14))/LOG(2)))) -> -0.464385619 | T14: =N14 -> 222 | U14: =COUNTIF(L7:L10,T14) -> 2 | V14: =U14/(W4-U11) -> 0.5 | W14: =IF(V14=0,0,(V14*((LOG(V14))/LOG(2)))) -> -0.5 | Y14: =N14 -> 222 | Z14: =COUNTIF(L11:L14,Y14) -> 0 | AA14: =Z14/(AB4-Z11) -> 0 | AB14: =IF(AA14=0,0,(AA14*((LOG(AA14))/LOG(2)))) -> 0 | AD14: =N14 -> 222 | AE14: =COUNTIF(L15:L19,AD14) -> 0 | AF14: =AE14/(AG4-AE11) -> 0 | AG14: =IF(AF14=0,0,(AF14*((LOG(AF14))/LOG(2)))) -> 0 | AI14: =N14 -> 222 | AJ14: =COUNTIF(L20:L23,AI14) -> 1 | AK14: =AJ14/(AL4-AJ11) -> 0.25 | AL14: =IF(AK14=0,0,(AK14*((LOG(AK14))/LOG(2)))) -> -0.5 | AN14: =N14 -> 222 | AO14: =COUNTIF(L24:L27,AN14) -> 2 | AP14: =AO14/(AQ4-AO11) -> 0.5 | AQ14: =IF(AP14=0,0,(AP14*((LOG(AP14))/LOG(2)))) -> -0.5 | AS14: =N14 -> 222 | AT14: =COUNTIF(L28:L31,AS14) -> 0 | AU14: =AT14/(AV4-AT11) -> 0 | AV14: =IF(AU14=0,0,(AU14*((LOG(AU14))/LOG(2)))) -> 0
A15: 12 | B15: 1207 | C15: 24 | D15: 1220 | E15: 24 | F15: 1227 | K15: 0 | L15: 122 | P15: =SUM(P7:P14) -> 1 | Q15: =-SUM(Q7:Q14) -> 1.804107451 | V15: =SUM(V7:V14) -> 1 | W15: =-SUM(W7:W14) -> 1.5 | AA15: =SUM(AA7:AA14) -> 1 | AB15: =-SUM(AB7:AB14) -> 1.5 | AF15: =SUM(AF7:AF14) -> 1 | AG15: =-SUM(AG7:AG14) -> 1.370950594 | AK15: =SUM(AK7:AK14) -> 1 | AL15: =-SUM(AL7:AL14) -> 1.5 | AP15: =SUM(AP7:AP14) -> 1 | AQ15: =-SUM(AQ7:AQ14) -> 1 | AU15: =SUM(AU7:AU14) -> 1 | AV15: =-SUM(AV7:AV14) -> 1.5
A16: 12 | B16: 1326 | C16: 24 | D16: 1347 | E16: 24 | F16: 1354 | K16: 0 | L16: 122 | P16: U= | Q16: =Q15/(LOG(Q4)/LOG(2)) -> 0.3884933938 | V16: U1= | W16: =W15/(LOG(W4)/LOG(2)) -> 0.75 | AA16: U2= | AB16: =AB15/(LOG(AB4)/LOG(2)) -> 0.75 | AF16: U3= | AG16: =AG15/(LOG(AG4)/LOG(2)) -> 0.5904362833 | AK16: U4= | AL16: =AL15/(LOG(AL4)/LOG(2)) -> 0.75 | AP16: U5= | AQ16: =AQ15/(LOG(AQ4)/LOG(2)) -> 0.5 | AU16: U6= | AV16: =AV15/(LOG(AV4)/LOG(2)) -> 0.75
A17: 21 | B17: 1489 | C17: 22 | D17: 1495 | E17: 13 | F17: 1546 | K17: 0 | L17: 221
A18: 21 | B18: 1680 | C18: 11 | D18: 1727 | E18: 22 | F18: 1748 | K18: 0 | L18: 212
A19: 12 | B19: 1887 | C19: 24 | D19: 1905 | E19: 24 | F19: 1912 | K19: 0 | L19: 122 | N19: Total Target Seq
A20: 21 | B20: 2028 | C20: 22 | D20: 2035 | E20: 24 | F20: 2050 | K20: 0 | L20: 222 | N20: =COUNTIF(L7:L31,G3) -> 0 | P20: 4 | Q20: 4 | R20: 5 | S20: 4 | T20: 4 | U20: 4
A21: 21 | B21: 2166 | C21: 22 | D21: 2186 | E21: 13 | F21: 2248 | K21: 0 | L21: 221 | P21: % of reinforcement given in 6 equal intervals based on number of trials
A22: 12 | B22: 2347 | C22: 24 | D22: 2367 | E22: 24 | F22: 2375 | K22: 0 | L22: 122 | P22: %_1 | Q22: %_2 | R22: %_3 | S22: %_4 | T22: %_5 | U22: %_6
A23: 12 | B23: 2490 | C23: 24 | D23: 2504 | E23: 24 | F23: 2511 | K23: 0 | L23: 122 | O23: target sequence | P23: =$G$3 -> 211 | Q23: =$G$3 -> 211 | R23: =$G$3 -> 211 | S23: =$G$3 -> 211 | T23: =$G$3 -> 211 | U23: =$G$3 -> 211
A24: 12 | B24: 2669 | C24: 24 | D24: 2680 | E24: 24 | F24: 2688 | K24: 0 | L24: 122 | O24: total reinforcement | P24: =U11 -> 0 | Q24: =Z11 -> 0 | R24: =AE11 -> 0 | S24: =AJ11 -> 0 | T24: =AO11 -> 0 | U24: =AT11 -> 0
A25: 21 | B25: 3087 | C25: 22 | D25: 3142 | E25: 24 | F25: 3149 | K25: 0 | L25: 222 | O25: % target
A26: 21 | B26: 3266 | C26: 22 | D26: 3273 | E26: 24 | F26: 3285 | K26: 0 | L26: 222 | O26: CCRF
A27: 12 | B27: 3385 | C27: 24 | D27: 3401 | E27: 24 | F27: 3408 | K27: 0 | L27: 122 | O27: % CCRf
A28: 21 | B28: 3534 | C28: 22 | D28: 3541 | E28: 13 | F28: 3601 | K28: 0 | L28: 221 | O28: average response rate | P28: =F10/P20 -> 135.5 | Q28: =(F14-F10)/Q20 -> 140.75 | R28: =(F19-F14)/R20 -> 161.4 | S28: =(F23-F19)/S20 -> 149.75 | T28: =(F27-F23)/T20 -> 224.25 | U28: =(F31-F27)/U20 -> 178.25
A29: 12 | B29: 3765 | C29: 24 | D29: 3783 | E29: 24 | F29: 3792 | K29: 0 | L29: 122
A30: 12 | B30: 3887 | C30: 24 | D30: 3907 | E30: 24 | F30: 3924 | K30: 0 | L30: 122
A31: 21 | B31: 4074 | C31: 11 | D31: 4107 | E31: 22 | F31: 4121 | K31: 0 | L31: 212

Sheet !L82393B.axt
A1: Report for:!L82393B.axt
A2: Date: | B2: <date>
A3: Hen: | B3: <hen> | F3: Correct Sequence | G3: =Start!J2 -> 211 | P3: Total Sequences in Data | Q3: =4994-COUNTBLANK(L7:L5000) -> 102 | V3: Total Sequences in Block Data | W3: =COUNTA(L7:L23) -> 17 | AA3: Total Sequences in Block Data | AB3: =COUNTA(L24:L40) -> 17 | AF3: Total Sequences in Block Data | AG3: =COUNTA(L41:L57) -> 17 | AK3: Total Sequences in Block Data | AL3: =COUNTA(L58:L74) -> 17 | AP3: Total Sequences in Block Data | AQ3: =COUNTA(L75:L91) -> 17 | AU3: Total Sequences in Block Data | AV3: =COUNTA(L92:L108) -> 17
P4: Total Sequences in Summary | Q4: =SUM(O7:O14) -> 102 | V4: Total Sequences in Block Summary | W4: =SUM(U7:U14) -> 17 | AA4: Total Sequences in Block Summary | AB4: =SUM(Z7:Z14) -> 17 | AF4: Total Sequences in Block Summary | AG4: =SUM(AE7:AE14) -> 17 | AK4: Total Sequences in Block Summary | AL4: =SUM(AJ7:AJ14) -> 17 | AP4: Total Sequences in Block Summary | AQ4: =SUM(AO7:AO14) -> 17 | AU4: Total Sequences in Block Summary | AV4: =SUM(AT7:AT14) -> 17
T5: Block 1 | Y5: Block 2 | AD5: Block 3 | AI5: Block 4 | AN5: Block 5 | AS5: Block 6
A6: Sequence Component 1 | B6: Time 1 | C6: Sequence Component 2 | D6: Time 2 | E6: Sequence Component 3 | F6: Time 3 | G6: Sequence Component 4 | H6: Time 4 | I6: Sequence Component 5 | J6: Time 5 | K6: Correct? 0=No 1=Yes | L6: Sequence | N6: Frequency | P6: Relative Frequency | Q6: Variability | T6: Frequency | V6: Relative Frequency | W6: Variability | Y6: Frequency | AA6: Relative Frequency | AB6: Variability | AD6: Frequency | AF6: Relative Frequency | AG6: Variability | AI6: Frequency | AK6: Relative Frequency | AL6: Variability | AN6: Frequency | AP6: Relative Frequency | AQ6: Variability | AS6: Frequency | AU6: Relative Frequency | AV6: Variability
A7: 12 | B7: 2 | C7: 13 | D7: 9 | E7: 13 | F7: 56 | K7: 0 | L7: 111 | N7: 111 | O7: =COUNTIF($L$7:$L$500,N7) -> 26 | P7: =O7/$Q$4 -> 0.2549019608 | Q7: =IF(P7=0,0,(P7*((LOG(P7))/LOG(2)))) -> -0.5026630022 | T7: =N7 -> 111 | U7: =COUNTIF(L7:L23,T7) -> 1 | V7: =U7/(W4-U11) -> 0.05882352941 | W7: =IF(V7=0,0,(V7*((LOG(V7))/LOG(2)))) -> -0.2404389907 | Y7: =N7 -> 111 | Z7: =COUNTIF(L24:L40,Y7) -> 1 | AA7: =Z7/(AB4-Z11) -> 0.05882352941 | AB7: =IF(AA7=0,0,(AA7*((LOG(AA7))/LOG(2)))) -> -0.2404389907 | AD7: =N7 -> 111 | AE7: =COUNTIF(L41:L57,AD7) -> 6 | AF7: =AE7/(AG4-AE11) -> 0.3529411765 | AG7: =IF(AF7=0,0,(AF7*((LOG(AF7))/LOG(2)))) -> -0.5302942378 | AI7: =N7 -> 111 | AJ7: =COUNTIF(L58:L74,AI7) -> 3 | AK7: =AJ7/(AL4-AJ11) -> 0.1875 | AL7: =IF(AK7=0,0,(AK7*((LOG(AK7))/LOG(2)))) -> -0.4528195311 | AN7: =N7 -> 111 | AO7: =COUNTIF(L75:L91,AN7) -> 6 | AP7: =AO7/(AQ4-AO11) -> 0.3529411765 | AQ7: =IF(AP7=0,0,(AP7*((LOG(AP7))/LOG(2)))) -> -0.5302942378 | AS7: =N7 -> 111 | AT7: =COUNTIF(L92:L108,AS7) -> 9 | AU7: =AT7/(AV4-AT11) -> 0.5294117647 | AV7: =IF(AU7=0,0,(AU7*((LOG(AU7))/LOG(2)))) -> -0.485755327
A8: 12 | B8: 185 | C8: 24 | D8: 205 | E8: 24 | F8: 212 | K8: 0 | L8: 122 | N8: 112 | O8: =COUNTIF($L$7:$L$500,N8) -> 27 | P8: =O8/$Q$4 -> 0.2647058824 | Q8: =IF(P8=0,0,(P8*((LOG(P8))/LOG(2)))) -> -0.5075835458 | T8: =N8 -> 112 | U8: =COUNTIF(L7:L23,T8) -> 3 | V8: =U8/(W4-U11) -> 0.1764705882 | W8: =IF(V8=0,0,(V8*((LOG(V8))/LOG(2)))) -> -0.4416177072 | Y8: =N8 -> 112 | Z8: =COUNTIF(L24:L40,Y8) -> 3 | AA8: =Z8/(AB4-Z11) -> 0.1764705882 | AB8: =IF(AA8=0,0,(AA8*((LOG(AA8))/LOG(2)))) -> -0.4416177072 | AD8: =N8 -> 112 | AE8: =COUNTIF(L41:L57,AD8) -> 5 | AF8: =AE8/(AG4-AE11) -> 0.2941176471 | AG8: =IF(AF8=0,0,(AF8*((LOG(AF8))/LOG(2)))) -> -0.5192749254 | AI8: =N8 -> 112 | AJ8: =COUNTIF(L58:L74,AI8) -> 5 | AK8: =AJ8/(AL4-AJ11) -> 0.3125 | AL8: =IF(AK8=0,0,(AK8*((LOG(AK8))/LOG(2)))) -> -0.5243974703 | AN8: =N8 -> 112 | AO8: =COUNTIF(L75:L91,AN8) -> 5 | AP8: =AO8/(AQ4-AO11) -> 0.2941176471 | AQ8: =IF(AP8=0,0,(AP8*((LOG(AP8))/LOG(2)))) -> -0.5192749254 | AS8: =N8 -> 112 | AT8: =COUNTIF(L92:L108,AS8) -> 6 | AU8: =AT8/(AV4-AT11) -> 0.3529411765 | AV8: =IF(AU8=0,0,(AU8*((LOG(AU8))/LOG(2)))) -> -0.5302942378
A9: 12 | B9: 485 | C9: 13 | D9: 490 | E9: 24 | F9: 514 | K9: 0 | L9: 112 | N9: 121 | O9: =COUNTIF($L$7:$L$500,N9) -> 2 | P9: =O9/$Q$4 -> 0.01960784314 | Q9: =IF(P9=0,0,(P9*((LOG(P9))/LOG(2)))) -> -0.1112240263 | T9: =N9 -> 121 | U9: =COUNTIF(L7:L23,T9) -> 0 | V9: =U9/(W4-U11) -> 0 | W9: =IF(V9=0,0,(V9*((LOG(V9))/LOG(2)))) -> 0 | Y9: =N9 -> 121 | Z9: =COUNTIF(L24:L40,Y9) -> 1 | AA9: =Z9/(AB4-Z11) -> 0.05882352941 | AB9: =IF(AA9=0,0,(AA9*((LOG(AA9))/LOG(2)))) -> -0.2404389907 | AD9: =N9 -> 121 | AE9: =COUNTIF(L41:L57,AD9) -> 0 | AF9: =AE9/(AG4-AE11) -> 0 | AG9: =IF(AF9=0,0,(AF9*((LOG(AF9))/LOG(2)))) -> 0 | AI9: =N9 -> 121 | AJ9: =COUNTIF(L58:L74,AI9) -> 1 | AK9: =AJ9/(AL4-AJ11) -> 0.0625 | AL9: =IF(AK9=0,0,(AK9*((LOG(AK9))/LOG(2)))) -> -0.25 | AN9: =N9 -> 121 | AO9: =COUNTIF(L75:L91,AN9) -> 0 | AP9: =AO9/(AQ4-AO11) -> 0 | AQ9: =IF(AP9=0,0,(AP9*((LOG(AP9))/LOG(2)))) -> 0 | AS9: =N9 -> 121 | AT9: =COUNTIF(L92:L108,AS9) -> 0 | AU9: =AT9/(AV4-AT11) -> 0 | AV9: =IF(AU9=0,0,(AU9*((LOG(AU9))/LOG(2)))) -> 0
A10: 12 | B10: 609 | C10: 24 | D10: 627 | E10: 24 | F10: 638 | K10: 0 | L10: 122 | N10: 122 | O10: =COUNTIF($L$7:$L$500,N10) -> 34 | P10: =O10/$Q$4 -> 0.3333333333 | Q10: =IF(P10=0,0,(P10*((LOG(P10))/LOG(2)))) -> -0.5283208336 | T10: =N10 -> 122 | U10: =COUNTIF(L7:L23,T10) -> 7 | V10: =U10/(W4-U11) -> 0.4117647059 | W10: =IF(V10=0,0,(V10*((LOG(V10))/LOG(2)))) -> -0.5271032608 | Y10: =N10 -> 122 | Z10: =COUNTIF(L24:L40,Y10) -> 10 | AA10: =Z10/(AB4-Z11) -> 0.5882352941 | AB10: =IF(AA10=0,0,(AA10*((LOG(AA10))/LOG(2)))) -> -0.4503145567 | AD10: =N10 -> 122 | AE10: =COUNTIF(L41:L57,AD10) -> 5 | AF10: =AE10/(AG4-AE11) -> 0.2941176471 | AG10: =IF(AF10=0,0,(AF10*((LOG(AF10))/LOG(2)))) -> -0.5192749254 | AI10: =N10 -> 122 | AJ10: =COUNTIF(L58:L74,AI10) -> 7 | AK10: =AJ10/(AL4-AJ11) -> 0.4375 | AL10: =IF(AK10=0,0,(AK10*((LOG(AK10))/LOG(2)))) -> -0.5217822216 | AN10: =N10 -> 122 | AO10: =COUNTIF(L75:L91,AN10) -> 3 | AP10: =AO10/(AQ4-AO11) -> 0.1764705882 | AQ10: =IF(AP10=0,0,(AP10*((LOG(AP10))/LOG(2)))) -> -0.4416177072 | AS10: =N10 -> 122 | AT10: =COUNTIF(L92:L108,AS10) -> 2 | AU10: =AT10/(AV4-AT11) -> 0.1176470588 | AV10: =IF(AU10=0,0,(AU10*((LOG(AU10))/LOG(2)))) -> -0.3632309225
A11: 12 | B11: 738 | C11: 24 | D11: 759 | E11: 24 | F11: 768 | K11: 0 | L11: 122 | N11: 211 | O11: =COUNTIF($L$7:$L$500,N11) -> 1 | P11: =O11/$Q$4 -> 0.009803921569 | Q11: =IF(P11=0,0,(P11*((LOG(P11))/LOG(2)))) -> -0.06541593473 | T11: =N11 -> 211 | U11: =COUNTIF(L7:L23,T11) -> 0 | Y11: =N11 -> 211 | Z11: =COUNTIF(L24:L40,Y11) -> 0 | AD11: =N11 -> 211 | AE11: =COUNTIF(L41:L57,AD11) -> 0 | AI11: =N11 -> 211 | AJ11: =COUNTIF(L58:L74,AI11) -> 1 | AN11: =N11 -> 211 | AO11: =COUNTIF(L75:L91,AN11) -> 0 | AS11: =N11 -> 211 | AT11: =COUNTIF(L92:L108,AS11) -> 0
A12: 12 | B12: 892 | C12: 24 | D12: 912 | E12: 24 | F12: 920 | K12: 0 | L12: 122 | N12: 212 | O12: =COUNTIF($L$7:$L$500,N12) -> 0 | P12: =O12/$Q$4 -> 0 | Q12: =IF(P12=0,0,(P12*((LOG(P12))/LOG(2)))) -> 0 | T12: =N12 -> 212 | U12: =COUNTIF(L7:L23,T12) -> 0 | V12: =U12/(W4-U11) -> 0 | W12: =IF(V12=0,0,(V12*((LOG(V12))/LOG(2)))) -> 0 | Y12: =N12 -> 212 | Z12: =COUNTIF(L24:L40,Y12) -> 0 | AA12: =Z12/(AB4-Z11) -> 0 | AB12: =IF(AA12=0,0,(AA12*((LOG(AA12))/LOG(2)))) -> 0 | AD12: =N12 -> 212 | AE12: =COUNTIF(L41:L57,AD12) -> 0 | AF12: =AE12/(AG4-AE11) -> 0 | AG12: =IF(AF12=0,0,(AF12*((LOG(AF12))/LOG(2)))) -> 0 | AI12: =N12 -> 212 | AJ12: =COUNTIF(L58:L74,AI12) -> 0 | AK12: =AJ12/(AL4-AJ11) -> 0 | AL12: =IF(AK12=0,0,(AK12*((LOG(AK12))/LOG(2)))) -> 0 | AN12: =N12 -> 212 | AO12: =COUNTIF(L75:L91,AN12) -> 0 | AP12: =AO12/(AQ4-AO11) -> 0 | AQ12: =IF(AP12=0,0,(AP12*((LOG(AP12))/LOG(2)))) -> 0 | AS12: =N12 -> 212 | AT12: =COUNTIF(L92:L108,AS12) -> 0 | AU12: =AT12/(AV4-AT11) -> 0 | AV12: =IF(AU12=0,0,(AU12*((LOG(AU12))/LOG(2)))) -> 0
A13: 21 | B13: 1035 | C13: 22 | D13: 1050 | E13: 13 | F13: 1081 | K13: 0 | L13: 221 | N13: 221 | O13: =COUNTIF($L$7:$L$500,N13) -> 3 | P13: =O13/$Q$4 -> 0.02941176471 | Q13: =IF(P13=0,0,(P13*((LOG(P13))/LOG(2)))) -> -0.14963126 | T13: =N13 -> 221 | U13: =COUNTIF(L7:L23,T13) -> 3 | V13: =U13/(W4-U11) -> 0.1764705882 | W13: =IF(V13=0,0,(V13*((LOG(V13))/LOG(2)))) -> -0.4416177072 | Y13: =N13 -> 221 | Z13: =COUNTIF(L24:L40,Y13) -> 0 | AA13: =Z13/(AB4-Z11) -> 0 | AB13: =IF(AA13=0,0,(AA13*((LOG(AA13))/LOG(2)))) -> 0 | AD13: =N13 -> 221 | AE13: =COUNTIF(L41:L57,AD13) -> 0 | AF13: =AE13/(AG4-AE11) -> 0 | AG13: =IF(AF13=0,0,(AF13*((LOG(AF13))/LOG(2)))) -> 0 | AI13: =N13 -> 221 | AJ13: =COUNTIF(L58:L74,AI13) -> 0 | AK13: =AJ13/(AL4-AJ11) -> 0 | AL13: =IF(AK13=0,0,(AK13*((LOG(AK13))/LOG(2)))) -> 0 | AN13: =N13 -> 221 | AO13: =COUNTIF(L75:L91,AN13) -> 0 | AP13: =AO13/(AQ4-AO11) -> 0 | AQ13: =IF(AP13=0,0,(AP13*((LOG(AP13))/LOG(2)))) -> 0 | AS13: =N13 -> 221 | AT13: =COUNTIF(L92:L108,AS13) -> 0 | AU13: =AT13/(AV4-AT11) -> 0 | AV13: =IF(AU13=0,0,(AU13*((LOG(AU13))/LOG(2)))) -> 0
A14: 21 | B14: 1582 | C14: 22 | D14: 1590 | E14: 13 | F14: 1673 | K14: 0 | L14: 221 | N14: 222 | O14: =COUNTIF($L$7:$L$500,N14) -> 9 | P14: =O14/$Q$4 -> 0.08823529412 | Q14: =IF(P14=0,0,(P14*((LOG(P14))/LOG(2)))) -> -0.3090441477 | T14: =N14 -> 222 | U14: =COUNTIF(L7:L23,T14) -> 3 | V14: =U14/(W4-U11) -> 0.1764705882 | W14: =IF(V14=0,0,(V14*((LOG(V14))/LOG(2)))) -> -0.4416177072 | Y14: =N14 -> 222 | Z14: =COUNTIF(L24:L40,Y14) -> 2 | AA14: =Z14/(AB4-Z11) -> 0.1176470588 | AB14: =IF(AA14=0,0,(AA14*((LOG(AA14))/LOG(2)))) -> -0.3632309225 | AD14: =N14 -> 222 | AE14: =COUNTIF(L41:L57,AD14) -> 1 | AF14: =AE14/(AG4-AE11) -> 0.05882352941 | AG14: =IF(AF14=0,0,(AF14*((LOG(AF14))/LOG(2)))) -> -0.2404389907 | AI14: =N14 -> 222 | AJ14: =COUNTIF(L58:L74,AI14) -> 0 | AK14: =AJ14/(AL4-AJ11) -> 0 | AL14: =IF(AK14=0,0,(AK14*((LOG(AK14))/LOG(2)))) -> 0 | AN14: =N14 -> 222 | AO14: =COUNTIF(L75:L91,AN14) -> 3 | AP14: =AO14/(AQ4-AO11) -> 0.1764705882 | AQ14: =IF(AP14=0,0,(AP14*((LOG(AP14))/LOG(2)))) -> -0.4416177072 | AS14: =N14 -> 222 | AT14: =COUNTIF(L92:L108,AS14) -> 0 | AU14: =AT14/(AV4-AT11) -> 0 | AV14: =IF(AU14=0,0,(AU14*((LOG(AU14))/LOG(2)))) -> 0
A15: 21 | B15: 1780 | C15: 22 | D15: 1794 | E15: 24 | F15: 1864 | K15: 0 | L15: 222 | P15: =SUM(P7:P14) -> 1 | Q15: =-SUM(Q7:Q14) -> 2.17388275 | V15: =SUM(V7:V14) -> 1 | W15: =-SUM(W7:W14) -> 2.092395373 | AA15: =SUM(AA7:AA14) -> 1 | AB15: =-SUM(AB7:AB14) -> 1.736041168 | AF15: =SUM(AF7:AF14) -> 1 | AG15: =-SUM(AG7:AG14) -> 1.809283079 | AK15: =SUM(AK7:AK14) -> 1 | AL15: =-SUM(AL7:AL14) -> 1.748999223 | AP15: =SUM(AP7:AP14) -> 1 | AQ15: =-SUM(AQ7:AQ14) -> 1.932804578 | AU15: =SUM(AU7:AU14) -> 1 | AV15: =-SUM(AV7:AV14) -> 1.379280487
A16: 12 | B16: 1964 | C16: 13 | D16: 2021 | E16: 24 | F16: 2033 | K16: 0 | L16: 112 | P16: U= | Q16: =Q15/(LOG(Q4)/LOG(2)) -> 0.3258009852 | V16: U1= | W16: =W15/(LOG(W4)/LOG(2)) -> 0.5119056623 | AA16: U2= | AB16: =AB15/(LOG(AB4)/LOG(2)) -> 0.4247234128 | AF16: U3= | AG16: =AG15/(LOG(AG4)/LOG(2)) -> 0.4426420862 | AK16: U4= | AL16: =AL15/(LOG(AL4)/LOG(2)) -> 0.4278936081 | AP16: U5= | AQ16: =AQ15/(LOG(AQ4)/LOG(2)) -> 0.4728616877 | AU16: U6= | AV16: =AV15/(LOG(AV4)/LOG(2)) -> 0.3374417189
A17: 21 | B17: 2154 | C17: 22 | D17: 2168 | E17: 13 | F17: 2200 | K17: 0 | L17: 221
A18: 12 | B18: 2291 | C18: 24 | D18: 2311 | E18: 24 | F18: 2320 | K18: 0 | L18: 122
A19: 12 | B19: 2417 | C19: 13 | D19: 2422 | E19: 24 | F19: 2436 | K19: 0 | L19: 112 | N19: Total Target Seq
A20: 21 | B20: 2553 | C20: 22 | D20: 2561 | E20: 24 | F20: 2569 | K20: 0 | L20: 222 | N20: =COUNTIF(L7:L108,G3) -> 1 | P20: 17 | Q20: 17 | R20: 17 | S20: 17 | T20: 17 | U20: 17
A21: 21 | B21: 2684 | C21: 22 | D21: 2699 | E21: 24 | F21: 2710 | K21: 0 | L21: 222 | P21: % of reinforcement given in 6 equal intervals based on number of trials
A22: 12 | B22: 2810 | C22: 24 | D22: 2830 | E22: 24 | F22: 2839 | K22: 0 | L22: 122 | P22: %_1 | Q22: %_2 | R22: %_3 | S22: %_4 | T22: %_5 | U22: %_6
A23: 12 | B23: 2931 | C23: 24 | D23: 2953 | E23: 24 | F23: 2960 | K23: 0 | L23: 122 | O23: target sequence | P23: =$G$3 -> 211 | Q23: =$G$3 -> 211 | R23: =$G$3 -> 211 | S23: =$G$3 -> 211 | T23: =$G$3 -> 211 | U23: =$G$3 -> 211
A24: 12 | B24: 3059 | C24: 24 | D24: 3081 | E24: 24 | F24: 3089 | K24: 0 | L24: 122 | O24: total reinforcement | P24: =U11 -> 0 | Q24: =Z11 -> 0 | R24: =AE11 -> 0 | S24: =AJ11 -> 1 | T24: =AO11 -> 0 | U24: =AT11 -> 0
A25: 12 | B25: 3188 | C25: 24 | D25: 3209 | E25: 24 | F25: 3215 | K25: 0 | L25: 122 | O25: % target
A26: 12 | B26: 3368 | C26: 13 | D26: 3381 | E26: 24 | F26: 3396 | K26: 0 | L26: 112 | O26: CCRF
A27: 12 | B27: 3496 | C27: 24 | D27: 3512 | E27: 24 | F27: 3519 | K27: 0 | L27: 122 | O27: % CCRf
A28: 21 | B28: 3640 | C28: 22 | D28: 3646 | E28: 24 | F28: 3655 | K28: 0 | L28: 222 | O28: average response rate | P28: =F23/P20 -> 174.1176471 | Q28: =(F40-F23)/Q20 -> 188.5882353 | R28: =(F57-F40)/R20 -> 133.2352941 | S28: =(F74-F57)/S20 -> 226.5882353 | T28: =(F91-F74)/T20 -> 149.6470588 | U28: =(F108-F91)/U20 -> 345.7058824
A29: 12 | B29: 3750 | C29: 24 | D29: 3776 | E29: 24 | F29: 3794 | K29: 0 | L29: 122
A30: 12 | B30: 3889 | C30: 13 | D30: 3951 | E30: 24 | F30: 3974 | K30: 0 | L30: 112
A31: 12 | B31: 4093 | C31: 24 | D31: 4115 | E31: 24 | F31: 4124 | K31: 0 | L31: 122
A32: 12 | B32: 4219 | C32: 24 | D32: 4237 | E32: 24 | F32: 4245 | K32: 0 | L32: 122
A33: 12 | B33: 4349 | C33: 24 | D33: 4372 | E33: 13 | F33: 4422 | K33: 0 | L33: 121
A34: 12 | B34: 4523 | C34: 24 | D34: 4542 | E34: 24 | F34: 4551 | K34: 0 | L34: 122
A35: 21 | B35: 4670 | C35: 22 | D35: 4678 | E35: 24 | F35: 4688 | K35: 0 | L35: 222
A36: 12 | B36: 4805 | C36: 24 | D36: 4824 | E36: 24 | F36: 4832 | K36: 0 | L36: 122
A37: 12 | B37: 4925 | C37: 24 | D37: 4951 | E37: 24 | F37: 4959 | K37: 0 | L37: 122
A38: 12 | B38: 5362 | C38: 13 | D38: 5394 | E38: 13 | F38: 5407 | K38: 0 | L38: 111
A39: 12 | B39: 5931 | C39: 13 | D39: 5976 | E39: 24 | F39: 6016 | K39: 0 | L39: 112
A40: 12 | B40: 6112 | C40: 24 | D40: 6158 | E40: 24 | F40: 6166 | K40: 0 | L40: 122
A41: 12 | B41: 6312 | C41: 24 | D41: 6325 | E41: 24 | F41: 6334 | K41: 0 | L41: 122
A42: 12 | B42: 6439 | C42: 13 | D42: 6484 | E42: 13 | F42: 6488 | K42: 0 | L42: 111
A43: 12 | B43: 6585 | C43: 24 | D43: 6602 | E43: 24 | F43: 6610 | K43: 0 | L43: 122
A44: 12 | B44: 6719 | C44: 13 | D44: 6737 | E44: 24 | F44: 6752 | K44: 0 | L44: 112
A45: 12 | B45: 6849 | C45: 13 | D45: 6858 | E45: 24 | F45: 6870 | K45: 0 | L45: 112
A46: 12 | B46: 6963 | C46: 24 | D46: 6983 | E46: 24 | F46: 6991 | K46: 0 | L46: 122
A47: 21 | B47: 7108 | C47: 22 | D47: 7116 | E47: 24 | F47: 7127 | K47: 0 | L47: 222
A48: 12 | B48: 7232 | C48: 13 | D48: 7235 | E48: 13 | F48: 7260 | K48: 0 | L48: 111
A49: 12 | B49: 7362 | C49: 13 | D49: 7375 | E49: 13 | F49: 7378 | K49: 0 | L49: 111
A50: 12 | B50: 7504 | C50: 13 | D50: 7514 | E50: 24 | F50: 7534 | K50: 0 | L50: 112
A51: 12 | B51: 7626 | C51: 13 | D51: 7631 | E51: 13 | F51: 7663 | K51: 0 | L51: 111
A52: 12 | B52: 7765 | C52: 13 | D52: 7788 | E52: 24 | F52: 7801 | K52: 0 | L52: 112
A53: 12 | B53: 7899 | C53: 24 | D53: 7925 | E53: 24 | F53: 7934 | K53: 0 | L53: 122
A54: 12 | B54: 8039 | C54: 13 | D54: 8044 | E54: 13 | F54: 8047 | K54: 0 | L54: 111
A55: 12 | B55: 8144 | C55: 13 | D55: 8170 | E55: 24 | F55: 8184 | K55: 0 | L55: 112
A56: 12 | B56: 8282 | C56: 13 | D56: 8286 | E56: 13 | F56: 8300 | K56: 0 | L56: 111
A57: 12 | B57: 8399 | C57: 24 | D57: 8422 | E57: 24 | F57: 8431 | K57: 0 | L57: 122
A58: 12 | B58: 8576 | C58: 13 | D58: 8598 | E58: 24 | F58: 8622 | K58: 0 | L58: 112
A59: 12 | B59: 8774 | C59: 24 | D59: 8814 | E59: 24 | F59: 8821 | K59: 0 | L59: 122
A60: 12 | B60: 8922 | C60: 13 | D60: 8928 | E60: 13 | F60: 8932 | K60: 0 | L60: 111
A61: 12 | B61: 9031 | C61: 24 | D61: 9063 | E61: 24 | F61: 9071 | K61: 0 | L61: 122
A62: 12 | B62: 9175 | C62: 13 | D62: 9188 | E62: 24 | F62: 9218 | K62: 0 | L62: 112
A63: 12 | B63: 9491 | C63: 24 | D63: 9505 | E63: 24 | F63: 9513 | K63: 0 | L63: 122
A64: 12 | B64: 9705 | C64: 13 | D64: 9717 | E64: 13 | F64: 9719 | K64: 0 | L64: 111
A65: 12 | B65: 10209 | C65: 13 | D65: 10213 | E65: 13 | F65: 10275 | K65: 0 | L65: 111
A66: 12 | B66: 10393 | C66: 24 | D66: 10413 | E66: 13 | F66: 10432 | K66: 0 | L66: 121
A67: 12 | B67: 10793 | C67: 13 | D67: 10816 | E67: 24 | F67: 10837 | K67: 0 | L67: 112
A68: 12 | B68: 10948 | C68: 24 | D68: 10973 | E68: 24 | F68: 10981 | K68: 0 | L68: 122
A69: 12 | B69: 11076 | C69: 13 | D69: 11082 | E69: 24 | F69: 11102 | K69: 0 | L69: 112
A70: 12 | B70: 11198 | C70: 13 | D70: 11216 | E70: 24 | F70: 11236 | K70: 0 | L70: 112
A71: 12 | B71: 11346 | C71: 24 | D71: 11361 | E71: 24 | F71: 11369 | K71: 0 | L71: 122
A72: 12 | B72: 11512 | C72: 24 | D72: 11533 | E72: 24 | F72: 11542 | K72: 0 | L72: 122
A73: 21 | B73: 11742 | C73: 11 | D73: 11786 | E73: 11 | F73: 11808 | K73: 0 | L73: 211
A74: 12 | B74: 12262 | C74: 24 | D74: 12274 | E74: 24 | F74: 12283 | K74: 0 | L74: 122
A75: 12 | B75: 12380 | C75: 13 | D75: 12411 | E75: 24 | F75: 12428 | K75: 0 | L75: 112
A76: 12 | B76: 12526 | C76: 13 | D76: 12531 | E76: 13 | F76: 12553 | K76: 0 | L76: 111
A77: 21 | B77: 12664 | C77: 22 | D77: 12672 | E77: 24 | F77: 12683 | K77: 0 | L77: 222
A78: 12 | B78: 12786 | C78: 24 | D78: 12802 | E78: 24 | F78: 12810 | K78: 0 | L78: 122
A79: 12 | B79: 12909 | C79: 13 | D79: 12912 | E79: 13 | F79: 12921 | K79: 0 | L79: 111
A80: 12 | B80: 13025 | C80: 13 | D80: 13040 | E80: 24 | F80: 13056 | K80: 0 | L80: 112
A81: 12 | B81: 13175 | C81: 24 | D81: 13191 | E81: 24 | F81: 13199 | K81: 0 | L81: 122
A82: 12 | B82: 13314 | C82: 13 | D82: 13334 | E82: 13 | F82: 13374 | K82: 0 | L82: 111
A83: 21 | B83: 13492 | C83: 22 | D83: 13499 | E83: 24 | F83: 13509 | K83: 0 | L83: 222
A84: 12 | B84: 13615 | C84: 24 | D84: 13691 | E84: 24 | F84: 13700 | K84: 0 | L84: 122
A85: 12 | B85: 13834 | C85: 13 | D85: 13892 | E85: 24 | F85: 13907 | K85: 0 | L85: 112
A86: 12 | B86: 14002 | C86: 13 | D86: 14006 | E86: 13 | F86: 14012 | K86: 0 | L86: 111
A87: 12 | B87: 14115 | C87: 13 | D87: 14126 | E87: 13 | F87: 14131 | K87: 0 | L87: 111
A88: 12 | B88: 14232 | C88: 13 | D88: 14246 | E88: 13 | F88: 14249 | K88: 0 | L88: 111
A89: 12 | B89: 14504 | C89: 13 | D89: 14537 | E89: 24 | F89: 14546 | K89: 0 | L89: 112
A90: 21 | B90: 14657 | C90: 22 | D90: 14666 | E90: 24 | F90: 14676 | K90: 0 | L90: 222
A91: 12 | B91: 14805 | C91: 13 | D91: 14809 | E91: 24 | F91: 14827 | K91: 0 | L91: 112
A92: 12 | B92: 14938 | C92: 13 | D92: 14952 | E92: 24 | F92: 14968 | K92: 0 | L92: 112
A93: 12 | B93: 15284 | C93: 13 | D93: 15306 | E93: 24 | F93: 15394 | K93: 0 | L93: 112
A94: 12 | B94: 15489 | C94: 13 | D94: 15500 | E94: 24 | F94: 15522 | K94: 0 | L94: 112
A95: 12 | B95: 15621 | C95: 13 | D95: 15631 | E95: 13 | F95: 15639 | K95: 0 | L95: 111
A96: 12 | B96: 15750 | C96: 13 | D96: 15758 | E96: 13 | F96: 15837 | K96: 0 | L96: 111
A97: 12 | B97: 15953 | C97: 13 | D97: 15981 | E97: 13 | F97: 16009 | K97: 0 | L97: 111
A98: 12 | B98: 16124 | C98: 13 | D98: 16183 | E98: 24 | F98: 16213 | K98: 0 | L98: 112
A99: 12 | B99: 16306 | C99: 13 | D99: 16316 | E99: 13 | F99: 16324 | K99: 0 | L99: 111
A100: 12 | B100: 16438 | C100: 13 | D100: 16447 | E100: 24 | F100: 16461 | K100: 0 | L100: 112
A101: 12 | B101: 19416 | C101: 13 | D101: 19445 | E101: 13 | F101: 19474 | K101: 0 | L101: 111
A102: 12 | B102: 19577 | C102: 24 | D102: 19595 | E102: 24 | F102: 19604 | K102: 0 | L102: 122
A103: 12 | B103: 19722 | C103: 13 | D103: 19757 | E103: 24 | F103: 19779 | K103: 0 | L103: 112
A104: 12 | B104: 19992 | C104: 24 | D104: 20017 | E104: 24 | F104: 20028 | K104: 0 | L104: 122
A105: 12 | B105: 20120 | C105: 13 | D105: 20130 | E105: 13 | F105: 20160 | K105: 0 | L105: 111
A106: 12 | B106: 20270 | C106: 13 | D106: 20273 | E106: 13 | F106: 20287 | K106: 0 | L106: 111
A107: 12 | B107: 20534 | C107: 13 | D107: 20545 | E107: 13 | F107: 20574 | K107: 0 | L107: 111
A108: 12 | B108: 20673 | C108: 13 | D108: 20698 | E108: 13 | F108: 20704 | K108: 0 | L108: 111

Sheet !L824A1B.axt
A1: Report for:!L824A1B.axt
A2: Date: | B2: <date>
A3: Hen: | B3: <hen> | F3: Correct Sequence | G3: =Start!J2 -> 211 | P3: Total Sequences in Data | Q3: =4994-COUNTBLANK(L7:L5000) -> 101 | V3: Total Sequences in Block Data | W3: =COUNTA(L7:L23) -> 17 | AA3: Total Sequences in Block Data | AB3: =COUNTA(L24:L40) -> 17 | AF3: Total Sequences in Block Data | AG3: =COUNTA(L41:L56) -> 16 | AK3: Total Sequences in Block Data | AL3: =COUNTA(L57:L73) -> 17 | AP3: Total Sequences in Block Data | AQ3: =COUNTA(L74:L90) -> 17 | AU3: Total Sequences in Block Data | AV3: =COUNTA(L91:L107) -> 17
P4: Total Sequences in Summary | Q4: =SUM(O7:O14) -> 101 | V4: Total Sequences in Block Summary | W4: =SUM(U7:U14) -> 17 | AA4: Total Sequences in Block Summary | AB4: =SUM(Z7:Z14) -> 17 | AF4: Total Sequences in Block Summary | AG4: =SUM(AE7:AE14) -> 16 | AK4: Total Sequences in Block Summary | AL4: =SUM(AJ7:AJ14) -> 17 | AP4: Total Sequences in Block Summary | AQ4: =SUM(AO7:AO14) -> 17 | AU4: Total Sequences in Block Summary | AV4: =SUM(AT7:AT14) -> 17
T5: Block 1 | Y5: Block 2 | AD5: Block 3 | AI5: Block 4 | AN5: Block 5 | AS5: Block 6
A6: Sequence Component 1 | B6: Time 1 | C6: Sequence Component 2 | D6: Time 2 | E6: Sequence Component 3 | F6: Time 3 | G6: Sequence Component 4 | H6: Time 4 | I6: Sequence Component 5 | J6: Time 5 | K6: Correct? 0=No 1=Yes | L6: Sequence | N6: Frequency | P6: Relative Frequency | Q6: Variability | T6: Frequency | V6: Relative Frequency | W6: Variability | Y6: Frequency | AA6: Relative Frequency | AB6: Variability | AD6: Frequency | AF6: Relative Frequency | AG6: Variability | AI6: Frequency | AK6: Relative Frequency | AL6: Variability | AN6: Frequency | AP6: Relative Frequency | AQ6: Variability | AS6: Frequency | AU6: Relative Frequency | AV6: Variability
A7: 12 | B7: 17 | C7: 24 | D7: 26 | E7: 24 | F7: 35 | K7: 0 | L7: 122 | N7: 111 | O7: =COUNTIF($L$7:$L$500,N7) -> 33 | P7: =O7/$Q$4 -> 0.3267326733 | Q7: =IF(P7=0,0,(P7*((LOG(P7))/LOG(2)))) -> -0.5272868613 | T7: =N7 -> 111 | U7: =COUNTIF(L7:L23,T7) -> 5 | V7: =U7/(W4-U11) -> 0.2941176471 | W7: =IF(V7=0,0,(V7*((LOG(V7))/LOG(2)))) -> -0.5192749254 | Y7: =N7 -> 111 | Z7: =COUNTIF(L24:L40,Y7) -> 2 | AA7: =Z7/(AB4-Z11) -> 0.1176470588 | AB7: =IF(AA7=0,0,(AA7*((LOG(AA7))/LOG(2)))) -> -0.3632309225 | AD7: =N7 -> 111 | AE7: =COUNTIF(L41:L56,AD7) -> 7 | AF7: =AE7/(AG4-AE11) -> 0.4375 | AG7: =IF(AF7=0,0,(AF7*((LOG(AF7))/LOG(2)))) -> -0.5217822216 | AI7: =N7 -> 111 | AJ7: =COUNTIF(L57:L73,AI7) -> 5 | AK7: =AJ7/(AL4-AJ11) -> 0.2941176471 | AL7: =IF(AK7=0,0,(AK7*((LOG(AK7))/LOG(2)))) -> -0.5192749254 | AN7: =N7 -> 111 | AO7: =COUNTIF(L74:L90,AN7) -> 8 | AP7: =AO7/(AQ4-AO11) -> 0.4705882353 | AQ7: =IF(AP7=0,0,(AP7*((LOG(AP7))/LOG(2)))) -> -0.5117472194 | AS7: =N7 -> 111 | AT7: =COUNTIF(L91:L107,AS7) -> 6 | AU7: =AT7/(AV4-AT11) -> 0.3529411765 | AV7: =IF(AU7=0,0,(AU7*((LOG(AU7))/LOG(2)))) -> -0.5302942378
A8: 12 | B8: 129 | C8: 24 | D8: 155 | E8: 13 | F8: 198 | K8: 0 | L8: 121 | N8: 112 | O8: =COUNTIF($L$7:$L$500,N8) -> 21 | P8: =O8/$Q$4 -> 0.2079207921 | Q8: =IF(P8=0,0,(P8*((LOG(P8))/LOG(2)))) -> -0.4711264877 | T8: =N8 -> 112 | U8: =COUNTIF(L7:L23,T8) -> 0 | V8: =U8/(W4-U11) -> 0 | W8: =IF(V8=0,0,(V8*((LOG(V8))/LOG(2)))) -> 0 | Y8: =N8 -> 112 | Z8: =COUNTIF(L24:L40,Y8) -> 3 | AA8: =Z8/(AB4-Z11) -> 0.1764705882 | AB8: =IF(AA8=0,0,(AA8*((LOG(AA8))/LOG(2)))) -> -0.4416177072 | AD8: =N8 -> 112 | AE8: =COUNTIF(L41:L56,AD8) -> 7 | AF8: =AE8/(AG4-AE11) -> 0.4375 | AG8: =IF(AF8=0,0,(AF8*((LOG(AF8))/LOG(2)))) -> -0.5217822216 | AI8: =N8 -> 112 | AJ8: =COUNTIF(L57:L73,AI8) -> 6 | AK8: =AJ8/(AL4-AJ11) -> 0.3529411765 | AL8: =IF(AK8=0,0,(AK8*((LOG(AK8))/LOG(2)))) -> -0.5302942378 | AN8: =N8 -> 112 | AO8: =COUNTIF(L74:L90,AN8) -> 3 | AP8: =AO8/(AQ4-AO11) -> 0.1764705882 | AQ8: =IF(AP8=0,0,(AP8*((LOG(AP8))/LOG(2)))) -> -0.4416177072 | AS8: =N8 -> 112 | AT8: =COUNTIF(L91:L107,AS8) -> 2 | AU8: =AT8/(AV4-AT11) -> 0.1176470588 | AV8: =IF(AU8=0,0,(AU8*((LOG(AU8))/LOG(2)))) -> -0.3632309225
A9: 12 | B9: 327 | C9: 24 | D9: 343 | E9: 24 | F9: 352 | K9: 0 | L9: 122 | N9: 121 | O9: =COUNTIF($L$7:$L$500,N9) -> 5 | P9: =O9/$Q$4 -> 0.0495049505 | Q9: =IF(P9=0,0,(P9*((LOG(P9))/LOG(2)))) -> -0.2146674944 | T9: =N9 -> 121 | U9: =COUNTIF(L7:L23,T9) -> 1 | V9: =U9/(W4-U11) -> 0.05882352941 | W9: =IF(V9=0,0,(V9*((LOG(V9))/LOG(2)))) -> -0.2404389907 | Y9: =N9 -> 121 | Z9: =COUNTIF(L24:L40,Y9) -> 2 | AA9: =Z9/(AB4-Z11) -> 0.1176470588 | AB9: =IF(AA9=0,0,(AA9*((LOG(AA9))/LOG(2)))) -> -0.3632309225 | AD9: =N9 -> 121 | AE9: =COUNTIF(L41:L56,AD9) -> 0 | AF9: =AE9/(AG4-AE11) -> 0 | AG9: =IF(AF9=0,0,(AF9*((LOG(AF9))/LOG(2)))) -> 0 | AI9: =N9 -> 121 | AJ9: =COUNTIF(L57:L73,AI9) -> 2 | AK9: =AJ9/(AL4-AJ11) -> 0.1176470588 | AL9: =IF(AK9=0,0,(AK9*((LOG(AK9))/LOG(2)))) -> -0.3632309225 | AN9: =N9 -> 121 | AO9: =COUNTIF(L74:L90,AN9) -> 0 | AP9: =AO9/(AQ4-AO11) -> 0 | AQ9: =IF(AP9=0,0,(AP9*((LOG(AP9))/LOG(2)))) -> 0 | AS9: =N9 -> 121 | AT9: =COUNTIF(L91:L107,AS9) -> 0 | AU9: =AT9/(AV4-AT11) -> 0 | AV9: =IF(AU9=0,0,(AU9*((LOG(AU9))/LOG(2)))) -> 0
A10: 12 | B10: 446 | C10: 13 | D10: 461 | E10: 13 | F10: 497 | K10: 0 | L10: 111 | N10: 122 | O10: =COUNTIF($L$7:$L$500,N10) -> 30 | P10: =O10/$Q$4 -> 0.297029703 | Q10: =IF(P10=0,0,(P10*((LOG(P10))/LOG(2)))) -> -0.5201943229 | T10: =N10 -> 122 | U10: =COUNTIF(L7:L23,T10) -> 9 | V10: =U10/(W4-U11) -> 0.5294117647 | W10: =IF(V10=0,0,(V10*((LOG(V10))/LOG(2)))) -> -0.485755327 | Y10: =N10 -> 122 | Z10: =COUNTIF(L24:L40,Y10) -> 8 | AA10: =Z10/(AB4-Z11) -> 0.4705882353 | AB10: =IF(AA10=0,0,(AA10*((LOG(AA10))/LOG(2)))) -> -0.5117472194 | AD10: =N10 -> 122 | AE10: =COUNTIF(L41:L56,AD10) -> 1 | AF10: =AE10/(AG4-AE11) -> 0.0625 | AG10: =IF(AF10=0,0,(AF10*((LOG(AF10))/LOG(2)))) -> -0.25 | AI10: =N10 -> 122 | AJ10: =COUNTIF(L57:L73,AI10) -> 2 | AK10: =AJ10/(AL4-AJ11) -> 0.1176470588 | AL10: =IF(AK10=0,0,(AK10*((LOG(AK10))/LOG(2)))) -> -0.3632309225 | AN10: =N10 -> 122 | AO10: =COUNTIF(L74:L90,AN10) -> 5 | AP10: =AO10/(AQ4-AO11) -> 0.2941176471 | AQ10: =IF(AP10=0,0,(AP10*((LOG(AP10))/LOG(2)))) -> -0.5192749254 | AS10: =N10 -> 122 | AT10: =COUNTIF(L91:L107,AS10) -> 5 | AU10: =AT10/(AV4-AT11) -> 0.2941176471 | AV10: =IF(AU10=0,0,(AU10*((LOG(AU10))/LOG(2)))) -> -0.5192749254
A11: 12 | B11: 606 | C11: 24 | D11: 627 | E11: 24 | F11: 636 | K11: 0 | L11: 122 | N11: 211 | O11: =COUNTIF($L$7:$L$500,N11) -> 0 | P11: =O11/$Q$4 -> 0 | Q11: =IF(P11=0,0,(P11*((LOG(P11))/LOG(2)))) -> 0 | T11: =N11 -> 211 | U11: =COUNTIF(L7:L23,T11) -> 0 | Y11: =N11 -> 211 | Z11: =COUNTIF(L24:L40,Y11) -> 0 | AD11: =N11 -> 211 | AE11: =COUNTIF(L41:L56,AD11) -> 0 | AI11: =N11 -> 211 | AJ11: =COUNTIF(L57:L73,AI11) -> 0 | AN11: =N11 -> 211 | AO11: =COUNTIF(L74:L90,AN11) -> 0 | AS11: =N11 -> 211 | AT11: =COUNTIF(L91:L107,AS11) -> 0
A12: 12 | B12: 734 | C12: 24 | D12: 752 | E12: 24 | F12: 759 | K12: 0 | L12: 122 | N12: 212 | O12: =COUNTIF($L$7:$L$500,N12) -> 0 | P12: =O12/$Q$4 -> 0 | Q12: =IF(P12=0,0,(P12*((LOG(P12))/LOG(2)))) -> 0 | T12: =N12 -> 212 | U12: =COUNTIF(L7:L23,T12) -> 0 | V12: =U12/(W4-U11) -> 0 | W12: =IF(V12=0,0,(V12*((LOG(V12))/LOG(2)))) -> 0 | Y12: =N12 -> 212 | Z12: =COUNTIF(L24:L40,Y12) -> 0 | AA12: =Z12/(AB4-Z11) -> 0 | AB12: =IF(AA12=0,0,(AA12*((LOG(AA12))/LOG(2)))) -> 0 | AD12: =N12 -> 212 | AE12: =COUNTIF(L41:L56,AD12) -> 0 | AF12: =AE12/(AG4-AE11) -> 0 | AG12: =IF(AF12=0,0,(AF12*((LOG(AF12))/LOG(2)))) -> 0 | AI12: =N12 -> 212 | AJ12: =COUNTIF(L57:L73,AI12) -> 0 | AK12: =AJ12/(AL4-AJ11) -> 0 | AL12: =IF(AK12=0,0,(AK12*((LOG(AK12))/LOG(2)))) -> 0 | AN12: =N12 -> 212 | AO12: =COUNTIF(L74:L90,AN12) -> 0 | AP12: =AO12/(AQ4-AO11) -> 0 | AQ12: =IF(AP12=0,0,(AP12*((LOG(AP12))/LOG(2)))) -> 0 | AS12: =N12 -> 212 | AT12: =COUNTIF(L91:L107,AS12) -> 0 | AU12: =AT12/(AV4-AT11) -> 0 | AV12: =IF(AU12=0,0,(AU12*((LOG(AU12))/LOG(2)))) -> 0
A13: 12 | B13: 862 | C13: 13 | D13: 882 | E13: 13 | F13: 901 | K13: 0 | L13: 111 | N13: 221 | O13: =COUNTIF($L$7:$L$500,N13) -> 5 | P13: =O13/$Q$4 -> 0.0495049505 | Q13: =IF(P13=0,0,(P13*((LOG(P13))/LOG(2)))) -> -0.2146674944 | T13: =N13 -> 221 | U13: =COUNTIF(L7:L23,T13) -> 1 | V13: =U13/(W4-U11) -> 0.05882352941 | W13: =IF(V13=0,0,(V13*((LOG(V13))/LOG(2)))) -> -0.2404389907 | Y13: =N13 -> 221 | Z13: =COUNTIF(L24:L40,Y13) -> 2 | AA13: =Z13/(AB4-Z11) -> 0.1176470588 | AB13: =IF(AA13=0,0,(AA13*((LOG(AA13))/LOG(2)))) -> -0.3632309225 | AD13: =N13 -> 221 | AE13: =COUNTIF(L41:L56,AD13) -> 1 | AF13: =AE13/(AG4-AE11) -> 0.0625 | AG13: =IF(AF13=0,0,(AF13*((LOG(AF13))/LOG(2)))) -> -0.25 | AI13: =N13 -> 221 | AJ13: =COUNTIF(L57:L73,AI13) -> 1 | AK13: =AJ13/(AL4-AJ11) -> 0.05882352941 | AL13: =IF(AK13=0,0,(AK13*((LOG(AK13))/LOG(2)))) -> -0.2404389907 | AN13: =N13 -> 221 | AO13: =COUNTIF(L74:L90,AN13) -> 0 | AP13: =AO13/(AQ4-AO11) -> 0 | AQ13: =IF(AP13=0,0,(AP13*((LOG(AP13))/LOG(2)))) -> 0 | AS13: =N13 -> 221 | AT13: =COUNTIF(L91:L107,AS13) -> 0 | AU13: =AT13/(AV4-AT11) -> 0 | AV13: =IF(AU13=0,0,(AU13*((LOG(AU13))/LOG(2)))) -> 0
A14: 12 | B14: 1007 | C14: 24 | D14: 1025 | E14: 24 | F14: 1033 | K14: 0 | L14: 122 | N14: 222 | O14: =COUNTIF($L$7:$L$500,N14) -> 7 | P14: =O14/$Q$4 -> 0.06930693069 | Q14: =IF(P14=0,0,(P14*((LOG(P14))/LOG(2)))) -> -0.2668910488 | T14: =N14 -> 222 | U14: =COUNTIF(L7:L23,T14) -> 1 | V14: =U14/(W4-U11) -> 0.05882352941 | W14: =IF(V14=0,0,(V14*((LOG(V14))/LOG(2)))) -> -0.2404389907 | Y14: =N14 -> 222 | Z14: =COUNTIF(L24:L40,Y14) -> 0 | AA14: =Z14/(AB4-Z11) -> 0 | AB14: =IF(AA14=0,0,(AA14*((LOG(AA14))/LOG(2)))) -> 0 | AD14: =N14 -> 222 | AE14: =COUNTIF(L41:L56,AD14) -> 0 | AF14: =AE14/(AG4-AE11) -> 0 | AG14: =IF(AF14=0,0,(AF14*((LOG(AF14))/LOG(2)))) -> 0 | AI14: =N14 -> 222 | AJ14: =COUNTIF(L57:L73,AI14) -> 1 | AK14: =AJ14/(AL4-AJ11) -> 0.05882352941 | AL14: =IF(AK14=0,0,(AK14*((LOG(AK14))/LOG(2)))) -> -0.2404389907 | AN14: =N14 -> 222 | AO14: =COUNTIF(L74:L90,AN14) -> 1 | AP14: =AO14/(AQ4-AO11) -> 0.05882352941 | AQ14: =IF(AP14=0,0,(AP14*((LOG(AP14))/LOG(2)))) -> -0.2404389907 | AS14: =N14 -> 222 | AT14: =COUNTIF(L91:L107,AS14) -> 4 | AU14: =AT14/(AV4-AT11) -> 0.2352941176 | AV14: =IF(AU14=0,0,(AU14*((LOG(AU14))/LOG(2)))) -> -0.4911677274
A15: 12 | B15: 1244 | C15: 13 | D15: 1250 | E15: 13 | F15: 1273 | K15: 0 | L15: 111 | P15: =SUM(P7:P14) -> 1 | Q15: =-SUM(Q7:Q14) -> 2.21483371 | V15: =SUM(V7:V14) -> 1 | W15: =-SUM(W7:W14) -> 1.726347224 | AA15: =SUM(AA7:AA14) -> 1 | AB15: =-SUM(AB7:AB14) -> 2.043057694 | AF15: =SUM(AF7:AF14) -> 1 | AG15: =-SUM(AG7:AG14) -> 1.543564443 | AK15: =SUM(AK7:AK14) -> 1 | AL15: =-SUM(AL7:AL14) -> 2.25690899 | AP15: =SUM(AP7:AP14) -> 1 | AQ15: =-SUM(AQ7:AQ14) -> 1.713078843 | AU15: =SUM(AU7:AU14) -> 1 | AV15: =-SUM(AV7:AV14) -> 1.903967813
A16: 12 | B16: 1373 | C16: 24 | D16: 1407 | E16: 24 | F16: 1415 | K16: 0 | L16: 122 | P16: U= | Q16: =Q15/(LOG(Q4)/LOG(2)) -> 0.3326469451 | V16: U1= | W16: =W15/(LOG(W4)/LOG(2)) -> 0.4223517843 | AA16: U2= | AB16: =AB15/(LOG(AB4)/LOG(2)) -> 0.4998351724 | AF16: U3= | AG16: =AG15/(LOG(AG4)/LOG(2)) -> 0.3858911108 | AK16: U4= | AL16: =AL15/(LOG(AL4)/LOG(2)) -> 0.5521540078 | AP16: U5= | AQ16: =AQ15/(LOG(AQ4)/LOG(2)) -> 0.4191056675 | AU16: U6= | AV16: =AV15/(LOG(AV4)/LOG(2)) -> 0.4658067576
A17: 21 | B17: 1560 | C17: 22 | D17: 1793 | E17: 24 | F17: 1802 | K17: 0 | L17: 222
A18: 21 | B18: 2367 | C18: 22 | D18: 2375 | E18: 13 | F18: 2420 | K18: 0 | L18: 221
A19: 12 | B19: 2858 | C19: 24 | D19: 2880 | E19: 24 | F19: 2889 | K19: 0 | L19: 122 | N19: Total Target Seq
A20: 12 | B20: 3323 | C20: 13 | D20: 3352 | E20: 13 | F20: 3355 | K20: 0 | L20: 111 | N20: =COUNTIF(L7:L107,G3) -> 0 | P20: 17 | Q20: 17 | R20: 16 | S20: 17 | T20: 17 | U20: 17
A21: 12 | B21: 3456 | C21: 24 | D21: 3477 | E21: 24 | F21: 3484 | K21: 0 | L21: 122 | P21: % of reinforcement given in 6 equal intervals based on number of trials
A22: 12 | B22: 3584 | C22: 24 | D22: 3601 | E22: 24 | F22: 3609 | K22: 0 | L22: 122 | P22: %_1 | Q22: %_2 | R22: %_3 | S22: %_4 | T22: %_5 | U22: %_6
A23: 12 | B23: 3714 | C23: 13 | D23: 3719 | E23: 13 | F23: 3730 | K23: 0 | L23: 111 | O23: target sequence | P23: =$G$3 -> 211 | Q23: =$G$3 -> 211 | R23: =$G$3 -> 211 | S23: =$G$3 -> 211 | T23: =$G$3 -> 211 | U23: =$G$3 -> 211
A24: 12 | B24: 3837 | C24: 24 | D24: 3854 | E24: 24 | F24: 3861 | K24: 0 | L24: 122 | O24: total reinforcement | P24: =U11 -> 0 | Q24: =Z11 -> 0 | R24: =AE11 -> 0 | S24: =AJ11 -> 0 | T24: =AO11 -> 0 | U24: =AT11 -> 0
A25: 12 | B25: 3960 | C25: 24 | D25: 3975 | E25: 24 | F25: 3982 | K25: 0 | L25: 122 | O25: % target
A26: 12 | B26: 4079 | C26: 13 | D26: 4088 | E26: 13 | F26: 4096 | K26: 0 | L26: 111 | O26: CCRF
A27: 12 | B27: 4197 | C27: 24 | D27: 4215 | E27: 24 | F27: 4223 | K27: 0 | L27: 122 | O27: % CCRf
A28: 12 | B28: 4314 | C28: 13 | D28: 4344 | E28: 24 | F28: 4361 | K28: 0 | L28: 112 | O28: average response rate | P28: =F23/P20 -> 219.4117647 | Q28: =(F40-F23)/Q20 -> 215.7058824 | R28: =(F56-F40)/R20 -> 169.4375 | S28: =(F73-F56)/S20 -> 213.0588235 | T28: =(F90-F73)/T20 -> 172.1176471 | U28: =(F107-F90)/U20 -> 203.9411765
A29: 21 | B29: 4474 | C29: 22 | D29: 4481 | E29: 13 | F29: 4520 | K29: 0 | L29: 221
A30: 12 | B30: 4873 | C30: 24 | D30: 4887 | E30: 13 | F30: 5017 | K30: 0 | L30: 121
A31: 12 | B31: 5330 | C31: 13 | D31: 5368 | E31: 13 | F31: 5378 | K31: 0 | L31: 111
A32: 21 | B32: 5494 | C32: 22 | D32: 5502 | E32: 13 | F32: 5596 | K32: 0 | L32: 221
A33: 12 | B33: 5694 | C33: 24 | D33: 5709 | E33: 24 | F33: 5716 | K33: 0 | L33: 122
A34: 12 | B34: 6219 | C34: 24 | D34: 6232 | E34: 24 | F34: 6244 | K34: 0 | L34: 122
A35: 12 | B35: 6346 | C35: 24 | D35: 6366 | E35: 13 | F35: 6403 | K35: 0 | L35: 121
A36: 12 | B36: 6861 | C36: 24 | D36: 6880 | E36: 24 | F36: 6888 | K36: 0 | L36: 122
A37: 12 | B37: 6986 | C37: 13 | D37: 6994 | E37: 24 | F37: 7012 | K37: 0 | L37: 112
A38: 12 | B38: 7106 | C38: 24 | D38: 7127 | E38: 24 | F38: 7134 | K38: 0 | L38: 122
A39: 12 | B39: 7246 | C39: 13 | D39: 7251 | E39: 24 | F39: 7265 | K39: 0 | L39: 112
A40: 12 | B40: 7373 | C40: 24 | D40: 7390 | E40: 24 | F40: 7397 | K40: 0 | L40: 122
A41: 12 | B41: 7490 | C41: 13 | D41: 7512 | E41: 24 | F41: 7523 | K41: 0 | L41: 112
A42: 12 | B42: 7621 | C42: 13 | D42: 7631 | E42: 13 | F42: 7635 | K42: 0 | L42: 111
A43: 12 | B43: 8180 | C43: 24 | D43: 8197 | E43: 24 | F43: 8207 | K43: 0 | L43: 122
A44: 21 | B44: 8322 | C44: 22 | D44: 8330 | E44: 13 | F44: 8350 | K44: 0 | L44: 221
A45: 12 | B45: 8810 | C45: 13 | D45: 8830 | E45: 24 | F45: 8848 | K45: 0 | L45: 112
A46: 12 | B46: 8940 | C46: 13 | D46: 8943 | E46: 13 | F46: 8954 | K46: 0 | L46: 111
A47: 12 | B47: 9047 | C47: 13 | D47: 9049 | E47: 24 | F47: 9067 | K47: 0 | L47: 112
A48: 12 | B48: 9165 | C48: 13 | D48: 9172 | E48: 24 | F48: 9185 | K48: 0 | L48: 112
A49: 12 | B49: 9283 | C49: 13 | D49: 9296 | E49: 13 | F49: 9306 | K49: 0 | L49: 111
A50: 12 | B50: 9414 | C50: 13 | D50: 9426 | E50: 24 | F50: 9434 | K50: 0 | L50: 112
A51: 12 | B51: 9532 | C51: 13 | D51: 9537 | E51: 24 | F51: 9551 | K51: 0 | L51: 112
A52: 12 | B52: 9643 | C52: 13 | D52: 9646 | E52: 13 | F52: 9657 | K52: 0 | L52: 111
A53: 12 | B53: 9751 | C53: 13 | D53: 9758 | E53: 24 | F53: 9770 | K53: 0 | L53: 112
A54: 12 | B54: 9878 | C54: 13 | D54: 9889 | E54: 13 | F54: 9892 | K54: 0 | L54: 111
A55: 12 | B55: 9984 | C55: 13 | D55: 9989 | E55: 13 | F55: 9995 | K55: 0 | L55: 111
A56: 12 | B56: 10098 | C56: 13 | D56: 10103 | E56: 13 | F56: 10108 | K56: 0 | L56: 111
A57: 12 | B57: 10218 | C57: 13 | D57: 10227 | E57: 13 | F57: 10252 | K57: 0 | L57: 111
A58: 12 | B58: 10347 | C58: 13 | D58: 10373 | E58: 24 | F58: 10382 | K58: 0 | L58: 112
A59: 21 | B59: 10540 | C59: 22 | D59: 10547 | E59: 13 | F59: 10581 | K59: 0 | L59: 221
A60: 12 | B60: 10682 | C60: 13 | D60: 10685 | E60: 13 | F60: 10701 | K60: 0 | L60: 111
A61: 12 | B61: 11135 | C61: 13 | D61: 11144 | E61: 24 | F61: 11166 | K61: 0 | L61: 112
A62: 12 | B62: 11290 | C62: 13 | D62: 11300 | E62: 24 | F62: 11310 | K62: 0 | L62: 112
A63: 12 | B63: 11413 | C63: 24 | D63: 11437 | E63: 24 | F63: 11453 | K63: 0 | L63: 122
A64: 12 | B64: 11841 | C64: 24 | D64: 11859 | E64: 13 | F64: 11913 | K64: 0 | L64: 121
A65: 12 | B65: 12287 | C65: 24 | D65: 12303 | E65: 13 | F65: 12338 | K65: 0 | L65: 121
A66: 12 | B66: 12431 | C66: 13 | D66: 12453 | E66: 24 | F66: 12467 | K66: 0 | L66: 112
A67: 12 | B67: 12567 | C67: 13 | D67: 12579 | E67: 13 | F67: 12585 | K67: 0 | L67: 111
A68: 21 | B68: 12712 | C68: 22 | D68: 12719 | E68: 24 | F68: 12729 | K68: 0 | L68: 222
A69: 12 | B69: 13236 | C69: 13 | D69: 13240 | E69: 24 | F69: 13258 | K69: 0 | L69: 112
A70: 12 | B70: 13363 | C70: 13 | D70: 13368 | E70: 24 | F70: 13386 | K70: 0 | L70: 112
A71: 12 | B71: 13482 | C71: 13 | D71: 13494 | E71: 13 | F71: 13498 | K71: 0 | L71: 111
A72: 12 | B72: 13597 | C72: 24 | D72: 13618 | E72: 24 | F72: 13625 | K72: 0 | L72: 122
A73: 12 | B73: 13720 | C73: 13 | D73: 13726 | E73: 13 | F73: 13730 | K73: 0 | L73: 111
A74: 12 | B74: 13829 | C74: 24 | D74: 13869 | E74: 24 | F74: 13877 | K74: 0 | L74: 122
A75: 12 | B75: 13969 | C75: 13 | D75: 13980 | E75: 24 | F75: 13989 | K75: 0 | L75: 112
A76: 12 | B76: 14089 | C76: 24 | D76: 14107 | E76: 24 | F76: 14115 | K76: 0 | L76: 122
A77: 12 | B77: 14248 | C77: 13 | D77: 14261 | E77: 13 | F77: 14266 | K77: 0 | L77: 111
A78: 12 | B78: 14408 | C78: 13 | D78: 14412 | E78: 13 | F78: 14425 | K78: 0 | L78: 111
A79: 12 | B79: 14546 | C79: 24 | D79: 14558 | E79: 24 | F79: 14568 | K79: 0 | L79: 122
A80: 12 | B80: 14674 | C80: 13 | D80: 14684 | E80: 13 | F80: 14694 | K80: 0 | L80: 111
A81: 12 | B81: 14801 | C81: 13 | D81: 14803 | E81: 13 | F81: 14806 | K81: 0 | L81: 111
A82: 12 | B82: 14968 | C82: 13 | D82: 14971 | E82: 13 | F82: 14974 | K82: 0 | L82: 111
A83: 12 | B83: 15078 | C83: 13 | D83: 15083 | E83: 13 | F83: 15087 | K83: 0 | L83: 111
A84: 12 | B84: 15247 | C84: 24 | D84: 15265 | E84: 24 | F84: 15273 | K84: 0 | L84: 122
A85: 12 | B85: 15377 | C85: 13 | D85: 15388 | E85: 13 | F85: 15398 | K85: 0 | L85: 111
A86: 12 | B86: 15500 | C86: 13 | D86: 15505 | E86: 24 | F86: 15529 | K86: 0 | L86: 112
A87: 12 | B87: 15630 | C87: 13 | D87: 15632 | E87: 24 | F87: 15651 | K87: 0 | L87: 112
A88: 12 | B88: 15788 | C88: 24 | D88: 15812 | E88: 24 | F88: 15822 | K88: 0 | L88: 122
A89: 12 | B89: 16005 | C89: 13 | D89: 16010 | E89: 13 | F89: 16046 | K89: 0 | L89: 111
A90: 21 | B90: 16634 | C90: 22 | D90: 16641 | E90: 24 | F90: 16656 | K90: 0 | L90: 222
A91: 12 | B91: 16756 | C91: 13 | D91: 16766 | E91: 13 | F91: 16785 | K91: 0 | L91: 111
A92: 12 | B92: 16879 | C92: 13 | D92: 16887 | E92: 13 | F92: 16903 | K92: 0 | L92: 111
A93: 12 | B93: 17096 | C93: 13 | D93: 17099 | E93: 24 | F93: 17121 | K93: 0 | L93: 112
A94: 12 | B94: 17218 | C94: 13 | D94: 17229 | E94: 24 | F94: 17247 | K94: 0 | L94: 112
A95: 21 | B95: 17369 | C95: 22 | D95: 17377 | E95: 24 | F95: 17386 | K95: 0 | L95: 222
A96: 12 | B96: 17514 | C96: 24 | D96: 17537 | E96: 24 | F96: 17545 | K96: 0 | L96: 122
A97: 21 | B97: 17669 | C97: 22 | D97: 17676 | E97: 24 | F97: 17685 | K97: 0 | L97: 222
A98: 12 | B98: 17823 | C98: 24 | D98: 17855 | E98: 24 | F98: 17863 | K98: 0 | L98: 122
A99: 12 | B99: 17965 | C99: 13 | D99: 17975 | E99: 13 | F99: 17982 | K99: 0 | L99: 111
A100: 12 | B100: 18091 | C100: 24 | D100: 18108 | E100: 24 | F100: 18116 | K100: 0 | L100: 122
A101: 12 | B101: 18236 | C101: 13 | D101: 18239 | E101: 13 | F101: 18250 | K101: 0 | L101: 111
A102: 12 | B102: 18351 | C102: 13 | D102: 18359 | E102: 13 | F102: 18364 | K102: 0 | L102: 111
A103: 12 | B103: 18540 | C103: 13 | D103: 18560 | E103: 13 | F103: 18573 | K103: 0 | L103: 111
A104: 21 | B104: 18847 | C104: 22 | D104: 18864 | E104: 24 | F104: 18876 | K104: 0 | L104: 222
A105: 21 | B105: 19074 | C105: 22 | D105: 19081 | E105: 24 | F105: 19090 | K105: 0 | L105: 222
A106: 12 | B106: 19194 | C106: 24 | D106: 19214 | E106: 24 | F106: 19223 | K106: 0 | L106: 122
A107: 12 | B107: 20086 | C107: 24 | D107: 20106 | E107: 24 | F107: 20123 | K107: 0 | L107: 122

Sheet !L825A3B.axt
A1: Report for:!L825A3B.axt
A2: Date: | B2: <date>
A3: Hen: | B3: <hen> | F3: Correct Sequence | G3: =Start!J2 -> 211 | P3: Total Sequences in Data | Q3: =4994-COUNTBLANK(L7:L5000) -> 50 | V3: Total Sequences in Block Data | W3: =COUNTA(L7:L14) -> 8 | AA3: Total Sequences in Block Data | AB3: =COUNTA(L15:L23) -> 9 | AF3: Total Sequences in Block Data | AG3: =COUNTA(L24:L31) -> 8 | AK3: Total Sequences in Block Data | AL3: =COUNTA(L32:L39) -> 8 | AP3: Total Sequences in Block Data | AQ3: =COUNTA(L40:L48) -> 9 | AU3: Total Sequences in Block Data | AV3: =COUNTA(L49:L56) -> 8
P4: Total Sequences in Summary | Q4: =SUM(O7:O14) -> 50 | V4: Total Sequences in Block Summary | W4: =SUM(U7:U14) -> 8 | AA4: Total Sequences in Block Summary | AB4: =SUM(Z7:Z14) -> 9 | AF4: Total Sequences in Block Summary | AG4: =SUM(AE7:AE14) -> 8 | AK4: Total Sequences in Block Summary | AL4: =SUM(AJ7:AJ14) -> 8 | AP4: Total Sequences in Block Summary | AQ4: =SUM(AO7:AO14) -> 9 | AU4: Total Sequences in Block Summary | AV4: =SUM(AT7:AT14) -> 8
T5: Block 1 | Y5: Block 2 | AD5: Block 3 | AI5: Block 4 | AN5: Block 5 | AS5: Block 6
A6: Sequence Component 1 | B6: Time 1 | C6: Sequence Component 2 | D6: Time 2 | E6: Sequence Component 3 | F6: Time 3 | G6: Sequence Component 4 | H6: Time 4 | I6: Sequence Component 5 | J6: Time 5 | K6: Correct? 0=No 1=Yes | L6: Sequence | N6: Frequency | P6: Relative Frequency | Q6: Variability | T6: Frequency | V6: Relative Frequency | W6: Variability | Y6: Frequency | AA6: Relative Frequency | AB6: Variability | AD6: Frequency | AF6: Relative Frequency | AG6: Variability | AI6: Frequency | AK6: Relative Frequency | AL6: Variability | AN6: Frequency | AP6: Relative Frequency | AQ6: Variability | AS6: Frequency | AU6: Relative Frequency | AV6: Variability
A7: 12 | B7: 10 | C7: 13 | D7: 13 | E7: 13 | F7: 53 | K7: 0 | L7: 111 | N7: 111 | O7: =COUNTIF($L$7:$L$500,N7) -> 8 | P7: =O7/$Q$4 -> 0.16 | Q7: =IF(P7=0,0,(P7*((LOG(P7))/LOG(2)))) -> -0.4230169904 | T7: =N7 -> 111 | U7: =COUNTIF(L7:L14,T7) -> 1 | V7: =U7/(W4-U11) -> 0.125 | W7: =IF(V7=0,0,(V7*((LOG(V7))/LOG(2)))) -> -0.375 | Y7: =N7 -> 111 | Z7: =COUNTIF(L15:L23,Y7) -> 1 | AA7: =Z7/(AB4-Z11) -> 0.1111111111 | AB7: =IF(AA7=0,0,(AA7*((LOG(AA7))/LOG(2)))) -> -0.352213889 | AD7: =N7 -> 111 | AE7: =COUNTIF(L24:L31,AD7) -> 3 | AF7: =AE7/(AG4-AE11) -> 0.375 | AG7: =IF(AF7=0,0,(AF7*((LOG(AF7))/LOG(2)))) -> -0.5306390622 | AI7: =N7 -> 111 | AJ7: =COUNTIF(L32:L39,AI7) -> 2 | AK7: =AJ7/(AL4-AJ11) -> 0.25 | AL7: =IF(AK7=0,0,(AK7*((LOG(AK7))/LOG(2)))) -> -0.5 | AN7: =N7 -> 111 | AO7: =COUNTIF(L40:L48,AN7) -> 1 | AP7: =AO7/(AQ4-AO11) -> 0.1111111111 | AQ7: =IF(AP7=0,0,(AP7*((LOG(AP7))/LOG(2)))) -> -0.352213889 | AS7: =N7 -> 111 | AT7: =COUNTIF(L49:L56,AS7) -> 0 | AU7: =AT7/(AV4-AT11) -> 0 | AV7: =IF(AU7=0,0,(AU7*((LOG(AU7))/LOG(2)))) -> 0
A8: 12 | B8: 165 | C8: 24 | D8: 174 | E8: 24 | F8: 182 | K8: 0 | L8: 122 | N8: 112 | O8: =COUNTIF($L$7:$L$500,N8) -> 14 | P8: =O8/$Q$4 -> 0.28 | Q8: =IF(P8=0,0,(P8*((LOG(P8))/LOG(2)))) -> -0.514220355 | T8: =N8 -> 112 | U8: =COUNTIF(L7:L14,T8) -> 1 | V8: =U8/(W4-U11) -> 0.125 | W8: =IF(V8=0,0,(V8*((LOG(V8))/LOG(2)))) -> -0.375 | Y8: =N8 -> 112 | Z8: =COUNTIF(L15:L23,Y8) -> 2 | AA8: =Z8/(AB4-Z11) -> 0.2222222222 | AB8: =IF(AA8=0,0,(AA8*((LOG(AA8))/LOG(2)))) -> -0.4822055559 | AD8: =N8 -> 112 | AE8: =COUNTIF(L24:L31,AD8) -> 1 | AF8: =AE8/(AG4-AE11) -> 0.125 | AG8: =IF(AF8=0,0,(AF8*((LOG(AF8))/LOG(2)))) -> -0.375 | AI8: =N8 -> 112 | AJ8: =COUNTIF(L32:L39,AI8) -> 3 | AK8: =AJ8/(AL4-AJ11) -> 0.375 | AL8: =IF(AK8=0,0,(AK8*((LOG(AK8))/LOG(2)))) -> -0.5306390622 | AN8: =N8 -> 112 | AO8: =COUNTIF(L40:L48,AN8) -> 6 | AP8: =AO8/(AQ4-AO11) -> 0.6666666667 | AQ8: =IF(AP8=0,0,(AP8*((LOG(AP8))/LOG(2)))) -> -0.3899750005 | AS8: =N8 -> 112 | AT8: =COUNTIF(L49:L56,AS8) -> 1 | AU8: =AT8/(AV4-AT11) -> 0.125 | AV8: =IF(AU8=0,0,(AU8*((LOG(AU8))/LOG(2)))) -> -0.375
A9: 21 | B9: 296 | C9: 22 | D9: 302 | E9: 24 | F9: 310 | K9: 0 | L9: 222 | N9: 121 | O9: =COUNTIF($L$7:$L$500,N9) -> 0 | P9: =O9/$Q$4 -> 0 | Q9: =IF(P9=0,0,(P9*((LOG(P9))/LOG(2)))) -> 0 | T9: =N9 -> 121 | U9: =COUNTIF(L7:L14,T9) -> 0 | V9: =U9/(W4-U11) -> 0 | W9: =IF(V9=0,0,(V9*((LOG(V9))/LOG(2)))) -> 0 | Y9: =N9 -> 121 | Z9: =COUNTIF(L15:L23,Y9) -> 0 | AA9: =Z9/(AB4-Z11) -> 0 | AB9: =IF(AA9=0,0,(AA9*((LOG(AA9))/LOG(2)))) -> 0 | AD9: =N9 -> 121 | AE9: =COUNTIF(L24:L31,AD9) -> 0 | AF9: =AE9/(AG4-AE11) -> 0 | AG9: =IF(AF9=0,0,(AF9*((LOG(AF9))/LOG(2)))) -> 0 | AI9: =N9 -> 121 | AJ9: =COUNTIF(L32:L39,AI9) -> 0 | AK9: =AJ9/(AL4-AJ11) -> 0 | AL9: =IF(AK9=0,0,(AK9*((LOG(AK9))/LOG(2)))) -> 0 | AN9: =N9 -> 121 | AO9: =COUNTIF(L40:L48,AN9) -> 0 | AP9: =AO9/(AQ4-AO11) -> 0 | AQ9: =IF(AP9=0,0,(AP9*((LOG(AP9))/LOG(2)))) -> 0 | AS9: =N9 -> 121 | AT9: =COUNTIF(L49:L56,AS9) -> 0 | AU9: =AT9/(AV4-AT11) -> 0 | AV9: =IF(AU9=0,0,(AU9*((LOG(AU9))/LOG(2)))) -> 0
A10: 21 | B10: 418 | C10: 22 | D10: 426 | E10: 24 | F10: 433 | K10: 0 | L10: 222 | N10: 122 | O10: =COUNTIF($L$7:$L$500,N10) -> 17 | P10: =O10/$Q$4 -> 0.34 | Q10: =IF(P10=0,0,(P10*((LOG(P10))/LOG(2)))) -> -0.5291737385 | T10: =N10 -> 122 | U10: =COUNTIF(L7:L14,T10) -> 3 | V10: =U10/(W4-U11) -> 0.375 | W10: =IF(V10=0,0,(V10*((LOG(V10))/LOG(2)))) -> -0.5306390622 | Y10: =N10 -> 122 | Z10: =COUNTIF(L15:L23,Y10) -> 2 | AA10: =Z10/(AB4-Z11) -> 0.2222222222 | AB10: =IF(AA10=0,0,(AA10*((LOG(AA10))/LOG(2)))) -> -0.4822055559 | AD10: =N10 -> 122 | AE10: =COUNTIF(L24:L31,AD10) -> 3 | AF10: =AE10/(AG4-AE11) -> 0.375 | AG10: =IF(AF10=0,0,(AF10*((LOG(AF10))/LOG(2)))) -> -0.5306390622 | AI10: =N10 -> 122 | AJ10: =COUNTIF(L32:L39,AI10) -> 3 | AK10: =AJ10/(AL4-AJ11) -> 0.375 | AL10: =IF(AK10=0,0,(AK10*((LOG(AK10))/LOG(2)))) -> -0.5306390622 | AN10: =N10 -> 122 | AO10: =COUNTIF(L40:L48,AN10) -> 1 | AP10: =AO10/(AQ4-AO11) -> 0.1111111111 | AQ10: =IF(AP10=0,0,(AP10*((LOG(AP10))/LOG(2)))) -> -0.352213889 | AS10: =N10 -> 122 | AT10: =COUNTIF(L49:L56,AS10) -> 5 | AU10: =AT10/(AV4-AT11) -> 0.625 | AV10: =IF(AU10=0,0,(AU10*((LOG(AU10))/LOG(2)))) -> -0.4237949407
A11: 12 | B11: 528 | C11: 24 | D11: 552 | E11: 24 | F11: 560 | K11: 0 | L11: 122 | N11: 211 | O11: =COUNTIF($L$7:$L$500,N11) -> 0 | P11: =O11/$Q$4 -> 0 | Q11: =IF(P11=0,0,(P11*((LOG(P11))/LOG(2)))) -> 0 | T11: =N11 -> 211 | U11: =COUNTIF(L7:L14,T11) -> 0 | Y11: =N11 -> 211 | Z11: =COUNTIF(L15:L23,Y11) -> 0 | AD11: =N11 -> 211 | AE11: =COUNTIF(L24:L31,AD11) -> 0 | AI11: =N11 -> 211 | AJ11: =COUNTIF(L32:L39,AI11) -> 0 | AN11: =N11 -> 211 | AO11: =COUNTIF(L40:L48,AN11) -> 0 | AS11: =N11 -> 211 | AT11: =COUNTIF(L49:L56,AS11) -> 0
A12: 21 | B12: 693 | C12: 22 | D12: 702 | E12: 24 | F12: 712 | K12: 0 | L12: 222 | N12: 212 | O12: =COUNTIF($L$7:$L$500,N12) -> 0 | P12: =O12/$Q$4 -> 0 | Q12: =IF(P12=0,0,(P12*((LOG(P12))/LOG(2)))) -> 0 | T12: =N12 -> 212 | U12: =COUNTIF(L7:L14,T12) -> 0 | V12: =U12/(W4-U11) -> 0 | W12: =IF(V12=0,0,(V12*((LOG(V12))/LOG(2)))) -> 0 | Y12: =N12 -> 212 | Z12: =COUNTIF(L15:L23,Y12) -> 0 | AA12: =Z12/(AB4-Z11) -> 0 | AB12: =IF(AA12=0,0,(AA12*((LOG(AA12))/LOG(2)))) -> 0 | AD12: =N12 -> 212 | AE12: =COUNTIF(L24:L31,AD12) -> 0 | AF12: =AE12/(AG4-AE11) -> 0 | AG12: =IF(AF12=0,0,(AF12*((LOG(AF12))/LOG(2)))) -> 0 | AI12: =N12 -> 212 | AJ12: =COUNTIF(L32:L39,AI12) -> 0 | AK12: =AJ12/(AL4-AJ11) -> 0 | AL12: =IF(AK12=0,0,(AK12*((LOG(AK12))/LOG(2)))) -> 0 | AN12: =N12 -> 212 | AO12: =COUNTIF(L40:L48,AN12) -> 0 | AP12: =AO12/(AQ4-AO11) -> 0 | AQ12: =IF(AP12=0,0,(AP12*((LOG(AP12))/LOG(2)))) -> 0 | AS12: =N12 -> 212 | AT12: =COUNTIF(L49:L56,AS12) -> 0 | AU12: =AT12/(AV4-AT11) -> 0 | AV12: =IF(AU12=0,0,(AU12*((LOG(AU12))/LOG(2)))) -> 0
A13: 12 | B13: 814 | C13: 24 | D13: 836 | E13: 24 | F13: 874 | K13: 0 | L13: 122 | N13: 221 | O13: =COUNTIF($L$7:$L$500,N13) -> 2 | P13: =O13/$Q$4 -> 0.04 | Q13: =IF(P13=0,0,(P13*((LOG(P13))/LOG(2)))) -> -0.1857542476 | T13: =N13 -> 221 | U13: =COUNTIF(L7:L14,T13) -> 0 | V13: =U13/(W4-U11) -> 0 | W13: =IF(V13=0,0,(V13*((LOG(V13))/LOG(2)))) -> 0 | Y13: =N13 -> 221 | Z13: =COUNTIF(L15:L23,Y13) -> 1 | AA13: =Z13/(AB4-Z11) -> 0.1111111111 | AB13: =IF(AA13=0,0,(AA13*((LOG(AA13))/LOG(2)))) -> -0.352213889 | AD13: =N13 -> 221 | AE13: =COUNTIF(L24:L31,AD13) -> 0 | AF13: =AE13/(AG4-AE11) -> 0 | AG13: =IF(AF13=0,0,(AF13*((LOG(AF13))/LOG(2)))) -> 0 | AI13: =N13 -> 221 | AJ13: =COUNTIF(L32:L39,AI13) -> 0 | AK13: =AJ13/(AL4-AJ11) -> 0 | AL13: =IF(AK13=0,0,(AK13*((LOG(AK13))/LOG(2)))) -> 0 | AN13: =N13 -> 221 | AO13: =COUNTIF(L40:L48,AN13) -> 0 | AP13: =AO13/(AQ4-AO11) -> 0 | AQ13: =IF(AP13=0,0,(AP13*((LOG(AP13))/LOG(2)))) -> 0 | AS13: =N13 -> 221 | AT13: =COUNTIF(L49:L56,AS13) -> 1 | AU13: =AT13/(AV4-AT11) -> 0.125 | AV13: =IF(AU13=0,0,(AU13*((LOG(AU13))/LOG(2)))) -> -0.375
A14: 12 | B14: 1332 | C14: 13 | D14: 1338 | E14: 24 | F14: 1364 | K14: 0 | L14: 112 | N14: 222 | O14: =COUNTIF($L$7:$L$500,N14) -> 9 | P14: =O14/$Q$4 -> 0.18 | Q14: =IF(P14=0,0,(P14*((LOG(P14))/LOG(2)))) -> -0.4453076139 | T14: =N14 -> 222 | U14: =COUNTIF(L7:L14,T14) -> 3 | V14: =U14/(W4-U11) -> 0.375 | W14: =IF(V14=0,0,(V14*((LOG(V14))/LOG(2)))) -> -0.5306390622 | Y14: =N14 -> 222 | Z14: =COUNTIF(L15:L23,Y14) -> 3 | AA14: =Z14/(AB4-Z11) -> 0.3333333333 | AB14: =IF(AA14=0,0,(AA14*((LOG(AA14))/LOG(2)))) -> -0.5283208336 | AD14: =N14 -> 222 | AE14: =COUNTIF(L24:L31,AD14) -> 1 | AF14: =AE14/(AG4-AE11) -> 0.125 | AG14: =IF(AF14=0,0,(AF14*((LOG(AF14))/LOG(2)))) -> -0.375 | AI14: =N14 -> 222 | AJ14: =COUNTIF(L32:L39,AI14) -> 0 | AK14: =AJ14/(AL4-AJ11) -> 0 | AL14: =IF(AK14=0,0,(AK14*((LOG(AK14))/LOG(2)))) -> 0 | AN14: =N14 -> 222 | AO14: =COUNTIF(L40:L48,AN14) -> 1 | AP14: =AO14/(AQ4-AO11) -> 0.1111111111 | AQ14: =IF(AP14=0,0,(AP14*((LOG(AP14))/LOG(2)))) -> -0.352213889 | AS14: =N14 -> 222 | AT14: =COUNTIF(L49:L56,AS14) -> 1 | AU14: =AT14/(AV4-AT11) -> 0.125 | AV14: =IF(AU14=0,0,(AU14*((LOG(AU14))/LOG(2)))) -> -0.375
A15: 12 | B15: 1642 | C15: 13 | D15: 1645 | E15: 13 | F15: 1651 | K15: 0 | L15: 111 | P15: =SUM(P7:P14) -> 1 | Q15: =-SUM(Q7:Q14) -> 2.097472945 | V15: =SUM(V7:V14) -> 1 | W15: =-SUM(W7:W14) -> 1.811278124 | AA15: =SUM(AA7:AA14) -> 1 | AB15: =-SUM(AB7:AB14) -> 2.197159723 | AF15: =SUM(AF7:AF14) -> 1 | AG15: =-SUM(AG7:AG14) -> 1.811278124 | AK15: =SUM(AK7:AK14) -> 1 | AL15: =-SUM(AL7:AL14) -> 1.561278124 | AP15: =SUM(AP7:AP14) -> 1 | AQ15: =-SUM(AQ7:AQ14) -> 1.446616668 | AU15: =SUM(AU7:AU14) -> 1 | AV15: =-SUM(AV7:AV14) -> 1.548794941
A16: 21 | B16: 1760 | C16: 22 | D16: 1769 | E16: 24 | F16: 1783 | K16: 0 | L16: 222 | P16: U= | Q16: =Q15/(LOG(Q4)/LOG(2)) -> 0.3716382691 | V16: U1= | W16: =W15/(LOG(W4)/LOG(2)) -> 0.6037593748 | AA16: U2= | AB16: =AB15/(LOG(AB4)/LOG(2)) -> 0.6931267214 | AF16: U3= | AG16: =AG15/(LOG(AG4)/LOG(2)) -> 0.6037593748 | AK16: U4= | AL16: =AL15/(LOG(AL4)/LOG(2)) -> 0.5204260415 | AP16: U5= | AQ16: =AQ15/(LOG(AQ4)/LOG(2)) -> 0.4563567488 | AU16: U6= | AV16: =AV15/(LOG(AV4)/LOG(2)) -> 0.5162649802
A17: 21 | B17: 1894 | C17: 22 | D17: 1901 | E17: 24 | F17: 1909 | K17: 0 | L17: 222
A18: 21 | B18: 2031 | C18: 22 | D18: 2040 | E18: 13 | F18: 2065 | K18: 0 | L18: 221
A19: 12 | B19: 2673 | C19: 13 | D19: 2677 | E19: 24 | F19: 2706 | K19: 0 | L19: 112 | N19: Total Target Seq
A20: 12 | B20: 2808 | C20: 24 | D20: 2827 | E20: 24 | F20: 2835 | K20: 0 | L20: 122 | N20: =COUNTIF(L7:L56,G3) -> 0 | P20: 8 | Q20: 9 | R20: 8 | S20: 8 | T20: 9 | U20: 8
A21: 12 | B21: 2939 | C21: 13 | D21: 2951 | E21: 24 | F21: 2974 | K21: 0 | L21: 112 | P21: % of reinforcement given in 6 equal intervals based on number of trials
A22: 21 | B22: 3084 | C22: 22 | D22: 3091 | E22: 24 | F22: 3099 | K22: 0 | L22: 222 | P22: %_1 | Q22: %_2 | R22: %_3 | S22: %_4 | T22: %_5 | U22: %_6
A23: 12 | B23: 3252 | C23: 24 | D23: 3282 | E23: 24 | F23: 3291 | K23: 0 | L23: 122 | O23: target sequence | P23: =$G$3 -> 211 | Q23: =$G$3 -> 211 | R23: =$G$3 -> 211 | S23: =$G$3 -> 211 | T23: =$G$3 -> 211 | U23: =$G$3 -> 211
A24: 12 | B24: 3408 | C24: 24 | D24: 3422 | E24: 24 | F24: 3429 | K24: 0 | L24: 122 | O24: total reinforcement | P24: =U11 -> 0 | Q24: =Z11 -> 0 | R24: =AE11 -> 0 | S24: =AJ11 -> 0 | T24: =AO11 -> 0 | U24: =AT11 -> 0
A25: 12 | B25: 3546 | C25: 13 | D25: 3577 | E25: 13 | F25: 3588 | K25: 0 | L25: 111 | O25: % target
A26: 21 | B26: 3705 | C26: 22 | D26: 3713 | E26: 24 | F26: 3724 | K26: 0 | L26: 222 | O26: CCRF
A27: 12 | B27: 3837 | C27: 24 | D27: 3850 | E27: 24 | F27: 3858 | K27: 0 | L27: 122 | O27: % CCRf
A28: 12 | B28: 3952 | C28: 13 | D28: 3964 | E28: 24 | F28: 3992 | K28: 0 | L28: 112 | O28: average response rate | P28: =F14/P20 -> 170.5 | Q28: =(F23-F14)/Q20 -> 214.1111111 | R28: =(F31-F23)/R20 -> 152.125 | S28: =(F39-F31)/S20 -> 134.625 | T28: =(F48-F39)/T20 -> 202.1111111 | U28: =(F56-F48)/U20 -> 1722.125
A29: 12 | B29: 4091 | C29: 13 | D29: 4099 | E29: 13 | F29: 4108 | K29: 0 | L29: 111
A30: 12 | B30: 4326 | C30: 13 | D30: 4333 | E30: 13 | F30: 4364 | K30: 0 | L30: 111
A31: 12 | B31: 4477 | C31: 24 | D31: 4502 | E31: 24 | F31: 4508 | K31: 0 | L31: 122
A32: 12 | B32: 4604 | C32: 24 | D32: 4622 | E32: 24 | F32: 4630 | K32: 0 | L32: 122
A33: 12 | B33: 4733 | C33: 24 | D33: 4752 | E33: 24 | F33: 4759 | K33: 0 | L33: 122
A34: 12 | B34: 4856 | C34: 13 | D34: 4863 | E34: 13 | F34: 4889 | K34: 0 | L34: 111
A35: 12 | B35: 5007 | C35: 13 | D35: 5015 | E35: 24 | F35: 5031 | K35: 0 | L35: 112
A36: 12 | B36: 5127 | C36: 13 | D36: 5132 | E36: 13 | F36: 5135 | K36: 0 | L36: 111
A37: 12 | B37: 5266 | C37: 13 | D37: 5271 | E37: 24 | F37: 5288 | K37: 0 | L37: 112
A38: 12 | B38: 5419 | C38: 24 | D38: 5431 | E38: 24 | F38: 5440 | K38: 0 | L38: 122
A39: 12 | B39: 5558 | C39: 13 | D39: 5565 | E39: 24 | F39: 5585 | K39: 0 | L39: 112
A40: 12 | B40: 5703 | C40: 13 | D40: 5710 | E40: 24 | F40: 5737 | K40: 0 | L40: 112
A41: 12 | B41: 5915 | C41: 13 | D41: 5929 | E41: 24 | F41: 5952 | K41: 0 | L41: 112
A42: 12 | B42: 6058 | C42: 13 | D42: 6066 | E42: 24 | F42: 6089 | K42: 0 | L42: 112
A43: 12 | B43: 6198 | C43: 13 | D43: 6215 | E43: 24 | F43: 6256 | K43: 0 | L43: 112
A44: 21 | B44: 6565 | C44: 22 | D44: 6574 | E44: 24 | F44: 6586 | K44: 0 | L44: 222
A45: 12 | B45: 6682 | C45: 24 | D45: 6719 | E45: 24 | F45: 6728 | K45: 0 | L45: 122
A46: 12 | B46: 6824 | C46: 13 | D46: 6835 | E46: 24 | F46: 6863 | K46: 0 | L46: 112
A47: 12 | B47: 7261 | C47: 13 | D47: 7270 | E47: 24 | F47: 7291 | K47: 0 | L47: 112
A48: 12 | B48: 7390 | C48: 13 | D48: 7398 | E48: 13 | F48: 7404 | K48: 0 | L48: 111
A49: 12 | B49: 7537 | C49: 24 | D49: 7554 | E49: 24 | F49: 7564 | K49: 0 | L49: 122
A50: 12 | B50: 17775 | C50: 24 | D50: 17792 | E50: 24 | F50: 17800 | K50: 0 | L50: 122
A51: 12 | B51: 17936 | C51: 24 | D51: 17953 | E51: 24 | F51: 17961 | K51: 0 | L51: 122
A52: 12 | B52: 18402 | C52: 24 | D52: 18421 | E52: 24 | F52: 18431 | K52: 0 | L52: 122
A53: 21 | B53: 19824 | C53: 22 | D53: 19850 | E53: 24 | F53: 19862 | K53: 0 | L53: 222
A54: 12 | B54: 20137 | C54: 13 | D54: 20142 | E54: 24 | F54: 20159 | K54: 0 | L54: 112
A55: 21 | B55: 20959 | C55: 22 | D55: 20968 | E55: 13 | F55: 20992 | K55: 0 | L55: 221
A56: 12 | B56: 21146 | C56: 24 | D56: 21171 | E56: 24 | F56: 21181 | K56: 0 | L56: 122

Sheet !L826A1B.axt
A1: Report for:!L826A1B.axt
A2: Date: | B2: <date>
A3: Hen: | B3: <hen> | F3: Correct Sequence | G3: =Start!J2 -> 211 | P3: Total Sequences in Data | Q3: =4994-COUNTBLANK(L7:L5000) -> 66 | V3: Total Sequences in Block Data | W3: =COUNTA(L7:L17) -> 11 | AA3: Total Sequences in Block Data | AB3: =COUNTA(L18:L28) -> 11 | AF3: Total Sequences in Block Data | AG3: =COUNTA(L29:L39) -> 11 | AK3: Total Sequences in Block Data | AL3: =COUNTA(L40:L50) -> 11 | AP3: Total Sequences in Block Data | AQ3: =COUNTA(L51:L61) -> 11 | AU3: Total Sequences in Block Data | AV3: =COUNTA(L62:L72) -> 11
P4: Total Sequences in Summary | Q4: =SUM(O7:O14) -> 66 | V4: Total Sequences in Block Summary | W4: =SUM(U7:U14) -> 11 | AA4: Total Sequences in Block Summary | AB4: =SUM(Z7:Z14) -> 11 | AF4: Total Sequences in Block Summary | AG4: =SUM(AE7:AE14) -> 11 | AK4: Total Sequences in Block Summary | AL4: =SUM(AJ7:AJ14) -> 11 | AP4: Total Sequences in Block Summary | AQ4: =SUM(AO7:AO14) -> 11 | AU4: Total Sequences in Block Summary | AV4: =SUM(AT7:AT14) -> 11
T5: Block 1 | Y5: Block 2 | AD5: Block 3 | AI5: Block 4 | AN5: Block 5 | AS5: Block 6
A6: Sequence Component 1 | B6: Time 1 | C6: Sequence Component 2 | D6: Time 2 | E6: Sequence Component 3 | F6: Time 3 | G6: Sequence Component 4 | H6: Time 4 | I6: Sequence Component 5 | J6: Time 5 | K6: Correct? 0=No 1=Yes | L6: Sequence | N6: Frequency | P6: Relative Frequency | Q6: Variability | T6: Frequency | V6: Relative Frequency | W6: Variability | Y6: Frequency | AA6: Relative Frequency | AB6: Variability | AD6: Frequency | AF6: Relative Frequency | AG6: Variability | AI6: Frequency | AK6: Relative Frequency | AL6: Variability | AN6: Frequency | AP6: Relative Frequency | AQ6: Variability | AS6: Frequency | AU6: Relative Frequency | AV6: Variability
A7: 12 | B7: 13 | C7: 24 | D7: 31 | E7: 24 | F7: 39 | K7: 0 | L7: 122 | N7: 111 | O7: =COUNTIF($L$7:$L$500,N7) -> 17 | P7: =O7/$Q$4 -> 0.2575757576 | Q7: =IF(P7=0,0,(P7*((LOG(P7))/LOG(2)))) -> -0.5040580565 | T7: =N7 -> 111 | U7: =COUNTIF(L7:L17,T7) -> 2 | V7: =U7/(W4-U11) -> 0.1818181818 | W7: =IF(V7=0,0,(V7*((LOG(V7))/LOG(2)))) -> -0.4471693852 | Y7: =N7 -> 111 | Z7: =COUNTIF(L18:L28,Y7) -> 2 | AA7: =Z7/(AB4-Z11) -> 0.1818181818 | AB7: =IF(AA7=0,0,(AA7*((LOG(AA7))/LOG(2)))) -> -0.4471693852 | AD7: =N7 -> 111 | AE7: =COUNTIF(L29:L39,AD7) -> 0 | AF7: =AE7/(AG4-AE11) -> 0 | AG7: =IF(AF7=0,0,(AF7*((LOG(AF7))/LOG(2)))) -> 0 | AI7: =N7 -> 111 | AJ7: =COUNTIF(L40:L50,AI7) -> 4 | AK7: =AJ7/(AL4-AJ11) -> 0.3636363636 | AL7: =IF(AK7=0,0,(AK7*((LOG(AK7))/LOG(2)))) -> -0.5307024068 | AN7: =N7 -> 111 | AO7: =COUNTIF(L51:L61,AN7) -> 5 | AP7: =AO7/(AQ4-AO11) -> 0.4545454545 | AQ7: =IF(AP7=0,0,(AP7*((LOG(AP7))/LOG(2)))) -> -0.5170470562 | AS7: =N7 -> 111 | AT7: =COUNTIF(L62:L72,AS7) -> 4 | AU7: =AT7/(AV4-AT11) -> 0.3636363636 | AV7: =IF(AU7=0,0,(AU7*((LOG(AU7))/LOG(2)))) -> -0.5307024068
A8: 12 | B8: 132 | C8: 24 | D8: 160 | E8: 24 | F8: 168 | K8: 0 | L8: 122 | N8: 112 | O8: =COUNTIF($L$7:$L$500,N8) -> 22 | P8: =O8/$Q$4 -> 0.3333333333 | Q8: =IF(P8=0,0,(P8*((LOG(P8))/LOG(2)))) -> -0.5283208336 | T8: =N8 -> 112 | U8: =COUNTIF(L7:L17,T8) -> 3 | V8: =U8/(W4-U11) -> 0.2727272727 | W8: =IF(V8=0,0,(V8*((LOG(V8))/LOG(2)))) -> -0.5112188503 | Y8: =N8 -> 112 | Z8: =COUNTIF(L18:L28,Y8) -> 5 | AA8: =Z8/(AB4-Z11) -> 0.4545454545 | AB8: =IF(AA8=0,0,(AA8*((LOG(AA8))/LOG(2)))) -> -0.5170470562 | AD8: =N8 -> 112 | AE8: =COUNTIF(L29:L39,AD8) -> 4 | AF8: =AE8/(AG4-AE11) -> 0.4 | AG8: =IF(AF8=0,0,(AF8*((LOG(AF8))/LOG(2)))) -> -0.528771238 | AI8: =N8 -> 112 | AJ8: =COUNTIF(L40:L50,AI8) -> 3 | AK8: =AJ8/(AL4-AJ11) -> 0.2727272727 | AL8: =IF(AK8=0,0,(AK8*((LOG(AK8))/LOG(2)))) -> -0.5112188503 | AN8: =N8 -> 112 | AO8: =COUNTIF(L51:L61,AN8) -> 3 | AP8: =AO8/(AQ4-AO11) -> 0.2727272727 | AQ8: =IF(AP8=0,0,(AP8*((LOG(AP8))/LOG(2)))) -> -0.5112188503 | AS8: =N8 -> 112 | AT8: =COUNTIF(L62:L72,AS8) -> 4 | AU8: =AT8/(AV4-AT11) -> 0.3636363636 | AV8: =IF(AU8=0,0,(AU8*((LOG(AU8))/LOG(2)))) -> -0.5307024068
A9: 12 | B9: 276 | C9: 13 | D9: 284 | E9: 13 | F9: 300 | K9: 0 | L9: 111 | N9: 121 | O9: =COUNTIF($L$7:$L$500,N9) -> 0 | P9: =O9/$Q$4 -> 0 | Q9: =IF(P9=0,0,(P9*((LOG(P9))/LOG(2)))) -> 0 | T9: =N9 -> 121 | U9: =COUNTIF(L7:L17,T9) -> 0 | V9: =U9/(W4-U11) -> 0 | W9: =IF(V9=0,0,(V9*((LOG(V9))/LOG(2)))) -> 0 | Y9: =N9 -> 121 | Z9: =COUNTIF(L18:L28,Y9) -> 0 | AA9: =Z9/(AB4-Z11) -> 0 | AB9: =IF(AA9=0,0,(AA9*((LOG(AA9))/LOG(2)))) -> 0 | AD9: =N9 -> 121 | AE9: =COUNTIF(L29:L39,AD9) -> 0 | AF9: =AE9/(AG4-AE11) -> 0 | AG9: =IF(AF9=0,0,(AF9*((LOG(AF9))/LOG(2)))) -> 0 | AI9: =N9 -> 121 | AJ9: =COUNTIF(L40:L50,AI9) -> 0 | AK9: =AJ9/(AL4-AJ11) -> 0 | AL9: =IF(AK9=0,0,(AK9*((LOG(AK9))/LOG(2)))) -> 0 | AN9: =N9 -> 121 | AO9: =COUNTIF(L51:L61,AN9) -> 0 | AP9: =AO9/(AQ4-AO11) -> 0 | AQ9: =IF(AP9=0,0,(AP9*((LOG(AP9))/LOG(2)))) -> 0 | AS9: =N9 -> 121 | AT9: =COUNTIF(L62:L72,AS9) -> 0 | AU9: =AT9/(AV4-AT11) -> 0 | AV9: =IF(AU9=0,0,(AU9*((LOG(AU9))/LOG(2)))) -> 0
A10: 12 | B10: 780 | C10: 24 | D10: 795 | E10: 24 | F10: 802 | K10: 0 | L10: 122 | N10: 122 | O10: =COUNTIF($L$7:$L$500,N10) -> 21 | P10: =O10/$Q$4 -> 0.3181818182 | Q10: =IF(P10=0,0,(P10*((LOG(P10))/LOG(2)))) -> -0.5256607671 | T10: =N10 -> 122 | U10: =COUNTIF(L7:L17,T10) -> 5 | V10: =U10/(W4-U11) -> 0.4545454545 | W10: =IF(V10=0,0,(V10*((LOG(V10))/LOG(2)))) -> -0.5170470562 | Y10: =N10 -> 122 | Z10: =COUNTIF(L18:L28,Y10) -> 3 | AA10: =Z10/(AB4-Z11) -> 0.2727272727 | AB10: =IF(AA10=0,0,(AA10*((LOG(AA10))/LOG(2)))) -> -0.5112188503 | AD10: =N10 -> 122 | AE10: =COUNTIF(L29:L39,AD10) -> 6 | AF10: =AE10/(AG4-AE11) -> 0.6 | AG10: =IF(AF10=0,0,(AF10*((LOG(AF10))/LOG(2)))) -> -0.4421793565 | AI10: =N10 -> 122 | AJ10: =COUNTIF(L40:L50,AI10) -> 3 | AK10: =AJ10/(AL4-AJ11) -> 0.2727272727 | AL10: =IF(AK10=0,0,(AK10*((LOG(AK10))/LOG(2)))) -> -0.5112188503 | AN10: =N10 -> 122 | AO10: =COUNTIF(L51:L61,AN10) -> 2 | AP10: =AO10/(AQ4-AO11) -> 0.1818181818 | AQ10: =IF(AP10=0,0,(AP10*((LOG(AP10))/LOG(2)))) -> -0.4471693852 | AS10: =N10 -> 122 | AT10: =COUNTIF(L62:L72,AS10) -> 2 | AU10: =AT10/(AV4-AT11) -> 0.1818181818 | AV10: =IF(AU10=0,0,(AU10*((LOG(AU10))/LOG(2)))) -> -0.4471693852
A11: 12 | B11: 908 | C11: 13 | D11: 916 | E11: 24 | F11: 930 | K11: 0 | L11: 112 | N11: 211 | O11: =COUNTIF($L$7:$L$500,N11) -> 1 | P11: =O11/$Q$4 -> 0.01515151515 | Q11: =IF(P11=0,0,(P11*((LOG(P11))/LOG(2)))) -> -0.09158172908 | T11: =N11 -> 211 | U11: =COUNTIF(L7:L17,T11) -> 0 | Y11: =N11 -> 211 | Z11: =COUNTIF(L18:L28,Y11) -> 0 | AD11: =N11 -> 211 | AE11: =COUNTIF(L29:L39,AD11) -> 1 | AI11: =N11 -> 211 | AJ11: =COUNTIF(L40:L50,AI11) -> 0 | AN11: =N11 -> 211 | AO11: =COUNTIF(L51:L61,AN11) -> 0 | AS11: =N11 -> 211 | AT11: =COUNTIF(L62:L72,AS11) -> 0
A12: 12 | B12: 1319 | C12: 24 | D12: 1342 | E12: 24 | F12: 1352 | K12: 0 | L12: 122 | N12: 212 | O12: =COUNTIF($L$7:$L$500,N12) -> 0 | P12: =O12/$Q$4 -> 0 | Q12: =IF(P12=0,0,(P12*((LOG(P12))/LOG(2)))) -> 0 | T12: =N12 -> 212 | U12: =COUNTIF(L7:L17,T12) -> 0 | V12: =U12/(W4-U11) -> 0 | W12: =IF(V12=0,0,(V12*((LOG(V12))/LOG(2)))) -> 0 | Y12: =N12 -> 212 | Z12: =COUNTIF(L18:L28,Y12) -> 0 | AA12: =Z12/(AB4-Z11) -> 0 | AB12: =IF(AA12=0,0,(AA12*((LOG(AA12))/LOG(2)))) -> 0 | AD12: =N12 -> 212 | AE12: =COUNTIF(L29:L39,AD12) -> 0 | AF12: =AE12/(AG4-AE11) -> 0 | AG12: =IF(AF12=0,0,(AF12*((LOG(AF12))/LOG(2)))) -> 0 | AI12: =N12 -> 212 | AJ12: =COUNTIF(L40:L50,AI12) -> 0 | AK12: =AJ12/(AL4-AJ11) -> 0 | AL12: =IF(AK12=0,0,(AK12*((LOG(AK12))/LOG(2)))) -> 0 | AN12: =N12 -> 212 | AO12: =COUNTIF(L51:L61,AN12) -> 0 | AP12: =AO12/(AQ4-AO11) -> 0 | AQ12: =IF(AP12=0,0,(AP12*((LOG(AP12))/LOG(2)))) -> 0 | AS12: =N12 -> 212 | AT12: =COUNTIF(L62:L72,AS12) -> 0 | AU12: =AT12/(AV4-AT11) -> 0 | AV12: =IF(AU12=0,0,(AU12*((LOG(AU12))/LOG(2)))) -> 0
A13: 12 | B13: 1446 | C13: 24 | D13: 1473 | E13: 24 | F13: 1482 | K13: 0 | L13: 122 | N13: 221 | O13: =COUNTIF($L$7:$L$500,N13) -> 1 | P13: =O13/$Q$4 -> 0.01515151515 | Q13: =IF(P13=0,0,(P13*((LOG(P13))/LOG(2)))) -> -0.09158172908 | T13: =N13 -> 221 | U13: =COUNTIF(L7:L17,T13) -> 0 | V13: =U13/(W4-U11) -> 0 | W13: =IF(V13=0,0,(V13*((LOG(V13))/LOG(2)))) -> 0 | Y13: =N13 -> 221 | Z13: =COUNTIF(L18:L28,Y13) -> 0 | AA13: =Z13/(AB4-Z11) -> 0 | AB13: =IF(AA13=0,0,(AA13*((LOG(AA13))/LOG(2)))) -> 0 | AD13: =N13 -> 221 | AE13: =COUNTIF(L29:L39,AD13) -> 0 | AF13: =AE13/(AG4-AE11) -> 0 | AG13: =IF(AF13=0,0,(AF13*((LOG(AF13))/LOG(2)))) -> 0 | AI13: =N13 -> 221 | AJ13: =COUNTIF(L40:L50,AI13) -> 1 | AK13: =AJ13/(AL4-AJ11) -> 0.09090909091 | AL13: =IF(AK13=0,0,(AK13*((LOG(AK13))/LOG(2)))) -> -0.3144937835 | AN13: =N13 -> 221 | AO13: =COUNTIF(L51:L61,AN13) -> 0 | AP13: =AO13/(AQ4-AO11) -> 0 | AQ13: =IF(AP13=0,0,(AP13*((LOG(AP13))/LOG(2)))) -> 0 | AS13: =N13 -> 221 | AT13: =COUNTIF(L62:L72,AS13) -> 0 | AU13: =AT13/(AV4-AT11) -> 0 | AV13: =IF(AU13=0,0,(AU13*((LOG(AU13))/LOG(2)))) -> 0
A14: 21 | B14: 1607 | C14: 22 | D14: 1615 | E14: 24 | F14: 1622 | K14: 0 | L14: 222 | N14: 222 | O14: =COUNTIF($L$7:$L$500,N14) -> 4 | P14: =O14/$Q$4 -> 0.06060606061 | Q14: =IF(P14=0,0,(P14*((LOG(P14))/LOG(2)))) -> -0.2451147951 | T14: =N14 -> 222 | U14: =COUNTIF(L7:L17,T14) -> 1 | V14: =U14/(W4-U11) -> 0.09090909091 | W14: =IF(V14=0,0,(V14*((LOG(V14))/LOG(2)))) -> -0.3144937835 | Y14: =N14 -> 222 | Z14: =COUNTIF(L18:L28,Y14) -> 1 | AA14: =Z14/(AB4-Z11) -> 0.09090909091 | AB14: =IF(AA14=0,0,(AA14*((LOG(AA14))/LOG(2)))) -> -0.3144937835 | AD14: =N14 -> 222 | AE14: =COUNTIF(L29:L39,AD14) -> 0 | AF14: =AE14/(AG4-AE11) -> 0 | AG14: =IF(AF14=0,0,(AF14*((LOG(AF14))/LOG(2)))) -> 0 | AI14: =N14 -> 222 | AJ14: =COUNTIF(L40:L50,AI14) -> 0 | AK14: =AJ14/(AL4-AJ11) -> 0 | AL14: =IF(AK14=0,0,(AK14*((LOG(AK14))/LOG(2)))) -> 0 | AN14: =N14 -> 222 | AO14: =COUNTIF(L51:L61,AN14) -> 1 | AP14: =AO14/(AQ4-AO11) -> 0.09090909091 | AQ14: =IF(AP14=0,0,(AP14*((LOG(AP14))/LOG(2)))) -> -0.3144937835 | AS14: =N14 -> 222 | AT14: =COUNTIF(L62:L72,AS14) -> 1 | AU14: =AT14/(AV4-AT11) -> 0.09090909091 | AV14: =IF(AU14=0,0,(AU14*((LOG(AU14))/LOG(2)))) -> -0.3144937835
A15: 12 | B15: 1940 | C15: 13 | D15: 1951 | E15: 24 | F15: 1957 | K15: 0 | L15: 112 | P15: =SUM(P7:P14) -> 1 | Q15: =-SUM(Q7:Q14) -> 1.98631791 | V15: =SUM(V7:V14) -> 1 | W15: =-SUM(W7:W14) -> 1.789929075 | AA15: =SUM(AA7:AA14) -> 1 | AB15: =-SUM(AB7:AB14) -> 1.789929075 | AF15: =SUM(AF7:AF14) -> 1 | AG15: =-SUM(AG7:AG14) -> 0.9709505945 | AK15: =SUM(AK7:AK14) -> 1 | AL15: =-SUM(AL7:AL14) -> 1.867633891 | AP15: =SUM(AP7:AP14) -> 1 | AQ15: =-SUM(AQ7:AQ14) -> 1.789929075 | AU15: =SUM(AU7:AU14) -> 1 | AV15: =-SUM(AV7:AV14) -> 1.823067982
A16: 12 | B16: 2061 | C16: 13 | D16: 2069 | E16: 24 | F16: 2091 | K16: 0 | L16: 112 | P16: U= | Q16: =Q15/(LOG(Q4)/LOG(2)) -> 0.328621508 | V16: U1= | W16: =W15/(LOG(W4)/LOG(2)) -> 0.5174055373 | AA16: U2= | AB16: =AB15/(LOG(AB4)/LOG(2)) -> 0.5174055373 | AF16: U3= | AG16: =AG15/(LOG(AG4)/LOG(2)) -> 0.2806676649 | AK16: U4= | AL16: =AL15/(LOG(AL4)/LOG(2)) -> 0.5398672663 | AP16: U5= | AQ16: =AQ15/(LOG(AQ4)/LOG(2)) -> 0.5174055373 | AU16: U6= | AV16: =AV15/(LOG(AV4)/LOG(2)) -> 0.5269848297
A17: 12 | B17: 2186 | C17: 13 | D17: 2193 | E17: 13 | F17: 2196 | K17: 0 | L17: 111
A18: 12 | B18: 2304 | C18: 13 | D18: 2312 | E18: 24 | F18: 2329 | K18: 0 | L18: 112
A19: 12 | B19: 2434 | C19: 13 | D19: 2443 | E19: 24 | F19: 2460 | K19: 0 | L19: 112 | N19: Total Target Seq
A20: 12 | B20: 2552 | C20: 13 | D20: 2567 | E20: 24 | F20: 2585 | K20: 0 | L20: 112 | N20: =COUNTIF(L7:L72,G3) -> 1 | P20: 11 | Q20: 11 | R20: 11 | S20: 11 | T20: 11 | U20: 11
A21: 12 | B21: 2679 | C21: 13 | D21: 2688 | E21: 13 | F21: 2733 | K21: 0 | L21: 111 | P21: % of reinforcement given in 6 equal intervals based on number of trials
A22: 12 | B22: 2843 | C22: 24 | D22: 2858 | E22: 24 | F22: 2866 | K22: 0 | L22: 122 | P22: %_1 | Q22: %_2 | R22: %_3 | S22: %_4 | T22: %_5 | U22: %_6
A23: 12 | B23: 2958 | C23: 24 | D23: 2983 | E23: 24 | F23: 2991 | K23: 0 | L23: 122 | O23: target sequence | P23: =$G$3 -> 211 | Q23: =$G$3 -> 211 | R23: =$G$3 -> 211 | S23: =$G$3 -> 211 | T23: =$G$3 -> 211 | U23: =$G$3 -> 211
A24: 12 | B24: 3114 | C24: 24 | D24: 3136 | E24: 24 | F24: 3144 | K24: 0 | L24: 122 | O24: total reinforcement | P24: =U11 -> 0 | Q24: =Z11 -> 0 | R24: =AE11 -> 1 | S24: =AJ11 -> 0 | T24: =AO11 -> 0 | U24: =AT11 -> 0
A25: 12 | B25: 3248 | C25: 13 | D25: 3251 | E25: 13 | F25: 3258 | K25: 0 | L25: 111 | O25: % target
A26: 12 | B26: 3388 | C26: 13 | D26: 3399 | E26: 24 | F26: 3410 | K26: 0 | L26: 112 | O26: CCRF
A27: 21 | B27: 3530 | C27: 22 | D27: 3537 | E27: 24 | F27: 3555 | K27: 0 | L27: 222 | O27: % CCRf
A28: 12 | B28: 3708 | C28: 13 | D28: 3713 | E28: 24 | F28: 3727 | K28: 0 | L28: 112 | O28: average response rate | P28: =F17/P20 -> 199.6363636 | Q28: =(F28-F17)/Q20 -> 139.1818182 | R28: =(F39-F28)/R20 -> 150.8181818 | S28: =(F50-F39)/S20 -> 196.0909091 | T28: =(F61-F50)/T20 -> 147.8181818 | U28: =(F72-F61)/U20 -> 191
A29: 12 | B29: 3831 | C29: 24 | D29: 3859 | E29: 24 | F29: 3866 | K29: 0 | L29: 122
A30: 12 | B30: 3982 | C30: 13 | D30: 3987 | E30: 24 | F30: 4015 | K30: 0 | L30: 112
A31: 12 | B31: 4142 | C31: 13 | D31: 4152 | E31: 24 | F31: 4172 | K31: 0 | L31: 112
A32: 12 | B32: 4277 | C32: 24 | D32: 4317 | E32: 24 | F32: 4327 | K32: 0 | L32: 122
A33: 12 | B33: 4449 | C33: 24 | D33: 4465 | E33: 24 | F33: 4473 | K33: 0 | L33: 122
A34: 12 | B34: 4585 | C34: 24 | D34: 4608 | E34: 24 | F34: 4616 | K34: 0 | L34: 122
A35: 12 | B35: 4722 | C35: 13 | D35: 4732 | E35: 24 | F35: 4750 | K35: 0 | L35: 112
A36: 12 | B36: 4880 | C36: 24 | D36: 4894 | E36: 24 | F36: 4901 | K36: 0 | L36: 122
A37: 12 | B37: 5023 | C37: 13 | D37: 5034 | E37: 24 | F37: 5054 | K37: 0 | L37: 112
A38: 12 | B38: 5203 | C38: 24 | D38: 5227 | E38: 24 | F38: 5235 | K38: 0 | L38: 122
A39: 21 | B39: 5354 | C39: 11 | D39: 5376 | E39: 11 | F39: 5386 | K39: 0 | L39: 211
A40: 12 | B40: 5871 | C40: 13 | D40: 5876 | E40: 24 | F40: 5900 | K40: 0 | L40: 112
A41: 12 | B41: 6005 | C41: 24 | D41: 6020 | E41: 24 | F41: 6030 | K41: 0 | L41: 122
A42: 12 | B42: 6122 | C42: 13 | D42: 6124 | E42: 13 | F42: 6149 | K42: 0 | L42: 111
A43: 12 | B43: 6244 | C43: 24 | D43: 6263 | E43: 24 | F43: 6282 | K43: 0 | L43: 122
A44: 12 | B44: 6434 | C44: 13 | D44: 6443 | E44: 24 | F44: 6463 | K44: 0 | L44: 112
A45: 12 | B45: 6566 | C45: 13 | D45: 6574 | E45: 13 | F45: 6577 | K45: 0 | L45: 111
A46: 12 | B46: 6682 | C46: 13 | D46: 6693 | E46: 13 | F46: 6704 | K46: 0 | L46: 111
A47: 12 | B47: 6815 | C47: 13 | D47: 6845 | E47: 13 | F47: 6855 | K47: 0 | L47: 111
A48: 21 | B48: 6979 | C48: 22 | D48: 7023 | E48: 13 | F48: 7044 | K48: 0 | L48: 221
A49: 12 | B49: 7385 | C49: 13 | D49: 7390 | E49: 24 | F49: 7411 | K49: 0 | L49: 112
A50: 12 | B50: 7515 | C50: 24 | D50: 7534 | E50: 24 | F50: 7543 | K50: 0 | L50: 122
A51: 12 | B51: 7666 | C51: 24 | D51: 7696 | E51: 24 | F51: 7704 | K51: 0 | L51: 122
A52: 12 | B52: 7814 | C52: 13 | D52: 7821 | E52: 13 | F52: 7831 | K52: 0 | L52: 111
A53: 12 | B53: 7936 | C53: 13 | D53: 7947 | E53: 13 | F53: 7973 | K53: 0 | L53: 111
A54: 12 | B54: 8065 | C54: 13 | D54: 8086 | E54: 13 | F54: 8089 | K54: 0 | L54: 111
A55: 12 | B55: 8197 | C55: 13 | D55: 8210 | E55: 24 | F55: 8231 | K55: 0 | L55: 112
A56: 12 | B56: 8352 | C56: 13 | D56: 8374 | E56: 13 | F56: 8384 | K56: 0 | L56: 111
A57: 12 | B57: 8485 | C57: 13 | D57: 8496 | E57: 24 | F57: 8528 | K57: 0 | L57: 112
A58: 12 | B58: 8643 | C58: 13 | D58: 8655 | E58: 13 | F58: 8692 | K58: 0 | L58: 111
A59: 21 | B59: 8808 | C59: 22 | D59: 8816 | E59: 24 | F59: 8825 | K59: 0 | L59: 222
A60: 12 | B60: 8984 | C60: 13 | D60: 8991 | E60: 24 | F60: 9008 | K60: 0 | L60: 112
A61: 12 | B61: 9121 | C61: 24 | D61: 9159 | E61: 24 | F61: 9169 | K61: 0 | L61: 122
A62: 12 | B62: 9272 | C62: 13 | D62: 9306 | E62: 13 | F62: 9320 | K62: 0 | L62: 111
A63: 12 | B63: 9417 | C63: 13 | D63: 9454 | E63: 24 | F63: 9464 | K63: 0 | L63: 112
A64: 21 | B64: 9657 | C64: 22 | D64: 9667 | E64: 24 | F64: 9677 | K64: 0 | L64: 222
A65: 12 | B65: 9776 | C65: 13 | D65: 9783 | E65: 13 | F65: 9792 | K65: 0 | L65: 111
A66: 12 | B66: 9896 | C66: 13 | D66: 9931 | E66: 13 | F66: 9944 | K66: 0 | L66: 111
A67: 12 | B67: 10066 | C67: 13 | D67: 10077 | E67: 13 | F67: 10079 | K67: 0 | L67: 111
A68: 12 | B68: 10179 | C68: 13 | D68: 10191 | E68: 24 | F68: 10234 | K68: 0 | L68: 112
A69: 12 | B69: 10399 | C69: 13 | D69: 10405 | E69: 24 | F69: 10421 | K69: 0 | L69: 112
A70: 12 | B70: 10946 | C70: 24 | D70: 10964 | E70: 24 | F70: 10973 | K70: 0 | L70: 122
A71: 12 | B71: 11074 | C71: 13 | D71: 11083 | E71: 24 | F71: 11102 | K71: 0 | L71: 112
A72: 12 | B72: 11239 | C72: 24 | D72: 11262 | E72: 24 | F72: 11270 | K72: 0 | L72: 122

Sheet !L82784B.axt
A1: Report for:!L82784B.axt
A2: Date: | B2: <date>
A3: Hen: | B3: <hen> | F3: Correct Sequence | G3: =Start!J2 -> 211 | P3: Total Sequences in Data | Q3: =4994-COUNTBLANK(L7:L5000) -> 52 | V3: Total Sequences in Block Data | W3: =COUNTA(L7:L15) -> 9 | AA3: Total Sequences in Block Data | AB3: =COUNTA(L16:L23) -> 8 | AF3: Total Sequences in Block Data | AG3: =COUNTA(L24:L32) -> 9 | AK3: Total Sequences in Block Data | AL3: =COUNTA(L33:L41) -> 9 | AP3: Total Sequences in Block Data | AQ3: =COUNTA(L42:L49) -> 8 | AU3: Total Sequences in Block Data | AV3: =COUNTA(L50:L58) -> 9
P4: Total Sequences in Summary | Q4: =SUM(O7:O14) -> 52 | V4: Total Sequences in Block Summary | W4: =SUM(U7:U14) -> 9 | AA4: Total Sequences in Block Summary | AB4: =SUM(Z7:Z14) -> 8 | AF4: Total Sequences in Block Summary | AG4: =SUM(AE7:AE14) -> 9 | AK4: Total Sequences in Block Summary | AL4: =SUM(AJ7:AJ14) -> 9 | AP4: Total Sequences in Block Summary | AQ4: =SUM(AO7:AO14) -> 8 | AU4: Total Sequences in Block Summary | AV4: =SUM(AT7:AT14) -> 9
T5: Block 1 | Y5: Block 2 | AD5: Block 3 | AI5: Block 4 | AN5: Block 5 | AS5: Block 6
A6: Sequence Component 1 | B6: Time 1 | C6: Sequence Component 2 | D6: Time 2 | E6: Sequence Component 3 | F6: Time 3 | G6: Sequence Component 4 | H6: Time 4 | I6: Sequence Component 5 | J6: Time 5 | K6: Correct? 0=No 1=Yes | L6: Sequence | N6: Frequency | P6: Relative Frequency | Q6: Variability | T6: Frequency | V6: Relative Frequency | W6: Variability | Y6: Frequency | AA6: Relative Frequency | AB6: Variability | AD6: Frequency | AF6: Relative Frequency | AG6: Variability | AI6: Frequency | AK6: Relative Frequency | AL6: Variability | AN6: Frequency | AP6: Relative Frequency | AQ6: Variability | AS6: Frequency | AU6: Relative Frequency | AV6: Variability
A7: 12 | B7: 20 | C7: 13 | D7: 52 | E7: 13 | F7: 55 | K7: 0 | L7: 111 | N7: 111 | O7: =COUNTIF($L$7:$L$500,N7) -> 20 | P7: =O7/$Q$4 -> 0.3846153846 | Q7: =IF(P7=0,0,(P7*((LOG(P7))/LOG(2)))) -> -0.5301967782 | T7: =N7 -> 111 | U7: =COUNTIF(L7:L15,T7) -> 2 | V7: =U7/(W4-U11) -> 0.2222222222 | W7: =IF(V7=0,0,(V7*((LOG(V7))/LOG(2)))) -> -0.4822055559 | Y7: =N7 -> 111 | Z7: =COUNTIF(L16:L23,Y7) -> 1 | AA7: =Z7/(AB4-Z11) -> 0.125 | AB7: =IF(AA7=0,0,(AA7*((LOG(AA7))/LOG(2)))) -> -0.375 | AD7: =N7 -> 111 | AE7: =COUNTIF(L24:L32,AD7) -> 2 | AF7: =AE7/(AG4-AE11) -> 0.2222222222 | AG7: =IF(AF7=0,0,(AF7*((LOG(AF7))/LOG(2)))) -> -0.4822055559 | AI7: =N7 -> 111 | AJ7: =COUNTIF(L33:L41,AI7) -> 3 | AK7: =AJ7/(AL4-AJ11) -> 0.3333333333 | AL7: =IF(AK7=0,0,(AK7*((LOG(AK7))/LOG(2)))) -> -0.5283208336 | AN7: =N7 -> 111 | AO7: =COUNTIF(L42:L49,AN7) -> 6 | AP7: =AO7/(AQ4-AO11) -> 0.75 | AQ7: =IF(AP7=0,0,(AP7*((LOG(AP7))/LOG(2)))) -> -0.3112781245 | AS7: =N7 -> 111 | AT7: =COUNTIF(L50:L58,AS7) -> 6 | AU7: =AT7/(AV4-AT11) -> 0.6666666667 | AV7: =IF(AU7=0,0,(AU7*((LOG(AU7))/LOG(2)))) -> -0.3899750005
A8: 12 | B8: 185 | C8: 13 | D8: 187 | E8: 13 | F8: 190 | K8: 0 | L8: 111 | N8: 112 | O8: =COUNTIF($L$7:$L$500,N8) -> 15 | P8: =O8/$Q$4 -> 0.2884615385 | Q8: =IF(P8=0,0,(P8*((LOG(P8))/LOG(2)))) -> -0.5173699392 | T8: =N8 -> 112 | U8: =COUNTIF(L7:L15,T8) -> 2 | V8: =U8/(W4-U11) -> 0.2222222222 | W8: =IF(V8=0,0,(V8*((LOG(V8))/LOG(2)))) -> -0.4822055559 | Y8: =N8 -> 112 | Z8: =COUNTIF(L16:L23,Y8) -> 2 | AA8: =Z8/(AB4-Z11) -> 0.25 | AB8: =IF(AA8=0,0,(AA8*((LOG(AA8))/LOG(2)))) -> -0.5 | AD8: =N8 -> 112 | AE8: =COUNTIF(L24:L32,AD8) -> 3 | AF8: =AE8/(AG4-AE11) -> 0.3333333333 | AG8: =IF(AF8=0,0,(AF8*((LOG(AF8))/LOG(2)))) -> -0.5283208336 | AI8: =N8 -> 112 | AJ8: =COUNTIF(L33:L41,AI8) -> 3 | AK8: =AJ8/(AL4-AJ11) -> 0.3333333333 | AL8: =IF(AK8=0,0,(AK8*((LOG(AK8))/LOG(2)))) -> -0.5283208336 | AN8: =N8 -> 112 | AO8: =COUNTIF(L42:L49,AN8) -> 2 | AP8: =AO8/(AQ4-AO11) -> 0.25 | AQ8: =IF(AP8=0,0,(AP8*((LOG(AP8))/LOG(2)))) -> -0.5 | AS8: =N8 -> 112 | AT8: =COUNTIF(L50:L58,AS8) -> 3 | AU8: =AT8/(AV4-AT11) -> 0.3333333333 | AV8: =IF(AU8=0,0,(AU8*((LOG(AU8))/LOG(2)))) -> -0.5283208336
A9: 12 | B9: 299 | C9: 24 | D9: 323 | E9: 24 | F9: 332 | K9: 0 | L9: 122 | N9: 121 | O9: =COUNTIF($L$7:$L$500,N9) -> 1 | P9: =O9/$Q$4 -> 0.01923076923 | Q9: =IF(P9=0,0,(P9*((LOG(P9))/LOG(2)))) -> -0.1096238407 | T9: =N9 -> 121 | U9: =COUNTIF(L7:L15,T9) -> 0 | V9: =U9/(W4-U11) -> 0 | W9: =IF(V9=0,0,(V9*((LOG(V9))/LOG(2)))) -> 0 | Y9: =N9 -> 121 | Z9: =COUNTIF(L16:L23,Y9) -> 1 | AA9: =Z9/(AB4-Z11) -> 0.125 | AB9: =IF(AA9=0,0,(AA9*((LOG(AA9))/LOG(2)))) -> -0.375 | AD9: =N9 -> 121 | AE9: =COUNTIF(L24:L32,AD9) -> 0 | AF9: =AE9/(AG4-AE11) -> 0 | AG9: =IF(AF9=0,0,(AF9*((LOG(AF9))/LOG(2)))) -> 0 | AI9: =N9 -> 121 | AJ9: =COUNTIF(L33:L41,AI9) -> 0 | AK9: =AJ9/(AL4-AJ11) -> 0 | AL9: =IF(AK9=0,0,(AK9*((LOG(AK9))/LOG(2)))) -> 0 | AN9: =N9 -> 121 | AO9: =COUNTIF(L42:L49,AN9) -> 0 | AP9: =AO9/(AQ4-AO11) -> 0 | AQ9: =IF(AP9=0,0,(AP9*((LOG(AP9))/LOG(2)))) -> 0 | AS9: =N9 -> 121 | AT9: =COUNTIF(L50:L58,AS9) -> 0 | AU9: =AT9/(AV4-AT11) -> 0 | AV9: =IF(AU9=0,0,(AU9*((LOG(AU9))/LOG(2)))) -> 0
A10: 12 | B10: 759 | C10: 24 | D10: 783 | E10: 24 | F10: 799 | K10: 0 | L10: 122 | N10: 122 | O10: =COUNTIF($L$7:$L$500,N10) -> 9 | P10: =O10/$Q$4 -> 0.1730769231 | Q10: =IF(P10=0,0,(P10*((LOG(P10))/LOG(2)))) -> -0.437973701 | T10: =N10 -> 122 | U10: =COUNTIF(L7:L15,T10) -> 3 | V10: =U10/(W4-U11) -> 0.3333333333 | W10: =IF(V10=0,0,(V10*((LOG(V10))/LOG(2)))) -> -0.5283208336 | Y10: =N10 -> 122 | Z10: =COUNTIF(L16:L23,Y10) -> 3 | AA10: =Z10/(AB4-Z11) -> 0.375 | AB10: =IF(AA10=0,0,(AA10*((LOG(AA10))/LOG(2)))) -> -0.5306390622 | AD10: =N10 -> 122 | AE10: =COUNTIF(L24:L32,AD10) -> 2 | AF10: =AE10/(AG4-AE11) -> 0.2222222222 | AG10: =IF(AF10=0,0,(AF10*((LOG(AF10))/LOG(2)))) -> -0.4822055559 | AI10: =N10 -> 122 | AJ10: =COUNTIF(L33:L41,AI10) -> 1 | AK10: =AJ10/(AL4-AJ11) -> 0.1111111111 | AL10: =IF(AK10=0,0,(AK10*((LOG(AK10))/LOG(2)))) -> -0.352213889 | AN10: =N10 -> 122 | AO10: =COUNTIF(L42:L49,AN10) -> 0 | AP10: =AO10/(AQ4-AO11) -> 0 | AQ10: =IF(AP10=0,0,(AP10*((LOG(AP10))/LOG(2)))) -> 0 | AS10: =N10 -> 122 | AT10: =COUNTIF(L50:L58,AS10) -> 0 | AU10: =AT10/(AV4-AT11) -> 0 | AV10: =IF(AU10=0,0,(AU10*((LOG(AU10))/LOG(2)))) -> 0
A11: 21 | B11: 912 | C11: 22 | D11: 927 | E11: 24 | F11: 936 | K11: 0 | L11: 222 | N11: 211 | O11: =COUNTIF($L$7:$L$500,N11) -> 0 | P11: =O11/$Q$4 -> 0 | Q11: =IF(P11=0,0,(P11*((LOG(P11))/LOG(2)))) -> 0 | T11: =N11 -> 211 | U11: =COUNTIF(L7:L15,T11) -> 0 | Y11: =N11 -> 211 | Z11: =COUNTIF(L16:L23,Y11) -> 0 | AD11: =N11 -> 211 | AE11: =COUNTIF(L24:L32,AD11) -> 0 | AI11: =N11 -> 211 | AJ11: =COUNTIF(L33:L41,AI11) -> 0 | AN11: =N11 -> 211 | AO11: =COUNTIF(L42:L49,AN11) -> 0 | AS11: =N11 -> 211 | AT11: =COUNTIF(L50:L58,AS11) -> 0
A12: 12 | B12: 1307 | C12: 13 | D12: 1310 | E12: 24 | F12: 1335 | K12: 0 | L12: 112 | N12: 212 | O12: =COUNTIF($L$7:$L$500,N12) -> 0 | P12: =O12/$Q$4 -> 0 | Q12: =IF(P12=0,0,(P12*((LOG(P12))/LOG(2)))) -> 0 | T12: =N12 -> 212 | U12: =COUNTIF(L7:L15,T12) -> 0 | V12: =U12/(W4-U11) -> 0 | W12: =IF(V12=0,0,(V12*((LOG(V12))/LOG(2)))) -> 0 | Y12: =N12 -> 212 | Z12: =COUNTIF(L16:L23,Y12) -> 0 | AA12: =Z12/(AB4-Z11) -> 0 | AB12: =IF(AA12=0,0,(AA12*((LOG(AA12))/LOG(2)))) -> 0 | AD12: =N12 -> 212 | AE12: =COUNTIF(L24:L32,AD12) -> 0 | AF12: =AE12/(AG4-AE11) -> 0 | AG12: =IF(AF12=0,0,(AF12*((LOG(AF12))/LOG(2)))) -> 0 | AI12: =N12 -> 212 | AJ12: =COUNTIF(L33:L41,AI12) -> 0 | AK12: =AJ12/(AL4-AJ11) -> 0 | AL12: =IF(AK12=0,0,(AK12*((LOG(AK12))/LOG(2)))) -> 0 | AN12: =N12 -> 212 | AO12: =COUNTIF(L42:L49,AN12) -> 0 | AP12: =AO12/(AQ4-AO11) -> 0 | AQ12: =IF(AP12=0,0,(AP12*((LOG(AP12))/LOG(2)))) -> 0 | AS12: =N12 -> 212 | AT12: =COUNTIF(L50:L58,AS12) -> 0 | AU12: =AT12/(AV4-AT11) -> 0 | AV12: =IF(AU12=0,0,(AU12*((LOG(AU12))/LOG(2)))) -> 0
A13: 21 | B13: 1454 | C13: 22 | D13: 1462 | E13: 24 | F13: 1470 | K13: 0 | L13: 222 | N13: 221 | O13: =COUNTIF($L$7:$L$500,N13) -> 0 | P13: =O13/$Q$4 -> 0 | Q13: =IF(P13=0,0,(P13*((LOG(P13))/LOG(2)))) -> 0 | T13: =N13 -> 221 | U13: =COUNTIF(L7:L15,T13) -> 0 | V13: =U13/(W4-U11) -> 0 | W13: =IF(V13=0,0,(V13*((LOG(V13))/LOG(2)))) -> 0 | Y13: =N13 -> 221 | Z13: =COUNTIF(L16:L23,Y13) -> 0 | AA13: =Z13/(AB4-Z11) -> 0 | AB13: =IF(AA13=0,0,(AA13*((LOG(AA13))/LOG(2)))) -> 0 | AD13: =N13 -> 221 | AE13: =COUNTIF(L24:L32,AD13) -> 0 | AF13: =AE13/(AG4-AE11) -> 0 | AG13: =IF(AF13=0,0,(AF13*((LOG(AF13))/LOG(2)))) -> 0 | AI13: =N13 -> 221 | AJ13: =COUNTIF(L33:L41,AI13) -> 0 | AK13: =AJ13/(AL4-AJ11) -> 0 | AL13: =IF(AK13=0,0,(AK13*((LOG(AK13))/LOG(2)))) -> 0 | AN13: =N13 -> 221 | AO13: =COUNTIF(L42:L49,AN13) -> 0 | AP13: =AO13/(AQ4-AO11) -> 0 | AQ13: =IF(AP13=0,0,(AP13*((LOG(AP13))/LOG(2)))) -> 0 | AS13: =N13 -> 221 | AT13: =COUNTIF(L50:L58,AS13) -> 0 | AU13: =AT13/(AV4-AT11) -> 0 | AV13: =IF(AU13=0,0,(AU13*((LOG(AU13))/LOG(2)))) -> 0
A14: 12 | B14: 1565 | C14: 13 | D14: 1572 | E14: 24 | F14: 1588 | K14: 0 | L14: 112 | N14: 222 | O14: =COUNTIF($L$7:$L$500,N14) -> 7 | P14: =O14/$Q$4 -> 0.1346153846 | Q14: =IF(P14=0,0,(P14*((LOG(P14))/LOG(2)))) -> -0.3894537225 | T14: =N14 -> 222 | U14: =COUNTIF(L7:L15,T14) -> 2 | V14: =U14/(W4-U11) -> 0.2222222222 | W14: =IF(V14=0,0,(V14*((LOG(V14))/LOG(2)))) -> -0.4822055559 | Y14: =N14 -> 222 | Z14: =COUNTIF(L16:L23,Y14) -> 1 | AA14: =Z14/(AB4-Z11) -> 0.125 | AB14: =IF(AA14=0,0,(AA14*((LOG(AA14))/LOG(2)))) -> -0.375 | AD14: =N14 -> 222 | AE14: =COUNTIF(L24:L32,AD14) -> 2 | AF14: =AE14/(AG4-AE11) -> 0.2222222222 | AG14: =IF(AF14=0,0,(AF14*((LOG(AF14))/LOG(2)))) -> -0.4822055559 | AI14: =N14 -> 222 | AJ14: =COUNTIF(L33:L41,AI14) -> 2 | AK14: =AJ14/(AL4-AJ11) -> 0.2222222222 | AL14: =IF(AK14=0,0,(AK14*((LOG(AK14))/LOG(2)))) -> -0.4822055559 | AN14: =N14 -> 222 | AO14: =COUNTIF(L42:L49,AN14) -> 0 | AP14: =AO14/(AQ4-AO11) -> 0 | AQ14: =IF(AP14=0,0,(AP14*((LOG(AP14))/LOG(2)))) -> 0 | AS14: =N14 -> 222 | AT14: =COUNTIF(L50:L58,AS14) -> 0 | AU14: =AT14/(AV4-AT11) -> 0 | AV14: =IF(AU14=0,0,(AU14*((LOG(AU14))/LOG(2)))) -> 0
A15: 12 | B15: 1680 | C15: 24 | D15: 1711 | E15: 24 | F15: 1719 | K15: 0 | L15: 122 | P15: =SUM(P7:P14) -> 1 | Q15: =-SUM(Q7:Q14) -> 1.984617982 | V15: =SUM(V7:V14) -> 1 | W15: =-SUM(W7:W14) -> 1.974937501 | AA15: =SUM(AA7:AA14) -> 1 | AB15: =-SUM(AB7:AB14) -> 2.155639062 | AF15: =SUM(AF7:AF14) -> 1 | AG15: =-SUM(AG7:AG14) -> 1.974937501 | AK15: =SUM(AK7:AK14) -> 1 | AL15: =-SUM(AL7:AL14) -> 1.891061112 | AP15: =SUM(AP7:AP14) -> 1 | AQ15: =-SUM(AQ7:AQ14) -> 0.8112781245 | AU15: =SUM(AU7:AU14) -> 1 | AV15: =-SUM(AV7:AV14) -> 0.9182958341
A16: 12 | B16: 1813 | C16: 13 | D16: 1850 | E16: 24 | F16: 1868 | K16: 0 | L16: 112 | P16: U= | Q16: =Q15/(LOG(Q4)/LOG(2)) -> 0.3481517356 | V16: U1= | W16: =W15/(LOG(W4)/LOG(2)) -> 0.6230234155 | AA16: U2= | AB16: =AB15/(LOG(AB4)/LOG(2)) -> 0.7185463541 | AF16: U3= | AG16: =AG15/(LOG(AG4)/LOG(2)) -> 0.6230234155 | AK16: U4= | AL16: =AL15/(LOG(AL4)/LOG(2)) -> 0.5965633607 | AP16: U5= | AQ16: =AQ15/(LOG(AQ4)/LOG(2)) -> 0.2704260415 | AU16: U6= | AV16: =AV15/(LOG(AV4)/LOG(2)) -> 0.2896900821
A17: 21 | B17: 2039 | C17: 22 | D17: 2048 | E17: 24 | F17: 2057 | K17: 0 | L17: 222
A18: 12 | B18: 2154 | C18: 24 | D18: 2182 | E18: 24 | F18: 2191 | K18: 0 | L18: 122
A19: 12 | B19: 2314 | C19: 24 | D19: 2335 | E19: 13 | F19: 2382 | K19: 0 | L19: 121 | N19: Total Target Seq
A20: 12 | B20: 2471 | C20: 13 | D20: 2483 | E20: 24 | F20: 2500 | K20: 0 | L20: 112 | N20: =COUNTIF(L7:L58,G3) -> 0 | P20: 9 | Q20: 8 | R20: 9 | S20: 9 | T20: 8 | U20: 9
A21: 12 | B21: 2595 | C21: 24 | D21: 2610 | E21: 24 | F21: 2618 | K21: 0 | L21: 122 | P21: % of reinforcement given in 6 equal intervals based on number of trials
A22: 12 | B22: 2720 | C22: 24 | D22: 2736 | E22: 24 | F22: 2751 | K22: 0 | L22: 122 | P22: %_1 | Q22: %_2 | R22: %_3 | S22: %_4 | T22: %_5 | U22: %_6
A23: 12 | B23: 2853 | C23: 13 | D23: 2874 | E23: 13 | F23: 2931 | K23: 0 | L23: 111 | O23: target sequence | P23: =$G$3 -> 211 | Q23: =$G$3 -> 211 | R23: =$G$3 -> 211 | S23: =$G$3 -> 211 | T23: =$G$3 -> 211 | U23: =$G$3 -> 211
A24: 21 | B24: 3080 | C24: 22 | D24: 3088 | E24: 24 | F24: 3097 | K24: 0 | L24: 222 | O24: total reinforcement | P24: =U11 -> 0 | Q24: =Z11 -> 0 | R24: =AE11 -> 0 | S24: =AJ11 -> 0 | T24: =AO11 -> 0 | U24: =AT11 -> 0
A25: 21 | B25: 3207 | C25: 22 | D25: 3215 | E25: 24 | F25: 3222 | K25: 0 | L25: 222 | O25: % target
A26: 12 | B26: 3316 | C26: 13 | D26: 3331 | E26: 13 | F26: 3350 | K26: 0 | L26: 111 | O26: CCRF
A27: 12 | B27: 3442 | C27: 13 | D27: 3453 | E27: 24 | F27: 3494 | K27: 0 | L27: 112 | O27: % CCRf
A28: 12 | B28: 3611 | C28: 13 | D28: 3619 | E28: 24 | F28: 3643 | K28: 0 | L28: 112 | O28: average response rate | P28: =F15/P20 -> 191 | Q28: =(F23-F15)/Q20 -> 151.5 | R28: =(F32-F23)/R20 -> 152.4444444 | S28: =(F41-F32)/S20 -> 233.6666667 | T28: =(F49-F41)/T20 -> 274.125 | U28: =(F58-F49)/U20 -> 741.1111111
A29: 12 | B29: 3747 | C29: 24 | D29: 3758 | E29: 24 | F29: 3765 | K29: 0 | L29: 122
A30: 12 | B30: 3883 | C30: 24 | D30: 3899 | E30: 24 | F30: 3904 | K30: 0 | L30: 122
A31: 12 | B31: 4131 | C31: 13 | D31: 4141 | E31: 13 | F31: 4148 | K31: 0 | L31: 111
A32: 12 | B32: 4248 | C32: 13 | D32: 4286 | E32: 24 | F32: 4303 | K32: 0 | L32: 112
A33: 21 | B33: 4423 | C33: 22 | D33: 4430 | E33: 24 | F33: 4439 | K33: 0 | L33: 222
A34: 12 | B34: 4590 | C34: 13 | D34: 4598 | E34: 24 | F34: 4622 | K34: 0 | L34: 112
A35: 12 | B35: 4719 | C35: 13 | D35: 4727 | E35: 13 | F35: 4740 | K35: 0 | L35: 111
A36: 12 | B36: 4882 | C36: 13 | D36: 4889 | E36: 24 | F36: 4908 | K36: 0 | L36: 112
A37: 12 | B37: 5105 | C37: 24 | D37: 5119 | E37: 24 | F37: 5127 | K37: 0 | L37: 122
A38: 12 | B38: 5608 | C38: 13 | D38: 5651 | E38: 13 | F38: 5658 | K38: 0 | L38: 111
A39: 21 | B39: 5955 | C39: 22 | D39: 5964 | E39: 24 | F39: 5972 | K39: 0 | L39: 222
A40: 12 | B40: 6109 | C40: 13 | D40: 6123 | E40: 13 | F40: 6161 | K40: 0 | L40: 111
A41: 12 | B41: 6376 | C41: 13 | D41: 6386 | E41: 24 | F41: 6406 | K41: 0 | L41: 112
A42: 12 | B42: 6528 | C42: 13 | D42: 6538 | E42: 13 | F42: 6551 | K42: 0 | L42: 111
A43: 12 | B43: 6653 | C43: 13 | D43: 6666 | E43: 13 | F43: 6678 | K43: 0 | L43: 111
A44: 12 | B44: 6773 | C44: 13 | D44: 6780 | E44: 13 | F44: 6782 | K44: 0 | L44: 111
A45: 12 | B45: 6897 | C45: 13 | D45: 6934 | E45: 24 | F45: 6956 | K45: 0 | L45: 112
A46: 12 | B46: 8012 | C46: 13 | D46: 8075 | E46: 13 | F46: 8087 | K46: 0 | L46: 111
A47: 12 | B47: 8219 | C47: 13 | D47: 8227 | E47: 24 | F47: 8268 | K47: 0 | L47: 112
A48: 12 | B48: 8370 | C48: 13 | D48: 8373 | E48: 13 | F48: 8377 | K48: 0 | L48: 111
A49: 12 | B49: 8513 | C49: 13 | D49: 8559 | E49: 13 | F49: 8599 | K49: 0 | L49: 111
A50: 12 | B50: 8736 | C50: 13 | D50: 8747 | E50: 13 | F50: 8848 | K50: 0 | L50: 111
A51: 12 | B51: 9002 | C51: 13 | D51: 9023 | E51: 13 | F51: 9063 | K51: 0 | L51: 111
A52: 12 | B52: 9180 | C52: 13 | D52: 9224 | E52: 13 | F52: 9293 | K52: 0 | L52: 111
A53: 12 | B53: 13130 | C53: 13 | D53: 13155 | E53: 13 | F53: 13165 | K53: 0 | L53: 111
A54: 12 | B54: 13447 | C54: 13 | D54: 13454 | E54: 24 | F54: 13468 | K54: 0 | L54: 112
A55: 12 | B55: 13573 | C55: 13 | D55: 13993 | E55: 13 | F55: 14015 | K55: 0 | L55: 111
A56: 12 | B56: 14357 | C56: 13 | D56: 14368 | E56: 24 | F56: 14438 | K56: 0 | L56: 112
A57: 12 | B57: 14614 | C57: 13 | D57: 14617 | E57: 13 | F57: 14658 | K57: 0 | L57: 111
A58: 12 | B58: 15242 | C58: 13 | D58: 15250 | E58: 24 | F58: 15269 | K58: 0 | L58: 112

Sheet !L82890B.axt
A1: Report for:!L82890B.axt
A2: Date: | B2: <date>
A3: Hen: | B3: <hen> | F3: Correct Sequence | G3: =Start!J2 -> 211 | P3: Total Sequences in Data | Q3: =4994-COUNTBLANK(L7:L5000) -> 83 | V3: Total Sequences in Block Data | W3: =COUNTA(L7:L20) -> 14 | AA3: Total Sequences in Block Data | AB3: =COUNTA(L21:L34) -> 14 | AF3: Total Sequences in Block Data | AG3: =COUNTA(L35:L47) -> 13 | AK3: Total Sequences in Block Data | AL3: =COUNTA(L48:L61) -> 14 | AP3: Total Sequences in Block Data | AQ3: =COUNTA(L62:L75) -> 14 | AU3: Total Sequences in Block Data | AV3: =COUNTA(L76:L89) -> 14
P4: Total Sequences in Summary | Q4: =SUM(O7:O14) -> 83 | V4: Total Sequences in Block Summary | W4: =SUM(U7:U14) -> 14 | AA4: Total Sequences in Block Summary | AB4: =SUM(Z7:Z14) -> 14 | AF4: Total Sequences in Block Summary | AG4: =SUM(AE7:AE14) -> 13 | AK4: Total Sequences in Block Summary | AL4: =SUM(AJ7:AJ14) -> 14 | AP4: Total Sequences in Block Summary | AQ4: =SUM(AO7:AO14) -> 14 | AU4: Total Sequences in Block Summary | AV4: =SUM(AT7:AT14) -> 14
T5: Block 1 | Y5: Block 2 | AD5: Block 3 | AI5: Block 4 | AN5: Block 5 | AS5: Block 6
A6: Sequence Component 1 | B6: Time 1 | C6: Sequence Component 2 | D6: Time 2 | E6: Sequence Component 3 | F6: Time 3 | G6: Sequence Component 4 | H6: Time 4 | I6: Sequence Component 5 | J6: Time 5 | K6: Correct? 0=No 1=Yes | L6: Sequence | N6: Frequency | P6: Relative Frequency | Q6: Variability | T6: Frequency | V6: Relative Frequency | W6: Variability | Y6: Frequency | AA6: Relative Frequency | AB6: Variability | AD6: Frequency | AF6: Relative Frequency | AG6: Variability | AI6: Frequency | AK6: Relative Frequency | AL6: Variability | AN6: Frequency | AP6: Relative Frequency | AQ6: Variability | AS6: Frequency | AU6: Relative Frequency | AV6: Variability
A7: 12 | B7: 137 | C7: 24 | D7: 198 | E7: 24 | F7: 206 | K7: 0 | L7: 122 | N7: 111 | O7: =COUNTIF($L$7:$L$500,N7) -> 45 | P7: =O7/$Q$4 -> 0.5421686747 | Q7: =IF(P7=0,0,(P7*((LOG(P7))/LOG(2)))) -> -0.4788359648 | T7: =N7 -> 111 | U7: =COUNTIF(L7:L20,T7) -> 4 | V7: =U7/(W4-U11) -> 0.3076923077 | W7: =IF(V7=0,0,(V7*((LOG(V7))/LOG(2)))) -> -0.523212221 | Y7: =N7 -> 111 | Z7: =COUNTIF(L21:L34,Y7) -> 5 | AA7: =Z7/(AB4-Z11) -> 0.3571428571 | AB7: =IF(AA7=0,0,(AA7*((LOG(AA7))/LOG(2)))) -> -0.5305095811 | AD7: =N7 -> 111 | AE7: =COUNTIF(L35:L47,AD7) -> 8 | AF7: =AE7/(AG4-AE11) -> 0.6153846154 | AG7: =IF(AF7=0,0,(AF7*((LOG(AF7))/LOG(2)))) -> -0.4310398265 | AI7: =N7 -> 111 | AJ7: =COUNTIF(L48:L61,AI7) -> 7 | AK7: =AJ7/(AL4-AJ11) -> 0.5833333333 | AL7: =IF(AK7=0,0,(AK7*((LOG(AK7))/LOG(2)))) -> -0.4536044209 | AN7: =N7 -> 111 | AO7: =COUNTIF(L62:L75,AN7) -> 9 | AP7: =AO7/(AQ4-AO11) -> 0.6428571429 | AQ7: =IF(AP7=0,0,(AP7*((LOG(AP7))/LOG(2)))) -> -0.4097763775 | AS7: =N7 -> 111 | AT7: =COUNTIF(L76:L89,AS7) -> 12 | AU7: =AT7/(AV4-AT11) -> 0.8571428571 | AV7: =IF(AU7=0,0,(AU7*((LOG(AU7))/LOG(2)))) -> -0.1906220754
A8: 12 | B8: 571 | C8: 13 | D8: 575 | E8: 24 | F8: 605 | K8: 0 | L8: 112 | N8: 112 | O8: =COUNTIF($L$7:$L$500,N8) -> 16 | P8: =O8/$Q$4 -> 0.1927710843 | Q8: =IF(P8=0,0,(P8*((LOG(P8))/LOG(2)))) -> -0.4578389265 | T8: =N8 -> 112 | U8: =COUNTIF(L7:L20,T8) -> 2 | V8: =U8/(W4-U11) -> 0.1538461538 | W8: =IF(V8=0,0,(V8*((LOG(V8))/LOG(2)))) -> -0.4154522643 | Y8: =N8 -> 112 | Z8: =COUNTIF(L21:L34,Y8) -> 4 | AA8: =Z8/(AB4-Z11) -> 0.2857142857 | AB8: =IF(AA8=0,0,(AA8*((LOG(AA8))/LOG(2)))) -> -0.5163871206 | AD8: =N8 -> 112 | AE8: =COUNTIF(L35:L47,AD8) -> 3 | AF8: =AE8/(AG4-AE11) -> 0.2307692308 | AG8: =IF(AF8=0,0,(AF8*((LOG(AF8))/LOG(2)))) -> -0.4881870502 | AI8: =N8 -> 112 | AJ8: =COUNTIF(L48:L61,AI8) -> 2 | AK8: =AJ8/(AL4-AJ11) -> 0.1666666667 | AL8: =IF(AK8=0,0,(AK8*((LOG(AK8))/LOG(2)))) -> -0.4308270835 | AN8: =N8 -> 112 | AO8: =COUNTIF(L62:L75,AN8) -> 4 | AP8: =AO8/(AQ4-AO11) -> 0.2857142857 | AQ8: =IF(AP8=0,0,(AP8*((LOG(AP8))/LOG(2)))) -> -0.5163871206 | AS8: =N8 -> 112 | AT8: =COUNTIF(L76:L89,AS8) -> 1 | AU8: =AT8/(AV4-AT11) -> 0.07142857143 | AV8: =IF(AU8=0,0,(AU8*((LOG(AU8))/LOG(2)))) -> -0.271953923
A9: 21 | B9: 728 | C9: 22 | D9: 738 | E9: 24 | F9: 747 | K9: 0 | L9: 222 | N9: 121 | O9: =COUNTIF($L$7:$L$500,N9) -> 2 | P9: =O9/$Q$4 -> 0.02409638554 | Q9: =IF(P9=0,0,(P9*((LOG(P9))/LOG(2)))) -> -0.1295190224 | T9: =N9 -> 121 | U9: =COUNTIF(L7:L20,T9) -> 0 | V9: =U9/(W4-U11) -> 0 | W9: =IF(V9=0,0,(V9*((LOG(V9))/LOG(2)))) -> 0 | Y9: =N9 -> 121 | Z9: =COUNTIF(L21:L34,Y9) -> 1 | AA9: =Z9/(AB4-Z11) -> 0.07142857143 | AB9: =IF(AA9=0,0,(AA9*((LOG(AA9))/LOG(2)))) -> -0.271953923 | AD9: =N9 -> 121 | AE9: =COUNTIF(L35:L47,AD9) -> 0 | AF9: =AE9/(AG4-AE11) -> 0 | AG9: =IF(AF9=0,0,(AF9*((LOG(AF9))/LOG(2)))) -> 0 | AI9: =N9 -> 121 | AJ9: =COUNTIF(L48:L61,AI9) -> 0 | AK9: =AJ9/(AL4-AJ11) -> 0 | AL9: =IF(AK9=0,0,(AK9*((LOG(AK9))/LOG(2)))) -> 0 | AN9: =N9 -> 121 | AO9: =COUNTIF(L62:L75,AN9) -> 0 | AP9: =AO9/(AQ4-AO11) -> 0 | AQ9: =IF(AP9=0,0,(AP9*((LOG(AP9))/LOG(2)))) -> 0 | AS9: =N9 -> 121 | AT9: =COUNTIF(L76:L89,AS9) -> 1 | AU9: =AT9/(AV4-AT11) -> 0.07142857143 | AV9: =IF(AU9=0,0,(AU9*((LOG(AU9))/LOG(2)))) -> -0.271953923
A10: 12 | B10: 1072 | C10: 24 | D10: 1088 | E10: 24 | F10: 1095 | K10: 0 | L10: 122 | N10: 122 | O10: =COUNTIF($L$7:$L$500,N10) -> 14 | P10: =O10/$Q$4 -> 0.1686746988 | Q10: =IF(P10=0,0,(P10*((LOG(P10))/LOG(2)))) -> -0.4331034112 | T10: =N10 -> 122 | U10: =COUNTIF(L7:L20,T10) -> 6 | V10: =U10/(W4-U11) -> 0.4615384615 | W10: =IF(V10=0,0,(V10*((LOG(V10))/LOG(2)))) -> -0.5148356388 | Y10: =N10 -> 122 | Z10: =COUNTIF(L21:L34,Y10) -> 3 | AA10: =Z10/(AB4-Z11) -> 0.2142857143 | AB10: =IF(AA10=0,0,(AA10*((LOG(AA10))/LOG(2)))) -> -0.4762269474 | AD10: =N10 -> 122 | AE10: =COUNTIF(L35:L47,AD10) -> 2 | AF10: =AE10/(AG4-AE11) -> 0.1538461538 | AG10: =IF(AF10=0,0,(AF10*((LOG(AF10))/LOG(2)))) -> -0.4154522643 | AI10: =N10 -> 122 | AJ10: =COUNTIF(L48:L61,AI10) -> 3 | AK10: =AJ10/(AL4-AJ11) -> 0.25 | AL10: =IF(AK10=0,0,(AK10*((LOG(AK10))/LOG(2)))) -> -0.5 | AN10: =N10 -> 122 | AO10: =COUNTIF(L62:L75,AN10) -> 0 | AP10: =AO10/(AQ4-AO11) -> 0 | AQ10: =IF(AP10=0,0,(AP10*((LOG(AP10))/LOG(2)))) -> 0 | AS10: =N10 -> 122 | AT10: =COUNTIF(L76:L89,AS10) -> 0 | AU10: =AT10/(AV4-AT11) -> 0 | AV10: =IF(AU10=0,0,(AU10*((LOG(AU10))/LOG(2)))) -> 0
A11: 12 | B11: 1192 | C11: 24 | D11: 1208 | E11: 24 | F11: 1215 | K11: 0 | L11: 122 | N11: 211 | O11: =COUNTIF($L$7:$L$500,N11) -> 3 | P11: =O11/$Q$4 -> 0.03614457831 | Q11: =IF(P11=0,0,(P11*((LOG(P11))/LOG(2)))) -> -0.1731353107 | T11: =N11 -> 211 | U11: =COUNTIF(L7:L20,T11) -> 1 | Y11: =N11 -> 211 | Z11: =COUNTIF(L21:L34,Y11) -> 0 | AD11: =N11 -> 211 | AE11: =COUNTIF(L35:L47,AD11) -> 0 | AI11: =N11 -> 211 | AJ11: =COUNTIF(L48:L61,AI11) -> 2 | AN11: =N11 -> 211 | AO11: =COUNTIF(L62:L75,AN11) -> 0 | AS11: =N11 -> 211 | AT11: =COUNTIF(L76:L89,AS11) -> 0
A12: 12 | B12: 1311 | C12: 13 | D12: 1317 | E12: 13 | F12: 1322 | K12: 0 | L12: 111 | N12: 212 | O12: =COUNTIF($L$7:$L$500,N12) -> 0 | P12: =O12/$Q$4 -> 0 | Q12: =IF(P12=0,0,(P12*((LOG(P12))/LOG(2)))) -> 0 | T12: =N12 -> 212 | U12: =COUNTIF(L7:L20,T12) -> 0 | V12: =U12/(W4-U11) -> 0 | W12: =IF(V12=0,0,(V12*((LOG(V12))/LOG(2)))) -> 0 | Y12: =N12 -> 212 | Z12: =COUNTIF(L21:L34,Y12) -> 0 | AA12: =Z12/(AB4-Z11) -> 0 | AB12: =IF(AA12=0,0,(AA12*((LOG(AA12))/LOG(2)))) -> 0 | AD12: =N12 -> 212 | AE12: =COUNTIF(L35:L47,AD12) -> 0 | AF12: =AE12/(AG4-AE11) -> 0 | AG12: =IF(AF12=0,0,(AF12*((LOG(AF12))/LOG(2)))) -> 0 | AI12: =N12 -> 212 | AJ12: =COUNTIF(L48:L61,AI12) -> 0 | AK12: =AJ12/(AL4-AJ11) -> 0 | AL12: =IF(AK12=0,0,(AK12*((LOG(AK12))/LOG(2)))) -> 0 | AN12: =N12 -> 212 | AO12: =COUNTIF(L62:L75,AN12) -> 0 | AP12: =AO12/(AQ4-AO11) -> 0 | AQ12: =IF(AP12=0,0,(AP12*((LOG(AP12))/LOG(2)))) -> 0 | AS12: =N12 -> 212 | AT12: =COUNTIF(L76:L89,AS12) -> 0 | AU12: =AT12/(AV4-AT11) -> 0 | AV12: =IF(AU12=0,0,(AU12*((LOG(AU12))/LOG(2)))) -> 0
A13: 12 | B13: 1710 | C13: 13 | D13: 1716 | E13: 24 | F13: 1738 | K13: 0 | L13: 112 | N13: 221 | O13: =COUNTIF($L$7:$L$500,N13) -> 0 | P13: =O13/$Q$4 -> 0 | Q13: =IF(P13=0,0,(P13*((LOG(P13))/LOG(2)))) -> 0 | T13: =N13 -> 221 | U13: =COUNTIF(L7:L20,T13) -> 0 | V13: =U13/(W4-U11) -> 0 | W13: =IF(V13=0,0,(V13*((LOG(V13))/LOG(2)))) -> 0 | Y13: =N13 -> 221 | Z13: =COUNTIF(L21:L34,Y13) -> 0 | AA13: =Z13/(AB4-Z11) -> 0 | AB13: =IF(AA13=0,0,(AA13*((LOG(AA13))/LOG(2)))) -> 0 | AD13: =N13 -> 221 | AE13: =COUNTIF(L35:L47,AD13) -> 0 | AF13: =AE13/(AG4-AE11) -> 0 | AG13: =IF(AF13=0,0,(AF13*((LOG(AF13))/LOG(2)))) -> 0 | AI13: =N13 -> 221 | AJ13: =COUNTIF(L48:L61,AI13) -> 0 | AK13: =AJ13/(AL4-AJ11) -> 0 | AL13: =IF(AK13=0,0,(AK13*((LOG(AK13))/LOG(2)))) -> 0 | AN13: =N13 -> 221 | AO13: =COUNTIF(L62:L75,AN13) -> 0 | AP13: =AO13/(AQ4-AO11) -> 0 | AQ13: =IF(AP13=0,0,(AP13*((LOG(AP13))/LOG(2)))) -> 0 | AS13: =N13 -> 221 | AT13: =COUNTIF(L76:L89,AS13) -> 0 | AU13: =AT13/(AV4-AT11) -> 0 | AV13: =IF(AU13=0,0,(AU13*((LOG(AU13))/LOG(2)))) -> 0
A14: 21 | B14: 1859 | C14: 11 | D14: 1911 | E14: 11 | F14: 1916 | K14: 0 | L14: 211 | N14: 222 | O14: =COUNTIF($L$7:$L$500,N14) -> 3 | P14: =O14/$Q$4 -> 0.03614457831 | Q14: =IF(P14=0,0,(P14*((LOG(P14))/LOG(2)))) -> -0.1731353107 | T14: =N14 -> 222 | U14: =COUNTIF(L7:L20,T14) -> 1 | V14: =U14/(W4-U11) -> 0.07692307692 | W14: =IF(V14=0,0,(V14*((LOG(V14))/LOG(2)))) -> -0.2846492091 | Y14: =N14 -> 222 | Z14: =COUNTIF(L21:L34,Y14) -> 1 | AA14: =Z14/(AB4-Z11) -> 0.07142857143 | AB14: =IF(AA14=0,0,(AA14*((LOG(AA14))/LOG(2)))) -> -0.271953923 | AD14: =N14 -> 222 | AE14: =COUNTIF(L35:L47,AD14) -> 0 | AF14: =AE14/(AG4-AE11) -> 0 | AG14: =IF(AF14=0,0,(AF14*((LOG(AF14))/LOG(2)))) -> 0 | AI14: =N14 -> 222 | AJ14: =COUNTIF(L48:L61,AI14) -> 0 | AK14: =AJ14/(AL4-AJ11) -> 0 | AL14: =IF(AK14=0,0,(AK14*((LOG(AK14))/LOG(2)))) -> 0 | AN14: =N14 -> 222 | AO14: =COUNTIF(L62:L75,AN14) -> 1 | AP14: =AO14/(AQ4-AO11) -> 0.07142857143 | AQ14: =IF(AP14=0,0,(AP14*((LOG(AP14))/LOG(2)))) -> -0.271953923 | AS14: =N14 -> 222 | AT14: =COUNTIF(L76:L89,AS14) -> 0 | AU14: =AT14/(AV4-AT11) -> 0 | AV14: =IF(AU14=0,0,(AU14*((LOG(AU14))/LOG(2)))) -> 0
A15: 12 | B15: 2261 | C15: 24 | D15: 2286 | E15: 24 | F15: 2292 | K15: 0 | L15: 122 | P15: =SUM(P7:P14) -> 1 | Q15: =-SUM(Q7:Q14) -> 1.845567946 | V15: =SUM(V7:V14) -> 1 | W15: =-SUM(W7:W14) -> 1.738149333 | AA15: =SUM(AA7:AA14) -> 1 | AB15: =-SUM(AB7:AB14) -> 2.067031495 | AF15: =SUM(AF7:AF14) -> 1 | AG15: =-SUM(AG7:AG14) -> 1.334679141 | AK15: =SUM(AK7:AK14) -> 1 | AL15: =-SUM(AL7:AL14) -> 1.384431504 | AP15: =SUM(AP7:AP14) -> 1 | AQ15: =-SUM(AQ7:AQ14) -> 1.198117421 | AU15: =SUM(AU7:AU14) -> 1 | AV15: =-SUM(AV7:AV14) -> 0.7345299214
A16: 12 | B16: 2436 | C16: 13 | D16: 2449 | E16: 13 | F16: 2457 | K16: 0 | L16: 111 | P16: U= | Q16: =Q15/(LOG(Q4)/LOG(2)) -> 0.2894990637 | V16: U1= | W16: =W15/(LOG(W4)/LOG(2)) -> 0.4565241142 | AA16: U2= | AB16: =AB15/(LOG(AB4)/LOG(2)) -> 0.5429048611 | AF16: U3= | AG16: =AG15/(LOG(AG4)/LOG(2)) -> 0.3606812278 | AK16: U4= | AL16: =AL15/(LOG(AL4)/LOG(2)) -> 0.3636202909 | AP16: U5= | AQ16: =AQ15/(LOG(AQ4)/LOG(2)) -> 0.3146849836 | AU16: U6= | AV16: =AV15/(LOG(AV4)/LOG(2)) -> 0.1929239423
A17: 12 | B17: 2550 | C17: 24 | D17: 2593 | E17: 24 | F17: 2602 | K17: 0 | L17: 122
A18: 12 | B18: 2698 | C18: 13 | D18: 2706 | E18: 13 | F18: 2720 | K18: 0 | L18: 111
A19: 12 | B19: 2827 | C19: 13 | D19: 2833 | E19: 13 | F19: 2843 | K19: 0 | L19: 111 | N19: Total Target Seq
A20: 12 | B20: 2936 | C20: 24 | D20: 2949 | E20: 24 | F20: 2957 | K20: 0 | L20: 122 | N20: =COUNTIF(L7:L89,G3) -> 3 | P20: 14 | Q20: 14 | R20: 13 | S20: 14 | T20: 14 | U20: 14
A21: 12 | B21: 3089 | C21: 13 | D21: 3097 | E21: 13 | F21: 3103 | K21: 0 | L21: 111 | P21: % of reinforcement given in 6 equal intervals based on number of trials
A22: 12 | B22: 3199 | C22: 24 | D22: 3212 | E22: 24 | F22: 3226 | K22: 0 | L22: 122 | P22: %_1 | Q22: %_2 | R22: %_3 | S22: %_4 | T22: %_5 | U22: %_6
A23: 12 | B23: 3325 | C23: 13 | D23: 3335 | E23: 13 | F23: 3346 | K23: 0 | L23: 111 | O23: target sequence | P23: =$G$3 -> 211 | Q23: =$G$3 -> 211 | R23: =$G$3 -> 211 | S23: =$G$3 -> 211 | T23: =$G$3 -> 211 | U23: =$G$3 -> 211
A24: 12 | B24: 3439 | C24: 13 | D24: 3451 | E24: 13 | F24: 3470 | K24: 0 | L24: 111 | O24: total reinforcement | P24: =U11 -> 1 | Q24: =Z11 -> 0 | R24: =AE11 -> 0 | S24: =AJ11 -> 2 | T24: =AO11 -> 0 | U24: =AT11 -> 0
A25: 12 | B25: 3608 | C25: 13 | D25: 3624 | E25: 13 | F25: 3629 | K25: 0 | L25: 111 | O25: % target
A26: 21 | B26: 3781 | C26: 22 | D26: 3790 | E26: 24 | F26: 3809 | K26: 0 | L26: 222 | O26: CCRF
A27: 12 | B27: 3924 | C27: 13 | D27: 3941 | E27: 13 | F27: 3950 | K27: 0 | L27: 111 | O27: % CCRf
A28: 12 | B28: 4047 | C28: 13 | D28: 4052 | E28: 24 | F28: 4067 | K28: 0 | L28: 112 | O28: average response rate | P28: =F20/P20 -> 211.2142857 | Q28: =(F34-F20)/Q20 -> 173.2142857 | R28: =(F47-F34)/R20 -> 145.0769231 | S28: =(F61-F47)/S20 -> 189.2142857 | T28: =(F75-F61)/T20 -> 363.1428571 | U28: =(F89-F75)/U20 -> 291.5
A29: 12 | B29: 4167 | C29: 13 | D29: 4181 | E29: 24 | F29: 4199 | K29: 0 | L29: 112
A30: 12 | B30: 4292 | C30: 13 | D30: 4305 | E30: 24 | F30: 4325 | K30: 0 | L30: 112
A31: 12 | B31: 4428 | C31: 24 | D31: 4448 | E31: 13 | F31: 4487 | K31: 0 | L31: 121
A32: 12 | B32: 5037 | C32: 24 | D32: 5059 | E32: 24 | F32: 5069 | K32: 0 | L32: 122
A33: 12 | B33: 5160 | C33: 24 | D33: 5182 | E33: 24 | F33: 5190 | K33: 0 | L33: 122
A34: 12 | B34: 5336 | C34: 13 | D34: 5360 | E34: 24 | F34: 5382 | K34: 0 | L34: 112
A35: 12 | B35: 5508 | C35: 24 | D35: 5524 | E35: 24 | F35: 5531 | K35: 0 | L35: 122
A36: 12 | B36: 5626 | C36: 13 | D36: 5646 | E36: 13 | F36: 5650 | K36: 0 | L36: 111
A37: 12 | B37: 5775 | C37: 13 | D37: 5778 | E37: 24 | F37: 5789 | K37: 0 | L37: 112
A38: 12 | B38: 5927 | C38: 13 | D38: 5940 | E38: 13 | F38: 5986 | K38: 0 | L38: 111
A39: 12 | B39: 6101 | C39: 13 | D39: 6114 | E39: 13 | F39: 6147 | K39: 0 | L39: 111
A40: 12 | B40: 6247 | C40: 13 | D40: 6260 | E40: 13 | F40: 6299 | K40: 0 | L40: 111
A41: 12 | B41: 6419 | C41: 13 | D41: 6423 | E41: 24 | F41: 6453 | K41: 0 | L41: 112
A42: 12 | B42: 6551 | C42: 13 | D42: 6556 | E42: 13 | F42: 6566 | K42: 0 | L42: 111
A43: 12 | B43: 6690 | C43: 24 | D43: 6706 | E43: 24 | F43: 6714 | K43: 0 | L43: 122
A44: 12 | B44: 6817 | C44: 13 | D44: 6821 | E44: 13 | F44: 6831 | K44: 0 | L44: 111
A45: 12 | B45: 6930 | C45: 13 | D45: 6945 | E45: 24 | F45: 6965 | K45: 0 | L45: 112
A46: 12 | B46: 7074 | C46: 13 | D46: 7081 | E46: 13 | F46: 7130 | K46: 0 | L46: 111
A47: 12 | B47: 7234 | C47: 13 | D47: 7243 | E47: 13 | F47: 7268 | K47: 0 | L47: 111
A48: 12 | B48: 7368 | C48: 13 | D48: 7395 | E48: 13 | F48: 7405 | K48: 0 | L48: 111
A49: 12 | B49: 7507 | C49: 24 | D49: 7527 | E49: 24 | F49: 7537 | K49: 0 | L49: 122
A50: 21 | B50: 7629 | C50: 11 | D50: 7636 | E50: 11 | F50: 7670 | K50: 0 | L50: 211
A51: 12 | B51: 8113 | C51: 24 | D51: 8148 | E51: 24 | F51: 8157 | K51: 0 | L51: 122
A52: 12 | B52: 8317 | C52: 13 | D52: 8326 | E52: 24 | F52: 8355 | K52: 0 | L52: 112
A53: 21 | B53: 8464 | C53: 11 | D53: 8482 | E53: 11 | F53: 8512 | K53: 0 | L53: 211
A54: 12 | B54: 8858 | C54: 13 | D54: 8861 | E54: 13 | F54: 8871 | K54: 0 | L54: 111
A55: 12 | B55: 8991 | C55: 13 | D55: 9017 | E55: 13 | F55: 9033 | K55: 0 | L55: 111
A56: 12 | B56: 9129 | C56: 13 | D56: 9136 | E56: 13 | F56: 9144 | K56: 0 | L56: 111
A57: 12 | B57: 9254 | C57: 24 | D57: 9280 | E57: 24 | F57: 9288 | K57: 0 | L57: 122
A58: 12 | B58: 9418 | C58: 13 | D58: 9427 | E58: 24 | F58: 9451 | K58: 0 | L58: 112
A59: 12 | B59: 9543 | C59: 13 | D59: 9554 | E59: 13 | F59: 9611 | K59: 0 | L59: 111
A60: 12 | B60: 9722 | C60: 13 | D60: 9725 | E60: 13 | F60: 9748 | K60: 0 | L60: 111
A61: 12 | B61: 9858 | C61: 13 | D61: 9867 | E61: 13 | F61: 9917 | K61: 0 | L61: 111
A62: 12 | B62: 10011 | C62: 13 | D62: 10023 | E62: 13 | F62: 10039 | K62: 0 | L62: 111
A63: 12 | B63: 10144 | C63: 13 | D63: 10166 | E63: 24 | F63: 10186 | K63: 0 | L63: 112
A64: 12 | B64: 10298 | C64: 13 | D64: 10327 | E64: 13 | F64: 10335 | K64: 0 | L64: 111
A65: 12 | B65: 10439 | C65: 13 | D65: 10458 | E65: 13 | F65: 10497 | K65: 0 | L65: 111
A66: 12 | B66: 10677 | C66: 13 | D66: 10684 | E66: 24 | F66: 10705 | K66: 0 | L66: 112
A67: 21 | B67: 10972 | C67: 22 | D67: 10980 | E67: 24 | F67: 10990 | K67: 0 | L67: 222
A68: 12 | B68: 11087 | C68: 13 | D68: 11099 | E68: 13 | F68: 11148 | K68: 0 | L68: 111
A69: 12 | B69: 11249 | C69: 13 | D69: 11299 | E69: 13 | F69: 11340 | K69: 0 | L69: 111
A70: 12 | B70: 11447 | C70: 13 | D70: 11454 | E70: 13 | F70: 11492 | K70: 0 | L70: 111
A71: 12 | B71: 11633 | C71: 13 | D71: 11659 | E71: 13 | F71: 11674 | K71: 0 | L71: 111
A72: 12 | B72: 11795 | C72: 13 | D72: 11798 | E72: 13 | F72: 11806 | K72: 0 | L72: 111
A73: 12 | B73: 11930 | C73: 13 | D73: 11944 | E73: 24 | F73: 11962 | K73: 0 | L73: 112
A74: 12 | B74: 12154 | C74: 13 | D74: 12279 | E74: 13 | F74: 12318 | K74: 0 | L74: 111
A75: 12 | B75: 14954 | C75: 13 | D75: 14977 | E75: 24 | F75: 15001 | K75: 0 | L75: 112
A76: 12 | B76: 15102 | C76: 24 | D76: 15119 | E76: 13 | F76: 15139 | K76: 0 | L76: 121
A77: 12 | B77: 15257 | C77: 13 | D77: 15266 | E77: 13 | F77: 15310 | K77: 0 | L77: 111
A78: 12 | B78: 15806 | C78: 13 | D78: 15809 | E78: 13 | F78: 15838 | K78: 0 | L78: 111
A79: 12 | B79: 15955 | C79: 13 | D79: 15968 | E79: 24 | F79: 15992 | K79: 0 | L79: 112
A80: 12 | B80: 16137 | C80: 13 | D80: 16174 | E80: 13 | F80: 16198 | K80: 0 | L80: 111
A81: 12 | B81: 16423 | C81: 13 | D81: 16431 | E81: 13 | F81: 16454 | K81: 0 | L81: 111
A82: 12 | B82: 16550 | C82: 13 | D82: 16561 | E82: 13 | F82: 16596 | K82: 0 | L82: 111
A83: 12 | B83: 16715 | C83: 13 | D83: 16747 | E83: 13 | F83: 16763 | K83: 0 | L83: 111
A84: 12 | B84: 16873 | C84: 13 | D84: 16879 | E84: 13 | F84: 16905 | K84: 0 | L84: 111
A85: 12 | B85: 17022 | C85: 13 | D85: 17030 | E85: 13 | F85: 17128 | K85: 0 | L85: 111
A86: 12 | B86: 17391 | C86: 13 | D86: 17402 | E86: 13 | F86: 17415 | K86: 0 | L86: 111
A87: 12 | B87: 17520 | C87: 13 | D87: 17632 | E87: 13 | F87: 17689 | K87: 0 | L87: 111
A88: 12 | B88: 17836 | C88: 13 | D88: 17842 | E88: 13 | F88: 17883 | K88: 0 | L88: 111
A89: 12 | B89: 18981 | C89: 13 | D89: 19004 | E89: 13 | F89: 19082 | K89: 0 | L89: 111

Sheet !L829A4B.axt
A1: Report for:!L829A4B.axt
A2: Date: | B2: <date>
A3: Hen: | B3: <hen> | F3: Correct Sequence | G3: =Start!J2 -> 211 | P3: Total Sequences in Data | Q3: =4994-COUNTBLANK(L7:L5000) -> 54 | V3: Total Sequences in Block Data | W3: =COUNTA(L7:L15) -> 9 | AA3: Total Sequences in Block Data | AB3: =COUNTA(L16:L24) -> 9 | AF3: Total Sequences in Block Data | AG3: =COUNTA(L25:L33) -> 9 | AK3: Total Sequences in Block Data | AL3: =COUNTA(L34:L42) -> 9 | AP3: Total Sequences in Block Data | AQ3: =COUNTA(L43:L51) -> 9 | AU3: Total Sequences in Block Data | AV3: =COUNTA(L52:L60) -> 9
P4: Total Sequences in Summary | Q4: =SUM(O7:O14) -> 54 | V4: Total Sequences in Block Summary | W4: =SUM(U7:U14) -> 9 | AA4: Total Sequences in Block Summary | AB4: =SUM(Z7:Z14) -> 9 | AF4: Total Sequences in Block Summary | AG4: =SUM(AE7:AE14) -> 9 | AK4: Total Sequences in Block Summary | AL4: =SUM(AJ7:AJ14) -> 9 | AP4: Total Sequences in Block Summary | AQ4: =SUM(AO7:AO14) -> 9 | AU4: Total Sequences in Block Summary | AV4: =SUM(AT7:AT14) -> 9
T5: Block 1 | Y5: Block 2 | AD5: Block 3 | AI5: Block 4 | AN5: Block 5 | AS5: Block 6
A6: Sequence Component 1 | B6: Time 1 | C6: Sequence Component 2 | D6: Time 2 | E6: Sequence Component 3 | F6: Time 3 | G6: Sequence Component 4 | H6: Time 4 | I6: Sequence Component 5 | J6: Time 5 | K6: Correct? 0=No 1=Yes | L6: Sequence | N6: Frequency | P6: Relative Frequency | Q6: Variability | T6: Frequency | V6: Relative Frequency | W6: Variability | Y6: Frequency | AA6: Relative Frequency | AB6: Variability | AD6: Frequency | AF6: Relative Frequency | AG6: Variability | AI6: Frequency | AK6: Relative Frequency | AL6: Variability | AN6: Frequency | AP6: Relative Frequency | AQ6: Variability | AS6: Frequency | AU6: Relative Frequency | AV6: Variability
A7: 12 | B7: 11 | C7: 13 | D7: 18 | E7: 13 | F7: 44 | K7: 0 | L7: 111 | N7: 111 | O7: =COUNTIF($L$7:$L$500,N7) -> 29 | P7: =O7/$Q$4 -> 0.537037037 | Q7: =IF(P7=0,0,(P7*((LOG(P7))/LOG(2)))) -> -0.481672013 | T7: =N7 -> 111 | U7: =COUNTIF(L7:L15,T7) -> 5 | V7: =U7/(W4-U11) -> 0.5555555556 | W7: =IF(V7=0,0,(V7*((LOG(V7))/LOG(2)))) -> -0.4711093925 | Y7: =N7 -> 111 | Z7: =COUNTIF(L16:L24,Y7) -> 2 | AA7: =Z7/(AB4-Z11) -> 0.2857142857 | AB7: =IF(AA7=0,0,(AA7*((LOG(AA7))/LOG(2)))) -> -0.5163871206 | AD7: =N7 -> 111 | AE7: =COUNTIF(L25:L33,AD7) -> 5 | AF7: =AE7/(AG4-AE11) -> 0.5555555556 | AG7: =IF(AF7=0,0,(AF7*((LOG(AF7))/LOG(2)))) -> -0.4711093925 | AI7: =N7 -> 111 | AJ7: =COUNTIF(L34:L42,AI7) -> 5 | AK7: =AJ7/(AL4-AJ11) -> 0.625 | AL7: =IF(AK7=0,0,(AK7*((LOG(AK7))/LOG(2)))) -> -0.4237949407 | AN7: =N7 -> 111 | AO7: =COUNTIF(L43:L51,AN7) -> 6 | AP7: =AO7/(AQ4-AO11) -> 0.6666666667 | AQ7: =IF(AP7=0,0,(AP7*((LOG(AP7))/LOG(2)))) -> -0.3899750005 | AS7: =N7 -> 111 | AT7: =COUNTIF(L52:L60,AS7) -> 6 | AU7: =AT7/(AV4-AT11) -> 0.6666666667 | AV7: =IF(AU7=0,0,(AU7*((LOG(AU7))/LOG(2)))) -> -0.3899750005
A8: 12 | B8: 137 | C8: 13 | D8: 157 | E8: 13 | F8: 199 | K8: 0 | L8: 111 | N8: 112 | O8: =COUNTIF($L$7:$L$500,N8) -> 13 | P8: =O8/$Q$4 -> 0.2407407407 | Q8: =IF(P8=0,0,(P8*((LOG(P8))/LOG(2)))) -> -0.4945892813 | T8: =N8 -> 112 | U8: =COUNTIF(L7:L15,T8) -> 1 | V8: =U8/(W4-U11) -> 0.1111111111 | W8: =IF(V8=0,0,(V8*((LOG(V8))/LOG(2)))) -> -0.352213889 | Y8: =N8 -> 112 | Z8: =COUNTIF(L16:L24,Y8) -> 3 | AA8: =Z8/(AB4-Z11) -> 0.4285714286 | AB8: =IF(AA8=0,0,(AA8*((LOG(AA8))/LOG(2)))) -> -0.5238824663 | AD8: =N8 -> 112 | AE8: =COUNTIF(L25:L33,AD8) -> 3 | AF8: =AE8/(AG4-AE11) -> 0.3333333333 | AG8: =IF(AF8=0,0,(AF8*((LOG(AF8))/LOG(2)))) -> -0.5283208336 | AI8: =N8 -> 112 | AJ8: =COUNTIF(L34:L42,AI8) -> 2 | AK8: =AJ8/(AL4-AJ11) -> 0.25 | AL8: =IF(AK8=0,0,(AK8*((LOG(AK8))/LOG(2)))) -> -0.5 | AN8: =N8 -> 112 | AO8: =COUNTIF(L43:L51,AN8) -> 2 | AP8: =AO8/(AQ4-AO11) -> 0.2222222222 | AQ8: =IF(AP8=0,0,(AP8*((LOG(AP8))/LOG(2)))) -> -0.4822055559 | AS8: =N8 -> 112 | AT8: =COUNTIF(L52:L60,AS8) -> 2 | AU8: =AT8/(AV4-AT11) -> 0.2222222222 | AV8: =IF(AU8=0,0,(AU8*((LOG(AU8))/LOG(2)))) -> -0.4822055559
A9: 12 | B9: 290 | C9: 13 | D9: 299 | E9: 13 | F9: 311 | K9: 0 | L9: 111 | N9: 121 | O9: =COUNTIF($L$7:$L$500,N9) -> 1 | P9: =O9/$Q$4 -> 0.01851851852 | Q9: =IF(P9=0,0,(P9*((LOG(P9))/LOG(2)))) -> -0.1065719908 | T9: =N9 -> 121 | U9: =COUNTIF(L7:L15,T9) -> 0 | V9: =U9/(W4-U11) -> 0 | W9: =IF(V9=0,0,(V9*((LOG(V9))/LOG(2)))) -> 0 | Y9: =N9 -> 121 | Z9: =COUNTIF(L16:L24,Y9) -> 0 | AA9: =Z9/(AB4-Z11) -> 0 | AB9: =IF(AA9=0,0,(AA9*((LOG(AA9))/LOG(2)))) -> 0 | AD9: =N9 -> 121 | AE9: =COUNTIF(L25:L33,AD9) -> 0 | AF9: =AE9/(AG4-AE11) -> 0 | AG9: =IF(AF9=0,0,(AF9*((LOG(AF9))/LOG(2)))) -> 0 | AI9: =N9 -> 121 | AJ9: =COUNTIF(L34:L42,AI9) -> 0 | AK9: =AJ9/(AL4-AJ11) -> 0 | AL9: =IF(AK9=0,0,(AK9*((LOG(AK9))/LOG(2)))) -> 0 | AN9: =N9 -> 121 | AO9: =COUNTIF(L43:L51,AN9) -> 0 | AP9: =AO9/(AQ4-AO11) -> 0 | AQ9: =IF(AP9=0,0,(AP9*((LOG(AP9))/LOG(2)))) -> 0 | AS9: =N9 -> 121 | AT9: =COUNTIF(L52:L60,AS9) -> 1 | AU9: =AT9/(AV4-AT11) -> 0.1111111111 | AV9: =IF(AU9=0,0,(AU9*((LOG(AU9))/LOG(2)))) -> -0.352213889
A10: 12 | B10: 405 | C10: 13 | D10: 426 | E10: 13 | F10: 432 | K10: 0 | L10: 111 | N10: 122 | O10: =COUNTIF($L$7:$L$500,N10) -> 6 | P10: =O10/$Q$4 -> 0.1111111111 | Q10: =IF(P10=0,0,(P10*((LOG(P10))/LOG(2)))) -> -0.352213889 | T10: =N10 -> 122 | U10: =COUNTIF(L7:L15,T10) -> 2 | V10: =U10/(W4-U11) -> 0.2222222222 | W10: =IF(V10=0,0,(V10*((LOG(V10))/LOG(2)))) -> -0.4822055559 | Y10: =N10 -> 122 | Z10: =COUNTIF(L16:L24,Y10) -> 2 | AA10: =Z10/(AB4-Z11) -> 0.2857142857 | AB10: =IF(AA10=0,0,(AA10*((LOG(AA10))/LOG(2)))) -> -0.5163871206 | AD10: =N10 -> 122 | AE10: =COUNTIF(L25:L33,AD10) -> 1 | AF10: =AE10/(AG4-AE11) -> 0.1111111111 | AG10: =IF(AF10=0,0,(AF10*((LOG(AF10))/LOG(2)))) -> -0.352213889 | AI10: =N10 -> 122 | AJ10: =COUNTIF(L34:L42,AI10) -> 1 | AK10: =AJ10/(AL4-AJ11) -> 0.125 | AL10: =IF(AK10=0,0,(AK10*((LOG(AK10))/LOG(2)))) -> -0.375 | AN10: =N10 -> 122 | AO10: =COUNTIF(L43:L51,AN10) -> 0 | AP10: =AO10/(AQ4-AO11) -> 0 | AQ10: =IF(AP10=0,0,(AP10*((LOG(AP10))/LOG(2)))) -> 0 | AS10: =N10 -> 122 | AT10: =COUNTIF(L52:L60,AS10) -> 0 | AU10: =AT10/(AV4-AT11) -> 0 | AV10: =IF(AU10=0,0,(AU10*((LOG(AU10))/LOG(2)))) -> 0
A11: 12 | B11: 538 | C11: 24 | D11: 557 | E11: 24 | F11: 565 | K11: 0 | L11: 122 | N11: 211 | O11: =COUNTIF($L$7:$L$500,N11) -> 3 | P11: =O11/$Q$4 -> 0.05555555556 | Q11: =IF(P11=0,0,(P11*((LOG(P11))/LOG(2)))) -> -0.2316625001 | T11: =N11 -> 211 | U11: =COUNTIF(L7:L15,T11) -> 0 | Y11: =N11 -> 211 | Z11: =COUNTIF(L16:L24,Y11) -> 2 | AD11: =N11 -> 211 | AE11: =COUNTIF(L25:L33,AD11) -> 0 | AI11: =N11 -> 211 | AJ11: =COUNTIF(L34:L42,AI11) -> 1 | AN11: =N11 -> 211 | AO11: =COUNTIF(L43:L51,AN11) -> 0 | AS11: =N11 -> 211 | AT11: =COUNTIF(L52:L60,AS11) -> 0
A12: 21 | B12: 697 | C12: 22 | D12: 703 | E12: 24 | F12: 711 | K12: 0 | L12: 222 | N12: 212 | O12: =COUNTIF($L$7:$L$500,N12) -> 0 | P12: =O12/$Q$4 -> 0 | Q12: =IF(P12=0,0,(P12*((LOG(P12))/LOG(2)))) -> 0 | T12: =N12 -> 212 | U12: =COUNTIF(L7:L15,T12) -> 0 | V12: =U12/(W4-U11) -> 0 | W12: =IF(V12=0,0,(V12*((LOG(V12))/LOG(2)))) -> 0 | Y12: =N12 -> 212 | Z12: =COUNTIF(L16:L24,Y12) -> 0 | AA12: =Z12/(AB4-Z11) -> 0 | AB12: =IF(AA12=0,0,(AA12*((LOG(AA12))/LOG(2)))) -> 0 | AD12: =N12 -> 212 | AE12: =COUNTIF(L25:L33,AD12) -> 0 | AF12: =AE12/(AG4-AE11) -> 0 | AG12: =IF(AF12=0,0,(AF12*((LOG(AF12))/LOG(2)))) -> 0 | AI12: =N12 -> 212 | AJ12: =COUNTIF(L34:L42,AI12) -> 0 | AK12: =AJ12/(AL4-AJ11) -> 0 | AL12: =IF(AK12=0,0,(AK12*((LOG(AK12))/LOG(2)))) -> 0 | AN12: =N12 -> 212 | AO12: =COUNTIF(L43:L51,AN12) -> 0 | AP12: =AO12/(AQ4-AO11) -> 0 | AQ12: =IF(AP12=0,0,(AP12*((LOG(AP12))/LOG(2)))) -> 0 | AS12: =N12 -> 212 | AT12: =COUNTIF(L52:L60,AS12) -> 0 | AU12: =AT12/(AV4-AT11) -> 0 | AV12: =IF(AU12=0,0,(AU12*((LOG(AU12))/LOG(2)))) -> 0
A13: 12 | B13: 1143 | C13: 24 | D13: 1161 | E13: 24 | F13: 1170 | K13: 0 | L13: 122 | N13: 221 | O13: =COUNTIF($L$7:$L$500,N13) -> 0 | P13: =O13/$Q$4 -> 0 | Q13: =IF(P13=0,0,(P13*((LOG(P13))/LOG(2)))) -> 0 | T13: =N13 -> 221 | U13: =COUNTIF(L7:L15,T13) -> 0 | V13: =U13/(W4-U11) -> 0 | W13: =IF(V13=0,0,(V13*((LOG(V13))/LOG(2)))) -> 0 | Y13: =N13 -> 221 | Z13: =COUNTIF(L16:L24,Y13) -> 0 | AA13: =Z13/(AB4-Z11) -> 0 | AB13: =IF(AA13=0,0,(AA13*((LOG(AA13))/LOG(2)))) -> 0 | AD13: =N13 -> 221 | AE13: =COUNTIF(L25:L33,AD13) -> 0 | AF13: =AE13/(AG4-AE11) -> 0 | AG13: =IF(AF13=0,0,(AF13*((LOG(AF13))/LOG(2)))) -> 0 | AI13: =N13 -> 221 | AJ13: =COUNTIF(L34:L42,AI13) -> 0 | AK13: =AJ13/(AL4-AJ11) -> 0 | AL13: =IF(AK13=0,0,(AK13*((LOG(AK13))/LOG(2)))) -> 0 | AN13: =N13 -> 221 | AO13: =COUNTIF(L43:L51,AN13) -> 0 | AP13: =AO13/(AQ4-AO11) -> 0 | AQ13: =IF(AP13=0,0,(AP13*((LOG(AP13))/LOG(2)))) -> 0 | AS13: =N13 -> 221 | AT13: =COUNTIF(L52:L60,AS13) -> 0 | AU13: =AT13/(AV4-AT11) -> 0 | AV13: =IF(AU13=0,0,(AU13*((LOG(AU13))/LOG(2)))) -> 0
A14: 12 | B14: 1272 | C14: 13 | D14: 1284 | E14: 13 | F14: 1299 | K14: 0 | L14: 111 | N14: 222 | O14: =COUNTIF($L$7:$L$500,N14) -> 2 | P14: =O14/$Q$4 -> 0.03703703704 | Q14: =IF(P14=0,0,(P14*((LOG(P14))/LOG(2)))) -> -0.1761069445 | T14: =N14 -> 222 | U14: =COUNTIF(L7:L15,T14) -> 1 | V14: =U14/(W4-U11) -> 0.1111111111 | W14: =IF(V14=0,0,(V14*((LOG(V14))/LOG(2)))) -> -0.352213889 | Y14: =N14 -> 222 | Z14: =COUNTIF(L16:L24,Y14) -> 0 | AA14: =Z14/(AB4-Z11) -> 0 | AB14: =IF(AA14=0,0,(AA14*((LOG(AA14))/LOG(2)))) -> 0 | AD14: =N14 -> 222 | AE14: =COUNTIF(L25:L33,AD14) -> 0 | AF14: =AE14/(AG4-AE11) -> 0 | AG14: =IF(AF14=0,0,(AF14*((LOG(AF14))/LOG(2)))) -> 0 | AI14: =N14 -> 222 | AJ14: =COUNTIF(L34:L42,AI14) -> 0 | AK14: =AJ14/(AL4-AJ11) -> 0 | AL14: =IF(AK14=0,0,(AK14*((LOG(AK14))/LOG(2)))) -> 0 | AN14: =N14 -> 222 | AO14: =COUNTIF(L43:L51,AN14) -> 1 | AP14: =AO14/(AQ4-AO11) -> 0.1111111111 | AQ14: =IF(AP14=0,0,(AP14*((LOG(AP14))/LOG(2)))) -> -0.352213889 | AS14: =N14 -> 222 | AT14: =COUNTIF(L52:L60,AS14) -> 0 | AU14: =AT14/(AV4-AT11) -> 0 | AV14: =IF(AU14=0,0,(AU14*((LOG(AU14))/LOG(2)))) -> 0
A15: 12 | B15: 1392 | C15: 13 | D15: 1404 | E15: 24 | F15: 1417 | K15: 0 | L15: 112 | P15: =SUM(P7:P14) -> 1 | Q15: =-SUM(Q7:Q14) -> 1.842816619 | V15: =SUM(V7:V14) -> 1 | W15: =-SUM(W7:W14) -> 1.657742727 | AA15: =SUM(AA7:AA14) -> 1 | AB15: =-SUM(AB7:AB14) -> 1.556656707 | AF15: =SUM(AF7:AF14) -> 1 | AG15: =-SUM(AG7:AG14) -> 1.351644115 | AK15: =SUM(AK7:AK14) -> 1 | AL15: =-SUM(AL7:AL14) -> 1.298794941 | AP15: =SUM(AP7:AP14) -> 1 | AQ15: =-SUM(AQ7:AQ14) -> 1.224394445 | AU15: =SUM(AU7:AU14) -> 1 | AV15: =-SUM(AV7:AV14) -> 1.224394445
A16: 12 | B16: 1526 | C16: 13 | D16: 1528 | E16: 24 | F16: 1545 | K16: 0 | L16: 112 | P16: U= | Q16: =Q15/(LOG(Q4)/LOG(2)) -> 0.3202176616 | V16: U1= | W16: =W15/(LOG(W4)/LOG(2)) -> 0.522959605 | AA16: U2= | AB16: =AB15/(LOG(AB4)/LOG(2)) -> 0.4910705164 | AF16: U3= | AG16: =AG15/(LOG(AG4)/LOG(2)) -> 0.4263962442 | AK16: U4= | AL16: =AL15/(LOG(AL4)/LOG(2)) -> 0.4097241859 | AP16: U5= | AQ16: =AQ15/(LOG(AQ4)/LOG(2)) -> 0.3862534429 | AU16: U6= | AV16: =AV15/(LOG(AV4)/LOG(2)) -> 0.3862534429
A17: 12 | B17: 1644 | C17: 13 | D17: 1653 | E17: 24 | F17: 1681 | K17: 0 | L17: 112
A18: 12 | B18: 1781 | C18: 13 | D18: 1852 | E18: 13 | F18: 1864 | K18: 0 | L18: 111
A19: 12 | B19: 1965 | C19: 13 | D19: 1976 | E19: 13 | F19: 1998 | K19: 0 | L19: 111 | N19: Total Target Seq
A20: 12 | B20: 2124 | C20: 24 | D20: 2142 | E20: 24 | F20: 2149 | K20: 0 | L20: 122 | N20: =COUNTIF(L7:L60,G3) -> 3 | P20: 9 | Q20: 9 | R20: 9 | S20: 9 | T20: 9 | U20: 9
A21: 21 | B21: 2255 | C21: 11 | D21: 2272 | E21: 11 | F21: 2282 | K21: 0 | L21: 211 | P21: % of reinforcement given in 6 equal intervals based on number of trials
A22: 12 | B22: 2596 | C22: 24 | D22: 2619 | E22: 24 | F22: 2626 | K22: 0 | L22: 122 | P22: %_1 | Q22: %_2 | R22: %_3 | S22: %_4 | T22: %_5 | U22: %_6
A23: 21 | B23: 2738 | C23: 11 | D23: 2760 | E23: 11 | F23: 2777 | K23: 0 | L23: 211 | O23: target sequence | P23: =$G$3 -> 211 | Q23: =$G$3 -> 211 | R23: =$G$3 -> 211 | S23: =$G$3 -> 211 | T23: =$G$3 -> 211 | U23: =$G$3 -> 211
A24: 12 | B24: 3152 | C24: 13 | D24: 3161 | E24: 24 | F24: 3176 | K24: 0 | L24: 112 | O24: total reinforcement | P24: =U11 -> 0 | Q24: =Z11 -> 2 | R24: =AE11 -> 0 | S24: =AJ11 -> 1 | T24: =AO11 -> 0 | U24: =AT11 -> 0
A25: 12 | B25: 3279 | C25: 24 | D25: 3290 | E25: 24 | F25: 3295 | K25: 0 | L25: 122 | O25: % target
A26: 12 | B26: 3389 | C26: 13 | D26: 3413 | E26: 24 | F26: 3429 | K26: 0 | L26: 112 | O26: CCRF
A27: 12 | B27: 3531 | C27: 13 | D27: 3568 | E27: 13 | F27: 3588 | K27: 0 | L27: 111 | O27: % CCRf
A28: 12 | B28: 3680 | C28: 13 | D28: 3703 | E28: 13 | F28: 3723 | K28: 0 | L28: 111 | O28: average response rate | P28: =F15/P20 -> 157.4444444 | Q28: =(F24-F15)/Q20 -> 195.4444444 | R28: =(F33-F24)/R20 -> 132.2222222 | S28: =(F42-F33)/S20 -> 1789.333333 | T28: =(F51-F42)/T20 -> 158.6666667 | U28: =(F60-F51)/U20 -> 157.6666667
A29: 12 | B29: 3837 | C29: 13 | D29: 3839 | E29: 24 | F29: 3851 | K29: 0 | L29: 112
A30: 12 | B30: 3946 | C30: 13 | D30: 3951 | E30: 13 | F30: 3955 | K30: 0 | L30: 111
A31: 12 | B31: 4051 | C31: 13 | D31: 4069 | E31: 24 | F31: 4080 | K31: 0 | L31: 112
A32: 12 | B32: 4218 | C32: 13 | D32: 4231 | E32: 13 | F32: 4260 | K32: 0 | L32: 111
A33: 12 | B33: 4358 | C33: 13 | D33: 4361 | E33: 13 | F33: 4366 | K33: 0 | L33: 111
A34: 12 | B34: 4476 | C34: 13 | D34: 4487 | E34: 13 | F34: 4521 | K34: 0 | L34: 111
A35: 12 | B35: 4626 | C35: 24 | D35: 4644 | E35: 24 | F35: 4651 | K35: 0 | L35: 122
A36: 12 | B36: 4754 | C36: 13 | D36: 4757 | E36: 24 | F36: 4781 | K36: 0 | L36: 112
A37: 12 | B37: 4928 | C37: 13 | D37: 4976 | E37: 13 | F37: 4985 | K37: 0 | L37: 111
A38: 12 | B38: 5125 | C38: 13 | D38: 5128 | E38: 13 | F38: 5135 | K38: 0 | L38: 111
A39: 12 | B39: 5254 | C39: 13 | D39: 5257 | E39: 24 | F39: 5280 | K39: 0 | L39: 112
A40: 12 | B40: 5379 | C40: 13 | D40: 5388 | E40: 13 | F40: 5397 | K40: 0 | L40: 111
A41: 21 | B41: 17356 | C41: 11 | D41: 20080 | E41: 11 | F41: 20085 | K41: 0 | L41: 211
A42: 12 | B42: 20433 | C42: 13 | D42: 20442 | E42: 13 | F42: 20470 | K42: 0 | L42: 111
A43: 12 | B43: 20577 | C43: 13 | D43: 20616 | E43: 13 | F43: 20631 | K43: 0 | L43: 111
A44: 12 | B44: 20731 | C44: 13 | D44: 20742 | E44: 24 | F44: 20763 | K44: 0 | L44: 112
A45: 12 | B45: 20858 | C45: 13 | D45: 20873 | E45: 24 | F45: 20896 | K45: 0 | L45: 112
A46: 12 | B46: 20990 | C46: 13 | D46: 21009 | E46: 13 | F46: 21014 | K46: 0 | L46: 111
A47: 12 | B47: 21130 | C47: 13 | D47: 21144 | E47: 13 | F47: 21193 | K47: 0 | L47: 111
A48: 12 | B48: 21288 | C48: 13 | D48: 21313 | E48: 13 | F48: 21322 | K48: 0 | L48: 111
A49: 12 | B49: 21422 | C49: 13 | D49: 21436 | E49: 13 | F49: 21547 | K49: 0 | L49: 111
A50: 21 | B50: 21673 | C50: 22 | D50: 21681 | E50: 24 | F50: 21690 | K50: 0 | L50: 222
A51: 12 | B51: 21859 | C51: 13 | D51: 21873 | E51: 13 | F51: 21898 | K51: 0 | L51: 111
A52: 12 | B52: 21999 | C52: 13 | D52: 22011 | E52: 24 | F52: 22026 | K52: 0 | L52: 112
A53: 12 | B53: 22121 | C53: 13 | D53: 22181 | E53: 13 | F53: 22208 | K53: 0 | L53: 111
A54: 12 | B54: 22311 | C54: 13 | D54: 22319 | E54: 13 | F54: 22328 | K54: 0 | L54: 111
A55: 12 | B55: 22424 | C55: 13 | D55: 22467 | E55: 13 | F55: 22480 | K55: 0 | L55: 111
A56: 12 | B56: 22640 | C56: 24 | D56: 22668 | E56: 13 | F56: 22698 | K56: 0 | L56: 121
A57: 12 | B57: 22790 | C57: 13 | D57: 22807 | E57: 13 | F57: 22851 | K57: 0 | L57: 111
A58: 12 | B58: 22972 | C58: 13 | D58: 23006 | E58: 13 | F58: 23021 | K58: 0 | L58: 111
A59: 12 | B59: 23117 | C59: 13 | D59: 23136 | E59: 13 | F59: 23145 | K59: 0 | L59: 111
A60: 12 | B60: 23279 | C60: 13 | D60: 23293 | E60: 24 | F60: 23317 | K60: 0 | L60: 112

Sheet !L830A5B.axt
A1: Report for:!L830A5B.axt
A2: Date: | B2: <date>
A3: Hen: | B3: <hen> | F3: Correct Sequence | G3: =Start!J2 -> 211 | P3: Total Sequences in Data | Q3: =4994-COUNTBLANK(L7:L5000) -> 56 | V3: Total Sequences in Block Data | W3: =COUNTA(L7:L15) -> 9 | AA3: Total Sequences in Block Data | AB3: =COUNTA(L16:L25) -> 10 | AF3: Total Sequences in Block Data | AG3: =COUNTA(L26:L34) -> 9 | AK3: Total Sequences in Block Data | AL3: =COUNTA(L35:L43) -> 9 | AP3: Total Sequences in Block Data | AQ3: =COUNTA(L44:L53) -> 10 | AU3: Total Sequences in Block Data | AV3: =COUNTA(L54:L62) -> 9
P4: Total Sequences in Summary | Q4: =SUM(O7:O14) -> 56 | V4: Total Sequences in Block Summary | W4: =SUM(U7:U14) -> 9 | AA4: Total Sequences in Block Summary | AB4: =SUM(Z7:Z14) -> 10 | AF4: Total Sequences in Block Summary | AG4: =SUM(AE7:AE14) -> 9 | AK4: Total Sequences in Block Summary | AL4: =SUM(AJ7:AJ14) -> 9 | AP4: Total Sequences in Block Summary | AQ4: =SUM(AO7:AO14) -> 10 | AU4: Total Sequences in Block Summary | AV4: =SUM(AT7:AT14) -> 9
T5: Block 1 | Y5: Block 2 | AD5: Block 3 | AI5: Block 4 | AN5: Block 5 | AS5: Block 6
A6: Sequence Component 1 | B6: Time 1 | C6: Sequence Component 2 | D6: Time 2 | E6: Sequence Component 3 | F6: Time 3 | G6: Sequence Component 4 | H6: Time 4 | I6: Sequence Component 5 | J6: Time 5 | K6: Correct? 0=No 1=Yes | L6: Sequence | N6: Frequency | P6: Relative Frequency | Q6: Variability | T6: Frequency | V6: Relative Frequency | W6: Variability | Y6: Frequency | AA6: Relative Frequency | AB6: Variability | AD6: Frequency | AF6: Relative Frequency | AG6: Variability | AI6: Frequency | AK6: Relative Frequency | AL6: Variability | AN6: Frequency | AP6: Relative Frequency | AQ6: Variability | AS6: Frequency | AU6: Relative Frequency | AV6: Variability
A7: 12 | B7: 171 | C7: 13 | D7: 179 | E7: 24 | F7: 202 | K7: 0 | L7: 112 | N7: 111 | O7: =COUNTIF($L$7:$L$500,N7) -> 20 | P7: =O7/$Q$4 -> 0.3571428571 | Q7: =IF(P7=0,0,(P7*((LOG(P7))/LOG(2)))) -> -0.5305095811 | T7: =N7 -> 111 | U7: =COUNTIF(L7:L15,T7) -> 3 | V7: =U7/(W4-U11) -> 0.375 | W7: =IF(V7=0,0,(V7*((LOG(V7))/LOG(2)))) -> -0.5306390622 | Y7: =N7 -> 111 | Z7: =COUNTIF(L16:L25,Y7) -> 4 | AA7: =Z7/(AB4-Z11) -> 0.4 | AB7: =IF(AA7=0,0,(AA7*((LOG(AA7))/LOG(2)))) -> -0.528771238 | AD7: =N7 -> 111 | AE7: =COUNTIF(L26:L34,AD7) -> 3 | AF7: =AE7/(AG4-AE11) -> 0.375 | AG7: =IF(AF7=0,0,(AF7*((LOG(AF7))/LOG(2)))) -> -0.5306390622 | AI7: =N7 -> 111 | AJ7: =COUNTIF(L35:L43,AI7) -> 4 | AK7: =AJ7/(AL4-AJ11) -> 0.4444444444 | AL7: =IF(AK7=0,0,(AK7*((LOG(AK7))/LOG(2)))) -> -0.5199666673 | AN7: =N7 -> 111 | AO7: =COUNTIF(L44:L53,AN7) -> 3 | AP7: =AO7/(AQ4-AO11) -> 0.3 | AQ7: =IF(AP7=0,0,(AP7*((LOG(AP7))/LOG(2)))) -> -0.5210896782 | AS7: =N7 -> 111 | AT7: =COUNTIF(L54:L62,AS7) -> 3 | AU7: =AT7/(AV4-AT11) -> 0.3333333333 | AV7: =IF(AU7=0,0,(AU7*((LOG(AU7))/LOG(2)))) -> -0.5283208336
A8: 12 | B8: 422 | C8: 24 | D8: 449 | E8: 24 | F8: 458 | K8: 0 | L8: 122 | N8: 112 | O8: =COUNTIF($L$7:$L$500,N8) -> 12 | P8: =O8/$Q$4 -> 0.2142857143 | Q8: =IF(P8=0,0,(P8*((LOG(P8))/LOG(2)))) -> -0.4762269474 | T8: =N8 -> 112 | U8: =COUNTIF(L7:L15,T8) -> 3 | V8: =U8/(W4-U11) -> 0.375 | W8: =IF(V8=0,0,(V8*((LOG(V8))/LOG(2)))) -> -0.5306390622 | Y8: =N8 -> 112 | Z8: =COUNTIF(L16:L25,Y8) -> 1 | AA8: =Z8/(AB4-Z11) -> 0.1 | AB8: =IF(AA8=0,0,(AA8*((LOG(AA8))/LOG(2)))) -> -0.3321928095 | AD8: =N8 -> 112 | AE8: =COUNTIF(L26:L34,AD8) -> 0 | AF8: =AE8/(AG4-AE11) -> 0 | AG8: =IF(AF8=0,0,(AF8*((LOG(AF8))/LOG(2)))) -> 0 | AI8: =N8 -> 112 | AJ8: =COUNTIF(L35:L43,AI8) -> 3 | AK8: =AJ8/(AL4-AJ11) -> 0.3333333333 | AL8: =IF(AK8=0,0,(AK8*((LOG(AK8))/LOG(2)))) -> -0.5283208336 | AN8: =N8 -> 112 | AO8: =COUNTIF(L44:L53,AN8) -> 4 | AP8: =AO8/(AQ4-AO11) -> 0.4 | AQ8: =IF(AP8=0,0,(AP8*((LOG(AP8))/LOG(2)))) -> -0.528771238 | AS8: =N8 -> 112 | AT8: =COUNTIF(L54:L62,AS8) -> 1 | AU8: =AT8/(AV4-AT11) -> 0.1111111111 | AV8: =IF(AU8=0,0,(AU8*((LOG(AU8))/LOG(2)))) -> -0.352213889
A9: 21 | B9: 563 | C9: 11 | D9: 575 | E9: 11 | F9: 583 | K9: 0 | L9: 211 | N9: 121 | O9: =COUNTIF($L$7:$L$500,N9) -> 2 | P9: =O9/$Q$4 -> 0.03571428571 | Q9: =IF(P9=0,0,(P9*((LOG(P9))/LOG(2)))) -> -0.1716912472 | T9: =N9 -> 121 | U9: =COUNTIF(L7:L15,T9) -> 0 | V9: =U9/(W4-U11) -> 0 | W9: =IF(V9=0,0,(V9*((LOG(V9))/LOG(2)))) -> 0 | Y9: =N9 -> 121 | Z9: =COUNTIF(L16:L25,Y9) -> 0 | AA9: =Z9/(AB4-Z11) -> 0 | AB9: =IF(AA9=0,0,(AA9*((LOG(AA9))/LOG(2)))) -> 0 | AD9: =N9 -> 121 | AE9: =COUNTIF(L26:L34,AD9) -> 2 | AF9: =AE9/(AG4-AE11) -> 0.25 | AG9: =IF(AF9=0,0,(AF9*((LOG(AF9))/LOG(2)))) -> -0.5 | AI9: =N9 -> 121 | AJ9: =COUNTIF(L35:L43,AI9) -> 0 | AK9: =AJ9/(AL4-AJ11) -> 0 | AL9: =IF(AK9=0,0,(AK9*((LOG(AK9))/LOG(2)))) -> 0 | AN9: =N9 -> 121 | AO9: =COUNTIF(L44:L53,AN9) -> 0 | AP9: =AO9/(AQ4-AO11) -> 0 | AQ9: =IF(AP9=0,0,(AP9*((LOG(AP9))/LOG(2)))) -> 0 | AS9: =N9 -> 121 | AT9: =COUNTIF(L54:L62,AS9) -> 0 | AU9: =AT9/(AV4-AT11) -> 0 | AV9: =IF(AU9=0,0,(AU9*((LOG(AU9))/LOG(2)))) -> 0
A10: 12 | B10: 812 | C10: 13 | D10: 817 | E10: 24 | F10: 841 | K10: 0 | L10: 112 | N10: 122 | O10: =COUNTIF($L$7:$L$500,N10) -> 19 | P10: =O10/$Q$4 -> 0.3392857143 | Q10: =IF(P10=0,0,(P10*((LOG(P10))/LOG(2)))) -> -0.5290914422 | T10: =N10 -> 122 | U10: =COUNTIF(L7:L15,T10) -> 2 | V10: =U10/(W4-U11) -> 0.25 | W10: =IF(V10=0,0,(V10*((LOG(V10))/LOG(2)))) -> -0.5 | Y10: =N10 -> 122 | Z10: =COUNTIF(L16:L25,Y10) -> 4 | AA10: =Z10/(AB4-Z11) -> 0.4 | AB10: =IF(AA10=0,0,(AA10*((LOG(AA10))/LOG(2)))) -> -0.528771238 | AD10: =N10 -> 122 | AE10: =COUNTIF(L26:L34,AD10) -> 3 | AF10: =AE10/(AG4-AE11) -> 0.375 | AG10: =IF(AF10=0,0,(AF10*((LOG(AF10))/LOG(2)))) -> -0.5306390622 | AI10: =N10 -> 122 | AJ10: =COUNTIF(L35:L43,AI10) -> 2 | AK10: =AJ10/(AL4-AJ11) -> 0.2222222222 | AL10: =IF(AK10=0,0,(AK10*((LOG(AK10))/LOG(2)))) -> -0.4822055559 | AN10: =N10 -> 122 | AO10: =COUNTIF(L44:L53,AN10) -> 3 | AP10: =AO10/(AQ4-AO11) -> 0.3 | AQ10: =IF(AP10=0,0,(AP10*((LOG(AP10))/LOG(2)))) -> -0.5210896782 | AS10: =N10 -> 122 | AT10: =COUNTIF(L54:L62,AS10) -> 5 | AU10: =AT10/(AV4-AT11) -> 0.5555555556 | AV10: =IF(AU10=0,0,(AU10*((LOG(AU10))/LOG(2)))) -> -0.4711093925
A11: 12 | B11: 964 | C11: 13 | D11: 973 | E11: 13 | F11: 982 | K11: 0 | L11: 111 | N11: 211 | O11: =COUNTIF($L$7:$L$500,N11) -> 2 | P11: =O11/$Q$4 -> 0.03571428571 | Q11: =IF(P11=0,0,(P11*((LOG(P11))/LOG(2)))) -> -0.1716912472 | T11: =N11 -> 211 | U11: =COUNTIF(L7:L15,T11) -> 1 | Y11: =N11 -> 211 | Z11: =COUNTIF(L16:L25,Y11) -> 0 | AD11: =N11 -> 211 | AE11: =COUNTIF(L26:L34,AD11) -> 1 | AI11: =N11 -> 211 | AJ11: =COUNTIF(L35:L43,AI11) -> 0 | AN11: =N11 -> 211 | AO11: =COUNTIF(L44:L53,AN11) -> 0 | AS11: =N11 -> 211 | AT11: =COUNTIF(L54:L62,AS11) -> 0
A12: 12 | B12: 1079 | C12: 13 | D12: 1089 | E12: 24 | F12: 1093 | K12: 0 | L12: 112 | N12: 212 | O12: =COUNTIF($L$7:$L$500,N12) -> 0 | P12: =O12/$Q$4 -> 0 | Q12: =IF(P12=0,0,(P12*((LOG(P12))/LOG(2)))) -> 0 | T12: =N12 -> 212 | U12: =COUNTIF(L7:L15,T12) -> 0 | V12: =U12/(W4-U11) -> 0 | W12: =IF(V12=0,0,(V12*((LOG(V12))/LOG(2)))) -> 0 | Y12: =N12 -> 212 | Z12: =COUNTIF(L16:L25,Y12) -> 0 | AA12: =Z12/(AB4-Z11) -> 0 | AB12: =IF(AA12=0,0,(AA12*((LOG(AA12))/LOG(2)))) -> 0 | AD12: =N12 -> 212 | AE12: =COUNTIF(L26:L34,AD12) -> 0 | AF12: =AE12/(AG4-AE11) -> 0 | AG12: =IF(AF12=0,0,(AF12*((LOG(AF12))/LOG(2)))) -> 0 | AI12: =N12 -> 212 | AJ12: =COUNTIF(L35:L43,AI12) -> 0 | AK12: =AJ12/(AL4-AJ11) -> 0 | AL12: =IF(AK12=0,0,(AK12*((LOG(AK12))/LOG(2)))) -> 0 | AN12: =N12 -> 212 | AO12: =COUNTIF(L44:L53,AN12) -> 0 | AP12: =AO12/(AQ4-AO11) -> 0 | AQ12: =IF(AP12=0,0,(AP12*((LOG(AP12))/LOG(2)))) -> 0 | AS12: =N12 -> 212 | AT12: =COUNTIF(L54:L62,AS12) -> 0 | AU12: =AT12/(AV4-AT11) -> 0 | AV12: =IF(AU12=0,0,(AU12*((LOG(AU12))/LOG(2)))) -> 0
A13: 12 | B13: 1193 | C13: 24 | D13: 1223 | E13: 24 | F13: 1231 | K13: 0 | L13: 122 | N13: 221 | O13: =COUNTIF($L$7:$L$500,N13) -> 0 | P13: =O13/$Q$4 -> 0 | Q13: =IF(P13=0,0,(P13*((LOG(P13))/LOG(2)))) -> 0 | T13: =N13 -> 221 | U13: =COUNTIF(L7:L15,T13) -> 0 | V13: =U13/(W4-U11) -> 0 | W13: =IF(V13=0,0,(V13*((LOG(V13))/LOG(2)))) -> 0 | Y13: =N13 -> 221 | Z13: =COUNTIF(L16:L25,Y13) -> 0 | AA13: =Z13/(AB4-Z11) -> 0 | AB13: =IF(AA13=0,0,(AA13*((LOG(AA13))/LOG(2)))) -> 0 | AD13: =N13 -> 221 | AE13: =COUNTIF(L26:L34,AD13) -> 0 | AF13: =AE13/(AG4-AE11) -> 0 | AG13: =IF(AF13=0,0,(AF13*((LOG(AF13))/LOG(2)))) -> 0 | AI13: =N13 -> 221 | AJ13: =COUNTIF(L35:L43,AI13) -> 0 | AK13: =AJ13/(AL4-AJ11) -> 0 | AL13: =IF(AK13=0,0,(AK13*((LOG(AK13))/LOG(2)))) -> 0 | AN13: =N13 -> 221 | AO13: =COUNTIF(L44:L53,AN13) -> 0 | AP13: =AO13/(AQ4-AO11) -> 0 | AQ13: =IF(AP13=0,0,(AP13*((LOG(AP13))/LOG(2)))) -> 0 | AS13: =N13 -> 221 | AT13: =COUNTIF(L54:L62,AS13) -> 0 | AU13: =AT13/(AV4-AT11) -> 0 | AV13: =IF(AU13=0,0,(AU13*((LOG(AU13))/LOG(2)))) -> 0
A14: 12 | B14: 1334 | C14: 13 | D14: 1341 | E14: 13 | F14: 1344 | K14: 0 | L14: 111 | N14: 222 | O14: =COUNTIF($L$7:$L$500,N14) -> 1 | P14: =O14/$Q$4 -> 0.01785714286 | Q14: =IF(P14=0,0,(P14*((LOG(P14))/LOG(2)))) -> -0.1037027665 | T14: =N14 -> 222 | U14: =COUNTIF(L7:L15,T14) -> 0 | V14: =U14/(W4-U11) -> 0 | W14: =IF(V14=0,0,(V14*((LOG(V14))/LOG(2)))) -> 0 | Y14: =N14 -> 222 | Z14: =COUNTIF(L16:L25,Y14) -> 1 | AA14: =Z14/(AB4-Z11) -> 0.1 | AB14: =IF(AA14=0,0,(AA14*((LOG(AA14))/LOG(2)))) -> -0.3321928095 | AD14: =N14 -> 222 | AE14: =COUNTIF(L26:L34,AD14) -> 0 | AF14: =AE14/(AG4-AE11) -> 0 | AG14: =IF(AF14=0,0,(AF14*((LOG(AF14))/LOG(2)))) -> 0 | AI14: =N14 -> 222 | AJ14: =COUNTIF(L35:L43,AI14) -> 0 | AK14: =AJ14/(AL4-AJ11) -> 0 | AL14: =IF(AK14=0,0,(AK14*((LOG(AK14))/LOG(2)))) -> 0 | AN14: =N14 -> 222 | AO14: =COUNTIF(L44:L53,AN14) -> 0 | AP14: =AO14/(AQ4-AO11) -> 0 | AQ14: =IF(AP14=0,0,(AP14*((LOG(AP14))/LOG(2)))) -> 0 | AS14: =N14 -> 222 | AT14: =COUNTIF(L54:L62,AS14) -> 0 | AU14: =AT14/(AV4-AT11) -> 0 | AV14: =IF(AU14=0,0,(AU14*((LOG(AU14))/LOG(2)))) -> 0
A15: 12 | B15: 1448 | C15: 13 | D15: 1462 | E15: 13 | F15: 1487 | K15: 0 | L15: 111 | P15: =SUM(P7:P14) -> 1 | Q15: =-SUM(Q7:Q14) -> 1.982913232 | V15: =SUM(V7:V14) -> 1 | W15: =-SUM(W7:W14) -> 1.561278124 | AA15: =SUM(AA7:AA14) -> 1 | AB15: =-SUM(AB7:AB14) -> 1.721928095 | AF15: =SUM(AF7:AF14) -> 1 | AG15: =-SUM(AG7:AG14) -> 1.561278124 | AK15: =SUM(AK7:AK14) -> 1 | AL15: =-SUM(AL7:AL14) -> 1.530493057 | AP15: =SUM(AP7:AP14) -> 1 | AQ15: =-SUM(AQ7:AQ14) -> 1.570950594 | AU15: =SUM(AU7:AU14) -> 1 | AV15: =-SUM(AV7:AV14) -> 1.351644115
A16: 12 | B16: 1652 | C16: 24 | D16: 1685 | E16: 24 | F16: 1693 | K16: 0 | L16: 122 | P16: U= | Q16: =Q15/(LOG(Q4)/LOG(2)) -> 0.3414486041 | V16: U1= | W16: =W15/(LOG(W4)/LOG(2)) -> 0.4925284112 | AA16: U2= | AB16: =AB15/(LOG(AB4)/LOG(2)) -> 0.5183520069 | AF16: U3= | AG16: =AG15/(LOG(AG4)/LOG(2)) -> 0.4925284112 | AK16: U4= | AL16: =AL15/(LOG(AL4)/LOG(2)) -> 0.4828168036 | AP16: U5= | AQ16: =AQ15/(LOG(AQ4)/LOG(2)) -> 0.4729032506 | AU16: U6= | AV16: =AV15/(LOG(AV4)/LOG(2)) -> 0.4263962442
A17: 12 | B17: 1790 | C17: 13 | D17: 1792 | E17: 13 | F17: 1810 | K17: 0 | L17: 111
A18: 12 | B18: 1911 | C18: 24 | D18: 1925 | E18: 24 | F18: 1932 | K18: 0 | L18: 122
A19: 12 | B19: 2085 | C19: 13 | D19: 2098 | E19: 13 | F19: 2118 | K19: 0 | L19: 111 | N19: Total Target Seq
A20: 12 | B20: 2217 | C20: 13 | D20: 2237 | E20: 13 | F20: 2250 | K20: 0 | L20: 111 | N20: =COUNTIF(L7:L62,G3) -> 2 | P20: 9 | Q20: 10 | R20: 9 | S20: 9 | T20: 10 | U20: 9
A21: 12 | B21: 2407 | C21: 13 | D21: 2409 | E21: 13 | F21: 2420 | K21: 0 | L21: 111 | P21: % of reinforcement given in 6 equal intervals based on number of trials
A22: 12 | B22: 2520 | C22: 24 | D22: 2551 | E22: 24 | F22: 2557 | K22: 0 | L22: 122 | P22: %_1 | Q22: %_2 | R22: %_3 | S22: %_4 | T22: %_5 | U22: %_6
A23: 12 | B23: 2680 | C23: 13 | D23: 2689 | E23: 24 | F23: 2709 | K23: 0 | L23: 112 | O23: target sequence | P23: =$G$3 -> 211 | Q23: =$G$3 -> 211 | R23: =$G$3 -> 211 | S23: =$G$3 -> 211 | T23: =$G$3 -> 211 | U23: =$G$3 -> 211
A24: 12 | B24: 2819 | C24: 24 | D24: 2835 | E24: 24 | F24: 2843 | K24: 0 | L24: 122 | O24: total reinforcement | P24: =U11 -> 1 | Q24: =Z11 -> 0 | R24: =AE11 -> 1 | S24: =AJ11 -> 0 | T24: =AO11 -> 0 | U24: =AT11 -> 0
A25: 21 | B25: 3108 | C25: 22 | D25: 3116 | E25: 24 | F25: 3124 | K25: 0 | L25: 222 | O25: % target
A26: 12 | B26: 3532 | C26: 24 | D26: 3555 | E26: 13 | F26: 3639 | K26: 0 | L26: 121 | O26: CCRF
A27: 12 | B27: 3903 | C27: 13 | D27: 3981 | E27: 13 | F27: 3991 | K27: 0 | L27: 111 | O27: % CCRf
A28: 12 | B28: 4094 | C28: 24 | D28: 4122 | E28: 13 | F28: 4127 | K28: 0 | L28: 121 | O28: average response rate | P28: =F15/P20 -> 165.2222222 | Q28: =(F25-F15)/Q20 -> 163.7 | R28: =(F34-F25)/R20 -> 215.6666667 | S28: =(F43-F34)/S20 -> 187 | T28: =(F53-F43)/T20 -> 220.8 | U28: =(F62-F53)/U20 -> 1579.555556
A29: 12 | B29: 4224 | C29: 24 | D29: 4245 | E29: 24 | F29: 4253 | K29: 0 | L29: 122
A30: 12 | B30: 4351 | C30: 13 | D30: 4385 | E30: 13 | F30: 4478 | K30: 0 | L30: 111
A31: 12 | B31: 4582 | C31: 24 | D31: 4604 | E31: 24 | F31: 4613 | K31: 0 | L31: 122
A32: 12 | B32: 4759 | C32: 24 | D32: 4793 | E32: 24 | F32: 4802 | K32: 0 | L32: 122
A33: 12 | B33: 4897 | C33: 13 | D33: 4922 | E33: 13 | F33: 4937 | K33: 0 | L33: 111
A34: 21 | B34: 5041 | C34: 11 | D34: 5056 | E34: 11 | F34: 5065 | K34: 0 | L34: 211
A35: 12 | B35: 5583 | C35: 13 | D35: 5591 | E35: 24 | F35: 5611 | K35: 0 | L35: 112
A36: 12 | B36: 5726 | C36: 13 | D36: 5753 | E36: 13 | F36: 5769 | K36: 0 | L36: 111
A37: 12 | B37: 5929 | C37: 13 | D37: 5938 | E37: 24 | F37: 5964 | K37: 0 | L37: 112
A38: 12 | B38: 6076 | C38: 13 | D38: 6083 | E38: 24 | F38: 6111 | K38: 0 | L38: 112
A39: 12 | B39: 6227 | C39: 24 | D39: 6255 | E39: 24 | F39: 6264 | K39: 0 | L39: 122
A40: 12 | B40: 6361 | C40: 13 | D40: 6366 | E40: 13 | F40: 6376 | K40: 0 | L40: 111
A41: 12 | B41: 6503 | C41: 24 | D41: 6525 | E41: 24 | F41: 6534 | K41: 0 | L41: 122
A42: 12 | B42: 6625 | C42: 13 | D42: 6629 | E42: 13 | F42: 6639 | K42: 0 | L42: 111
A43: 12 | B43: 6735 | C43: 13 | D43: 6743 | E43: 13 | F43: 6748 | K43: 0 | L43: 111
A44: 12 | B44: 7177 | C44: 13 | D44: 7187 | E44: 24 | F44: 7208 | K44: 0 | L44: 112
A45: 12 | B45: 7355 | C45: 13 | D45: 7369 | E45: 24 | F45: 7400 | K45: 0 | L45: 112
A46: 12 | B46: 7519 | C46: 13 | D46: 7527 | E46: 13 | F46: 7536 | K46: 0 | L46: 111
A47: 12 | B47: 7793 | C47: 13 | D47: 7802 | E47: 24 | F47: 7820 | K47: 0 | L47: 112
A48: 12 | B48: 7916 | C48: 13 | D48: 7965 | E48: 13 | F48: 7976 | K48: 0 | L48: 111
A49: 12 | B49: 8075 | C49: 24 | D49: 8093 | E49: 24 | F49: 8102 | K49: 0 | L49: 122
A50: 12 | B50: 8208 | C50: 24 | D50: 8231 | E50: 24 | F50: 8238 | K50: 0 | L50: 122
A51: 12 | B51: 8409 | C51: 13 | D51: 8418 | E51: 24 | F51: 8435 | K51: 0 | L51: 112
A52: 12 | B52: 8787 | C52: 13 | D52: 8794 | E52: 13 | F52: 8803 | K52: 0 | L52: 111
A53: 12 | B53: 8927 | C53: 24 | D53: 8947 | E53: 24 | F53: 8956 | K53: 0 | L53: 122
A54: 12 | B54: 9054 | C54: 13 | D54: 9060 | E54: 13 | F54: 9070 | K54: 0 | L54: 111
A55: 12 | B55: 9996 | C55: 24 | D55: 10021 | E55: 24 | F55: 10031 | K55: 0 | L55: 122
A56: 12 | B56: 10130 | C56: 13 | D56: 10158 | E56: 13 | F56: 10176 | K56: 0 | L56: 111
A57: 12 | B57: 10487 | C57: 24 | D57: 10507 | E57: 24 | F57: 10516 | K57: 0 | L57: 122
A58: 12 | B58: 10777 | C58: 13 | D58: 10784 | E58: 24 | F58: 10803 | K58: 0 | L58: 112
A59: 12 | B59: 21916 | C59: 24 | D59: 21942 | E59: 24 | F59: 21950 | K59: 0 | L59: 122
A60: 12 | B60: 22175 | C60: 13 | D60: 22187 | E60: 13 | F60: 22192 | K60: 0 | L60: 111
A61: 12 | B61: 22974 | C61: 24 | D61: 22997 | E61: 24 | F61: 23010 | K61: 0 | L61: 122
A62: 12 | B62: 23123 | C62: 24 | D62: 23163 | E62: 24 | F62: 23172 | K62: 0 | L62: 122

Sheet !L831A2B.axt
A1: Report for:!L831A2B.axt
A2: Date: | B2: <date>
A3: Hen: | B3: <hen> | F3: Correct Sequence | G3: =Start!J2 -> 211 | P3: Total Sequences in Data | Q3: =4994-COUNTBLANK(L7:L5000) -> 46 | V3: Total Sequences in Block Data | W3: =COUNTA(L7:L14) -> 8 | AA3: Total Sequences in Block Data | AB3: =COUNTA(L15:L21) -> 7 | AF3: Total Sequences in Block Data | AG3: =COUNTA(L22:L29) -> 8 | AK3: Total Sequences in Block Data | AL3: =COUNTA(L30:L37) -> 8 | AP3: Total Sequences in Block Data | AQ3: =COUNTA(L38:L44) -> 7 | AU3: Total Sequences in Block Data | AV3: =COUNTA(L45:L52) -> 8
P4: Total Sequences in Summary | Q4: =SUM(O7:O14) -> 46 | V4: Total Sequences in Block Summary | W4: =SUM(U7:U14) -> 8 | AA4: Total Sequences in Block Summary | AB4: =SUM(Z7:Z14) -> 7 | AF4: Total Sequences in Block Summary | AG4: =SUM(AE7:AE14) -> 8 | AK4: Total Sequences in Block Summary | AL4: =SUM(AJ7:AJ14) -> 8 | AP4: Total Sequences in Block Summary | AQ4: =SUM(AO7:AO14) -> 7 | AU4: Total Sequences in Block Summary | AV4: =SUM(AT7:AT14) -> 8
T5: Block 1 | Y5: Block 2 | AD5: Block 3 | AI5: Block 4 | AN5: Block 5 | AS5: Block 6
A6: Sequence Component 1 | B6: Time 1 | C6: Sequence Component 2 | D6: Time 2 | E6: Sequence Component 3 | F6: Time 3 | G6: Sequence Component 4 | H6: Time 4 | I6: Sequence Component 5 | J6: Time 5 | K6: Correct? 0=No 1=Yes | L6: Sequence | N6: Frequency | P6: Relative Frequency | Q6: Variability | T6: Frequency | V6: Relative Frequency | W6: Variability | Y6: Frequency | AA6: Relative Frequency | AB6: Variability | AD6: Frequency | AF6: Relative Frequency | AG6: Variability | AI6: Frequency | AK6: Relative Frequency | AL6: Variability | AN6: Frequency | AP6: Relative Frequency | AQ6: Variability | AS6: Frequency | AU6: Relative Frequency | AV6: Variability
A7: 12 | B7: 10 | C7: 13 | D7: 19 | E7: 24 | F7: 45 | K7: 0 | L7: 112 | N7: 111 | O7: =COUNTIF($L$7:$L$500,N7) -> 19 | P7: =O7/$Q$4 -> 0.4130434783 | Q7: =IF(P7=0,0,(P7*((LOG(P7))/LOG(2)))) -> -0.5268924872 | T7: =N7 -> 111 | U7: =COUNTIF(L7:L14,T7) -> 3 | V7: =U7/(W4-U11) -> 0.375 | W7: =IF(V7=0,0,(V7*((LOG(V7))/LOG(2)))) -> -0.5306390622 | Y7: =N7 -> 111 | Z7: =COUNTIF(L15:L21,Y7) -> 2 | AA7: =Z7/(AB4-Z11) -> 0.2857142857 | AB7: =IF(AA7=0,0,(AA7*((LOG(AA7))/LOG(2)))) -> -0.5163871206 | AD7: =N7 -> 111 | AE7: =COUNTIF(L22:L29,AD7) -> 3 | AF7: =AE7/(AG4-AE11) -> 0.375 | AG7: =IF(AF7=0,0,(AF7*((LOG(AF7))/LOG(2)))) -> -0.5306390622 | AI7: =N7 -> 111 | AJ7: =COUNTIF(L30:L37,AI7) -> 4 | AK7: =AJ7/(AL4-AJ11) -> 0.5 | AL7: =IF(AK7=0,0,(AK7*((LOG(AK7))/LOG(2)))) -> -0.5 | AN7: =N7 -> 111 | AO7: =COUNTIF(L38:L44,AN7) -> 2 | AP7: =AO7/(AQ4-AO11) -> 0.2857142857 | AQ7: =IF(AP7=0,0,(AP7*((LOG(AP7))/LOG(2)))) -> -0.5163871206 | AS7: =N7 -> 111 | AT7: =COUNTIF(L45:L52,AS7) -> 5 | AU7: =AT7/(AV4-AT11) -> 0.7142857143 | AV7: =IF(AU7=0,0,(AU7*((LOG(AU7))/LOG(2)))) -> -0.346733448
A8: 12 | B8: 141 | C8: 13 | D8: 148 | E8: 24 | F8: 165 | K8: 0 | L8: 112 | N8: 112 | O8: =COUNTIF($L$7:$L$500,N8) -> 11 | P8: =O8/$Q$4 -> 0.2391304348 | Q8: =IF(P8=0,0,(P8*((LOG(P8))/LOG(2)))) -> -0.493596385 | T8: =N8 -> 112 | U8: =COUNTIF(L7:L14,T8) -> 2 | V8: =U8/(W4-U11) -> 0.25 | W8: =IF(V8=0,0,(V8*((LOG(V8))/LOG(2)))) -> -0.5 | Y8: =N8 -> 112 | Z8: =COUNTIF(L15:L21,Y8) -> 1 | AA8: =Z8/(AB4-Z11) -> 0.1428571429 | AB8: =IF(AA8=0,0,(AA8*((LOG(AA8))/LOG(2)))) -> -0.4010507032 | AD8: =N8 -> 112 | AE8: =COUNTIF(L22:L29,AD8) -> 4 | AF8: =AE8/(AG4-AE11) -> 0.5 | AG8: =IF(AF8=0,0,(AF8*((LOG(AF8))/LOG(2)))) -> -0.5 | AI8: =N8 -> 112 | AJ8: =COUNTIF(L30:L37,AI8) -> 1 | AK8: =AJ8/(AL4-AJ11) -> 0.125 | AL8: =IF(AK8=0,0,(AK8*((LOG(AK8))/LOG(2)))) -> -0.375 | AN8: =N8 -> 112 | AO8: =COUNTIF(L38:L44,AN8) -> 3 | AP8: =AO8/(AQ4-AO11) -> 0.4285714286 | AQ8: =IF(AP8=0,0,(AP8*((LOG(AP8))/LOG(2)))) -> -0.5238824663 | AS8: =N8 -> 112 | AT8: =COUNTIF(L45:L52,AS8) -> 0 | AU8: =AT8/(AV4-AT11) -> 0 | AV8: =IF(AU8=0,0,(AU8*((LOG(AU8))/LOG(2)))) -> 0
A9: 12 | B9: 266 | C9: 13 | D9: 276 | E9: 13 | F9: 291 | K9: 0 | L9: 111 | N9: 121 | O9: =COUNTIF($L$7:$L$500,N9) -> 3 | P9: =O9/$Q$4 -> 0.0652173913 | Q9: =IF(P9=0,0,(P9*((LOG(P9))/LOG(2)))) -> -0.2568651819 | T9: =N9 -> 121 | U9: =COUNTIF(L7:L14,T9) -> 0 | V9: =U9/(W4-U11) -> 0 | W9: =IF(V9=0,0,(V9*((LOG(V9))/LOG(2)))) -> 0 | Y9: =N9 -> 121 | Z9: =COUNTIF(L15:L21,Y9) -> 0 | AA9: =Z9/(AB4-Z11) -> 0 | AB9: =IF(AA9=0,0,(AA9*((LOG(AA9))/LOG(2)))) -> 0 | AD9: =N9 -> 121 | AE9: =COUNTIF(L22:L29,AD9) -> 0 | AF9: =AE9/(AG4-AE11) -> 0 | AG9: =IF(AF9=0,0,(AF9*((LOG(AF9))/LOG(2)))) -> 0 | AI9: =N9 -> 121 | AJ9: =COUNTIF(L30:L37,AI9) -> 0 | AK9: =AJ9/(AL4-AJ11) -> 0 | AL9: =IF(AK9=0,0,(AK9*((LOG(AK9))/LOG(2)))) -> 0 | AN9: =N9 -> 121 | AO9: =COUNTIF(L38:L44,AN9) -> 2 | AP9: =AO9/(AQ4-AO11) -> 0.2857142857 | AQ9: =IF(AP9=0,0,(AP9*((LOG(AP9))/LOG(2)))) -> -0.5163871206 | AS9: =N9 -> 121 | AT9: =COUNTIF(L45:L52,AS9) -> 1 | AU9: =AT9/(AV4-AT11) -> 0.1428571429 | AV9: =IF(AU9=0,0,(AU9*((LOG(AU9))/LOG(2)))) -> -0.4010507032
A10: 12 | B10: 402 | C10: 24 | D10: 428 | E10: 24 | F10: 435 | K10: 0 | L10: 122 | N10: 122 | O10: =COUNTIF($L$7:$L$500,N10) -> 7 | P10: =O10/$Q$4 -> 0.152173913 | Q10: =IF(P10=0,0,(P10*((LOG(P10))/LOG(2)))) -> -0.413335853 | T10: =N10 -> 122 | U10: =COUNTIF(L7:L14,T10) -> 2 | V10: =U10/(W4-U11) -> 0.25 | W10: =IF(V10=0,0,(V10*((LOG(V10))/LOG(2)))) -> -0.5 | Y10: =N10 -> 122 | Z10: =COUNTIF(L15:L21,Y10) -> 3 | AA10: =Z10/(AB4-Z11) -> 0.4285714286 | AB10: =IF(AA10=0,0,(AA10*((LOG(AA10))/LOG(2)))) -> -0.5238824663 | AD10: =N10 -> 122 | AE10: =COUNTIF(L22:L29,AD10) -> 1 | AF10: =AE10/(AG4-AE11) -> 0.125 | AG10: =IF(AF10=0,0,(AF10*((LOG(AF10))/LOG(2)))) -> -0.375 | AI10: =N10 -> 122 | AJ10: =COUNTIF(L30:L37,AI10) -> 1 | AK10: =AJ10/(AL4-AJ11) -> 0.125 | AL10: =IF(AK10=0,0,(AK10*((LOG(AK10))/LOG(2)))) -> -0.375 | AN10: =N10 -> 122 | AO10: =COUNTIF(L38:L44,AN10) -> 0 | AP10: =AO10/(AQ4-AO11) -> 0 | AQ10: =IF(AP10=0,0,(AP10*((LOG(AP10))/LOG(2)))) -> 0 | AS10: =N10 -> 122 | AT10: =COUNTIF(L45:L52,AS10) -> 0 | AU10: =AT10/(AV4-AT11) -> 0 | AV10: =IF(AU10=0,0,(AU10*((LOG(AU10))/LOG(2)))) -> 0
A11: 12 | B11: 559 | C11: 24 | D11: 581 | E11: 24 | F11: 594 | K11: 0 | L11: 122 | N11: 211 | O11: =COUNTIF($L$7:$L$500,N11) -> 1 | P11: =O11/$Q$4 -> 0.02173913043 | Q11: =IF(P11=0,0,(P11*((LOG(P11))/LOG(2)))) -> -0.1200774338 | T11: =N11 -> 211 | U11: =COUNTIF(L7:L14,T11) -> 0 | Y11: =N11 -> 211 | Z11: =COUNTIF(L15:L21,Y11) -> 0 | AD11: =N11 -> 211 | AE11: =COUNTIF(L22:L29,AD11) -> 0 | AI11: =N11 -> 211 | AJ11: =COUNTIF(L30:L37,AI11) -> 0 | AN11: =N11 -> 211 | AO11: =COUNTIF(L38:L44,AN11) -> 0 | AS11: =N11 -> 211 | AT11: =COUNTIF(L45:L52,AS11) -> 1
A12: 12 | B12: 697 | C12: 13 | D12: 726 | E12: 13 | F12: 728 | K12: 0 | L12: 111 | N12: 212 | O12: =COUNTIF($L$7:$L$500,N12) -> 0 | P12: =O12/$Q$4 -> 0 | Q12: =IF(P12=0,0,(P12*((LOG(P12))/LOG(2)))) -> 0 | T12: =N12 -> 212 | U12: =COUNTIF(L7:L14,T12) -> 0 | V12: =U12/(W4-U11) -> 0 | W12: =IF(V12=0,0,(V12*((LOG(V12))/LOG(2)))) -> 0 | Y12: =N12 -> 212 | Z12: =COUNTIF(L15:L21,Y12) -> 0 | AA12: =Z12/(AB4-Z11) -> 0 | AB12: =IF(AA12=0,0,(AA12*((LOG(AA12))/LOG(2)))) -> 0 | AD12: =N12 -> 212 | AE12: =COUNTIF(L22:L29,AD12) -> 0 | AF12: =AE12/(AG4-AE11) -> 0 | AG12: =IF(AF12=0,0,(AF12*((LOG(AF12))/LOG(2)))) -> 0 | AI12: =N12 -> 212 | AJ12: =COUNTIF(L30:L37,AI12) -> 0 | AK12: =AJ12/(AL4-AJ11) -> 0 | AL12: =IF(AK12=0,0,(AK12*((LOG(AK12))/LOG(2)))) -> 0 | AN12: =N12 -> 212 | AO12: =COUNTIF(L38:L44,AN12) -> 0 | AP12: =AO12/(AQ4-AO11) -> 0 | AQ12: =IF(AP12=0,0,(AP12*((LOG(AP12))/LOG(2)))) -> 0 | AS12: =N12 -> 212 | AT12: =COUNTIF(L45:L52,AS12) -> 0 | AU12: =AT12/(AV4-AT11) -> 0 | AV12: =IF(AU12=0,0,(AU12*((LOG(AU12))/LOG(2)))) -> 0
A13: 12 | B13: 824 | C13: 13 | D13: 829 | E13: 13 | F13: 853 | K13: 0 | L13: 111 | N13: 221 | O13: =COUNTIF($L$7:$L$500,N13) -> 0 | P13: =O13/$Q$4 -> 0 | Q13: =IF(P13=0,0,(P13*((LOG(P13))/LOG(2)))) -> 0 | T13: =N13 -> 221 | U13: =COUNTIF(L7:L14,T13) -> 0 | V13: =U13/(W4-U11) -> 0 | W13: =IF(V13=0,0,(V13*((LOG(V13))/LOG(2)))) -> 0 | Y13: =N13 -> 221 | Z13: =COUNTIF(L15:L21,Y13) -> 0 | AA13: =Z13/(AB4-Z11) -> 0 | AB13: =IF(AA13=0,0,(AA13*((LOG(AA13))/LOG(2)))) -> 0 | AD13: =N13 -> 221 | AE13: =COUNTIF(L22:L29,AD13) -> 0 | AF13: =AE13/(AG4-AE11) -> 0 | AG13: =IF(AF13=0,0,(AF13*((LOG(AF13))/LOG(2)))) -> 0 | AI13: =N13 -> 221 | AJ13: =COUNTIF(L30:L37,AI13) -> 0 | AK13: =AJ13/(AL4-AJ11) -> 0 | AL13: =IF(AK13=0,0,(AK13*((LOG(AK13))/LOG(2)))) -> 0 | AN13: =N13 -> 221 | AO13: =COUNTIF(L38:L44,AN13) -> 0 | AP13: =AO13/(AQ4-AO11) -> 0 | AQ13: =IF(AP13=0,0,(AP13*((LOG(AP13))/LOG(2)))) -> 0 | AS13: =N13 -> 221 | AT13: =COUNTIF(L45:L52,AS13) -> 0 | AU13: =AT13/(AV4-AT11) -> 0 | AV13: =IF(AU13=0,0,(AU13*((LOG(AU13))/LOG(2)))) -> 0
A14: 21 | B14: 1136 | C14: 22 | D14: 1143 | E14: 24 | F14: 1151 | K14: 0 | L14: 222 | N14: 222 | O14: =COUNTIF($L$7:$L$500,N14) -> 5 | P14: =O14/$Q$4 -> 0.1086956522 | Q14: =IF(P14=0,0,(P14*((LOG(P14))/LOG(2)))) -> -0.3480036806 | T14: =N14 -> 222 | U14: =COUNTIF(L7:L14,T14) -> 1 | V14: =U14/(W4-U11) -> 0.125 | W14: =IF(V14=0,0,(V14*((LOG(V14))/LOG(2)))) -> -0.375 | Y14: =N14 -> 222 | Z14: =COUNTIF(L15:L21,Y14) -> 1 | AA14: =Z14/(AB4-Z11) -> 0.1428571429 | AB14: =IF(AA14=0,0,(AA14*((LOG(AA14))/LOG(2)))) -> -0.4010507032 | AD14: =N14 -> 222 | AE14: =COUNTIF(L22:L29,AD14) -> 0 | AF14: =AE14/(AG4-AE11) -> 0 | AG14: =IF(AF14=0,0,(AF14*((LOG(AF14))/LOG(2)))) -> 0 | AI14: =N14 -> 222 | AJ14: =COUNTIF(L30:L37,AI14) -> 2 | AK14: =AJ14/(AL4-AJ11) -> 0.25 | AL14: =IF(AK14=0,0,(AK14*((LOG(AK14))/LOG(2)))) -> -0.5 | AN14: =N14 -> 222 | AO14: =COUNTIF(L38:L44,AN14) -> 0 | AP14: =AO14/(AQ4-AO11) -> 0 | AQ14: =IF(AP14=0,0,(AP14*((LOG(AP14))/LOG(2)))) -> 0 | AS14: =N14 -> 222 | AT14: =COUNTIF(L45:L52,AS14) -> 1 | AU14: =AT14/(AV4-AT11) -> 0.1428571429 | AV14: =IF(AU14=0,0,(AU14*((LOG(AU14))/LOG(2)))) -> -0.4010507032
A15: 12 | B15: 1392 | C15: 24 | D15: 1411 | E15: 24 | F15: 1419 | K15: 0 | L15: 122 | P15: =SUM(P7:P14) -> 1 | Q15: =-SUM(Q7:Q14) -> 2.158771021 | V15: =SUM(V7:V14) -> 1 | W15: =-SUM(W7:W14) -> 1.905639062 | AA15: =SUM(AA7:AA14) -> 1 | AB15: =-SUM(AB7:AB14) -> 1.842370993 | AF15: =SUM(AF7:AF14) -> 1 | AG15: =-SUM(AG7:AG14) -> 1.405639062 | AK15: =SUM(AK7:AK14) -> 1 | AL15: =-SUM(AL7:AL14) -> 1.75 | AP15: =SUM(AP7:AP14) -> 1 | AQ15: =-SUM(AQ7:AQ14) -> 1.556656707 | AU15: =SUM(AU7:AU14) -> 1 | AV15: =-SUM(AV7:AV14) -> 1.148834854
A16: 21 | B16: 1548 | C16: 22 | D16: 1557 | E16: 24 | F16: 1565 | K16: 0 | L16: 222 | P16: U= | Q16: =Q15/(LOG(Q4)/LOG(2)) -> 0.3908295116 | V16: U1= | W16: =W15/(LOG(W4)/LOG(2)) -> 0.6352130207 | AA16: U2= | AB16: =AB15/(LOG(AB4)/LOG(2)) -> 0.6562657891 | AF16: U3= | AG16: =AG15/(LOG(AG4)/LOG(2)) -> 0.4685463541 | AK16: U4= | AL16: =AL15/(LOG(AL4)/LOG(2)) -> 0.5833333333 | AP16: U5= | AQ16: =AQ15/(LOG(AQ4)/LOG(2)) -> 0.5544923071 | AU16: U6= | AV16: =AV15/(LOG(AV4)/LOG(2)) -> 0.3829449514
A17: 12 | B17: 1661 | C17: 13 | D17: 1675 | E17: 13 | F17: 1689 | K17: 0 | L17: 111
A18: 12 | B18: 1792 | C18: 24 | D18: 1819 | E18: 24 | F18: 1828 | K18: 0 | L18: 122
A19: 12 | B19: 1921 | C19: 13 | D19: 1965 | E19: 13 | F19: 1974 | K19: 0 | L19: 111 | N19: Total Target Seq
A20: 12 | B20: 2071 | C20: 13 | D20: 2078 | E20: 24 | F20: 2114 | K20: 0 | L20: 112 | N20: =COUNTIF(L7:L52,G3) -> 1 | P20: 8 | Q20: 7 | R20: 8 | S20: 8 | T20: 7 | U20: 8
A21: 12 | B21: 2264 | C21: 24 | D21: 2288 | E21: 24 | F21: 2296 | K21: 0 | L21: 122 | P21: % of reinforcement given in 6 equal intervals based on number of trials
A22: 12 | B22: 2420 | C22: 13 | D22: 2428 | E22: 24 | F22: 2441 | K22: 0 | L22: 112 | P22: %_1 | Q22: %_2 | R22: %_3 | S22: %_4 | T22: %_5 | U22: %_6
A23: 12 | B23: 2576 | C23: 13 | D23: 2584 | E23: 24 | F23: 2613 | K23: 0 | L23: 112 | O23: target sequence | P23: =$G$3 -> 211 | Q23: =$G$3 -> 211 | R23: =$G$3 -> 211 | S23: =$G$3 -> 211 | T23: =$G$3 -> 211 | U23: =$G$3 -> 211
A24: 12 | B24: 3115 | C24: 13 | D24: 3125 | E24: 13 | F24: 3151 | K24: 0 | L24: 111 | O24: total reinforcement | P24: =U11 -> 0 | Q24: =Z11 -> 0 | R24: =AE11 -> 0 | S24: =AJ11 -> 0 | T24: =AO11 -> 0 | U24: =AT11 -> 1
A25: 12 | B25: 3287 | C25: 13 | D25: 3298 | E25: 24 | F25: 3317 | K25: 0 | L25: 112 | O25: % target
A26: 12 | B26: 3419 | C26: 13 | D26: 3441 | E26: 13 | F26: 3459 | K26: 0 | L26: 111 | O26: CCRF
A27: 12 | B27: 3853 | C27: 24 | D27: 3873 | E27: 24 | F27: 3881 | K27: 0 | L27: 122 | O27: % CCRf
A28: 12 | B28: 4269 | C28: 13 | D28: 4271 | E28: 13 | F28: 4281 | K28: 0 | L28: 111 | O28: average response rate | P28: =F14/P20 -> 143.875 | Q28: =(F21-F14)/Q20 -> 163.5714286 | R28: =(F29-F21)/R20 -> 289.5 | S28: =(F37-F29)/S20 -> 404.625 | T28: =(F44-F37)/T20 -> 560 | U28: =(F52-F44)/U20 -> 576.875
A29: 12 | B29: 4573 | C29: 13 | D29: 4583 | E29: 24 | F29: 4612 | K29: 0 | L29: 112
A30: 12 | B30: 4835 | C30: 24 | D30: 4849 | E30: 24 | F30: 4889 | K30: 0 | L30: 122
A31: 12 | B31: 5326 | C31: 13 | D31: 5332 | E31: 13 | F31: 5371 | K31: 0 | L31: 111
A32: 12 | B32: 5837 | C32: 13 | D32: 5845 | E32: 13 | F32: 5870 | K32: 0 | L32: 111
A33: 21 | B33: 5979 | C33: 22 | D33: 5991 | E33: 24 | F33: 6003 | K33: 0 | L33: 222
A34: 12 | B34: 6109 | C34: 13 | D34: 6121 | E34: 13 | F34: 6130 | K34: 0 | L34: 111
A35: 21 | B35: 6515 | C35: 22 | D35: 6524 | E35: 24 | F35: 6534 | K35: 0 | L35: 222
A36: 12 | B36: 6813 | C36: 13 | D36: 6829 | E36: 24 | F36: 6845 | K36: 0 | L36: 112
A37: 12 | B37: 7832 | C37: 13 | D37: 7841 | E37: 13 | F37: 7849 | K37: 0 | L37: 111
A38: 12 | B38: 8024 | C38: 13 | D38: 8034 | E38: 24 | F38: 8224 | K38: 0 | L38: 112
A39: 12 | B39: 9287 | C39: 24 | D39: 9301 | E39: 13 | F39: 9325 | K39: 0 | L39: 121
A40: 12 | B40: 9639 | C40: 13 | D40: 9651 | E40: 24 | F40: 9669 | K40: 0 | L40: 112
A41: 12 | B41: 9766 | C41: 24 | D41: 9778 | E41: 13 | F41: 9786 | K41: 0 | L41: 121
A42: 12 | B42: 9888 | C42: 13 | D42: 9942 | E42: 13 | F42: 9977 | K42: 0 | L42: 111
A43: 12 | B43: 11615 | C43: 13 | D43: 11622 | E43: 24 | F43: 11636 | K43: 0 | L43: 112
A44: 12 | B44: 11750 | C44: 13 | D44: 11761 | E44: 13 | F44: 11769 | K44: 0 | L44: 111
A45: 21 | B45: 15300 | C45: 11 | D45: 15334 | E45: 11 | F45: 15341 | K45: 0 | L45: 211
A46: 12 | B46: 15444 | C46: 24 | D46: 15465 | E46: 13 | F46: 15471 | K46: 0 | L46: 121
A47: 12 | B47: 15563 | C47: 13 | D47: 15570 | E47: 13 | F47: 15580 | K47: 0 | L47: 111
A48: 12 | B48: 15679 | C48: 13 | D48: 15681 | E48: 13 | F48: 15714 | K48: 0 | L48: 111
A49: 21 | B49: 15827 | C49: 22 | D49: 15836 | E49: 24 | F49: 15844 | K49: 0 | L49: 222
A50: 12 | B50: 16021 | C50: 13 | D50: 16027 | E50: 13 | F50: 16034 | K50: 0 | L50: 111
A51: 12 | B51: 16145 | C51: 13 | D51: 16192 | E51: 13 | F51: 16206 | K51: 0 | L51: 111
A52: 12 | B52: 16354 | C52: 13 | D52: 16378 | E52: 13 | F52: 16384 | K52: 0 | L52: 111

Sheet !L901A4B.axt
A1: Report for:!L901A4B.axt
A2: Date: | B2: <date>
A3: Hen: | B3: <hen> | F3: Correct Sequence | G3: =Start!J2 -> 211 | P3: Total Sequences in Data | Q3: =4994-COUNTBLANK(L7:L5000) -> 44 | V3: Total Sequences in Block Data | W3: =COUNTA(L7:L13) -> 7 | AA3: Total Sequences in Block Data | AB3: =COUNTA(L14:L21) -> 8 | AF3: Total Sequences in Block Data | AG3: =COUNTA(L22:L28) -> 7 | AK3: Total Sequences in Block Data | AL3: =COUNTA(L29:L35) -> 7 | AP3: Total Sequences in Block Data | AQ3: =COUNTA(L36:L43) -> 8 | AU3: Total Sequences in Block Data | AV3: =COUNTA(L44:L50) -> 7
P4: Total Sequences in Summary | Q4: =SUM(O7:O14) -> 44 | V4: Total Sequences in Block Summary | W4: =SUM(U7:U14) -> 7 | AA4: Total Sequences in Block Summary | AB4: =SUM(Z7:Z14) -> 8 | AF4: Total Sequences in Block Summary | AG4: =SUM(AE7:AE14) -> 7 | AK4: Total Sequences in Block Summary | AL4: =SUM(AJ7:AJ14) -> 7 | AP4: Total Sequences in Block Summary | AQ4: =SUM(AO7:AO14) -> 8 | AU4: Total Sequences in Block Summary | AV4: =SUM(AT7:AT14) -> 7
T5: Block 1 | Y5: Block 2 | AD5: Block 3 | AI5: Block 4 | AN5: Block 5 | AS5: Block 6
A6: Sequence Component 1 | B6: Time 1 | C6: Sequence Component 2 | D6: Time 2 | E6: Sequence Component 3 | F6: Time 3 | G6: Sequence Component 4 | H6: Time 4 | I6: Sequence Component 5 | J6: Time 5 | K6: Correct? 0=No 1=Yes | L6: Sequence | N6: Frequency | P6: Relative Frequency | Q6: Variability | T6: Frequency | V6: Relative Frequency | W6: Variability | Y6: Frequency | AA6: Relative Frequency | AB6: Variability | AD6: Frequency | AF6: Relative Frequency | AG6: Variability | AI6: Frequency | AK6: Relative Frequency | AL6: Variability | AN6: Frequency | AP6: Relative Frequency | AQ6: Variability | AS6: Frequency | AU6: Relative Frequency | AV6: Variability
A7: 12 | B7: 4 | C7: 13 | D7: 10 | E7: 24 | F7: 26 | K7: 0 | L7: 112 | N7: 111 | O7: =COUNTIF($L$7:$L$500,N7) -> 17 | P7: =O7/$Q$4 -> 0.3863636364 | Q7: =IF(P7=0,0,(P7*((LOG(P7))/LOG(2)))) -> -0.5300788458 | T7: =N7 -> 111 | U7: =COUNTIF(L7:L13,T7) -> 4 | V7: =U7/(W4-U11) -> 0.5714285714 | W7: =IF(V7=0,0,(V7*((LOG(V7))/LOG(2)))) -> -0.4613456697 | Y7: =N7 -> 111 | Z7: =COUNTIF(L14:L21,Y7) -> 3 | AA7: =Z7/(AB4-Z11) -> 0.375 | AB7: =IF(AA7=0,0,(AA7*((LOG(AA7))/LOG(2)))) -> -0.5306390622 | AD7: =N7 -> 111 | AE7: =COUNTIF(L22:L28,AD7) -> 4 | AF7: =AE7/(AG4-AE11) -> 0.5714285714 | AG7: =IF(AF7=0,0,(AF7*((LOG(AF7))/LOG(2)))) -> -0.4613456697 | AI7: =N7 -> 111 | AJ7: =COUNTIF(L29:L35,AI7) -> 1 | AK7: =AJ7/(AL4-AJ11) -> 0.1428571429 | AL7: =IF(AK7=0,0,(AK7*((LOG(AK7))/LOG(2)))) -> -0.4010507032 | AN7: =N7 -> 111 | AO7: =COUNTIF(L36:L43,AN7) -> 3 | AP7: =AO7/(AQ4-AO11) -> 0.375 | AQ7: =IF(AP7=0,0,(AP7*((LOG(AP7))/LOG(2)))) -> -0.5306390622 | AS7: =N7 -> 111 | AT7: =COUNTIF(L44:L50,AS7) -> 2 | AU7: =AT7/(AV4-AT11) -> 0.3333333333 | AV7: =IF(AU7=0,0,(AU7*((LOG(AU7))/LOG(2)))) -> -0.5283208336
A8: 12 | B8: 164 | C8: 13 | D8: 169 | E8: 13 | F8: 179 | K8: 0 | L8: 111 | N8: 112 | O8: =COUNTIF($L$7:$L$500,N8) -> 9 | P8: =O8/$Q$4 -> 0.2045454545 | Q8: =IF(P8=0,0,(P8*((LOG(P8))/LOG(2)))) -> -0.4683081717 | T8: =N8 -> 112 | U8: =COUNTIF(L7:L13,T8) -> 2 | V8: =U8/(W4-U11) -> 0.2857142857 | W8: =IF(V8=0,0,(V8*((LOG(V8))/LOG(2)))) -> -0.5163871206 | Y8: =N8 -> 112 | Z8: =COUNTIF(L14:L21,Y8) -> 2 | AA8: =Z8/(AB4-Z11) -> 0.25 | AB8: =IF(AA8=0,0,(AA8*((LOG(AA8))/LOG(2)))) -> -0.5 | AD8: =N8 -> 112 | AE8: =COUNTIF(L22:L28,AD8) -> 0 | AF8: =AE8/(AG4-AE11) -> 0 | AG8: =IF(AF8=0,0,(AF8*((LOG(AF8))/LOG(2)))) -> 0 | AI8: =N8 -> 112 | AJ8: =COUNTIF(L29:L35,AI8) -> 1 | AK8: =AJ8/(AL4-AJ11) -> 0.1428571429 | AL8: =IF(AK8=0,0,(AK8*((LOG(AK8))/LOG(2)))) -> -0.4010507032 | AN8: =N8 -> 112 | AO8: =COUNTIF(L36:L43,AN8) -> 1 | AP8: =AO8/(AQ4-AO11) -> 0.125 | AQ8: =IF(AP8=0,0,(AP8*((LOG(AP8))/LOG(2)))) -> -0.375 | AS8: =N8 -> 112 | AT8: =COUNTIF(L44:L50,AS8) -> 3 | AU8: =AT8/(AV4-AT11) -> 0.5 | AV8: =IF(AU8=0,0,(AU8*((LOG(AU8))/LOG(2)))) -> -0.5
A9: 12 | B9: 276 | C9: 13 | D9: 281 | E9: 24 | F9: 309 | K9: 0 | L9: 112 | N9: 121 | O9: =COUNTIF($L$7:$L$500,N9) -> 0 | P9: =O9/$Q$4 -> 0 | Q9: =IF(P9=0,0,(P9*((LOG(P9))/LOG(2)))) -> 0 | T9: =N9 -> 121 | U9: =COUNTIF(L7:L13,T9) -> 0 | V9: =U9/(W4-U11) -> 0 | W9: =IF(V9=0,0,(V9*((LOG(V9))/LOG(2)))) -> 0 | Y9: =N9 -> 121 | Z9: =COUNTIF(L14:L21,Y9) -> 0 | AA9: =Z9/(AB4-Z11) -> 0 | AB9: =IF(AA9=0,0,(AA9*((LOG(AA9))/LOG(2)))) -> 0 | AD9: =N9 -> 121 | AE9: =COUNTIF(L22:L28,AD9) -> 0 | AF9: =AE9/(AG4-AE11) -> 0 | AG9: =IF(AF9=0,0,(AF9*((LOG(AF9))/LOG(2)))) -> 0 | AI9: =N9 -> 121 | AJ9: =COUNTIF(L29:L35,AI9) -> 0 | AK9: =AJ9/(AL4-AJ11) -> 0 | AL9: =IF(AK9=0,0,(AK9*((LOG(AK9))/LOG(2)))) -> 0 | AN9: =N9 -> 121 | AO9: =COUNTIF(L36:L43,AN9) -> 0 | AP9: =AO9/(AQ4-AO11) -> 0 | AQ9: =IF(AP9=0,0,(AP9*((LOG(AP9))/LOG(2)))) -> 0 | AS9: =N9 -> 121 | AT9: =COUNTIF(L44:L50,AS9) -> 0 | AU9: =AT9/(AV4-AT11) -> 0 | AV9: =IF(AU9=0,0,(AU9*((LOG(AU9))/LOG(2)))) -> 0
A10: 21 | B10: 419 | C10: 22 | D10: 426 | E10: 24 | F10: 434 | K10: 0 | L10: 222 | N10: 122 | O10: =COUNTIF($L$7:$L$500,N10) -> 6 | P10: =O10/$Q$4 -> 0.1363636364 | Q10: =IF(P10=0,0,(P10*((LOG(P10))/LOG(2)))) -> -0.3919730615 | T10: =N10 -> 122 | U10: =COUNTIF(L7:L13,T10) -> 0 | V10: =U10/(W4-U11) -> 0 | W10: =IF(V10=0,0,(V10*((LOG(V10))/LOG(2)))) -> 0 | Y10: =N10 -> 122 | Z10: =COUNTIF(L14:L21,Y10) -> 1 | AA10: =Z10/(AB4-Z11) -> 0.125 | AB10: =IF(AA10=0,0,(AA10*((LOG(AA10))/LOG(2)))) -> -0.375 | AD10: =N10 -> 122 | AE10: =COUNTIF(L22:L28,AD10) -> 2 | AF10: =AE10/(AG4-AE11) -> 0.2857142857 | AG10: =IF(AF10=0,0,(AF10*((LOG(AF10))/LOG(2)))) -> -0.5163871206 | AI10: =N10 -> 122 | AJ10: =COUNTIF(L29:L35,AI10) -> 1 | AK10: =AJ10/(AL4-AJ11) -> 0.1428571429 | AL10: =IF(AK10=0,0,(AK10*((LOG(AK10))/LOG(2)))) -> -0.4010507032 | AN10: =N10 -> 122 | AO10: =COUNTIF(L36:L43,AN10) -> 1 | AP10: =AO10/(AQ4-AO11) -> 0.125 | AQ10: =IF(AP10=0,0,(AP10*((LOG(AP10))/LOG(2)))) -> -0.375 | AS10: =N10 -> 122 | AT10: =COUNTIF(L44:L50,AS10) -> 1 | AU10: =AT10/(AV4-AT11) -> 0.1666666667 | AV10: =IF(AU10=0,0,(AU10*((LOG(AU10))/LOG(2)))) -> -0.4308270835
A11: 12 | B11: 540 | C11: 13 | D11: 563 | E11: 13 | F11: 571 | K11: 0 | L11: 111 | N11: 211 | O11: =COUNTIF($L$7:$L$500,N11) -> 1 | P11: =O11/$Q$4 -> 0.02272727273 | Q11: =IF(P11=0,0,(P11*((LOG(P11))/LOG(2)))) -> -0.1240779913 | T11: =N11 -> 211 | U11: =COUNTIF(L7:L13,T11) -> 0 | Y11: =N11 -> 211 | Z11: =COUNTIF(L14:L21,Y11) -> 0 | AD11: =N11 -> 211 | AE11: =COUNTIF(L22:L28,AD11) -> 0 | AI11: =N11 -> 211 | AJ11: =COUNTIF(L29:L35,AI11) -> 0 | AN11: =N11 -> 211 | AO11: =COUNTIF(L36:L43,AN11) -> 0 | AS11: =N11 -> 211 | AT11: =COUNTIF(L44:L50,AS11) -> 1
A12: 12 | B12: 670 | C12: 13 | D12: 688 | E12: 13 | F12: 696 | K12: 0 | L12: 111 | N12: 212 | O12: =COUNTIF($L$7:$L$500,N12) -> 0 | P12: =O12/$Q$4 -> 0 | Q12: =IF(P12=0,0,(P12*((LOG(P12))/LOG(2)))) -> 0 | T12: =N12 -> 212 | U12: =COUNTIF(L7:L13,T12) -> 0 | V12: =U12/(W4-U11) -> 0 | W12: =IF(V12=0,0,(V12*((LOG(V12))/LOG(2)))) -> 0 | Y12: =N12 -> 212 | Z12: =COUNTIF(L14:L21,Y12) -> 0 | AA12: =Z12/(AB4-Z11) -> 0 | AB12: =IF(AA12=0,0,(AA12*((LOG(AA12))/LOG(2)))) -> 0 | AD12: =N12 -> 212 | AE12: =COUNTIF(L22:L28,AD12) -> 0 | AF12: =AE12/(AG4-AE11) -> 0 | AG12: =IF(AF12=0,0,(AF12*((LOG(AF12))/LOG(2)))) -> 0 | AI12: =N12 -> 212 | AJ12: =COUNTIF(L29:L35,AI12) -> 0 | AK12: =AJ12/(AL4-AJ11) -> 0 | AL12: =IF(AK12=0,0,(AK12*((LOG(AK12))/LOG(2)))) -> 0 | AN12: =N12 -> 212 | AO12: =COUNTIF(L36:L43,AN12) -> 0 | AP12: =AO12/(AQ4-AO11) -> 0 | AQ12: =IF(AP12=0,0,(AP12*((LOG(AP12))/LOG(2)))) -> 0 | AS12: =N12 -> 212 | AT12: =COUNTIF(L44:L50,AS12) -> 0 | AU12: =AT12/(AV4-AT11) -> 0 | AV12: =IF(AU12=0,0,(AU12*((LOG(AU12))/LOG(2)))) -> 0
A13: 12 | B13: 802 | C13: 13 | D13: 813 | E13: 13 | F13: 817 | K13: 0 | L13: 111 | N13: 221 | O13: =COUNTIF($L$7:$L$500,N13) -> 3 | P13: =O13/$Q$4 -> 0.06818181818 | Q13: =IF(P13=0,0,(P13*((LOG(P13))/LOG(2)))) -> -0.2641683489 | T13: =N13 -> 221 | U13: =COUNTIF(L7:L13,T13) -> 0 | V13: =U13/(W4-U11) -> 0 | W13: =IF(V13=0,0,(V13*((LOG(V13))/LOG(2)))) -> 0 | Y13: =N13 -> 221 | Z13: =COUNTIF(L14:L21,Y13) -> 0 | AA13: =Z13/(AB4-Z11) -> 0 | AB13: =IF(AA13=0,0,(AA13*((LOG(AA13))/LOG(2)))) -> 0 | AD13: =N13 -> 221 | AE13: =COUNTIF(L22:L28,AD13) -> 0 | AF13: =AE13/(AG4-AE11) -> 0 | AG13: =IF(AF13=0,0,(AF13*((LOG(AF13))/LOG(2)))) -> 0 | AI13: =N13 -> 221 | AJ13: =COUNTIF(L29:L35,AI13) -> 2 | AK13: =AJ13/(AL4-AJ11) -> 0.2857142857 | AL13: =IF(AK13=0,0,(AK13*((LOG(AK13))/LOG(2)))) -> -0.5163871206 | AN13: =N13 -> 221 | AO13: =COUNTIF(L36:L43,AN13) -> 1 | AP13: =AO13/(AQ4-AO11) -> 0.125 | AQ13: =IF(AP13=0,0,(AP13*((LOG(AP13))/LOG(2)))) -> -0.375 | AS13: =N13 -> 221 | AT13: =COUNTIF(L44:L50,AS13) -> 0 | AU13: =AT13/(AV4-AT11) -> 0 | AV13: =IF(AU13=0,0,(AU13*((LOG(AU13))/LOG(2)))) -> 0
A14: 12 | B14: 940 | C14: 13 | D14: 988 | E14: 24 | F14: 1000 | K14: 0 | L14: 112 | N14: 222 | O14: =COUNTIF($L$7:$L$500,N14) -> 8 | P14: =O14/$Q$4 -> 0.1818181818 | Q14: =IF(P14=0,0,(P14*((LOG(P14))/LOG(2)))) -> -0.4471693852 | T14: =N14 -> 222 | U14: =COUNTIF(L7:L13,T14) -> 1 | V14: =U14/(W4-U11) -> 0.1428571429 | W14: =IF(V14=0,0,(V14*((LOG(V14))/LOG(2)))) -> -0.4010507032 | Y14: =N14 -> 222 | Z14: =COUNTIF(L14:L21,Y14) -> 2 | AA14: =Z14/(AB4-Z11) -> 0.25 | AB14: =IF(AA14=0,0,(AA14*((LOG(AA14))/LOG(2)))) -> -0.5 | AD14: =N14 -> 222 | AE14: =COUNTIF(L22:L28,AD14) -> 1 | AF14: =AE14/(AG4-AE11) -> 0.1428571429 | AG14: =IF(AF14=0,0,(AF14*((LOG(AF14))/LOG(2)))) -> -0.4010507032 | AI14: =N14 -> 222 | AJ14: =COUNTIF(L29:L35,AI14) -> 2 | AK14: =AJ14/(AL4-AJ11) -> 0.2857142857 | AL14: =IF(AK14=0,0,(AK14*((LOG(AK14))/LOG(2)))) -> -0.5163871206 | AN14: =N14 -> 222 | AO14: =COUNTIF(L36:L43,AN14) -> 2 | AP14: =AO14/(AQ4-AO11) -> 0.25 | AQ14: =IF(AP14=0,0,(AP14*((LOG(AP14))/LOG(2)))) -> -0.5 | AS14: =N14 -> 222 | AT14: =COUNTIF(L44:L50,AS14) -> 0 | AU14: =AT14/(AV4-AT11) -> 0 | AV14: =IF(AU14=0,0,(AU14*((LOG(AU14))/LOG(2)))) -> 0
A15: 12 | B15: 1162 | C15: 24 | D15: 1189 | E15: 24 | F15: 1205 | K15: 0 | L15: 122 | P15: =SUM(P7:P14) -> 1 | Q15: =-SUM(Q7:Q14) -> 2.225775805 | V15: =SUM(V7:V14) -> 1 | W15: =-SUM(W7:W14) -> 1.378783493 | AA15: =SUM(AA7:AA14) -> 1 | AB15: =-SUM(AB7:AB14) -> 1.905639062 | AF15: =SUM(AF7:AF14) -> 1 | AG15: =-SUM(AG7:AG14) -> 1.378783493 | AK15: =SUM(AK7:AK14) -> 1 | AL15: =-SUM(AL7:AL14) -> 2.235926351 | AP15: =SUM(AP7:AP14) -> 1 | AQ15: =-SUM(AQ7:AQ14) -> 2.155639062 | AU15: =SUM(AU7:AU14) -> 1 | AV15: =-SUM(AV7:AV14) -> 1.459147917
A16: 12 | B16: 1573 | C16: 13 | D16: 1583 | E16: 24 | F16: 1607 | K16: 0 | L16: 112 | P16: U= | Q16: =Q15/(LOG(Q4)/LOG(2)) -> 0.4076936868 | V16: U1= | W16: =W15/(LOG(W4)/LOG(2)) -> 0.4911325898 | AA16: U2= | AB16: =AB15/(LOG(AB4)/LOG(2)) -> 0.6352130207 | AF16: U3= | AG16: =AG15/(LOG(AG4)/LOG(2)) -> 0.4911325898 | AK16: U4= | AL16: =AL15/(LOG(AL4)/LOG(2)) -> 0.7964530359 | AP16: U5= | AQ16: =AQ15/(LOG(AQ4)/LOG(2)) -> 0.7185463541 | AU16: U6= | AV16: =AV15/(LOG(AV4)/LOG(2)) -> 0.5197589751
A17: 12 | B17: 1700 | C17: 13 | D17: 1707 | E17: 13 | F17: 1711 | K17: 0 | L17: 111
A18: 21 | B18: 1835 | C18: 22 | D18: 1845 | E18: 24 | F18: 1853 | K18: 0 | L18: 222
A19: 21 | B19: 2006 | C19: 22 | D19: 2013 | E19: 24 | F19: 2021 | K19: 0 | L19: 222 | N19: Total Target Seq
A20: 12 | B20: 2135 | C20: 13 | D20: 2145 | E20: 13 | F20: 2154 | K20: 0 | L20: 111 | N20: =COUNTIF(L7:L50,G3) -> 1 | P20: 7 | Q20: 8 | R20: 7 | S20: 7 | T20: 8 | U20: 7
A21: 12 | B21: 2248 | C21: 13 | D21: 2252 | E21: 13 | F21: 2268 | K21: 0 | L21: 111 | P21: % of reinforcement given in 6 equal intervals based on number of trials
A22: 12 | B22: 2406 | C22: 24 | D22: 2423 | E22: 24 | F22: 2431 | K22: 0 | L22: 122 | P22: %_1 | Q22: %_2 | R22: %_3 | S22: %_4 | T22: %_5 | U22: %_6
A23: 12 | B23: 2535 | C23: 13 | D23: 2569 | E23: 13 | F23: 2579 | K23: 0 | L23: 111 | O23: target sequence | P23: =$G$3 -> 211 | Q23: =$G$3 -> 211 | R23: =$G$3 -> 211 | S23: =$G$3 -> 211 | T23: =$G$3 -> 211 | U23: =$G$3 -> 211
A24: 12 | B24: 2686 | C24: 13 | D24: 2690 | E24: 13 | F24: 2696 | K24: 0 | L24: 111 | O24: total reinforcement | P24: =U11 -> 0 | Q24: =Z11 -> 0 | R24: =AE11 -> 0 | S24: =AJ11 -> 0 | T24: =AO11 -> 0 | U24: =AT11 -> 1
A25: 12 | B25: 2792 | C25: 24 | D25: 2812 | E25: 24 | F25: 2820 | K25: 0 | L25: 122 | O25: % target
A26: 21 | B26: 2955 | C26: 22 | D26: 2962 | E26: 24 | F26: 2970 | K26: 0 | L26: 222 | O26: CCRF
A27: 12 | B27: 3074 | C27: 13 | D27: 3080 | E27: 13 | F27: 3089 | K27: 0 | L27: 111 | O27: % CCRf
A28: 12 | B28: 3299 | C28: 13 | D28: 3304 | E28: 13 | F28: 3329 | K28: 0 | L28: 111 | O28: average response rate | P28: =F13/P20 -> 116.7142857 | Q28: =(F21-F13)/Q20 -> 181.375 | R28: =(F28-F21)/R20 -> 151.5714286 | S28: =(F35-F28)/S20 -> 283 | T28: =(F43-F35)/T20 -> 1577.625 | U28: =(F50-F43)/U20 -> 844
A29: 21 | B29: 3453 | C29: 22 | D29: 3461 | E29: 24 | F29: 3482 | K29: 0 | L29: 222
A30: 21 | B30: 4042 | C30: 22 | D30: 4049 | E30: 13 | F30: 4084 | K30: 0 | L30: 221
A31: 21 | B31: 4514 | C31: 22 | D31: 4522 | E31: 13 | F31: 4563 | K31: 0 | L31: 221
A32: 12 | B32: 4668 | C32: 24 | D32: 4682 | E32: 24 | F32: 4689 | K32: 0 | L32: 122
A33: 12 | B33: 4924 | C33: 13 | D33: 4932 | E33: 13 | F33: 4940 | K33: 0 | L33: 111
A34: 12 | B34: 5054 | C34: 13 | D34: 5077 | E34: 24 | F34: 5102 | K34: 0 | L34: 112
A35: 21 | B35: 5293 | C35: 22 | D35: 5301 | E35: 24 | F35: 5310 | K35: 0 | L35: 222
A36: 12 | B36: 5412 | C36: 13 | D36: 5418 | E36: 13 | F36: 5424 | K36: 0 | L36: 111
A37: 21 | B37: 5977 | C37: 22 | D37: 5986 | E37: 24 | F37: 5995 | K37: 0 | L37: 222
A38: 12 | B38: 6223 | C38: 13 | D38: 6234 | E38: 13 | F38: 6242 | K38: 0 | L38: 111
A39: 12 | B39: 6366 | C39: 13 | D39: 6368 | E39: 13 | F39: 6377 | K39: 0 | L39: 111
A40: 21 | B40: 6525 | C40: 22 | D40: 6534 | E40: 13 | F40: 6561 | K40: 0 | L40: 221
A41: 21 | B41: 6808 | C41: 22 | D41: 6816 | E41: 24 | F41: 6825 | K41: 0 | L41: 222
A42: 12 | B42: 17370 | C42: 24 | D42: 17387 | E42: 24 | F42: 17395 | K42: 0 | L42: 122
A43: 12 | B43: 17876 | C43: 13 | D43: 17893 | E43: 24 | F43: 17931 | K43: 0 | L43: 112
A44: 12 | B44: 19406 | C44: 24 | D44: 19433 | E44: 24 | F44: 19444 | K44: 0 | L44: 122
A45: 12 | B45: 19821 | C45: 13 | D45: 19826 | E45: 24 | F45: 19833 | K45: 0 | L45: 112
A46: 12 | B46: 22734 | C46: 13 | D46: 22741 | E46: 24 | F46: 22759 | K46: 0 | L46: 112
A47: 21 | B47: 23131 | C47: 11 | D47: 23191 | E47: 11 | F47: 23198 | K47: 0 | L47: 211
A48: 12 | B48: 23438 | C48: 13 | D48: 23441 | E48: 13 | F48: 23447 | K48: 0 | L48: 111
A49: 12 | B49: 23639 | C49: 13 | D49: 23647 | E49: 13 | F49: 23659 | K49: 0 | L49: 111
A50: 12 | B50: 23758 | C50: 13 | D50: 23796 | E50: 24 | F50: 23839 | K50: 0 | L50: 112

Sheet !L90294B.axt
A1: Report for:!L90294B.axt
A2: Date: | B2: <date>
A3: Hen: | B3: <hen> | F3: Correct Sequence | G3: =Start!J2 -> 211 | P3: Total Sequences in Data | Q3: =4994-COUNTBLANK(L7:L5000) -> 14 | V3: Total Sequences in Block Data | W3: =COUNTA(L7:L8) -> 2 | AA3: Total Sequences in Block Data | AB3: =COUNTA(L9:L11) -> 3 | AF3: Total Sequences in Block Data | AG3: =COUNTA(L12:L13) -> 2 | AK3: Total Sequences in Block Data | AL3: =COUNTA(L14:L15) -> 2 | AP3: Total Sequences in Block Data | AQ3: =COUNTA(L16:L18) -> 3 | AU3: Total Sequences in Block Data | AV3: =COUNTA(L19:L20) -> 2
P4: Total Sequences in Summary | Q4: =SUM(O7:O14) -> 14 | V4: Total Sequences in Block Summary | W4: =SUM(U7:U14) -> 2 | AA4: Total Sequences in Block Summary | AB4: =SUM(Z7:Z14) -> 3 | AF4: Total Sequences in Block Summary | AG4: =SUM(AE7:AE14) -> 2 | AK4: Total Sequences in Block Summary | AL4: =SUM(AJ7:AJ14) -> 2 | AP4: Total Sequences in Block Summary | AQ4: =SUM(AO7:AO14) -> 3 | AU4: Total Sequences in Block Summary | AV4: =SUM(AT7:AT14) -> 2
T5: Block 1 | Y5: Block 2 | AD5: Block 3 | AI5: Block 4 | AN5: Block 5 | AS5: Block 6
A6: Sequence Component 1 | B6: Time 1 | C6: Sequence Component 2 | D6: Time 2 | E6: Sequence Component 3 | F6: Time 3 | G6: Sequence Component 4 | H6: Time 4 | I6: Sequence Component 5 | J6: Time 5 | K6: Correct? 0=No 1=Yes | L6: Sequence | N6: Frequency | P6: Relative Frequency | Q6: Variability | T6: Frequency | V6: Relative Frequency | W6: Variability | Y6: Frequency | AA6: Relative Frequency | AB6: Variability | AD6: Frequency | AF6: Relative Frequency | AG6: Variability | AI6: Frequency | AK6: Relative Frequency | AL6: Variability | AN6: Frequency | AP6: Relative Frequency | AQ6: Variability | AS6: Frequency | AU6: Relative Frequency | AV6: Variability
A7: 12 | B7: 2 | C7: 13 | D7: 21 | E7: 13 | F7: 30 | K7: 0 | L7: 111 | N7: 111 | O7: =COUNTIF($L$7:$L$500,N7) -> 8 | P7: =O7/$Q$4 -> 0.5714285714 | Q7: =IF(P7=0,0,(P7*((LOG(P7))/LOG(2)))) -> -0.4613456697 | T7: =N7 -> 111 | U7: =COUNTIF(L7:L8,T7) -> 1 | V7: =U7/(W4-U11) -> 0.5 | W7: =IF(V7=0,0,(V7*((LOG(V7))/LOG(2)))) -> -0.5 | Y7: =N7 -> 111 | Z7: =COUNTIF(L9:L11,Y7) -> 1 | AA7: =Z7/(AB4-Z11) -> 0.3333333333 | AB7: =IF(AA7=0,0,(AA7*((LOG(AA7))/LOG(2)))) -> -0.5283208336 | AD7: =N7 -> 111 | AE7: =COUNTIF(L12:L13,AD7) -> 2 | AF7: =AE7/(AG4-AE11) -> 1 | AG7: =IF(AF7=0,0,(AF7*((LOG(AF7))/LOG(2)))) -> 0 | AI7: =N7 -> 111 | AJ7: =COUNTIF(L14:L15,AI7) -> 0 | AK7: =AJ7/(AL4-AJ11) -> 0 | AL7: =IF(AK7=0,0,(AK7*((LOG(AK7))/LOG(2)))) -> 0 | AN7: =N7 -> 111 | AO7: =COUNTIF(L16:L18,AN7) -> 2 | AP7: =AO7/(AQ4-AO11) -> 0.6666666667 | AQ7: =IF(AP7=0,0,(AP7*((LOG(AP7))/LOG(2)))) -> -0.3899750005 | AS7: =N7 -> 111 | AT7: =COUNTIF(L19:L20,AS7) -> 2 | AU7: =AT7/(AV4-AT11) -> 1 | AV7: =IF(AU7=0,0,(AU7*((LOG(AU7))/LOG(2)))) -> 0
A8: 12 | B8: 123 | C8: 24 | D8: 140 | E8: 24 | F8: 146 | K8: 0 | L8: 122 | N8: 112 | O8: =COUNTIF($L$7:$L$500,N8) -> 2 | P8: =O8/$Q$4 -> 0.1428571429 | Q8: =IF(P8=0,0,(P8*((LOG(P8))/LOG(2)))) -> -0.4010507032 | T8: =N8 -> 112 | U8: =COUNTIF(L7:L8,T8) -> 0 | V8: =U8/(W4-U11) -> 0 | W8: =IF(V8=0,0,(V8*((LOG(V8))/LOG(2)))) -> 0 | Y8: =N8 -> 112 | Z8: =COUNTIF(L9:L11,Y8) -> 1 | AA8: =Z8/(AB4-Z11) -> 0.3333333333 | AB8: =IF(AA8=0,0,(AA8*((LOG(AA8))/LOG(2)))) -> -0.5283208336 | AD8: =N8 -> 112 | AE8: =COUNTIF(L12:L13,AD8) -> 0 | AF8: =AE8/(AG4-AE11) -> 0 | AG8: =IF(AF8=0,0,(AF8*((LOG(AF8))/LOG(2)))) -> 0 | AI8: =N8 -> 112 | AJ8: =COUNTIF(L14:L15,AI8) -> 1 | AK8: =AJ8/(AL4-AJ11) -> 0.5 | AL8: =IF(AK8=0,0,(AK8*((LOG(AK8))/LOG(2)))) -> -0.5 | AN8: =N8 -> 112 | AO8: =COUNTIF(L16:L18,AN8) -> 0 | AP8: =AO8/(AQ4-AO11) -> 0 | AQ8: =IF(AP8=0,0,(AP8*((LOG(AP8))/LOG(2)))) -> 0 | AS8: =N8 -> 112 | AT8: =COUNTIF(L19:L20,AS8) -> 0 | AU8: =AT8/(AV4-AT11) -> 0 | AV8: =IF(AU8=0,0,(AU8*((LOG(AU8))/LOG(2)))) -> 0
A9: 12 | B9: 247 | C9: 13 | D9: 255 | E9: 13 | F9: 259 | K9: 0 | L9: 111 | N9: 121 | O9: =COUNTIF($L$7:$L$500,N9) -> 1 | P9: =O9/$Q$4 -> 0.07142857143 | Q9: =IF(P9=0,0,(P9*((LOG(P9))/LOG(2)))) -> -0.271953923 | T9: =N9 -> 121 | U9: =COUNTIF(L7:L8,T9) -> 0 | V9: =U9/(W4-U11) -> 0 | W9: =IF(V9=0,0,(V9*((LOG(V9))/LOG(2)))) -> 0 | Y9: =N9 -> 121 | Z9: =COUNTIF(L9:L11,Y9) -> 0 | AA9: =Z9/(AB4-Z11) -> 0 | AB9: =IF(AA9=0,0,(AA9*((LOG(AA9))/LOG(2)))) -> 0 | AD9: =N9 -> 121 | AE9: =COUNTIF(L12:L13,AD9) -> 0 | AF9: =AE9/(AG4-AE11) -> 0 | AG9: =IF(AF9=0,0,(AF9*((LOG(AF9))/LOG(2)))) -> 0 | AI9: =N9 -> 121 | AJ9: =COUNTIF(L14:L15,AI9) -> 1 | AK9: =AJ9/(AL4-AJ11) -> 0.5 | AL9: =IF(AK9=0,0,(AK9*((LOG(AK9))/LOG(2)))) -> -0.5 | AN9: =N9 -> 121 | AO9: =COUNTIF(L16:L18,AN9) -> 0 | AP9: =AO9/(AQ4-AO11) -> 0 | AQ9: =IF(AP9=0,0,(AP9*((LOG(AP9))/LOG(2)))) -> 0 | AS9: =N9 -> 121 | AT9: =COUNTIF(L19:L20,AS9) -> 0 | AU9: =AT9/(AV4-AT11) -> 0 | AV9: =IF(AU9=0,0,(AU9*((LOG(AU9))/LOG(2)))) -> 0
A10: 21 | B10: 382 | C10: 22 | D10: 390 | E10: 24 | F10: 397 | K10: 0 | L10: 222 | N10: 122 | O10: =COUNTIF($L$7:$L$500,N10) -> 2 | P10: =O10/$Q$4 -> 0.1428571429 | Q10: =IF(P10=0,0,(P10*((LOG(P10))/LOG(2)))) -> -0.4010507032 | T10: =N10 -> 122 | U10: =COUNTIF(L7:L8,T10) -> 1 | V10: =U10/(W4-U11) -> 0.5 | W10: =IF(V10=0,0,(V10*((LOG(V10))/LOG(2)))) -> -0.5 | Y10: =N10 -> 122 | Z10: =COUNTIF(L9:L11,Y10) -> 0 | AA10: =Z10/(AB4-Z11) -> 0 | AB10: =IF(AA10=0,0,(AA10*((LOG(AA10))/LOG(2)))) -> 0 | AD10: =N10 -> 122 | AE10: =COUNTIF(L12:L13,AD10) -> 0 | AF10: =AE10/(AG4-AE11) -> 0 | AG10: =IF(AF10=0,0,(AF10*((LOG(AF10))/LOG(2)))) -> 0 | AI10: =N10 -> 122 | AJ10: =COUNTIF(L14:L15,AI10) -> 0 | AK10: =AJ10/(AL4-AJ11) -> 0 | AL10: =IF(AK10=0,0,(AK10*((LOG(AK10))/LOG(2)))) -> 0 | AN10: =N10 -> 122 | AO10: =COUNTIF(L16:L18,AN10) -> 1 | AP10: =AO10/(AQ4-AO11) -> 0.3333333333 | AQ10: =IF(AP10=0,0,(AP10*((LOG(AP10))/LOG(2)))) -> -0.5283208336 | AS10: =N10 -> 122 | AT10: =COUNTIF(L19:L20,AS10) -> 0 | AU10: =AT10/(AV4-AT11) -> 0 | AV10: =IF(AU10=0,0,(AU10*((LOG(AU10))/LOG(2)))) -> 0
A11: 12 | B11: 521 | C11: 13 | D11: 528 | E11: 24 | F11: 556 | K11: 0 | L11: 112 | N11: 211 | O11: =COUNTIF($L$7:$L$500,N11) -> 0 | P11: =O11/$Q$4 -> 0 | Q11: =IF(P11=0,0,(P11*((LOG(P11))/LOG(2)))) -> 0 | T11: =N11 -> 211 | U11: =COUNTIF(L7:L8,T11) -> 0 | Y11: =N11 -> 211 | Z11: =COUNTIF(L9:L11,Y11) -> 0 | AD11: =N11 -> 211 | AE11: =COUNTIF(L12:L13,AD11) -> 0 | AI11: =N11 -> 211 | AJ11: =COUNTIF(L14:L15,AI11) -> 0 | AN11: =N11 -> 211 | AO11: =COUNTIF(L16:L18,AN11) -> 0 | AS11: =N11 -> 211 | AT11: =COUNTIF(L19:L20,AS11) -> 0
A12: 12 | B12: 685 | C12: 13 | D12: 692 | E12: 13 | F12: 720 | K12: 0 | L12: 111 | N12: 212 | O12: =COUNTIF($L$7:$L$500,N12) -> 0 | P12: =O12/$Q$4 -> 0 | Q12: =IF(P12=0,0,(P12*((LOG(P12))/LOG(2)))) -> 0 | T12: =N12 -> 212 | U12: =COUNTIF(L7:L8,T12) -> 0 | V12: =U12/(W4-U11) -> 0 | W12: =IF(V12=0,0,(V12*((LOG(V12))/LOG(2)))) -> 0 | Y12: =N12 -> 212 | Z12: =COUNTIF(L9:L11,Y12) -> 0 | AA12: =Z12/(AB4-Z11) -> 0 | AB12: =IF(AA12=0,0,(AA12*((LOG(AA12))/LOG(2)))) -> 0 | AD12: =N12 -> 212 | AE12: =COUNTIF(L12:L13,AD12) -> 0 | AF12: =AE12/(AG4-AE11) -> 0 | AG12: =IF(AF12=0,0,(AF12*((LOG(AF12))/LOG(2)))) -> 0 | AI12: =N12 -> 212 | AJ12: =COUNTIF(L14:L15,AI12) -> 0 | AK12: =AJ12/(AL4-AJ11) -> 0 | AL12: =IF(AK12=0,0,(AK12*((LOG(AK12))/LOG(2)))) -> 0 | AN12: =N12 -> 212 | AO12: =COUNTIF(L16:L18,AN12) -> 0 | AP12: =AO12/(AQ4-AO11) -> 0 | AQ12: =IF(AP12=0,0,(AP12*((LOG(AP12))/LOG(2)))) -> 0 | AS12: =N12 -> 212 | AT12: =COUNTIF(L19:L20,AS12) -> 0 | AU12: =AT12/(AV4-AT11) -> 0 | AV12: =IF(AU12=0,0,(AU12*((LOG(AU12))/LOG(2)))) -> 0
A13: 12 | B13: 1018 | C13: 13 | D13: 1046 | E13: 13 | F13: 1063 | K13: 0 | L13: 111 | N13: 221 | O13: =COUNTIF($L$7:$L$500,N13) -> 0 | P13: =O13/$Q$4 -> 0 | Q13: =IF(P13=0,0,(P13*((LOG(P13))/LOG(2)))) -> 0 | T13: =N13 -> 221 | U13: =COUNTIF(L7:L8,T13) -> 0 | V13: =U13/(W4-U11) -> 0 | W13: =IF(V13=0,0,(V13*((LOG(V13))/LOG(2)))) -> 0 | Y13: =N13 -> 221 | Z13: =COUNTIF(L9:L11,Y13) -> 0 | AA13: =Z13/(AB4-Z11) -> 0 | AB13: =IF(AA13=0,0,(AA13*((LOG(AA13))/LOG(2)))) -> 0 | AD13: =N13 -> 221 | AE13: =COUNTIF(L12:L13,AD13) -> 0 | AF13: =AE13/(AG4-AE11) -> 0 | AG13: =IF(AF13=0,0,(AF13*((LOG(AF13))/LOG(2)))) -> 0 | AI13: =N13 -> 221 | AJ13: =COUNTIF(L14:L15,AI13) -> 0 | AK13: =AJ13/(AL4-AJ11) -> 0 | AL13: =IF(AK13=0,0,(AK13*((LOG(AK13))/LOG(2)))) -> 0 | AN13: =N13 -> 221 | AO13: =COUNTIF(L16:L18,AN13) -> 0 | AP13: =AO13/(AQ4-AO11) -> 0 | AQ13: =IF(AP13=0,0,(AP13*((LOG(AP13))/LOG(2)))) -> 0 | AS13: =N13 -> 221 | AT13: =COUNTIF(L19:L20,AS13) -> 0 | AU13: =AT13/(AV4-AT11) -> 0 | AV13: =IF(AU13=0,0,(AU13*((LOG(AU13))/LOG(2)))) -> 0
A14: 12 | B14: 1184 | C14: 13 | D14: 1196 | E14: 24 | F14: 1227 | K14: 0 | L14: 112 | N14: 222 | O14: =COUNTIF($L$7:$L$500,N14) -> 1 | P14: =O14/$Q$4 -> 0.07142857143 | Q14: =IF(P14=0,0,(P14*((LOG(P14))/LOG(2)))) -> -0.271953923 | T14: =N14 -> 222 | U14: =COUNTIF(L7:L8,T14) -> 0 | V14: =U14/(W4-U11) -> 0 | W14: =IF(V14=0,0,(V14*((LOG(V14))/LOG(2)))) -> 0 | Y14: =N14 -> 222 | Z14: =COUNTIF(L9:L11,Y14) -> 1 | AA14: =Z14/(AB4-Z11) -> 0.3333333333 | AB14: =IF(AA14=0,0,(AA14*((LOG(AA14))/LOG(2)))) -> -0.5283208336 | AD14: =N14 -> 222 | AE14: =COUNTIF(L12:L13,AD14) -> 0 | AF14: =AE14/(AG4-AE11) -> 0 | AG14: =IF(AF14=0,0,(AF14*((LOG(AF14))/LOG(2)))) -> 0 | AI14: =N14 -> 222 | AJ14: =COUNTIF(L14:L15,AI14) -> 0 | AK14: =AJ14/(AL4-AJ11) -> 0 | AL14: =IF(AK14=0,0,(AK14*((LOG(AK14))/LOG(2)))) -> 0 | AN14: =N14 -> 222 | AO14: =COUNTIF(L16:L18,AN14) -> 0 | AP14: =AO14/(AQ4-AO11) -> 0 | AQ14: =IF(AP14=0,0,(AP14*((LOG(AP14))/LOG(2)))) -> 0 | AS14: =N14 -> 222 | AT14: =COUNTIF(L19:L20,AS14) -> 0 | AU14: =AT14/(AV4-AT11) -> 0 | AV14: =IF(AU14=0,0,(AU14*((LOG(AU14))/LOG(2)))) -> 0
A15: 12 | B15: 1451 | C15: 24 | D15: 1469 | E15: 13 | F15: 1504 | K15: 0 | L15: 121 | P15: =SUM(P7:P14) -> 1 | Q15: =-SUM(Q7:Q14) -> 1.807354922 | V15: =SUM(V7:V14) -> 1 | W15: =-SUM(W7:W14) -> 1 | AA15: =SUM(AA7:AA14) -> 1 | AB15: =-SUM(AB7:AB14) -> 1.584962501 | AF15: =SUM(AF7:AF14) -> 1 | AG15: =-SUM(AG7:AG14) -> 0 | AK15: =SUM(AK7:AK14) -> 1 | AL15: =-SUM(AL7:AL14) -> 1 | AP15: =SUM(AP7:AP14) -> 1 | AQ15: =-SUM(AQ7:AQ14) -> 0.9182958341 | AU15: =SUM(AU7:AU14) -> 1 | AV15: =-SUM(AV7:AV14) -> 0
A16: 12 | B16: 1836 | C16: 13 | D16: 1859 | E16: 13 | F16: 1878 | K16: 0 | L16: 111 | P16: U= | Q16: =Q15/(LOG(Q4)/LOG(2)) -> 0.4747009299 | V16: U1= | W16: =W15/(LOG(W4)/LOG(2)) -> 1 | AA16: U2= | AB16: =AB15/(LOG(AB4)/LOG(2)) -> 1 | AF16: U3= | AG16: =AG15/(LOG(AG4)/LOG(2)) -> 0 | AK16: U4= | AL16: =AL15/(LOG(AL4)/LOG(2)) -> 1 | AP16: U5= | AQ16: =AQ15/(LOG(AQ4)/LOG(2)) -> 0.5793801643 | AU16: U6= | AV16: =AV15/(LOG(AV4)/LOG(2)) -> 0
A17: 12 | B17: 1981 | C17: 24 | D17: 1995 | E17: 24 | F17: 2003 | K17: 0 | L17: 122
A18: 12 | B18: 2103 | C18: 13 | D18: 2110 | E18: 13 | F18: 2128 | K18: 0 | L18: 111
A19: 12 | B19: 2256 | C19: 13 | D19: 2265 | E19: 13 | F19: 2317 | K19: 0 | L19: 111 | N19: Total Target Seq
A20: 12 | B20: 2410 | C20: 13 | D20: 2462 | E20: 13 | F20: 2470 | K20: 0 | L20: 111 | N20: =COUNTIF(L7:L20,G3) -> 0 | P20: 2 | Q20: 3 | R20: 2 | S20: 2 | T20: 3 | U20: 2
P21: % of reinforcement given in 6 equal intervals based on number of trials
P22: %_1 | Q22: %_2 | R22: %_3 | S22: %_4 | T22: %_5 | U22: %_6
O23: target sequence | P23: =$G$3 -> 211 | Q23: =$G$3 -> 211 | R23: =$G$3 -> 211 | S23: =$G$3 -> 211 | T23: =$G$3 -> 211 | U23: =$G$3 -> 211
O24: total reinforcement | P24: =U11 -> 0 | Q24: =Z11 -> 0 | R24: =AE11 -> 0 | S24: =AJ11 -> 0 | T24: =AO11 -> 0 | U24: =AT11 -> 0
O25: % target
O26: CCRF
O27: % CCRf
O28: average response rate | P28: =F8/P20 -> 73 | Q28: =(F11-F8)/Q20 -> 136.6666667 | R28: =(F13-F11)/R20 -> 253.5 | S28: =(F15-F13)/S20 -> 220.5 | T28: =(F18-F15)/T20 -> 208 | U28: =(F20-F18)/U20 -> 171

Sheet !L903A4B.axt
A1: Report for:!L903A4B.axt
A2: Date: | B2: <date>
A3: Hen: | B3: <hen> | F3: Correct Sequence | G3: =Start!J2 -> 211 | P3: Total Sequences in Data | Q3: =4994-COUNTBLANK(L7:L5000) -> 26 | V3: Total Sequences in Block Data | W3: =COUNTA(L7:L10) -> 4 | AA3: Total Sequences in Block Data | AB3: =COUNTA(L11:L15) -> 5 | AF3: Total Sequences in Block Data | AG3: =COUNTA(L16:L19) -> 4 | AK3: Total Sequences in Block Data | AL3: =COUNTA(L20:L23) -> 4 | AP3: Total Sequences in Block Data | AQ3: =COUNTA(L24:L28) -> 5 | AU3: Total Sequences in Block Data | AV3: =COUNTA(L29:L32) -> 4
P4: Total Sequences in Summary | Q4: =SUM(O7:O14) -> 26 | V4: Total Sequences in Block Summary | W4: =SUM(U7:U14) -> 4 | AA4: Total Sequences in Block Summary | AB4: =SUM(Z7:Z14) -> 5 | AF4: Total Sequences in Block Summary | AG4: =SUM(AE7:AE14) -> 4 | AK4: Total Sequences in Block Summary | AL4: =SUM(AJ7:AJ14) -> 4 | AP4: Total Sequences in Block Summary | AQ4: =SUM(AO7:AO14) -> 5 | AU4: Total Sequences in Block Summary | AV4: =SUM(AT7:AT14) -> 4
T5: Block 1 | Y5: Block 2 | AD5: Block 3 | AI5: Block 4 | AN5: Block 5 | AS5: Block 6
A6: Sequence Component 1 | B6: Time 1 | C6: Sequence Component 2 | D6: Time 2 | E6: Sequence Component 3 | F6: Time 3 | G6: Sequence Component 4 | H6: Time 4 | I6: Sequence Component 5 | J6: Time 5 | K6: Correct? 0=No 1=Yes | L6: Sequence | N6: Frequency | P6: Relative Frequency | Q6: Variability | T6: Frequency | V6: Relative Frequency | W6: Variability | Y6: Frequency | AA6: Relative Frequency | AB6: Variability | AD6: Frequency | AF6: Relative Frequency | AG6: Variability | AI6: Frequency | AK6: Relative Frequency | AL6: Variability | AN6: Frequency | AP6: Relative Frequency | AQ6: Variability | AS6: Frequency | AU6: Relative Frequency | AV6: Variability
A7: 21 | B7: 61 | C7: 22 | D7: 68 | E7: 24 | F7: 76 | K7: 0 | L7: 222 | N7: 111 | O7: =COUNTIF($L$7:$L$500,N7) -> 13 | P7: =O7/$Q$4 -> 0.5 | Q7: =IF(P7=0,0,(P7*((LOG(P7))/LOG(2)))) -> -0.5 | T7: =N7 -> 111 | U7: =COUNTIF(L7:L10,T7) -> 2 | V7: =U7/(W4-U11) -> 0.5 | W7: =IF(V7=0,0,(V7*((LOG(V7))/LOG(2)))) -> -0.5 | Y7: =N7 -> 111 | Z7: =COUNTIF(L11:L15,Y7) -> 2 | AA7: =Z7/(AB4-Z11) -> 0.4 | AB7: =IF(AA7=0,0,(AA7*((LOG(AA7))/LOG(2)))) -> -0.528771238 | AD7: =N7 -> 111 | AE7: =COUNTIF(L16:L19,AD7) -> 0 | AF7: =AE7/(AG4-AE11) -> 0 | AG7: =IF(AF7=0,0,(AF7*((LOG(AF7))/LOG(2)))) -> 0 | AI7: =N7 -> 111 | AJ7: =COUNTIF(L20:L23,AI7) -> 3 | AK7: =AJ7/(AL4-AJ11) -> 0.75 | AL7: =IF(AK7=0,0,(AK7*((LOG(AK7))/LOG(2)))) -> -0.3112781245 | AN7: =N7 -> 111 | AO7: =COUNTIF(L24:L28,AN7) -> 3 | AP7: =AO7/(AQ4-AO11) -> 0.6 | AQ7: =IF(AP7=0,0,(AP7*((LOG(AP7))/LOG(2)))) -> -0.4421793565 | AS7: =N7 -> 111 | AT7: =COUNTIF(L29:L32,AS7) -> 3 | AU7: =AT7/(AV4-AT11) -> 0.75 | AV7: =IF(AU7=0,0,(AU7*((LOG(AU7))/LOG(2)))) -> -0.3112781245
A8: 12 | B8: 174 | C8: 13 | D8: 191 | E8: 13 | F8: 205 | K8: 0 | L8: 111 | N8: 112 | O8: =COUNTIF($L$7:$L$500,N8) -> 5 | P8: =O8/$Q$4 -> 0.1923076923 | Q8: =IF(P8=0,0,(P8*((LOG(P8))/LOG(2)))) -> -0.4574060814 | T8: =N8 -> 112 | U8: =COUNTIF(L7:L10,T8) -> 0 | V8: =U8/(W4-U11) -> 0 | W8: =IF(V8=0,0,(V8*((LOG(V8))/LOG(2)))) -> 0 | Y8: =N8 -> 112 | Z8: =COUNTIF(L11:L15,Y8) -> 2 | AA8: =Z8/(AB4-Z11) -> 0.4 | AB8: =IF(AA8=0,0,(AA8*((LOG(AA8))/LOG(2)))) -> -0.528771238 | AD8: =N8 -> 112 | AE8: =COUNTIF(L16:L19,AD8) -> 1 | AF8: =AE8/(AG4-AE11) -> 0.3333333333 | AG8: =IF(AF8=0,0,(AF8*((LOG(AF8))/LOG(2)))) -> -0.5283208336 | AI8: =N8 -> 112 | AJ8: =COUNTIF(L20:L23,AI8) -> 1 | AK8: =AJ8/(AL4-AJ11) -> 0.25 | AL8: =IF(AK8=0,0,(AK8*((LOG(AK8))/LOG(2)))) -> -0.5 | AN8: =N8 -> 112 | AO8: =COUNTIF(L24:L28,AN8) -> 1 | AP8: =AO8/(AQ4-AO11) -> 0.2 | AQ8: =IF(AP8=0,0,(AP8*((LOG(AP8))/LOG(2)))) -> -0.464385619 | AS8: =N8 -> 112 | AT8: =COUNTIF(L29:L32,AS8) -> 0 | AU8: =AT8/(AV4-AT11) -> 0 | AV8: =IF(AU8=0,0,(AU8*((LOG(AU8))/LOG(2)))) -> 0
A9: 12 | B9: 308 | C9: 13 | D9: 326 | E9: 13 | F9: 332 | K9: 0 | L9: 111 | N9: 121 | O9: =COUNTIF($L$7:$L$500,N9) -> 0 | P9: =O9/$Q$4 -> 0 | Q9: =IF(P9=0,0,(P9*((LOG(P9))/LOG(2)))) -> 0 | T9: =N9 -> 121 | U9: =COUNTIF(L7:L10,T9) -> 0 | V9: =U9/(W4-U11) -> 0 | W9: =IF(V9=0,0,(V9*((LOG(V9))/LOG(2)))) -> 0 | Y9: =N9 -> 121 | Z9: =COUNTIF(L11:L15,Y9) -> 0 | AA9: =Z9/(AB4-Z11) -> 0 | AB9: =IF(AA9=0,0,(AA9*((LOG(AA9))/LOG(2)))) -> 0 | AD9: =N9 -> 121 | AE9: =COUNTIF(L16:L19,AD9) -> 0 | AF9: =AE9/(AG4-AE11) -> 0 | AG9: =IF(AF9=0,0,(AF9*((LOG(AF9))/LOG(2)))) -> 0 | AI9: =N9 -> 121 | AJ9: =COUNTIF(L20:L23,AI9) -> 0 | AK9: =AJ9/(AL4-AJ11) -> 0 | AL9: =IF(AK9=0,0,(AK9*((LOG(AK9))/LOG(2)))) -> 0 | AN9: =N9 -> 121 | AO9: =COUNTIF(L24:L28,AN9) -> 0 | AP9: =AO9/(AQ4-AO11) -> 0 | AQ9: =IF(AP9=0,0,(AP9*((LOG(AP9))/LOG(2)))) -> 0 | AS9: =N9 -> 121 | AT9: =COUNTIF(L29:L32,AS9) -> 0 | AU9: =AT9/(AV4-AT11) -> 0 | AV9: =IF(AU9=0,0,(AU9*((LOG(AU9))/LOG(2)))) -> 0
A10: 12 | B10: 435 | C10: 24 | D10: 453 | E10: 24 | F10: 467 | K10: 0 | L10: 122 | N10: 122 | O10: =COUNTIF($L$7:$L$500,N10) -> 6 | P10: =O10/$Q$4 -> 0.2307692308 | Q10: =IF(P10=0,0,(P10*((LOG(P10))/LOG(2)))) -> -0.4881870502 | T10: =N10 -> 122 | U10: =COUNTIF(L7:L10,T10) -> 1 | V10: =U10/(W4-U11) -> 0.25 | W10: =IF(V10=0,0,(V10*((LOG(V10))/LOG(2)))) -> -0.5 | Y10: =N10 -> 122 | Z10: =COUNTIF(L11:L15,Y10) -> 1 | AA10: =Z10/(AB4-Z11) -> 0.2 | AB10: =IF(AA10=0,0,(AA10*((LOG(AA10))/LOG(2)))) -> -0.464385619 | AD10: =N10 -> 122 | AE10: =COUNTIF(L16:L19,AD10) -> 2 | AF10: =AE10/(AG4-AE11) -> 0.6666666667 | AG10: =IF(AF10=0,0,(AF10*((LOG(AF10))/LOG(2)))) -> -0.3899750005 | AI10: =N10 -> 122 | AJ10: =COUNTIF(L20:L23,AI10) -> 0 | AK10: =AJ10/(AL4-AJ11) -> 0 | AL10: =IF(AK10=0,0,(AK10*((LOG(AK10))/LOG(2)))) -> 0 | AN10: =N10 -> 122 | AO10: =COUNTIF(L24:L28,AN10) -> 1 | AP10: =AO10/(AQ4-AO11) -> 0.2 | AQ10: =IF(AP10=0,0,(AP10*((LOG(AP10))/LOG(2)))) -> -0.464385619 | AS10: =N10 -> 122 | AT10: =COUNTIF(L29:L32,AS10) -> 1 | AU10: =AT10/(AV4-AT11) -> 0.25 | AV10: =IF(AU10=0,0,(AU10*((LOG(AU10))/LOG(2)))) -> -0.5
A11: 12 | B11: 563 | C11: 13 | D11: 571 | E11: 24 | F11: 628 | K11: 0 | L11: 112 | N11: 211 | O11: =COUNTIF($L$7:$L$500,N11) -> 1 | P11: =O11/$Q$4 -> 0.03846153846 | Q11: =IF(P11=0,0,(P11*((LOG(P11))/LOG(2)))) -> -0.180786143 | T11: =N11 -> 211 | U11: =COUNTIF(L7:L10,T11) -> 0 | Y11: =N11 -> 211 | Z11: =COUNTIF(L11:L15,Y11) -> 0 | AD11: =N11 -> 211 | AE11: =COUNTIF(L16:L19,AD11) -> 1 | AI11: =N11 -> 211 | AJ11: =COUNTIF(L20:L23,AI11) -> 0 | AN11: =N11 -> 211 | AO11: =COUNTIF(L24:L28,AN11) -> 0 | AS11: =N11 -> 211 | AT11: =COUNTIF(L29:L32,AS11) -> 0
A12: 12 | B12: 828 | C12: 13 | D12: 864 | E12: 13 | F12: 875 | K12: 0 | L12: 111 | N12: 212 | O12: =COUNTIF($L$7:$L$500,N12) -> 0 | P12: =O12/$Q$4 -> 0 | Q12: =IF(P12=0,0,(P12*((LOG(P12))/LOG(2)))) -> 0 | T12: =N12 -> 212 | U12: =COUNTIF(L7:L10,T12) -> 0 | V12: =U12/(W4-U11) -> 0 | W12: =IF(V12=0,0,(V12*((LOG(V12))/LOG(2)))) -> 0 | Y12: =N12 -> 212 | Z12: =COUNTIF(L11:L15,Y12) -> 0 | AA12: =Z12/(AB4-Z11) -> 0 | AB12: =IF(AA12=0,0,(AA12*((LOG(AA12))/LOG(2)))) -> 0 | AD12: =N12 -> 212 | AE12: =COUNTIF(L16:L19,AD12) -> 0 | AF12: =AE12/(AG4-AE11) -> 0 | AG12: =IF(AF12=0,0,(AF12*((LOG(AF12))/LOG(2)))) -> 0 | AI12: =N12 -> 212 | AJ12: =COUNTIF(L20:L23,AI12) -> 0 | AK12: =AJ12/(AL4-AJ11) -> 0 | AL12: =IF(AK12=0,0,(AK12*((LOG(AK12))/LOG(2)))) -> 0 | AN12: =N12 -> 212 | AO12: =COUNTIF(L24:L28,AN12) -> 0 | AP12: =AO12/(AQ4-AO11) -> 0 | AQ12: =IF(AP12=0,0,(AP12*((LOG(AP12))/LOG(2)))) -> 0 | AS12: =N12 -> 212 | AT12: =COUNTIF(L29:L32,AS12) -> 0 | AU12: =AT12/(AV4-AT11) -> 0 | AV12: =IF(AU12=0,0,(AU12*((LOG(AU12))/LOG(2)))) -> 0
A13: 12 | B13: 1022 | C13: 24 | D13: 1037 | E13: 24 | F13: 1044 | K13: 0 | L13: 122 | N13: 221 | O13: =COUNTIF($L$7:$L$500,N13) -> 0 | P13: =O13/$Q$4 -> 0 | Q13: =IF(P13=0,0,(P13*((LOG(P13))/LOG(2)))) -> 0 | T13: =N13 -> 221 | U13: =COUNTIF(L7:L10,T13) -> 0 | V13: =U13/(W4-U11) -> 0 | W13: =IF(V13=0,0,(V13*((LOG(V13))/LOG(2)))) -> 0 | Y13: =N13 -> 221 | Z13: =COUNTIF(L11:L15,Y13) -> 0 | AA13: =Z13/(AB4-Z11) -> 0 | AB13: =IF(AA13=0,0,(AA13*((LOG(AA13))/LOG(2)))) -> 0 | AD13: =N13 -> 221 | AE13: =COUNTIF(L16:L19,AD13) -> 0 | AF13: =AE13/(AG4-AE11) -> 0 | AG13: =IF(AF13=0,0,(AF13*((LOG(AF13))/LOG(2)))) -> 0 | AI13: =N13 -> 221 | AJ13: =COUNTIF(L20:L23,AI13) -> 0 | AK13: =AJ13/(AL4-AJ11) -> 0 | AL13: =IF(AK13=0,0,(AK13*((LOG(AK13))/LOG(2)))) -> 0 | AN13: =N13 -> 221 | AO13: =COUNTIF(L24:L28,AN13) -> 0 | AP13: =AO13/(AQ4-AO11) -> 0 | AQ13: =IF(AP13=0,0,(AP13*((LOG(AP13))/LOG(2)))) -> 0 | AS13: =N13 -> 221 | AT13: =COUNTIF(L29:L32,AS13) -> 0 | AU13: =AT13/(AV4-AT11) -> 0 | AV13: =IF(AU13=0,0,(AU13*((LOG(AU13))/LOG(2)))) -> 0
A14: 12 | B14: 1402 | C14: 13 | D14: 1407 | E14: 24 | F14: 1426 | K14: 0 | L14: 112 | N14: 222 | O14: =COUNTIF($L$7:$L$500,N14) -> 1 | P14: =O14/$Q$4 -> 0.03846153846 | Q14: =IF(P14=0,0,(P14*((LOG(P14))/LOG(2)))) -> -0.180786143 | T14: =N14 -> 222 | U14: =COUNTIF(L7:L10,T14) -> 1 | V14: =U14/(W4-U11) -> 0.25 | W14: =IF(V14=0,0,(V14*((LOG(V14))/LOG(2)))) -> -0.5 | Y14: =N14 -> 222 | Z14: =COUNTIF(L11:L15,Y14) -> 0 | AA14: =Z14/(AB4-Z11) -> 0 | AB14: =IF(AA14=0,0,(AA14*((LOG(AA14))/LOG(2)))) -> 0 | AD14: =N14 -> 222 | AE14: =COUNTIF(L16:L19,AD14) -> 0 | AF14: =AE14/(AG4-AE11) -> 0 | AG14: =IF(AF14=0,0,(AF14*((LOG(AF14))/LOG(2)))) -> 0 | AI14: =N14 -> 222 | AJ14: =COUNTIF(L20:L23,AI14) -> 0 | AK14: =AJ14/(AL4-AJ11) -> 0 | AL14: =IF(AK14=0,0,(AK14*((LOG(AK14))/LOG(2)))) -> 0 | AN14: =N14 -> 222 | AO14: =COUNTIF(L24:L28,AN14) -> 0 | AP14: =AO14/(AQ4-AO11) -> 0 | AQ14: =IF(AP14=0,0,(AP14*((LOG(AP14))/LOG(2)))) -> 0 | AS14: =N14 -> 222 | AT14: =COUNTIF(L29:L32,AS14) -> 0 | AU14: =AT14/(AV4-AT11) -> 0 | AV14: =IF(AU14=0,0,(AU14*((LOG(AU14))/LOG(2)))) -> 0
A15: 12 | B15: 1590 | C15: 13 | D15: 1641 | E15: 13 | F15: 1651 | K15: 0 | L15: 111 | P15: =SUM(P7:P14) -> 1 | Q15: =-SUM(Q7:Q14) -> 1.807165418 | V15: =SUM(V7:V14) -> 1 | W15: =-SUM(W7:W14) -> 1.5 | AA15: =SUM(AA7:AA14) -> 1 | AB15: =-SUM(AB7:AB14) -> 1.521928095 | AF15: =SUM(AF7:AF14) -> 1 | AG15: =-SUM(AG7:AG14) -> 0.9182958341 | AK15: =SUM(AK7:AK14) -> 1 | AL15: =-SUM(AL7:AL14) -> 0.8112781245 | AP15: =SUM(AP7:AP14) -> 1 | AQ15: =-SUM(AQ7:AQ14) -> 1.370950594 | AU15: =SUM(AU7:AU14) -> 1 | AV15: =-SUM(AV7:AV14) -> 0.8112781245
A16: 21 | B16: 1807 | C16: 11 | D16: 1825 | E16: 11 | F16: 1831 | K16: 0 | L16: 211 | P16: U= | Q16: =Q15/(LOG(Q4)/LOG(2)) -> 0.3844673107 | V16: U1= | W16: =W15/(LOG(W4)/LOG(2)) -> 0.75 | AA16: U2= | AB16: =AB15/(LOG(AB4)/LOG(2)) -> 0.6554587535 | AF16: U3= | AG16: =AG15/(LOG(AG4)/LOG(2)) -> 0.459147917 | AK16: U4= | AL16: =AL15/(LOG(AL4)/LOG(2)) -> 0.4056390622 | AP16: U5= | AQ16: =AQ15/(LOG(AQ4)/LOG(2)) -> 0.5904362833 | AU16: U6= | AV16: =AV15/(LOG(AV4)/LOG(2)) -> 0.4056390622
A17: 12 | B17: 2092 | C17: 24 | D17: 2116 | E17: 24 | F17: 2130 | K17: 0 | L17: 122
A18: 12 | B18: 2254 | C18: 24 | D18: 2289 | E18: 24 | F18: 2297 | K18: 0 | L18: 122
A19: 12 | B19: 2453 | C19: 13 | D19: 2460 | E19: 24 | F19: 2487 | K19: 0 | L19: 112 | N19: Total Target Seq
A20: 12 | B20: 2707 | C20: 13 | D20: 2713 | E20: 13 | F20: 2721 | K20: 0 | L20: 111 | N20: =COUNTIF(L7:L32,G3) -> 1 | P20: 4 | Q20: 5 | R20: 4 | S20: 4 | T20: 5 | U20: 4
A21: 12 | B21: 2830 | C21: 13 | D21: 2838 | E21: 24 | F21: 2865 | K21: 0 | L21: 112 | P21: % of reinforcement given in 6 equal intervals based on number of trials
A22: 12 | B22: 3179 | C22: 13 | D22: 3186 | E22: 13 | F22: 3193 | K22: 0 | L22: 111 | P22: %_1 | Q22: %_2 | R22: %_3 | S22: %_4 | T22: %_5 | U22: %_6
A23: 12 | B23: 3399 | C23: 13 | D23: 3406 | E23: 13 | F23: 3423 | K23: 0 | L23: 111 | O23: target sequence | P23: =$G$3 -> 211 | Q23: =$G$3 -> 211 | R23: =$G$3 -> 211 | S23: =$G$3 -> 211 | T23: =$G$3 -> 211 | U23: =$G$3 -> 211
A24: 12 | B24: 3776 | C24: 13 | D24: 3792 | E24: 13 | F24: 3801 | K24: 0 | L24: 111 | O24: total reinforcement | P24: =U11 -> 0 | Q24: =Z11 -> 0 | R24: =AE11 -> 1 | S24: =AJ11 -> 0 | T24: =AO11 -> 0 | U24: =AT11 -> 0
A25: 12 | B25: 3916 | C25: 13 | D25: 3924 | E25: 24 | F25: 3951 | K25: 0 | L25: 112 | O25: % target
A26: 12 | B26: 4295 | C26: 24 | D26: 4334 | E26: 24 | F26: 4340 | K26: 0 | L26: 122 | O26: CCRF
A27: 12 | B27: 4537 | C27: 13 | D27: 4564 | E27: 13 | F27: 4574 | K27: 0 | L27: 111 | O27: % CCRf
A28: 12 | B28: 9223 | C28: 13 | D28: 9231 | E28: 13 | F28: 9260 | K28: 0 | L28: 111 | O28: average response rate | P28: =F10/P20 -> 116.75 | Q28: =(F15-F10)/Q20 -> 236.8 | R28: =(F19-F15)/R20 -> 209 | S28: =(F23-F19)/S20 -> 234 | T28: =(F28-F23)/T20 -> 1167.4 | U28: =(F32-F28)/U20 -> 2778.5
A29: 12 | B29: 9833 | C29: 13 | D29: 9842 | E29: 13 | F29: 9871 | K29: 0 | L29: 111
A30: 12 | B30: 10954 | C30: 13 | D30: 10960 | E30: 13 | F30: 10969 | K30: 0 | L30: 111
A31: 12 | B31: 18983 | C31: 24 | D31: 19001 | E31: 24 | F31: 19008 | K31: 0 | L31: 122
A32: 12 | B32: 20359 | C32: 13 | D32: 20366 | E32: 13 | F32: 20374 | K32: 0 | L32: 111

Sheet !L905A4B.axt
A1: Report for:!L905A4B.axt
A2: Date: | B2: <date>
A3: Hen: | B3: <hen> | F3: Correct Sequence | G3: =Start!J2 -> 211 | P3: Total Sequences in Data | Q3: =4994-COUNTBLANK(L7:L5000) -> 6 | V3: Total Sequences in Block Data | W3: =COUNTA(L7:L7) -> 1 | AA3: Total Sequences in Block Data | AB3: =COUNTA(L8:L8) -> 1 | AF3: Total Sequences in Block Data | AG3: =COUNTA(L9:L9) -> 1 | AK3: Total Sequences in Block Data | AL3: =COUNTA(L10:L10) -> 1 | AP3: Total Sequences in Block Data | AQ3: =COUNTA(L11:L11) -> 1 | AU3: Total Sequences in Block Data | AV3: =COUNTA(L12:L12) -> 1
P4: Total Sequences in Summary | Q4: =SUM(O7:O14) -> 5 | V4: Total Sequences in Block Summary | W4: =SUM(U7:U14) -> 1 | AA4: Total Sequences in Block Summary | AB4: =SUM(Z7:Z14) -> 1 | AF4: Total Sequences in Block Summary | AG4: =SUM(AE7:AE14) -> 1 | AK4: Total Sequences in Block Summary | AL4: =SUM(AJ7:AJ14) -> 1 | AP4: Total Sequences in Block Summary | AQ4: =SUM(AO7:AO14) -> 1 | AU4: Total Sequences in Block Summary | AV4: =SUM(AT7:AT14) -> 0
T5: Block 1 | Y5: Block 2 | AD5: Block 3 | AI5: Block 4 | AN5: Block 5 | AS5: Block 6
A6: Sequence Component 1 | B6: Time 1 | C6: Sequence Component 2 | D6: Time 2 | E6: Sequence Component 3 | F6: Time 3 | G6: Sequence Component 4 | H6: Time 4 | I6: Sequence Component 5 | J6: Time 5 | K6: Correct? 0=No 1=Yes | L6: Sequence | N6: Frequency | P6: Relative Frequency | Q6: Variability | T6: Frequency | V6: Relative Frequency | W6: Variability | Y6: Frequency | AA6: Relative Frequency | AB6: Variability | AD6: Frequency | AF6: Relative Frequency | AG6: Variability | AI6: Frequency | AK6: Relative Frequency | AL6: Variability | AN6: Frequency | AP6: Relative Frequency | AQ6: Variability | AS6: Frequency | AU6: Relative Frequency | AV6: Variability
A7: 12 | B7: 20 | C7: 13 | D7: 49 | E7: 13 | F7: 54 | K7: 0 | L7: 111 | N7: 111 | O7: =COUNTIF($L$7:$L$500,N7) -> 3 | P7: =O7/$Q$4 -> 0.6 | Q7: =IF(P7=0,0,(P7*((LOG(P7))/LOG(2)))) -> -0.4421793565 | T7: =N7 -> 111 | U7: =COUNTIF(L7:L7,T7) -> 1 | V7: =U7/(W4-U11) -> 1 | W7: =IF(V7=0,0,(V7*((LOG(V7))/LOG(2)))) -> 0 | Y7: =N7 -> 111 | Z7: =COUNTIF(L8:L8,Y7) -> 0 | AA7: =Z7/(AB4-Z11) -> 0 | AB7: =IF(AA7=0,0,(AA7*((LOG(AA7))/LOG(2)))) -> 0 | AD7: =N7 -> 111 | AE7: =COUNTIF(L9:L9,AD7) -> 1 | AF7: =AE7/(AG4-AE11) -> 1 | AG7: =IF(AF7=0,0,(AF7*((LOG(AF7))/LOG(2)))) -> 0 | AI7: =N7 -> 111 | AJ7: =COUNTIF(L10:L10,AI7) -> 1 | AK7: =AJ7/(AL4-AJ11) -> 1 | AL7: =IF(AK7=0,0,(AK7*((LOG(AK7))/LOG(2)))) -> 0 | AN7: =N7 -> 111 | AO7: =COUNTIF(L11:L11,AN7) -> 0 | AP7: =AO7/(AQ4-AO11) -> 0 | AQ7: =IF(AP7=0,0,(AP7*((LOG(AP7))/LOG(2)))) -> 0 | AS7: =N7 -> 111 | AT7: =COUNTIF(L12:L12,AS7) -> 0 | AU7: =AT7/(AV4-AT11) ->  | AV7: =IF(AU7=0,0,(AU7*((LOG(AU7))/LOG(2)))) -> 
A8: 21 | B8: 301 | C8: 11 | D8: 513 | E8: 22 | F8: 560 | K8: 0 | L8: 212 | N8: 112 | O8: =COUNTIF($L$7:$L$500,N8) -> 1 | P8: =O8/$Q$4 -> 0.2 | Q8: =IF(P8=0,0,(P8*((LOG(P8))/LOG(2)))) -> -0.464385619 | T8: =N8 -> 112 | U8: =COUNTIF(L7:L7,T8) -> 0 | V8: =U8/(W4-U11) -> 0 | W8: =IF(V8=0,0,(V8*((LOG(V8))/LOG(2)))) -> 0 | Y8: =N8 -> 112 | Z8: =COUNTIF(L8:L8,Y8) -> 0 | AA8: =Z8/(AB4-Z11) -> 0 | AB8: =IF(AA8=0,0,(AA8*((LOG(AA8))/LOG(2)))) -> 0 | AD8: =N8 -> 112 | AE8: =COUNTIF(L9:L9,AD8) -> 0 | AF8: =AE8/(AG4-AE11) -> 0 | AG8: =IF(AF8=0,0,(AF8*((LOG(AF8))/LOG(2)))) -> 0 | AI8: =N8 -> 112 | AJ8: =COUNTIF(L10:L10,AI8) -> 0 | AK8: =AJ8/(AL4-AJ11) -> 0 | AL8: =IF(AK8=0,0,(AK8*((LOG(AK8))/LOG(2)))) -> 0 | AN8: =N8 -> 112 | AO8: =COUNTIF(L11:L11,AN8) -> 1 | AP8: =AO8/(AQ4-AO11) -> 1 | AQ8: =IF(AP8=0,0,(AP8*((LOG(AP8))/LOG(2)))) -> 0 | AS8: =N8 -> 112 | AT8: =COUNTIF(L12:L12,AS8) -> 0 | AU8: =AT8/(AV4-AT11) ->  | AV8: =IF(AU8=0,0,(AU8*((LOG(AU8))/LOG(2)))) -> 
A9: 12 | B9: 717 | C9: 13 | D9: 778 | E9: 13 | F9: 793 | K9: 0 | L9: 111 | N9: 121 | O9: =COUNTIF($L$7:$L$500,N9) -> 0 | P9: =O9/$Q$4 -> 0 | Q9: =IF(P9=0,0,(P9*((LOG(P9))/LOG(2)))) -> 0 | T9: =N9 -> 121 | U9: =COUNTIF(L7:L7,T9) -> 0 | V9: =U9/(W4-U11) -> 0 | W9: =IF(V9=0,0,(V9*((LOG(V9))/LOG(2)))) -> 0 | Y9: =N9 -> 121 | Z9: =COUNTIF(L8:L8,Y9) -> 0 | AA9: =Z9/(AB4-Z11) -> 0 | AB9: =IF(AA9=0,0,(AA9*((LOG(AA9))/LOG(2)))) -> 0 | AD9: =N9 -> 121 | AE9: =COUNTIF(L9:L9,AD9) -> 0 | AF9: =AE9/(AG4-AE11) -> 0 | AG9: =IF(AF9=0,0,(AF9*((LOG(AF9))/LOG(2)))) -> 0 | AI9: =N9 -> 121 | AJ9: =COUNTIF(L10:L10,AI9) -> 0 | AK9: =AJ9/(AL4-AJ11) -> 0 | AL9: =IF(AK9=0,0,(AK9*((LOG(AK9))/LOG(2)))) -> 0 | AN9: =N9 -> 121 | AO9: =COUNTIF(L11:L11,AN9) -> 0 | AP9: =AO9/(AQ4-AO11) -> 0 | AQ9: =IF(AP9=0,0,(AP9*((LOG(AP9))/LOG(2)))) -> 0 | AS9: =N9 -> 121 | AT9: =COUNTIF(L12:L12,AS9) -> 0 | AU9: =AT9/(AV4-AT11) ->  | AV9: =IF(AU9=0,0,(AU9*((LOG(AU9))/LOG(2)))) -> 
A10: 12 | B10: 1063 | C10: 13 | D10: 1069 | E10: 13 | F10: 1198 | K10: 0 | L10: 111 | N10: 122 | O10: =COUNTIF($L$7:$L$500,N10) -> 0 | P10: =O10/$Q$4 -> 0 | Q10: =IF(P10=0,0,(P10*((LOG(P10))/LOG(2)))) -> 0 | T10: =N10 -> 122 | U10: =COUNTIF(L7:L7,T10) -> 0 | V10: =U10/(W4-U11) -> 0 | W10: =IF(V10=0,0,(V10*((LOG(V10))/LOG(2)))) -> 0 | Y10: =N10 -> 122 | Z10: =COUNTIF(L8:L8,Y10) -> 0 | AA10: =Z10/(AB4-Z11) -> 0 | AB10: =IF(AA10=0,0,(AA10*((LOG(AA10))/LOG(2)))) -> 0 | AD10: =N10 -> 122 | AE10: =COUNTIF(L9:L9,AD10) -> 0 | AF10: =AE10/(AG4-AE11) -> 0 | AG10: =IF(AF10=0,0,(AF10*((LOG(AF10))/LOG(2)))) -> 0 | AI10: =N10 -> 122 | AJ10: =COUNTIF(L10:L10,AI10) -> 0 | AK10: =AJ10/(AL4-AJ11) -> 0 | AL10: =IF(AK10=0,0,(AK10*((LOG(AK10))/LOG(2)))) -> 0 | AN10: =N10 -> 122 | AO10: =COUNTIF(L11:L11,AN10) -> 0 | AP10: =AO10/(AQ4-AO11) -> 0 | AQ10: =IF(AP10=0,0,(AP10*((LOG(AP10))/LOG(2)))) -> 0 | AS10: =N10 -> 122 | AT10: =COUNTIF(L12:L12,AS10) -> 0 | AU10: =AT10/(AV4-AT11) ->  | AV10: =IF(AU10=0,0,(AU10*((LOG(AU10))/LOG(2)))) -> 
A11: 12 | B11: 1398 | C11: 13 | D11: 2629 | E11: 24 | F11: 2637 | K11: 0 | L11: 112 | N11: 211 | O11: =COUNTIF($L$7:$L$500,N11) -> 0 | P11: =O11/$Q$4 -> 0 | Q11: =IF(P11=0,0,(P11*((LOG(P11))/LOG(2)))) -> 0 | T11: =N11 -> 211 | U11: =COUNTIF(L7:L7,T11) -> 0 | Y11: =N11 -> 211 | Z11: =COUNTIF(L8:L8,Y11) -> 0 | AD11: =N11 -> 211 | AE11: =COUNTIF(L9:L9,AD11) -> 0 | AI11: =N11 -> 211 | AJ11: =COUNTIF(L10:L10,AI11) -> 0 | AN11: =N11 -> 211 | AO11: =COUNTIF(L11:L11,AN11) -> 0 | AS11: =N11 -> 211 | AT11: =COUNTIF(L12:L12,AS11) -> 0
A12: 21 | B12: 11259 | C12: 22 | D12: 13678 | L12: 22 | N12: 212 | O12: =COUNTIF($L$7:$L$500,N12) -> 1 | P12: =O12/$Q$4 -> 0.2 | Q12: =IF(P12=0,0,(P12*((LOG(P12))/LOG(2)))) -> -0.464385619 | T12: =N12 -> 212 | U12: =COUNTIF(L7:L7,T12) -> 0 | V12: =U12/(W4-U11) -> 0 | W12: =IF(V12=0,0,(V12*((LOG(V12))/LOG(2)))) -> 0 | Y12: =N12 -> 212 | Z12: =COUNTIF(L8:L8,Y12) -> 1 | AA12: =Z12/(AB4-Z11) -> 1 | AB12: =IF(AA12=0,0,(AA12*((LOG(AA12))/LOG(2)))) -> 0 | AD12: =N12 -> 212 | AE12: =COUNTIF(L9:L9,AD12) -> 0 | AF12: =AE12/(AG4-AE11) -> 0 | AG12: =IF(AF12=0,0,(AF12*((LOG(AF12))/LOG(2)))) -> 0 | AI12: =N12 -> 212 | AJ12: =COUNTIF(L10:L10,AI12) -> 0 | AK12: =AJ12/(AL4-AJ11) -> 0 | AL12: =IF(AK12=0,0,(AK12*((LOG(AK12))/LOG(2)))) -> 0 | AN12: =N12 -> 212 | AO12: =COUNTIF(L11:L11,AN12) -> 0 | AP12: =AO12/(AQ4-AO11) -> 0 | AQ12: =IF(AP12=0,0,(AP12*((LOG(AP12))/LOG(2)))) -> 0 | AS12: =N12 -> 212 | AT12: =COUNTIF(L12:L12,AS12) -> 0 | AU12: =AT12/(AV4-AT11) ->  | AV12: =IF(AU12=0,0,(AU12*((LOG(AU12))/LOG(2)))) -> 
N13: 221 | O13: =COUNTIF($L$7:$L$500,N13) -> 0 | P13: =O13/$Q$4 -> 0 | Q13: =IF(P13=0,0,(P13*((LOG(P13))/LOG(2)))) -> 0 | T13: =N13 -> 221 | U13: =COUNTIF(L7:L7,T13) -> 0 | V13: =U13/(W4-U11) -> 0 | W13: =IF(V13=0,0,(V13*((LOG(V13))/LOG(2)))) -> 0 | Y13: =N13 -> 221 | Z13: =COUNTIF(L8:L8,Y13) -> 0 | AA13: =Z13/(AB4-Z11) -> 0 | AB13: =IF(AA13=0,0,(AA13*((LOG(AA13))/LOG(2)))) -> 0 | AD13: =N13 -> 221 | AE13: =COUNTIF(L9:L9,AD13) -> 0 | AF13: =AE13/(AG4-AE11) -> 0 | AG13: =IF(AF13=0,0,(AF13*((LOG(AF13))/LOG(2)))) -> 0 | AI13: =N13 -> 221 | AJ13: =COUNTIF(L10:L10,AI13) -> 0 | AK13: =AJ13/(AL4-AJ11) -> 0 | AL13: =IF(AK13=0,0,(AK13*((LOG(AK13))/LOG(2)))) -> 0 | AN13: =N13 -> 221 | AO13: =COUNTIF(L11:L11,AN13) -> 0 | AP13: =AO13/(AQ4-AO11) -> 0 | AQ13: =IF(AP13=0,0,(AP13*((LOG(AP13))/LOG(2)))) -> 0 | AS13: =N13 -> 221 | AT13: =COUNTIF(L12:L12,AS13) -> 0 | AU13: =AT13/(AV4-AT11) ->  | AV13: =IF(AU13=0,0,(AU13*((LOG(AU13))/LOG(2)))) -> 
N14: 222 | O14: =COUNTIF($L$7:$L$500,N14) -> 0 | P14: =O14/$Q$4 -> 0 | Q14: =IF(P14=0,0,(P14*((LOG(P14))/LOG(2)))) -> 0 | T14: =N14 -> 222 | U14: =COUNTIF(L7:L7,T14) -> 0 | V14: =U14/(W4-U11) -> 0 | W14: =IF(V14=0,0,(V14*((LOG(V14))/LOG(2)))) -> 0 | Y14: =N14 -> 222 | Z14: =COUNTIF(L8:L8,Y14) -> 0 | AA14: =Z14/(AB4-Z11) -> 0 | AB14: =IF(AA14=0,0,(AA14*((LOG(AA14))/LOG(2)))) -> 0 | AD14: =N14 -> 222 | AE14: =COUNTIF(L9:L9,AD14) -> 0 | AF14: =AE14/(AG4-AE11) -> 0 | AG14: =IF(AF14=0,0,(AF14*((LOG(AF14))/LOG(2)))) -> 0 | AI14: =N14 -> 222 | AJ14: =COUNTIF(L10:L10,AI14) -> 0 | AK14: =AJ14/(AL4-AJ11) -> 0 | AL14: =IF(AK14=0,0,(AK14*((LOG(AK14))/LOG(2)))) -> 0 | AN14: =N14 -> 222 | AO14: =COUNTIF(L11:L11,AN14) -> 0 | AP14: =AO14/(AQ4-AO11) -> 0 | AQ14: =IF(AP14=0,0,(AP14*((LOG(AP14))/LOG(2)))) -> 0 | AS14: =N14 -> 222 | AT14: =COUNTIF(L12:L12,AS14) -> 0 | AU14: =AT14/(AV4-AT11) ->  | AV14: =IF(AU14=0,0,(AU14*((LOG(AU14))/LOG(2)))) -> 
P15: =SUM(P7:P14) -> 1 | Q15: =-SUM(Q7:Q14) -> 1.370950594 | V15: =SUM(V7:V14) -> 1 | W15: =-SUM(W7:W14) -> 0 | AA15: =SUM(AA7:AA14) -> 1 | AB15: =-SUM(AB7:AB14) -> 0 | AF15: =SUM(AF7:AF14) -> 1 | AG15: =-SUM(AG7:AG14) -> 0 | AK15: =SUM(AK7:AK14) -> 1 | AL15: =-SUM(AL7:AL14) -> 0 | AP15: =SUM(AP7:AP14) -> 1 | AQ15: =-SUM(AQ7:AQ14) -> 0 | AU15: =SUM(AU7:AU14) ->  | AV15: =-SUM(AV7:AV14) -> 
P16: U= | Q16: =Q15/(LOG(Q4)/LOG(2)) -> 0.5904362833 | V16: U1= | W16: =W15/(LOG(W4)/LOG(2)) ->  | AA16: U2= | AB16: =AB15/(LOG(AB4)/LOG(2)) ->  | AF16: U3= | AG16: =AG15/(LOG(AG4)/LOG(2)) ->  | AK16: U4= | AL16: =AL15/(LOG(AL4)/LOG(2)) ->  | AP16: U5= | AQ16: =AQ15/(LOG(AQ4)/LOG(2)) ->  | AU16: U6= | AV16: =AV15/(LOG(AV4)/LOG(2)) -> 
N19: Total Target Seq
N20: =COUNTIF(L7:L12,G3) -> 0 | P20: 1 | Q20: 1 | R20: 1 | S20: 1 | T20: 1 | U20: 1
P21: % of reinforcement given in 6 equal intervals based on number of trials
P22: %_1 | Q22: %_2 | R22: %_3 | S22: %_4 | T22: %_5 | U22: %_6
O23: target sequence | P23: =$G$3 -> 211 | Q23: =$G$3 -> 211 | R23: =$G$3 -> 211 | S23: =$G$3 -> 211 | T23: =$G$3 -> 211 | U23: =$G$3 -> 211
O24: total reinforcement | P24: =U11 -> 0 | Q24: =Z11 -> 0 | R24: =AE11 -> 0 | S24: =AJ11 -> 0 | T24: =AO11 -> 0 | U24: =AT11 -> 0
O25: % target
O26: CCRF
O27: % CCRf
O28: average response rate | P28: =F7/P20 -> 54 | Q28: =(F8-F7)/Q20 -> 506 | R28: =(F9-F8)/R20 -> 233 | S28: =(F10-F9)/S20 -> 405 | T28: =(F11-F10)/T20 -> 1439 | U28: =(F12-F11)/U20 -> -2637

Sheet !L906A4B.axt
A1: Report for:!L906A4B.axt
A2: Date: | B2: <date>
A3: Hen: | B3: <hen> | F3: Correct Sequence | G3: =Start!J2 -> 211 | P3: Total Sequences in Data | Q3: =4994-COUNTBLANK(L7:L5000) -> 8 | V3: Total Sequences in Block Data | W3: =COUNTA(L7:L7) -> 1 | AA3: Total Sequences in Block Data | AB3: =COUNTA(L8:L9) -> 2 | AF3: Total Sequences in Block Data | AG3: =COUNTA(L10:L10) -> 1 | AK3: Total Sequences in Block Data | AL3: =COUNTA(L11:L11) -> 1 | AP3: Total Sequences in Block Data | AQ3: =COUNTA(L12:L13) -> 2 | AU3: Total Sequences in Block Data | AV3: =COUNTA(L14:L14) -> 1
P4: Total Sequences in Summary | Q4: =SUM(O7:O14) -> 8 | V4: Total Sequences in Block Summary | W4: =SUM(U7:U14) -> 1 | AA4: Total Sequences in Block Summary | AB4: =SUM(Z7:Z14) -> 2 | AF4: Total Sequences in Block Summary | AG4: =SUM(AE7:AE14) -> 1 | AK4: Total Sequences in Block Summary | AL4: =SUM(AJ7:AJ14) -> 1 | AP4: Total Sequences in Block Summary | AQ4: =SUM(AO7:AO14) -> 2 | AU4: Total Sequences in Block Summary | AV4: =SUM(AT7:AT14) -> 1
T5: Block 1 | Y5: Block 2 | AD5: Block 3 | AI5: Block 4 | AN5: Block 5 | AS5: Block 6
A6: Sequence Component 1 | B6: Time 1 | C6: Sequence Component 2 | D6: Time 2 | E6: Sequence Component 3 | F6: Time 3 | G6: Sequence Component 4 | H6: Time 4 | I6: Sequence Component 5 | J6: Time 5 | K6: Correct? 0=No 1=Yes | L6: Sequence | N6: Frequency | P6: Relative Frequency | Q6: Variability | T6: Frequency | V6: Relative Frequency | W6: Variability | Y6: Frequency | AA6: Relative Frequency | AB6: Variability | AD6: Frequency | AF6: Relative Frequency | AG6: Variability | AI6: Frequency | AK6: Relative Frequency | AL6: Variability | AN6: Frequency | AP6: Relative Frequency | AQ6: Variability | AS6: Frequency | AU6: Relative Frequency | AV6: Variability
A7: 12 | B7: 18 | C7: 24 | D7: 36 | E7: 13 | F7: 48 | K7: 0 | L7: 121 | N7: 111 | O7: =COUNTIF($L$7:$L$500,N7) -> 5 | P7: =O7/$Q$4 -> 0.625 | Q7: =IF(P7=0,0,(P7*((LOG(P7))/LOG(2)))) -> -0.4237949407 | T7: =N7 -> 111 | U7: =COUNTIF(L7:L7,T7) -> 0 | V7: =U7/(W4-U11) -> 0 | W7: =IF(V7=0,0,(V7*((LOG(V7))/LOG(2)))) -> 0 | Y7: =N7 -> 111 | Z7: =COUNTIF(L8:L9,Y7) -> 1 | AA7: =Z7/(AB4-Z11) -> 0.5 | AB7: =IF(AA7=0,0,(AA7*((LOG(AA7))/LOG(2)))) -> -0.5 | AD7: =N7 -> 111 | AE7: =COUNTIF(L10:L10,AD7) -> 1 | AF7: =AE7/(AG4-AE11) -> 1 | AG7: =IF(AF7=0,0,(AF7*((LOG(AF7))/LOG(2)))) -> 0 | AI7: =N7 -> 111 | AJ7: =COUNTIF(L11:L11,AI7) -> 1 | AK7: =AJ7/(AL4-AJ11) -> 1 | AL7: =IF(AK7=0,0,(AK7*((LOG(AK7))/LOG(2)))) -> 0 | AN7: =N7 -> 111 | AO7: =COUNTIF(L12:L13,AN7) -> 1 | AP7: =AO7/(AQ4-AO11) -> 0.5 | AQ7: =IF(AP7=0,0,(AP7*((LOG(AP7))/LOG(2)))) -> -0.5 | AS7: =N7 -> 111 | AT7: =COUNTIF(L14:L14,AS7) -> 1 | AU7: =AT7/(AV4-AT11) -> 1 | AV7: =IF(AU7=0,0,(AU7*((LOG(AU7))/LOG(2)))) -> 0
A8: 12 | B8: 156 | C8: 13 | D8: 162 | E8: 24 | F8: 193 | K8: 0 | L8: 112 | N8: 112 | O8: =COUNTIF($L$7:$L$500,N8) -> 2 | P8: =O8/$Q$4 -> 0.25 | Q8: =IF(P8=0,0,(P8*((LOG(P8))/LOG(2)))) -> -0.5 | T8: =N8 -> 112 | U8: =COUNTIF(L7:L7,T8) -> 0 | V8: =U8/(W4-U11) -> 0 | W8: =IF(V8=0,0,(V8*((LOG(V8))/LOG(2)))) -> 0 | Y8: =N8 -> 112 | Z8: =COUNTIF(L8:L9,Y8) -> 1 | AA8: =Z8/(AB4-Z11) -> 0.5 | AB8: =IF(AA8=0,0,(AA8*((LOG(AA8))/LOG(2)))) -> -0.5 | AD8: =N8 -> 112 | AE8: =COUNTIF(L10:L10,AD8) -> 0 | AF8: =AE8/(AG4-AE11) -> 0 | AG8: =IF(AF8=0,0,(AF8*((LOG(AF8))/LOG(2)))) -> 0 | AI8: =N8 -> 112 | AJ8: =COUNTIF(L11:L11,AI8) -> 0 | AK8: =AJ8/(AL4-AJ11) -> 0 | AL8: =IF(AK8=0,0,(AK8*((LOG(AK8))/LOG(2)))) -> 0 | AN8: =N8 -> 112 | AO8: =COUNTIF(L12:L13,AN8) -> 1 | AP8: =AO8/(AQ4-AO11) -> 0.5 | AQ8: =IF(AP8=0,0,(AP8*((LOG(AP8))/LOG(2)))) -> -0.5 | AS8: =N8 -> 112 | AT8: =COUNTIF(L14:L14,AS8) -> 0 | AU8: =AT8/(AV4-AT11) -> 0 | AV8: =IF(AU8=0,0,(AU8*((LOG(AU8))/LOG(2)))) -> 0
A9: 12 | B9: 325 | C9: 13 | D9: 344 | E9: 13 | F9: 384 | K9: 0 | L9: 111 | N9: 121 | O9: =COUNTIF($L$7:$L$500,N9) -> 1 | P9: =O9/$Q$4 -> 0.125 | Q9: =IF(P9=0,0,(P9*((LOG(P9))/LOG(2)))) -> -0.375 | T9: =N9 -> 121 | U9: =COUNTIF(L7:L7,T9) -> 1 | V9: =U9/(W4-U11) -> 1 | W9: =IF(V9=0,0,(V9*((LOG(V9))/LOG(2)))) -> 0 | Y9: =N9 -> 121 | Z9: =COUNTIF(L8:L9,Y9) -> 0 | AA9: =Z9/(AB4-Z11) -> 0 | AB9: =IF(AA9=0,0,(AA9*((LOG(AA9))/LOG(2)))) -> 0 | AD9: =N9 -> 121 | AE9: =COUNTIF(L10:L10,AD9) -> 0 | AF9: =AE9/(AG4-AE11) -> 0 | AG9: =IF(AF9=0,0,(AF9*((LOG(AF9))/LOG(2)))) -> 0 | AI9: =N9 -> 121 | AJ9: =COUNTIF(L11:L11,AI9) -> 0 | AK9: =AJ9/(AL4-AJ11) -> 0 | AL9: =IF(AK9=0,0,(AK9*((LOG(AK9))/LOG(2)))) -> 0 | AN9: =N9 -> 121 | AO9: =COUNTIF(L12:L13,AN9) -> 0 | AP9: =AO9/(AQ4-AO11) -> 0 | AQ9: =IF(AP9=0,0,(AP9*((LOG(AP9))/LOG(2)))) -> 0 | AS9: =N9 -> 121 | AT9: =COUNTIF(L14:L14,AS9) -> 0 | AU9: =AT9/(AV4-AT11) -> 0 | AV9: =IF(AU9=0,0,(AU9*((LOG(AU9))/LOG(2)))) -> 0
A10: 12 | B10: 548 | C10: 13 | D10: 563 | E10: 13 | F10: 572 | K10: 0 | L10: 111 | N10: 122 | O10: =COUNTIF($L$7:$L$500,N10) -> 0 | P10: =O10/$Q$4 -> 0 | Q10: =IF(P10=0,0,(P10*((LOG(P10))/LOG(2)))) -> 0 | T10: =N10 -> 122 | U10: =COUNTIF(L7:L7,T10) -> 0 | V10: =U10/(W4-U11) -> 0 | W10: =IF(V10=0,0,(V10*((LOG(V10))/LOG(2)))) -> 0 | Y10: =N10 -> 122 | Z10: =COUNTIF(L8:L9,Y10) -> 0 | AA10: =Z10/(AB4-Z11) -> 0 | AB10: =IF(AA10=0,0,(AA10*((LOG(AA10))/LOG(2)))) -> 0 | AD10: =N10 -> 122 | AE10: =COUNTIF(L10:L10,AD10) -> 0 | AF10: =AE10/(AG4-AE11) -> 0 | AG10: =IF(AF10=0,0,(AF10*((LOG(AF10))/LOG(2)))) -> 0 | AI10: =N10 -> 122 | AJ10: =COUNTIF(L11:L11,AI10) -> 0 | AK10: =AJ10/(AL4-AJ11) -> 0 | AL10: =IF(AK10=0,0,(AK10*((LOG(AK10))/LOG(2)))) -> 0 | AN10: =N10 -> 122 | AO10: =COUNTIF(L12:L13,AN10) -> 0 | AP10: =AO10/(AQ4-AO11) -> 0 | AQ10: =IF(AP10=0,0,(AP10*((LOG(AP10))/LOG(2)))) -> 0 | AS10: =N10 -> 122 | AT10: =COUNTIF(L14:L14,AS10) -> 0 | AU10: =AT10/(AV4-AT11) -> 0 | AV10: =IF(AU10=0,0,(AU10*((LOG(AU10))/LOG(2)))) -> 0
A11: 12 | B11: 725 | C11: 13 | D11: 733 | E11: 13 | F11: 778 | K11: 0 | L11: 111 | N11: 211 | O11: =COUNTIF($L$7:$L$500,N11) -> 0 | P11: =O11/$Q$4 -> 0 | Q11: =IF(P11=0,0,(P11*((LOG(P11))/LOG(2)))) -> 0 | T11: =N11 -> 211 | U11: =COUNTIF(L7:L7,T11) -> 0 | Y11: =N11 -> 211 | Z11: =COUNTIF(L8:L9,Y11) -> 0 | AD11: =N11 -> 211 | AE11: =COUNTIF(L10:L10,AD11) -> 0 | AI11: =N11 -> 211 | AJ11: =COUNTIF(L11:L11,AI11) -> 0 | AN11: =N11 -> 211 | AO11: =COUNTIF(L12:L13,AN11) -> 0 | AS11: =N11 -> 211 | AT11: =COUNTIF(L14:L14,AS11) -> 0
A12: 12 | B12: 1010 | C12: 13 | D12: 1061 | E12: 13 | F12: 1068 | K12: 0 | L12: 111 | N12: 212 | O12: =COUNTIF($L$7:$L$500,N12) -> 0 | P12: =O12/$Q$4 -> 0 | Q12: =IF(P12=0,0,(P12*((LOG(P12))/LOG(2)))) -> 0 | T12: =N12 -> 212 | U12: =COUNTIF(L7:L7,T12) -> 0 | V12: =U12/(W4-U11) -> 0 | W12: =IF(V12=0,0,(V12*((LOG(V12))/LOG(2)))) -> 0 | Y12: =N12 -> 212 | Z12: =COUNTIF(L8:L9,Y12) -> 0 | AA12: =Z12/(AB4-Z11) -> 0 | AB12: =IF(AA12=0,0,(AA12*((LOG(AA12))/LOG(2)))) -> 0 | AD12: =N12 -> 212 | AE12: =COUNTIF(L10:L10,AD12) -> 0 | AF12: =AE12/(AG4-AE11) -> 0 | AG12: =IF(AF12=0,0,(AF12*((LOG(AF12))/LOG(2)))) -> 0 | AI12: =N12 -> 212 | AJ12: =COUNTIF(L11:L11,AI12) -> 0 | AK12: =AJ12/(AL4-AJ11) -> 0 | AL12: =IF(AK12=0,0,(AK12*((LOG(AK12))/LOG(2)))) -> 0 | AN12: =N12 -> 212 | AO12: =COUNTIF(L12:L13,AN12) -> 0 | AP12: =AO12/(AQ4-AO11) -> 0 | AQ12: =IF(AP12=0,0,(AP12*((LOG(AP12))/LOG(2)))) -> 0 | AS12: =N12 -> 212 | AT12: =COUNTIF(L14:L14,AS12) -> 0 | AU12: =AT12/(AV4-AT11) -> 0 | AV12: =IF(AU12=0,0,(AU12*((LOG(AU12))/LOG(2)))) -> 0
A13: 12 | B13: 2196 | C13: 13 | D13: 2209 | E13: 24 | F13: 2249 | K13: 0 | L13: 112 | N13: 221 | O13: =COUNTIF($L$7:$L$500,N13) -> 0 | P13: =O13/$Q$4 -> 0 | Q13: =IF(P13=0,0,(P13*((LOG(P13))/LOG(2)))) -> 0 | T13: =N13 -> 221 | U13: =COUNTIF(L7:L7,T13) -> 0 | V13: =U13/(W4-U11) -> 0 | W13: =IF(V13=0,0,(V13*((LOG(V13))/LOG(2)))) -> 0 | Y13: =N13 -> 221 | Z13: =COUNTIF(L8:L9,Y13) -> 0 | AA13: =Z13/(AB4-Z11) -> 0 | AB13: =IF(AA13=0,0,(AA13*((LOG(AA13))/LOG(2)))) -> 0 | AD13: =N13 -> 221 | AE13: =COUNTIF(L10:L10,AD13) -> 0 | AF13: =AE13/(AG4-AE11) -> 0 | AG13: =IF(AF13=0,0,(AF13*((LOG(AF13))/LOG(2)))) -> 0 | AI13: =N13 -> 221 | AJ13: =COUNTIF(L11:L11,AI13) -> 0 | AK13: =AJ13/(AL4-AJ11) -> 0 | AL13: =IF(AK13=0,0,(AK13*((LOG(AK13))/LOG(2)))) -> 0 | AN13: =N13 -> 221 | AO13: =COUNTIF(L12:L13,AN13) -> 0 | AP13: =AO13/(AQ4-AO11) -> 0 | AQ13: =IF(AP13=0,0,(AP13*((LOG(AP13))/LOG(2)))) -> 0 | AS13: =N13 -> 221 | AT13: =COUNTIF(L14:L14,AS13) -> 0 | AU13: =AT13/(AV4-AT11) -> 0 | AV13: =IF(AU13=0,0,(AU13*((LOG(AU13))/LOG(2)))) -> 0
A14: 12 | B14: 2565 | C14: 13 | D14: 2584 | E14: 13 | F14: 2593 | K14: 0 | L14: 111 | N14: 222 | O14: =COUNTIF($L$7:$L$500,N14) -> 0 | P14: =O14/$Q$4 -> 0 | Q14: =IF(P14=0,0,(P14*((LOG(P14))/LOG(2)))) -> 0 | T14: =N14 -> 222 | U14: =COUNTIF(L7:L7,T14) -> 0 | V14: =U14/(W4-U11) -> 0 | W14: =IF(V14=0,0,(V14*((LOG(V14))/LOG(2)))) -> 0 | Y14: =N14 -> 222 | Z14: =COUNTIF(L8:L9,Y14) -> 0 | AA14: =Z14/(AB4-Z11) -> 0 | AB14: =IF(AA14=0,0,(AA14*((LOG(AA14))/LOG(2)))) -> 0 | AD14: =N14 -> 222 | AE14: =COUNTIF(L10:L10,AD14) -> 0 | AF14: =AE14/(AG4-AE11) -> 0 | AG14: =IF(AF14=0,0,(AF14*((LOG(AF14))/LOG(2)))) -> 0 | AI14: =N14 -> 222 | AJ14: =COUNTIF(L11:L11,AI14) -> 0 | AK14: =AJ14/(AL4-AJ11) -> 0 | AL14: =IF(AK14=0,0,(AK14*((LOG(AK14))/LOG(2)))) -> 0 | AN14: =N14 -> 222 | AO14: =COUNTIF(L12:L13,AN14) -> 0 | AP14: =AO14/(AQ4-AO11) -> 0 | AQ14: =IF(AP14=0,0,(AP14*((LOG(AP14))/LOG(2)))) -> 0 | AS14: =N14 -> 222 | AT14: =COUNTIF(L14:L14,AS14) -> 0 | AU14: =AT14/(AV4-AT11) -> 0 | AV14: =IF(AU14=0,0,(AU14*((LOG(AU14))/LOG(2)))) -> 0
P15: =SUM(P7:P14) -> 1 | Q15: =-SUM(Q7:Q14) -> 1.298794941 | V15: =SUM(V7:V14) -> 1 | W15: =-SUM(W7:W14) -> 0 | AA15: =SUM(AA7:AA14) -> 1 | AB15: =-SUM(AB7:AB14) -> 1 | AF15: =SUM(AF7:AF14) -> 1 | AG15: =-SUM(AG7:AG14) -> 0 | AK15: =SUM(AK7:AK14) -> 1 | AL15: =-SUM(AL7:AL14) -> 0 | AP15: =SUM(AP7:AP14) -> 1 | AQ15: =-SUM(AQ7:AQ14) -> 1 | AU15: =SUM(AU7:AU14) -> 1 | AV15: =-SUM(AV7:AV14) -> 0
P16: U= | Q16: =Q15/(LOG(Q4)/LOG(2)) -> 0.4329316469 | V16: U1= | W16: =W15/(LOG(W4)/LOG(2)) ->  | AA16: U2= | AB16: =AB15/(LOG(AB4)/LOG(2)) -> 1 | AF16: U3= | AG16: =AG15/(LOG(AG4)/LOG(2)) ->  | AK16: U4= | AL16: =AL15/(LOG(AL4)/LOG(2)) ->  | AP16: U5= | AQ16: =AQ15/(LOG(AQ4)/LOG(2)) -> 1 | AU16: U6= | AV16: =AV15/(LOG(AV4)/LOG(2)) -> 
N19: Total Target Seq
N20: =COUNTIF(L7:L14,G3) -> 0 | P20: 1 | Q20: 2 | R20: 1 | S20: 1 | T20: 2 | U20: 1
P21: % of reinforcement given in 6 equal intervals based on number of trials
P22: %_1 | Q22: %_2 | R22: %_3 | S22: %_4 | T22: %_5 | U22: %_6
O23: target sequence | P23: =$G$3 -> 211 | Q23: =$G$3 -> 211 | R23: =$G$3 -> 211 | S23: =$G$3 -> 211 | T23: =$G$3 -> 211 | U23: =$G$3 -> 211
O24: total reinforcement | P24: =U11 -> 0 | Q24: =Z11 -> 0 | R24: =AE11 -> 0 | S24: =AJ11 -> 0 | T24: =AO11 -> 0 | U24: =AT11 -> 0
O25: % target
O26: CCRF
O27: % CCRf
O28: average response rate | P28: =F7/P20 -> 48 | Q28: =(F9-F7)/Q20 -> 168 | R28: =(F10-F9)/R20 -> 188 | S28: =(F11-F10)/S20 -> 206 | T28: =(F13-F11)/T20 -> 735.5 | U28: =(F14-F13)/U20 -> 344

Sheet !L907A4B.axt
A1: Report for:!L907A4B.axt
A2: Date: | B2: <date>
A3: Hen: | B3: <hen> | F3: Correct Sequence | G3: =Start!J2 -> 211 | P3: Total Sequences in Data | Q3: =4994-COUNTBLANK(L7:L5000) -> 13 | V3: Total Sequences in Block Data | W3: =COUNTA(L7:L8) -> 2 | AA3: Total Sequences in Block Data | AB3: =COUNTA(L9:L10) -> 2 | AF3: Total Sequences in Block Data | AG3: =COUNTA(L11:L13) -> 3 | AK3: Total Sequences in Block Data | AL3: =COUNTA(L14:L15) -> 2 | AP3: Total Sequences in Block Data | AQ3: =COUNTA(L16:L17) -> 2 | AU3: Total Sequences in Block Data | AV3: =COUNTA(L18:L19) -> 2
P4: Total Sequences in Summary | Q4: =SUM(O7:O14) -> 13 | V4: Total Sequences in Block Summary | W4: =SUM(U7:U14) -> 2 | AA4: Total Sequences in Block Summary | AB4: =SUM(Z7:Z14) -> 2 | AF4: Total Sequences in Block Summary | AG4: =SUM(AE7:AE14) -> 3 | AK4: Total Sequences in Block Summary | AL4: =SUM(AJ7:AJ14) -> 2 | AP4: Total Sequences in Block Summary | AQ4: =SUM(AO7:AO14) -> 2 | AU4: Total Sequences in Block Summary | AV4: =SUM(AT7:AT14) -> 2
T5: Block 1 | Y5: Block 2 | AD5: Block 3 | AI5: Block 4 | AN5: Block 5 | AS5: Block 6
A6: Sequence Component 1 | B6: Time 1 | C6: Sequence Component 2 | D6: Time 2 | E6: Sequence Component 3 | F6: Time 3 | G6: Sequence Component 4 | H6: Time 4 | I6: Sequence Component 5 | J6: Time 5 | K6: Correct? 0=No 1=Yes | L6: Sequence | N6: Frequency | P6: Relative Frequency | Q6: Variability | T6: Frequency | V6: Relative Frequency | W6: Variability | Y6: Frequency | AA6: Relative Frequency | AB6: Variability | AD6: Frequency | AF6: Relative Frequency | AG6: Variability | AI6: Frequency | AK6: Relative Frequency | AL6: Variability | AN6: Frequency | AP6: Relative Frequency | AQ6: Variability | AS6: Frequency | AU6: Relative Frequency | AV6: Variability
A7: 12 | B7: 10 | C7: 13 | D7: 17 | E7: 24 | F7: 31 | K7: 0 | L7: 112 | N7: 111 | O7: =COUNTIF($L$7:$L$500,N7) -> 5 | P7: =O7/$Q$4 -> 0.3846153846 | Q7: =IF(P7=0,0,(P7*((LOG(P7))/LOG(2)))) -> -0.5301967782 | T7: =N7 -> 111 | U7: =COUNTIF(L7:L8,T7) -> 0 | V7: =U7/(W4-U11) -> 0 | W7: =IF(V7=0,0,(V7*((LOG(V7))/LOG(2)))) -> 0 | Y7: =N7 -> 111 | Z7: =COUNTIF(L9:L10,Y7) -> 1 | AA7: =Z7/(AB4-Z11) -> 0.5 | AB7: =IF(AA7=0,0,(AA7*((LOG(AA7))/LOG(2)))) -> -0.5 | AD7: =N7 -> 111 | AE7: =COUNTIF(L11:L13,AD7) -> 0 | AF7: =AE7/(AG4-AE11) -> 0 | AG7: =IF(AF7=0,0,(AF7*((LOG(AF7))/LOG(2)))) -> 0 | AI7: =N7 -> 111 | AJ7: =COUNTIF(L14:L15,AI7) -> 1 | AK7: =AJ7/(AL4-AJ11) -> 0.5 | AL7: =IF(AK7=0,0,(AK7*((LOG(AK7))/LOG(2)))) -> -0.5 | AN7: =N7 -> 111 | AO7: =COUNTIF(L16:L17,AN7) -> 2 | AP7: =AO7/(AQ4-AO11) -> 1 | AQ7: =IF(AP7=0,0,(AP7*((LOG(AP7))/LOG(2)))) -> 0 | AS7: =N7 -> 111 | AT7: =COUNTIF(L18:L19,AS7) -> 1 | AU7: =AT7/(AV4-AT11) -> 0.5 | AV7: =IF(AU7=0,0,(AU7*((LOG(AU7))/LOG(2)))) -> -0.5
A8: 12 | B8: 188 | C8: 13 | D8: 194 | E8: 24 | F8: 213 | K8: 0 | L8: 112 | N8: 112 | O8: =COUNTIF($L$7:$L$500,N8) -> 2 | P8: =O8/$Q$4 -> 0.1538461538 | Q8: =IF(P8=0,0,(P8*((LOG(P8))/LOG(2)))) -> -0.4154522643 | T8: =N8 -> 112 | U8: =COUNTIF(L7:L8,T8) -> 2 | V8: =U8/(W4-U11) -> 1 | W8: =IF(V8=0,0,(V8*((LOG(V8))/LOG(2)))) -> 0 | Y8: =N8 -> 112 | Z8: =COUNTIF(L9:L10,Y8) -> 0 | AA8: =Z8/(AB4-Z11) -> 0 | AB8: =IF(AA8=0,0,(AA8*((LOG(AA8))/LOG(2)))) -> 0 | AD8: =N8 -> 112 | AE8: =COUNTIF(L11:L13,AD8) -> 0 | AF8: =AE8/(AG4-AE11) -> 0 | AG8: =IF(AF8=0,0,(AF8*((LOG(AF8))/LOG(2)))) -> 0 | AI8: =N8 -> 112 | AJ8: =COUNTIF(L14:L15,AI8) -> 0 | AK8: =AJ8/(AL4-AJ11) -> 0 | AL8: =IF(AK8=0,0,(AK8*((LOG(AK8))/LOG(2)))) -> 0 | AN8: =N8 -> 112 | AO8: =COUNTIF(L16:L17,AN8) -> 0 | AP8: =AO8/(AQ4-AO11) -> 0 | AQ8: =IF(AP8=0,0,(AP8*((LOG(AP8))/LOG(2)))) -> 0 | AS8: =N8 -> 112 | AT8: =COUNTIF(L18:L19,AS8) -> 0 | AU8: =AT8/(AV4-AT11) -> 0 | AV8: =IF(AU8=0,0,(AU8*((LOG(AU8))/LOG(2)))) -> 0
A9: 12 | B9: 316 | C9: 13 | D9: 328 | E9: 13 | F9: 338 | K9: 0 | L9: 111 | N9: 121 | O9: =COUNTIF($L$7:$L$500,N9) -> 1 | P9: =O9/$Q$4 -> 0.07692307692 | Q9: =IF(P9=0,0,(P9*((LOG(P9))/LOG(2)))) -> -0.2846492091 | T9: =N9 -> 121 | U9: =COUNTIF(L7:L8,T9) -> 0 | V9: =U9/(W4-U11) -> 0 | W9: =IF(V9=0,0,(V9*((LOG(V9))/LOG(2)))) -> 0 | Y9: =N9 -> 121 | Z9: =COUNTIF(L9:L10,Y9) -> 0 | AA9: =Z9/(AB4-Z11) -> 0 | AB9: =IF(AA9=0,0,(AA9*((LOG(AA9))/LOG(2)))) -> 0 | AD9: =N9 -> 121 | AE9: =COUNTIF(L11:L13,AD9) -> 1 | AF9: =AE9/(AG4-AE11) -> 0.3333333333 | AG9: =IF(AF9=0,0,(AF9*((LOG(AF9))/LOG(2)))) -> -0.5283208336 | AI9: =N9 -> 121 | AJ9: =COUNTIF(L14:L15,AI9) -> 0 | AK9: =AJ9/(AL4-AJ11) -> 0 | AL9: =IF(AK9=0,0,(AK9*((LOG(AK9))/LOG(2)))) -> 0 | AN9: =N9 -> 121 | AO9: =COUNTIF(L16:L17,AN9) -> 0 | AP9: =AO9/(AQ4-AO11) -> 0 | AQ9: =IF(AP9=0,0,(AP9*((LOG(AP9))/LOG(2)))) -> 0 | AS9: =N9 -> 121 | AT9: =COUNTIF(L18:L19,AS9) -> 0 | AU9: =AT9/(AV4-AT11) -> 0 | AV9: =IF(AU9=0,0,(AU9*((LOG(AU9))/LOG(2)))) -> 0
A10: 12 | B10: 433 | C10: 24 | D10: 451 | E10: 24 | F10: 458 | K10: 0 | L10: 122 | N10: 122 | O10: =COUNTIF($L$7:$L$500,N10) -> 4 | P10: =O10/$Q$4 -> 0.3076923077 | Q10: =IF(P10=0,0,(P10*((LOG(P10))/LOG(2)))) -> -0.523212221 | T10: =N10 -> 122 | U10: =COUNTIF(L7:L8,T10) -> 0 | V10: =U10/(W4-U11) -> 0 | W10: =IF(V10=0,0,(V10*((LOG(V10))/LOG(2)))) -> 0 | Y10: =N10 -> 122 | Z10: =COUNTIF(L9:L10,Y10) -> 1 | AA10: =Z10/(AB4-Z11) -> 0.5 | AB10: =IF(AA10=0,0,(AA10*((LOG(AA10))/LOG(2)))) -> -0.5 | AD10: =N10 -> 122 | AE10: =COUNTIF(L11:L13,AD10) -> 1 | AF10: =AE10/(AG4-AE11) -> 0.3333333333 | AG10: =IF(AF10=0,0,(AF10*((LOG(AF10))/LOG(2)))) -> -0.5283208336 | AI10: =N10 -> 122 | AJ10: =COUNTIF(L14:L15,AI10) -> 1 | AK10: =AJ10/(AL4-AJ11) -> 0.5 | AL10: =IF(AK10=0,0,(AK10*((LOG(AK10))/LOG(2)))) -> -0.5 | AN10: =N10 -> 122 | AO10: =COUNTIF(L16:L17,AN10) -> 0 | AP10: =AO10/(AQ4-AO11) -> 0 | AQ10: =IF(AP10=0,0,(AP10*((LOG(AP10))/LOG(2)))) -> 0 | AS10: =N10 -> 122 | AT10: =COUNTIF(L18:L19,AS10) -> 1 | AU10: =AT10/(AV4-AT11) -> 0.5 | AV10: =IF(AU10=0,0,(AU10*((LOG(AU10))/LOG(2)))) -> -0.5
A11: 12 | B11: 561 | C11: 24 | D11: 572 | E11: 24 | F11: 579 | K11: 0 | L11: 122 | N11: 211 | O11: =COUNTIF($L$7:$L$500,N11) -> 0 | P11: =O11/$Q$4 -> 0 | Q11: =IF(P11=0,0,(P11*((LOG(P11))/LOG(2)))) -> 0 | T11: =N11 -> 211 | U11: =COUNTIF(L7:L8,T11) -> 0 | Y11: =N11 -> 211 | Z11: =COUNTIF(L9:L10,Y11) -> 0 | AD11: =N11 -> 211 | AE11: =COUNTIF(L11:L13,AD11) -> 0 | AI11: =N11 -> 211 | AJ11: =COUNTIF(L14:L15,AI11) -> 0 | AN11: =N11 -> 211 | AO11: =COUNTIF(L16:L17,AN11) -> 0 | AS11: =N11 -> 211 | AT11: =COUNTIF(L18:L19,AS11) -> 0
A12: 21 | B12: 850 | C12: 22 | D12: 857 | E12: 13 | F12: 928 | K12: 0 | L12: 221 | N12: 212 | O12: =COUNTIF($L$7:$L$500,N12) -> 0 | P12: =O12/$Q$4 -> 0 | Q12: =IF(P12=0,0,(P12*((LOG(P12))/LOG(2)))) -> 0 | T12: =N12 -> 212 | U12: =COUNTIF(L7:L8,T12) -> 0 | V12: =U12/(W4-U11) -> 0 | W12: =IF(V12=0,0,(V12*((LOG(V12))/LOG(2)))) -> 0 | Y12: =N12 -> 212 | Z12: =COUNTIF(L9:L10,Y12) -> 0 | AA12: =Z12/(AB4-Z11) -> 0 | AB12: =IF(AA12=0,0,(AA12*((LOG(AA12))/LOG(2)))) -> 0 | AD12: =N12 -> 212 | AE12: =COUNTIF(L11:L13,AD12) -> 0 | AF12: =AE12/(AG4-AE11) -> 0 | AG12: =IF(AF12=0,0,(AF12*((LOG(AF12))/LOG(2)))) -> 0 | AI12: =N12 -> 212 | AJ12: =COUNTIF(L14:L15,AI12) -> 0 | AK12: =AJ12/(AL4-AJ11) -> 0 | AL12: =IF(AK12=0,0,(AK12*((LOG(AK12))/LOG(2)))) -> 0 | AN12: =N12 -> 212 | AO12: =COUNTIF(L16:L17,AN12) -> 0 | AP12: =AO12/(AQ4-AO11) -> 0 | AQ12: =IF(AP12=0,0,(AP12*((LOG(AP12))/LOG(2)))) -> 0 | AS12: =N12 -> 212 | AT12: =COUNTIF(L18:L19,AS12) -> 0 | AU12: =AT12/(AV4-AT11) -> 0 | AV12: =IF(AU12=0,0,(AU12*((LOG(AU12))/LOG(2)))) -> 0
A13: 12 | B13: 1315 | C13: 24 | D13: 1342 | E13: 13 | F13: 1363 | K13: 0 | L13: 121 | N13: 221 | O13: =COUNTIF($L$7:$L$500,N13) -> 1 | P13: =O13/$Q$4 -> 0.07692307692 | Q13: =IF(P13=0,0,(P13*((LOG(P13))/LOG(2)))) -> -0.2846492091 | T13: =N13 -> 221 | U13: =COUNTIF(L7:L8,T13) -> 0 | V13: =U13/(W4-U11) -> 0 | W13: =IF(V13=0,0,(V13*((LOG(V13))/LOG(2)))) -> 0 | Y13: =N13 -> 221 | Z13: =COUNTIF(L9:L10,Y13) -> 0 | AA13: =Z13/(AB4-Z11) -> 0 | AB13: =IF(AA13=0,0,(AA13*((LOG(AA13))/LOG(2)))) -> 0 | AD13: =N13 -> 221 | AE13: =COUNTIF(L11:L13,AD13) -> 1 | AF13: =AE13/(AG4-AE11) -> 0.3333333333 | AG13: =IF(AF13=0,0,(AF13*((LOG(AF13))/LOG(2)))) -> -0.5283208336 | AI13: =N13 -> 221 | AJ13: =COUNTIF(L14:L15,AI13) -> 0 | AK13: =AJ13/(AL4-AJ11) -> 0 | AL13: =IF(AK13=0,0,(AK13*((LOG(AK13))/LOG(2)))) -> 0 | AN13: =N13 -> 221 | AO13: =COUNTIF(L16:L17,AN13) -> 0 | AP13: =AO13/(AQ4-AO11) -> 0 | AQ13: =IF(AP13=0,0,(AP13*((LOG(AP13))/LOG(2)))) -> 0 | AS13: =N13 -> 221 | AT13: =COUNTIF(L18:L19,AS13) -> 0 | AU13: =AT13/(AV4-AT11) -> 0 | AV13: =IF(AU13=0,0,(AU13*((LOG(AU13))/LOG(2)))) -> 0
A14: 12 | B14: 1909 | C14: 24 | D14: 1940 | E14: 24 | F14: 1949 | K14: 0 | L14: 122 | N14: 222 | O14: =COUNTIF($L$7:$L$500,N14) -> 0 | P14: =O14/$Q$4 -> 0 | Q14: =IF(P14=0,0,(P14*((LOG(P14))/LOG(2)))) -> 0 | T14: =N14 -> 222 | U14: =COUNTIF(L7:L8,T14) -> 0 | V14: =U14/(W4-U11) -> 0 | W14: =IF(V14=0,0,(V14*((LOG(V14))/LOG(2)))) -> 0 | Y14: =N14 -> 222 | Z14: =COUNTIF(L9:L10,Y14) -> 0 | AA14: =Z14/(AB4-Z11) -> 0 | AB14: =IF(AA14=0,0,(AA14*((LOG(AA14))/LOG(2)))) -> 0 | AD14: =N14 -> 222 | AE14: =COUNTIF(L11:L13,AD14) -> 0 | AF14: =AE14/(AG4-AE11) -> 0 | AG14: =IF(AF14=0,0,(AF14*((LOG(AF14))/LOG(2)))) -> 0 | AI14: =N14 -> 222 | AJ14: =COUNTIF(L14:L15,AI14) -> 0 | AK14: =AJ14/(AL4-AJ11) -> 0 | AL14: =IF(AK14=0,0,(AK14*((LOG(AK14))/LOG(2)))) -> 0 | AN14: =N14 -> 222 | AO14: =COUNTIF(L16:L17,AN14) -> 0 | AP14: =AO14/(AQ4-AO11) -> 0 | AQ14: =IF(AP14=0,0,(AP14*((LOG(AP14))/LOG(2)))) -> 0 | AS14: =N14 -> 222 | AT14: =COUNTIF(L18:L19,AS14) -> 0 | AU14: =AT14/(AV4-AT11) -> 0 | AV14: =IF(AU14=0,0,(AU14*((LOG(AU14))/LOG(2)))) -> 0
A15: 12 | B15: 2047 | C15: 13 | D15: 2055 | E15: 13 | F15: 2063 | K15: 0 | L15: 111 | P15: =SUM(P7:P14) -> 1 | Q15: =-SUM(Q7:Q14) -> 2.038159682 | V15: =SUM(V7:V14) -> 1 | W15: =-SUM(W7:W14) -> 0 | AA15: =SUM(AA7:AA14) -> 1 | AB15: =-SUM(AB7:AB14) -> 1 | AF15: =SUM(AF7:AF14) -> 1 | AG15: =-SUM(AG7:AG14) -> 1.584962501 | AK15: =SUM(AK7:AK14) -> 1 | AL15: =-SUM(AL7:AL14) -> 1 | AP15: =SUM(AP7:AP14) -> 1 | AQ15: =-SUM(AQ7:AQ14) -> 0 | AU15: =SUM(AU7:AU14) -> 1 | AV15: =-SUM(AV7:AV14) -> 1
A16: 12 | B16: 2181 | C16: 13 | D16: 2187 | E16: 13 | F16: 2195 | K16: 0 | L16: 111 | P16: U= | Q16: =Q15/(LOG(Q4)/LOG(2)) -> 0.5507885108 | V16: U1= | W16: =W15/(LOG(W4)/LOG(2)) -> 0 | AA16: U2= | AB16: =AB15/(LOG(AB4)/LOG(2)) -> 1 | AF16: U3= | AG16: =AG15/(LOG(AG4)/LOG(2)) -> 1 | AK16: U4= | AL16: =AL15/(LOG(AL4)/LOG(2)) -> 1 | AP16: U5= | AQ16: =AQ15/(LOG(AQ4)/LOG(2)) -> 0 | AU16: U6= | AV16: =AV15/(LOG(AV4)/LOG(2)) -> 1
A17: 12 | B17: 2346 | C17: 13 | D17: 2355 | E17: 13 | F17: 2363 | K17: 0 | L17: 111
A18: 12 | B18: 2465 | C18: 24 | D18: 2479 | E18: 24 | F18: 2487 | K18: 0 | L18: 122
A19: 12 | B19: 2617 | C19: 13 | D19: 2624 | E19: 13 | F19: 2633 | K19: 0 | L19: 111 | N19: Total Target Seq
N20: =COUNTIF(L7:L19,G3) -> 0 | P20: 2 | Q20: 2 | R20: 3 | S20: 2 | T20: 2 | U20: 2
P21: % of reinforcement given in 6 equal intervals based on number of trials
P22: %_1 | Q22: %_2 | R22: %_3 | S22: %_4 | T22: %_5 | U22: %_6
O23: target sequence | P23: =$G$3 -> 211 | Q23: =$G$3 -> 211 | R23: =$G$3 -> 211 | S23: =$G$3 -> 211 | T23: =$G$3 -> 211 | U23: =$G$3 -> 211
O24: total reinforcement | P24: =U11 -> 0 | Q24: =Z11 -> 0 | R24: =AE11 -> 0 | S24: =AJ11 -> 0 | T24: =AO11 -> 0 | U24: =AT11 -> 0
O25: % target
O26: CCRF
O27: % CCRf
O28: average response rate | P28: =F8/P20 -> 106.5 | Q28: =(F10-F8)/Q20 -> 122.5 | R28: =(F13-F10)/R20 -> 301.6666667 | S28: =(F15-F13)/S20 -> 350 | T28: =(F17-F15)/T20 -> 150 | U28: =(F19-F17)/U20 -> 135

Sheet !L908A3B.axt
A1: Report for:!L908A3B.axt
A2: Date: | B2: <date>
A3: Hen: | B3: <hen> | F3: Correct Sequence | G3: =Start!J2 -> 211 | P3: Total Sequences in Data | Q3: =4994-COUNTBLANK(L7:L5000) -> 22 | V3: Total Sequences in Block Data | W3: =COUNTA(L7:L10) -> 4 | AA3: Total Sequences in Block Data | AB3: =COUNTA(L11:L13) -> 3 | AF3: Total Sequences in Block Data | AG3: =COUNTA(L14:L17) -> 4 | AK3: Total Sequences in Block Data | AL3: =COUNTA(L18:L21) -> 4 | AP3: Total Sequences in Block Data | AQ3: =COUNTA(L22:L24) -> 3 | AU3: Total Sequences in Block Data | AV3: =COUNTA(L25:L28) -> 4
P4: Total Sequences in Summary | Q4: =SUM(O7:O14) -> 22 | V4: Total Sequences in Block Summary | W4: =SUM(U7:U14) -> 4 | AA4: Total Sequences in Block Summary | AB4: =SUM(Z7:Z14) -> 3 | AF4: Total Sequences in Block Summary | AG4: =SUM(AE7:AE14) -> 4 | AK4: Total Sequences in Block Summary | AL4: =SUM(AJ7:AJ14) -> 4 | AP4: Total Sequences in Block Summary | AQ4: =SUM(AO7:AO14) -> 3 | AU4: Total Sequences in Block Summary | AV4: =SUM(AT7:AT14) -> 4
T5: Block 1 | Y5: Block 2 | AD5: Block 3 | AI5: Block 4 | AN5: Block 5 | AS5: Block 6
A6: Sequence Component 1 | B6: Time 1 | C6: Sequence Component 2 | D6: Time 2 | E6: Sequence Component 3 | F6: Time 3 | G6: Sequence Component 4 | H6: Time 4 | I6: Sequence Component 5 | J6: Time 5 | K6: Correct? 0=No 1=Yes | L6: Sequence | N6: Frequency | P6: Relative Frequency | Q6: Variability | T6: Frequency | V6: Relative Frequency | W6: Variability | Y6: Frequency | AA6: Relative Frequency | AB6: Variability | AD6: Frequency | AF6: Relative Frequency | AG6: Variability | AI6: Frequency | AK6: Relative Frequency | AL6: Variability | AN6: Frequency | AP6: Relative Frequency | AQ6: Variability | AS6: Frequency | AU6: Relative Frequency | AV6: Variability
A7: 21 | B7: 36 | C7: 22 | D7: 43 | E7: 24 | F7: 152 | K7: 0 | L7: 222 | N7: 111 | O7: =COUNTIF($L$7:$L$500,N7) -> 3 | P7: =O7/$Q$4 -> 0.1363636364 | Q7: =IF(P7=0,0,(P7*((LOG(P7))/LOG(2)))) -> -0.3919730615 | T7: =N7 -> 111 | U7: =COUNTIF(L7:L10,T7) -> 0 | V7: =U7/(W4-U11) -> 0 | W7: =IF(V7=0,0,(V7*((LOG(V7))/LOG(2)))) -> 0 | Y7: =N7 -> 111 | Z7: =COUNTIF(L11:L13,Y7) -> 0 | AA7: =Z7/(AB4-Z11) -> 0 | AB7: =IF(AA7=0,0,(AA7*((LOG(AA7))/LOG(2)))) -> 0 | AD7: =N7 -> 111 | AE7: =COUNTIF(L14:L17,AD7) -> 2 | AF7: =AE7/(AG4-AE11) -> 0.5 | AG7: =IF(AF7=0,0,(AF7*((LOG(AF7))/LOG(2)))) -> -0.5 | AI7: =N7 -> 111 | AJ7: =COUNTIF(L18:L21,AI7) -> 0 | AK7: =AJ7/(AL4-AJ11) -> 0 | AL7: =IF(AK7=0,0,(AK7*((LOG(AK7))/LOG(2)))) -> 0 | AN7: =N7 -> 111 | AO7: =COUNTIF(L22:L24,AN7) -> 1 | AP7: =AO7/(AQ4-AO11) -> 0.3333333333 | AQ7: =IF(AP7=0,0,(AP7*((LOG(AP7))/LOG(2)))) -> -0.5283208336 | AS7: =N7 -> 111 | AT7: =COUNTIF(L25:L28,AS7) -> 0 | AU7: =AT7/(AV4-AT11) -> 0 | AV7: =IF(AU7=0,0,(AU7*((LOG(AU7))/LOG(2)))) -> 0
A8: 21 | B8: 272 | C8: 22 | D8: 317 | E8: 24 | F8: 324 | K8: 0 | L8: 222 | N8: 112 | O8: =COUNTIF($L$7:$L$500,N8) -> 5 | P8: =O8/$Q$4 -> 0.2272727273 | Q8: =IF(P8=0,0,(P8*((LOG(P8))/LOG(2)))) -> -0.4857962554 | T8: =N8 -> 112 | U8: =COUNTIF(L7:L10,T8) -> 0 | V8: =U8/(W4-U11) -> 0 | W8: =IF(V8=0,0,(V8*((LOG(V8))/LOG(2)))) -> 0 | Y8: =N8 -> 112 | Z8: =COUNTIF(L11:L13,Y8) -> 2 | AA8: =Z8/(AB4-Z11) -> 0.6666666667 | AB8: =IF(AA8=0,0,(AA8*((LOG(AA8))/LOG(2)))) -> -0.3899750005 | AD8: =N8 -> 112 | AE8: =COUNTIF(L14:L17,AD8) -> 0 | AF8: =AE8/(AG4-AE11) -> 0 | AG8: =IF(AF8=0,0,(AF8*((LOG(AF8))/LOG(2)))) -> 0 | AI8: =N8 -> 112 | AJ8: =COUNTIF(L18:L21,AI8) -> 2 | AK8: =AJ8/(AL4-AJ11) -> 0.5 | AL8: =IF(AK8=0,0,(AK8*((LOG(AK8))/LOG(2)))) -> -0.5 | AN8: =N8 -> 112 | AO8: =COUNTIF(L22:L24,AN8) -> 0 | AP8: =AO8/(AQ4-AO11) -> 0 | AQ8: =IF(AP8=0,0,(AP8*((LOG(AP8))/LOG(2)))) -> 0 | AS8: =N8 -> 112 | AT8: =COUNTIF(L25:L28,AS8) -> 1 | AU8: =AT8/(AV4-AT11) -> 0.25 | AV8: =IF(AU8=0,0,(AU8*((LOG(AU8))/LOG(2)))) -> -0.5
A9: 21 | B9: 536 | C9: 22 | D9: 553 | E9: 24 | F9: 563 | K9: 0 | L9: 222 | N9: 121 | O9: =COUNTIF($L$7:$L$500,N9) -> 0 | P9: =O9/$Q$4 -> 0 | Q9: =IF(P9=0,0,(P9*((LOG(P9))/LOG(2)))) -> 0 | T9: =N9 -> 121 | U9: =COUNTIF(L7:L10,T9) -> 0 | V9: =U9/(W4-U11) -> 0 | W9: =IF(V9=0,0,(V9*((LOG(V9))/LOG(2)))) -> 0 | Y9: =N9 -> 121 | Z9: =COUNTIF(L11:L13,Y9) -> 0 | AA9: =Z9/(AB4-Z11) -> 0 | AB9: =IF(AA9=0,0,(AA9*((LOG(AA9))/LOG(2)))) -> 0 | AD9: =N9 -> 121 | AE9: =COUNTIF(L14:L17,AD9) -> 0 | AF9: =AE9/(AG4-AE11) -> 0 | AG9: =IF(AF9=0,0,(AF9*((LOG(AF9))/LOG(2)))) -> 0 | AI9: =N9 -> 121 | AJ9: =COUNTIF(L18:L21,AI9) -> 0 | AK9: =AJ9/(AL4-AJ11) -> 0 | AL9: =IF(AK9=0,0,(AK9*((LOG(AK9))/LOG(2)))) -> 0 | AN9: =N9 -> 121 | AO9: =COUNTIF(L22:L24,AN9) -> 0 | AP9: =AO9/(AQ4-AO11) -> 0 | AQ9: =IF(AP9=0,0,(AP9*((LOG(AP9))/LOG(2)))) -> 0 | AS9: =N9 -> 121 | AT9: =COUNTIF(L25:L28,AS9) -> 0 | AU9: =AT9/(AV4-AT11) -> 0 | AV9: =IF(AU9=0,0,(AU9*((LOG(AU9))/LOG(2)))) -> 0
A10: 21 | B10: 943 | C10: 11 | D10: 955 | E10: 11 | F10: 982 | K10: 0 | L10: 211 | N10: 122 | O10: =COUNTIF($L$7:$L$500,N10) -> 2 | P10: =O10/$Q$4 -> 0.09090909091 | Q10: =IF(P10=0,0,(P10*((LOG(P10))/LOG(2)))) -> -0.3144937835 | T10: =N10 -> 122 | U10: =COUNTIF(L7:L10,T10) -> 0 | V10: =U10/(W4-U11) -> 0 | W10: =IF(V10=0,0,(V10*((LOG(V10))/LOG(2)))) -> 0 | Y10: =N10 -> 122 | Z10: =COUNTIF(L11:L13,Y10) -> 1 | AA10: =Z10/(AB4-Z11) -> 0.3333333333 | AB10: =IF(AA10=0,0,(AA10*((LOG(AA10))/LOG(2)))) -> -0.5283208336 | AD10: =N10 -> 122 | AE10: =COUNTIF(L14:L17,AD10) -> 0 | AF10: =AE10/(AG4-AE11) -> 0 | AG10: =IF(AF10=0,0,(AF10*((LOG(AF10))/LOG(2)))) -> 0 | AI10: =N10 -> 122 | AJ10: =COUNTIF(L18:L21,AI10) -> 1 | AK10: =AJ10/(AL4-AJ11) -> 0.25 | AL10: =IF(AK10=0,0,(AK10*((LOG(AK10))/LOG(2)))) -> -0.5 | AN10: =N10 -> 122 | AO10: =COUNTIF(L22:L24,AN10) -> 0 | AP10: =AO10/(AQ4-AO11) -> 0 | AQ10: =IF(AP10=0,0,(AP10*((LOG(AP10))/LOG(2)))) -> 0 | AS10: =N10 -> 122 | AT10: =COUNTIF(L25:L28,AS10) -> 0 | AU10: =AT10/(AV4-AT11) -> 0 | AV10: =IF(AU10=0,0,(AU10*((LOG(AU10))/LOG(2)))) -> 0
A11: 12 | B11: 1420 | C11: 24 | D11: 1459 | E11: 24 | F11: 1467 | K11: 0 | L11: 122 | N11: 211 | O11: =COUNTIF($L$7:$L$500,N11) -> 1 | P11: =O11/$Q$4 -> 0.04545454545 | Q11: =IF(P11=0,0,(P11*((LOG(P11))/LOG(2)))) -> -0.2027014372 | T11: =N11 -> 211 | U11: =COUNTIF(L7:L10,T11) -> 1 | Y11: =N11 -> 211 | Z11: =COUNTIF(L11:L13,Y11) -> 0 | AD11: =N11 -> 211 | AE11: =COUNTIF(L14:L17,AD11) -> 0 | AI11: =N11 -> 211 | AJ11: =COUNTIF(L18:L21,AI11) -> 0 | AN11: =N11 -> 211 | AO11: =COUNTIF(L22:L24,AN11) -> 0 | AS11: =N11 -> 211 | AT11: =COUNTIF(L25:L28,AS11) -> 0
A12: 12 | B12: 1745 | C12: 13 | D12: 1755 | E12: 24 | F12: 1774 | K12: 0 | L12: 112 | N12: 212 | O12: =COUNTIF($L$7:$L$500,N12) -> 0 | P12: =O12/$Q$4 -> 0 | Q12: =IF(P12=0,0,(P12*((LOG(P12))/LOG(2)))) -> 0 | T12: =N12 -> 212 | U12: =COUNTIF(L7:L10,T12) -> 0 | V12: =U12/(W4-U11) -> 0 | W12: =IF(V12=0,0,(V12*((LOG(V12))/LOG(2)))) -> 0 | Y12: =N12 -> 212 | Z12: =COUNTIF(L11:L13,Y12) -> 0 | AA12: =Z12/(AB4-Z11) -> 0 | AB12: =IF(AA12=0,0,(AA12*((LOG(AA12))/LOG(2)))) -> 0 | AD12: =N12 -> 212 | AE12: =COUNTIF(L14:L17,AD12) -> 0 | AF12: =AE12/(AG4-AE11) -> 0 | AG12: =IF(AF12=0,0,(AF12*((LOG(AF12))/LOG(2)))) -> 0 | AI12: =N12 -> 212 | AJ12: =COUNTIF(L18:L21,AI12) -> 0 | AK12: =AJ12/(AL4-AJ11) -> 0 | AL12: =IF(AK12=0,0,(AK12*((LOG(AK12))/LOG(2)))) -> 0 | AN12: =N12 -> 212 | AO12: =COUNTIF(L22:L24,AN12) -> 0 | AP12: =AO12/(AQ4-AO11) -> 0 | AQ12: =IF(AP12=0,0,(AP12*((LOG(AP12))/LOG(2)))) -> 0 | AS12: =N12 -> 212 | AT12: =COUNTIF(L25:L28,AS12) -> 0 | AU12: =AT12/(AV4-AT11) -> 0 | AV12: =IF(AU12=0,0,(AU12*((LOG(AU12))/LOG(2)))) -> 0
A13: 12 | B13: 1868 | C13: 13 | D13: 1872 | E13: 24 | F13: 1940 | K13: 0 | L13: 112 | N13: 221 | O13: =COUNTIF($L$7:$L$500,N13) -> 0 | P13: =O13/$Q$4 -> 0 | Q13: =IF(P13=0,0,(P13*((LOG(P13))/LOG(2)))) -> 0 | T13: =N13 -> 221 | U13: =COUNTIF(L7:L10,T13) -> 0 | V13: =U13/(W4-U11) -> 0 | W13: =IF(V13=0,0,(V13*((LOG(V13))/LOG(2)))) -> 0 | Y13: =N13 -> 221 | Z13: =COUNTIF(L11:L13,Y13) -> 0 | AA13: =Z13/(AB4-Z11) -> 0 | AB13: =IF(AA13=0,0,(AA13*((LOG(AA13))/LOG(2)))) -> 0 | AD13: =N13 -> 221 | AE13: =COUNTIF(L14:L17,AD13) -> 0 | AF13: =AE13/(AG4-AE11) -> 0 | AG13: =IF(AF13=0,0,(AF13*((LOG(AF13))/LOG(2)))) -> 0 | AI13: =N13 -> 221 | AJ13: =COUNTIF(L18:L21,AI13) -> 0 | AK13: =AJ13/(AL4-AJ11) -> 0 | AL13: =IF(AK13=0,0,(AK13*((LOG(AK13))/LOG(2)))) -> 0 | AN13: =N13 -> 221 | AO13: =COUNTIF(L22:L24,AN13) -> 0 | AP13: =AO13/(AQ4-AO11) -> 0 | AQ13: =IF(AP13=0,0,(AP13*((LOG(AP13))/LOG(2)))) -> 0 | AS13: =N13 -> 221 | AT13: =COUNTIF(L25:L28,AS13) -> 0 | AU13: =AT13/(AV4-AT11) -> 0 | AV13: =IF(AU13=0,0,(AU13*((LOG(AU13))/LOG(2)))) -> 0
A14: 21 | B14: 2057 | C14: 22 | D14: 2073 | E14: 24 | F14: 2162 | K14: 0 | L14: 222 | N14: 222 | O14: =COUNTIF($L$7:$L$500,N14) -> 11 | P14: =O14/$Q$4 -> 0.5 | Q14: =IF(P14=0,0,(P14*((LOG(P14))/LOG(2)))) -> -0.5 | T14: =N14 -> 222 | U14: =COUNTIF(L7:L10,T14) -> 3 | V14: =U14/(W4-U11) -> 1 | W14: =IF(V14=0,0,(V14*((LOG(V14))/LOG(2)))) -> 0 | Y14: =N14 -> 222 | Z14: =COUNTIF(L11:L13,Y14) -> 0 | AA14: =Z14/(AB4-Z11) -> 0 | AB14: =IF(AA14=0,0,(AA14*((LOG(AA14))/LOG(2)))) -> 0 | AD14: =N14 -> 222 | AE14: =COUNTIF(L14:L17,AD14) -> 2 | AF14: =AE14/(AG4-AE11) -> 0.5 | AG14: =IF(AF14=0,0,(AF14*((LOG(AF14))/LOG(2)))) -> -0.5 | AI14: =N14 -> 222 | AJ14: =COUNTIF(L18:L21,AI14) -> 1 | AK14: =AJ14/(AL4-AJ11) -> 0.25 | AL14: =IF(AK14=0,0,(AK14*((LOG(AK14))/LOG(2)))) -> -0.5 | AN14: =N14 -> 222 | AO14: =COUNTIF(L22:L24,AN14) -> 2 | AP14: =AO14/(AQ4-AO11) -> 0.6666666667 | AQ14: =IF(AP14=0,0,(AP14*((LOG(AP14))/LOG(2)))) -> -0.3899750005 | AS14: =N14 -> 222 | AT14: =COUNTIF(L25:L28,AS14) -> 3 | AU14: =AT14/(AV4-AT11) -> 0.75 | AV14: =IF(AU14=0,0,(AU14*((LOG(AU14))/LOG(2)))) -> -0.3112781245
A15: 12 | B15: 2274 | C15: 13 | D15: 2279 | E15: 13 | F15: 2302 | K15: 0 | L15: 111 | P15: =SUM(P7:P14) -> 1 | Q15: =-SUM(Q7:Q14) -> 1.894964538 | V15: =SUM(V7:V14) -> 1 | W15: =-SUM(W7:W14) -> 0 | AA15: =SUM(AA7:AA14) -> 1 | AB15: =-SUM(AB7:AB14) -> 0.9182958341 | AF15: =SUM(AF7:AF14) -> 1 | AG15: =-SUM(AG7:AG14) -> 1 | AK15: =SUM(AK7:AK14) -> 1 | AL15: =-SUM(AL7:AL14) -> 1.5 | AP15: =SUM(AP7:AP14) -> 1 | AQ15: =-SUM(AQ7:AQ14) -> 0.9182958341 | AU15: =SUM(AU7:AU14) -> 1 | AV15: =-SUM(AV7:AV14) -> 0.8112781245
A16: 21 | B16: 2608 | C16: 22 | D16: 2745 | E16: 24 | F16: 2752 | K16: 0 | L16: 222 | P16: U= | Q16: =Q15/(LOG(Q4)/LOG(2)) -> 0.4249340947 | V16: U1= | W16: =W15/(LOG(W4)/LOG(2)) -> 0 | AA16: U2= | AB16: =AB15/(LOG(AB4)/LOG(2)) -> 0.5793801643 | AF16: U3= | AG16: =AG15/(LOG(AG4)/LOG(2)) -> 0.5 | AK16: U4= | AL16: =AL15/(LOG(AL4)/LOG(2)) -> 0.75 | AP16: U5= | AQ16: =AQ15/(LOG(AQ4)/LOG(2)) -> 0.5793801643 | AU16: U6= | AV16: =AV15/(LOG(AV4)/LOG(2)) -> 0.4056390622
A17: 12 | B17: 2849 | C17: 13 | D17: 2859 | E17: 13 | F17: 2904 | K17: 0 | L17: 111
A18: 12 | B18: 3026 | C18: 24 | D18: 3050 | E18: 24 | F18: 3059 | K18: 0 | L18: 122
A19: 12 | B19: 3153 | C19: 13 | D19: 3160 | E19: 24 | F19: 3172 | K19: 0 | L19: 112 | N19: Total Target Seq
A20: 21 | B20: 3298 | C20: 22 | D20: 3305 | E20: 24 | F20: 3313 | K20: 0 | L20: 222 | N20: =COUNTIF(L7:L28,G3) -> 1 | P20: 4 | Q20: 3 | R20: 4 | S20: 4 | T20: 3 | U20: 4
A21: 12 | B21: 3427 | C21: 13 | D21: 3432 | E21: 24 | F21: 3458 | K21: 0 | L21: 112 | P21: % of reinforcement given in 6 equal intervals based on number of trials
A22: 12 | B22: 3552 | C22: 13 | D22: 3590 | E22: 13 | F22: 3648 | K22: 0 | L22: 111 | P22: %_1 | Q22: %_2 | R22: %_3 | S22: %_4 | T22: %_5 | U22: %_6
A23: 21 | B23: 3958 | C23: 22 | D23: 3967 | E23: 24 | F23: 3976 | K23: 0 | L23: 222 | O23: target sequence | P23: =$G$3 -> 211 | Q23: =$G$3 -> 211 | R23: =$G$3 -> 211 | S23: =$G$3 -> 211 | T23: =$G$3 -> 211 | U23: =$G$3 -> 211
A24: 21 | B24: 4141 | C24: 22 | D24: 4148 | E24: 24 | F24: 4157 | K24: 0 | L24: 222 | O24: total reinforcement | P24: =U11 -> 1 | Q24: =Z11 -> 0 | R24: =AE11 -> 0 | S24: =AJ11 -> 0 | T24: =AO11 -> 0 | U24: =AT11 -> 0
A25: 21 | B25: 4409 | C25: 22 | D25: 4416 | E25: 24 | F25: 4428 | K25: 0 | L25: 222 | O25: % target
A26: 21 | B26: 4557 | C26: 22 | D26: 4566 | E26: 24 | F26: 4763 | K26: 0 | L26: 222 | O26: CCRF
A27: 21 | B27: 5016 | C27: 22 | D27: 5023 | E27: 24 | F27: 5031 | K27: 0 | L27: 222 | O27: % CCRf
A28: 12 | B28: 5295 | C28: 13 | D28: 5317 | E28: 24 | F28: 5339 | K28: 0 | L28: 112 | O28: average response rate | P28: =F10/P20 -> 245.5 | Q28: =(F13-F10)/Q20 -> 319.3333333 | R28: =(F17-F13)/R20 -> 241 | S28: =(F21-F17)/S20 -> 138.5 | T28: =(F24-F21)/T20 -> 233 | U28: =(F28-F24)/U20 -> 295.5

Sheet !L90995B.axt
A1: Report for:!L90995B.axt
A2: Date: | B2: <date>
